Workbook

Sheet COTA-C
E9: COTAÇÃO 1 | G9: COTAÇÃO 2 | I9: COTAÇÃO 3
A10: ITEM | B10: DESCRIÇÃO | C10: UNID | D10: QUANT | E10: VALOR | F10: FONTE | G10: VALOR | H10: FONTE | I10: VALOR | J10: FONTE | K10: MÉDIA | L10: MEDIANA | M10: MENOR DAS DUAS | N10: TOTAL | O10: BDI | P10: TOTAL C/BDI
A11: C1 | B11: CAÇAMBA PARA ENTULHO COMUM - LOCAÇÃO - CAPACIDADE 5M³ | C11: UN | D11: 12 | E11: 380 | F11: RENOVAR CAÇAMBAS - CURITIBA | G11: 380 | H11: CMC CAÇAMBAS - CAMPO MOURÃO | I11: 220 | J11: ALFA ENTULHOS - PATO BRANCO | K11: =IF(SUM(E11,G11,I11)=0,0,AVERAGE(E11,G11,I11)) -> 326.6666667 | L11: =IF(SUM(E11,G11,I11)=0,0,MEDIAN(E11,G11,I11)) -> 380 | M11: =SMALL(K11:L11,1) -> 326.6666667 | N11: =M11*D11 -> 3920 | O11: 0.2094 | P11: =N11*(1+O11) -> 4740.848
F12: (41) 9511-9070 | H12: (44) 9960-3364 | J12: (46) 9135-6430
A13: C2 | B13: FITA ADESIVA DUPLA-FACE A BASE DE BORRACHA BUTÍLICA 12,5MM X 2,3MM - ROLO COM 13,7M | C13: RL | D13: 19 | E13: 60 | F13: TELHAS E CIA | G13: 37.98 | H13: AEV IMPORTS LTDA | I13: =2020.92/32 -> 63.15375 | J13: HARD | K13: =IF(SUM(E13,G13,I13)=0,0,AVERAGE(E13,G13,I13)) -> 53.71125 | L13: =IF(SUM(E13,G13,I13)=0,0,MEDIAN(E13,G13,I13)) -> 60 | M13: =SMALL(K13:L13,1) -> 53.71125 | N13: =M13*D13 -> 1020.51375 | O13: 0.2094 | P13: =N13*(1+O13) -> 1234.209329
F14: https://www.telhascia.com.br/fita-tacky-tape-231mmx125mmx137m?utm_source=Site&utm_medium=GoogleMerchant&utm_campaign=GoogleMerchant&gad_source=1&gclid=CjwKCAjwx4O4BhAnEiwA42SbVMrF-afz0x-AjylBUpb3x_G0PXO-dMwjkZ1L957RqZzayDtjuLabpRoCX2MQAvD_BwE | H14: https://123tudo.com.br/products/fita-butilica-tacky-tape-2-31mmx12-5mmx13-7m-hard?variant=45360451551510&currency=BRL&utm_medium=product_sync&utm_source=google&utm_content=sag_organic&utm_campaign=sag_organic&gad_source=1&gclid=CjwKCAjwx4O4BhAnEiwA42SbVHxf9usk4fAfNzElycbm9YRzdKJ41HCA3P8ihif6XrvHNwjU3YhPYRoCH0AQAvD_BwE | J14: https://loja.hard.com.br/produto/itg-100740-2321/fita-tacky-tape-2-31mm-x-12-5mm-x-13-7m?gad_source=1&gclid=Cj0KCQjw6oi4BhD1ARIsAL6pox2qsemShIxxXN1s7tGmM6jeL9-SdMcMms3r21LXnf6jWQ4us0tKivoaAtXjEALw_wcB
A15: C3 | B15: PARAFUSO AUTOBROCANTE 12 x 4" | C15: UN | D15: 788 | E15: 0.64 | F15: CASA DOS PARAFUSOS FRANCA | G15: =309.9/500 -> 0.6198 | H15: MERCADO LIVRE (FIXAR SISTEMAS) | I15: =164.91/100 -> 1.6491 | J15: SUPER PRO ATACADO | K15: =IF(SUM(E15,G15,I15)=0,0,AVERAGE(E15,G15,I15)) -> 0.9696333333 | L15: =IF(SUM(E15,G15,I15)=0,0,MEDIAN(E15,G15,I15)) -> 0.64 | M15: =SMALL(K15:L15,1) -> 0.64 | N15: =M15*D15 -> 504.32 | O15: 0.2094 | P15: =N15*(1+O15) -> 609.924608
F16: https://www.casadosparafusosfranca.com.br/fixadores/parafusos/auto-brocante/parafuso-auto-brocante-sextavado-12-x-4?srsltid=AfmBOoo4H1u2KDYDmyRK8zGyipbZjYLEPRJ3qSFwu-rSuvuv4bA6iiof | H16: https://www.mercadolivre.com.br/parafuso-auto-brocante-telha-12x4-sextavado-500-pcs/up/MLBU1426053711?pdp_filters=item_id:MLB2201096497 | J16: https://www.superproatacado.com.br/parafuso-ponta-broca-cs-inox-5-5mm-n12-x4-100-pecas-worker-991520/p?idsku=29130&utm_source=google&utm_medium=cpc&utm_campaign=23002735676&kwd=&matchtype=&adset_id=186729624122&device=c&gad_source=1&gad_campaignid=23002735676&gbraid=0AAAAACi7cJqa4H4c7Mw0bA1E1YS7dsdwb&gclid=EAIaIQobChMI74SbwNiDkAMVpjYIBR0vhx-xEAQYBiABEgKkBvD_BwE
A17: C4 | B17: PARAFUSO DE COSTURA AUTOBROCANTE 12 x 7/8" | C17: UN | D17: 451 | E17: =76.66/200 -> 0.3833 | F17: FERRAMENTAS KENNEDY | G17: 0.2 | H17: CASA DOS PARAFUSOS FRANCA | I17: =38/100 -> 0.38 | J17: GASPAROTO TELHADOS | K17: =IF(SUM(E17,G17,I17)=0,0,AVERAGE(E17,G17,I17)) -> 0.3211 | L17: =IF(SUM(E17,G17,I17)=0,0,MEDIAN(E17,G17,I17)) -> 0.38 | M17: =SMALL(K17:L17,1) -> 0.3211 | N17: =M17*D17 -> 144.8161 | O17: 0.2094 | P17: =N17*(1+O17) -> 175.1405913
F18: https://www.ferramentaskennedy.com.br/parafuso-ponta-broca-ciser-nr1-zincado-12x7-8-200-pcs/p?idsku=28824&utm_source=google&utm_medium=cpc&utm_campaign=22936337468&kwd=&matchtype=&adset_id=182255552817&device=c&gad_source=1&gad_campaignid=22936337468&gbraid=0AAAAADyLiV_Tdr2rQ9TTimHgmuIs-je9L&gclid=EAIaIQobChMIp6Sh2N2DkAMV7WhIAB1N1znvEAQYAiABEgJ4l_D_BwE | H18: https://www.casadosparafusosfranca.com.br/fixadores/parafusos/auto-brocante/parafuso-auto-brocante-sextavado-12-x-78?srsltid=AfmBOopvKDsyxamMza_LNO8HD5O_-GXvTclOkgS77VkvzlIV4UHhYDcs | J18: https://www.gasparototelhados.com.br/p-13196064-Parafuso-autobrocante-costura-12-x-7_8---100-UNID.
A19: C5 | B19: OLHAL 75X97X17MM EM AÇO INOX - 40KN | C19: UN | D19: 12 | E19: 99 | F19: AMBIESA | G19: 209.13 | H19: SUPER EPI | I19: 135 | J19: NEREA | K19: =IF(SUM(E19,G19,I19)=0,0,AVERAGE(E19,G19,I19)) -> 147.71 | L19: =IF(SUM(E19,G19,I19)=0,0,MEDIAN(E19,G19,I19)) -> 135 | M19: =SMALL(K19:L19,1) -> 135 | N19: =M19*D19 -> 1620 | O19: 0.2094 | P19: =N19*(1+O19) -> 1959.228
F20: https://ambiesa.com.br/product/ancopro-40kn-ancoragem-fixa-aco-inox-bonier-tipo-a1-c/ | H20: https://www.superepi.com.br/ponto-de-ancoragem-fixo-ancopro-em-aco-inox-316l-bonier-p1063848 | J20: https://www.lojanerea.com.br/ancoragem-tipo-a-p174
A21: C6 | B21: SAPATILHO/ANILHA EM AÇO INOX 1/2" - 12,7MM | C21: UN | D21: 18 | E21: 19.99 | F21: FERRAMENTAS GERAIS | G21: =139.76/5 -> 27.952 | H21: MERCADO LIVRE (ABROLHOS NÁUTICA) | I21: 10.92 | J21: PARAFUSO FÁCIL | K21: =IF(SUM(E21,G21,I21)=0,0,AVERAGE(E21,G21,I21)) -> 19.62066667 | L21: =IF(SUM(E21,G21,I21)=0,0,MEDIAN(E21,G21,I21)) -> 19.99 | M21: =SMALL(K21:L21,1) -> 19.62066667 | N21: =M21*D21 -> 353.172 | O21: 0.2094 | P21: =N21*(1+O21) -> 427.1262168
F22: https://www.fg.com.br/anilha-sapatilha-para-cabo-de-aco-127mm-1-2%E2%80%9D-inox---vonder/p?srsltid=AfmBOoqZoZtGLSm0YPUiaDOxyQSdBOsNxkL03W_Mw-SEMYsezEEBTsRx | H22: https://produto.mercadolivre.com.br/MLB-1011827770-kit-5-sapatilha-anilha-12-mm-aco-inox-para-cabo-de-aco-corda-_JM?matt_tool=18956390&utm_source=google_shopping&utm_medium=organic | J22: https://www.parafusofacil.com.br/ProdutosDetalhes.php?Codigo=1176260&srsltid=AfmBOooonk4jbwNzQvZQRYZoPf07G_S_msAR77pXzs5BK7zS3Sg2sgzJufM
A23: C7 | B23: PROJETO DE ESTRUTURA METÁLICA | C23: UN | D23: 213.4 | E23: 7.71 | F23: Tabela de Referência de Honorários Profissionais (em anexo), registrada no CREA/PR - Sessão Plenária nº 741, de 10/06/1997 | K23: =IF(SUM(E23,G23,I23)=0,0,AVERAGE(E23,G23,I23)) -> 7.71 | L23: =IF(SUM(E23,G23,I23)=0,0,MEDIAN(E23,G23,I23)) -> 7.71 | M23: =SMALL(K23:L23,1) -> 7.71 | N23: =M23*D23 -> 1645.314 | O23: 0.2094 | P23: =N23*(1+O23) -> 1989.842752
A25: C8 | B25: ART DE PROJETO | C25: UN | D25: 1 | E25: 108.39 | F25: Decisão Nº: PL-0450/2025 Sistema CREA/CONFEA | K25: =IF(SUM(E25,G25,I25)=0,0,AVERAGE(E25,G25,I25)) -> 108.39 | L25: =IF(SUM(E25,G25,I25)=0,0,MEDIAN(E25,G25,I25)) -> 108.39 | M25: =SMALL(K25:L25,1) -> 108.39 | N25: =M25*D25 -> 108.39 | O25: 0.2094 | P25: =N25*(1+O25) -> 131.086866
A27: C9 | B27: ART DE EXECUÇÃO | C27: UN | D27: 1 | E27: 285.59 | F27: Decisão Nº: PL-0450/2025 Sistema CREA/CONFEA | K27: =IF(SUM(E27,G27,I27)=0,0,AVERAGE(E27,G27,I27)) -> 285.59 | L27: =IF(SUM(E27,G27,I27)=0,0,MEDIAN(E27,G27,I27)) -> 285.59 | M27: =SMALL(K27:L27,1) -> 285.59 | N27: =M27*D27 -> 285.59 | O27: 0.2094 | P27: =N27*(1+O27) -> 345.392546
A29: C10 | B29: PLACA DE POLICARBONATO COMPACTO TRANSPARENTE, E=6MM - 2000MM X 3000MM | C29: M2 | D29: =5*2*3 -> 30 | E29: =2186/6 -> 364.3333333 | F29: PLAST & CO | G29: =2929.04/6 -> 488.1733333 | H29: RM POLICARBONATOS E ACESSÓRIOS | I29: =2628.94/6 -> 438.1566667 | J29: LOJA DO POLI | K29: =IF(SUM(E29,G29,I29)=0,0,AVERAGE(E29,G29,I29)) -> 430.2211111 | L29: =IF(SUM(E29,G29,I29)=0,0,MEDIAN(E29,G29,I29)) -> 438.1566667 | M29: =SMALL(K29:L29,1) -> 430.2211111 | N29: =M29*D29 -> 12906.63333 | O29: 0.2094 | P29: =N29*(1+O29) -> 15609.28235
F30: https://www.plasteco.com.br/kjnwt1nez-chapa-de-pvc-expandido-preto-de-10-ate-20mm | H30: https://rmpolicarbonatos.com.br/coberturas-em-policarbonato/policarbonato-compacto/19169/chapa-de-policarbonato-compacto-cristal-6mm-2-00m-x-3-00m-importado | J30: https://www.lojadopoli.com/policarbonato-compacto/cristalincolor/chapa-policarbonato-compacto-cristalincolor-6mm-2-0x3-0m
A31: C11 | B31: PERFIL TRAPÉZIO DE ALUMÍNIO COM GAXETA (6M) | C31: UD | D31: =0.1*30 -> 3 | E31: 134 | F31: RM POLICARBONATOS E ACESSÓRIOS | G31: 269.9 | H31: LOJA DO POLI | I31: 112.85 | J31: VEGAS COMERCIAL | K31: =IF(SUM(E31,G31,I31)=0,0,AVERAGE(E31,G31,I31)) -> 172.25 | L31: =IF(SUM(E31,G31,I31)=0,0,MEDIAN(E31,G31,I31)) -> 134 | M31: =SMALL(K31:L31,1) -> 134 | N31: =M31*D31 -> 402 | O31: 0.2094 | P31: =N31*(1+O31) -> 486.1788
F32: https://www.rmpolicarbonatos.com.br/perfis-em-aluminio/perfis-fixacao-acabamento/611/perfil-trapezio-branco-6-00m | H32: https://www.lojadopoli.com/acessorios-de-instalacao/policarbonato-azul/perfil-trapezio-em-aluminio-6-metros-12m-gaxeta-fina-6-gaxeta-grossa-para-emendar-chapas-em-cobertura-de-policarbonato?srsltid=AfmBOorxzdwdZlIP8zEo6OL35rkR1ekQdqWf0ZZjoLCmyu6v-QetQhNl | J32: https://vegascomercial.com.br/produto/perfil-trapezio-2131-c-gaxeta/?utm_source=Google%20Shopping&utm_campaign=Geral&utm_medium=cpc&utm_term=1599
A33: C12 | K33: =IF(SUM(E33,G33,I33)=0,0,AVERAGE(E33,G33,I33)) -> 0 | L33: =IF(SUM(E33,G33,I33)=0,0,MEDIAN(E33,G33,I33)) -> 0 | M33: =SMALL(K33:L33,1) -> 0 | N33: =M33*D33 -> 0 | O33: 0.1528 | P33: =N33*(1+O33) -> 0
A35: C13 | K35: =IF(SUM(E35,G35,I35)=0,0,AVERAGE(E35,G35,I35)) -> 0 | L35: =IF(SUM(E35,G35,I35)=0,0,MEDIAN(E35,G35,I35)) -> 0 | M35: =SMALL(K35:L35,1) -> 0 | N35: =M35*D35 -> 0 | O35: 0.2094 | P35: =N35*(1+O35) -> 0
A37: C14 | K37: =IF(SUM(E37,G37,I37)=0,0,AVERAGE(E37,G37,I37)) -> 0 | L37: =IF(SUM(E37,G37,I37)=0,0,MEDIAN(E37,G37,I37)) -> 0 | M37: =SMALL(K37:L37,1) -> 0 | N37: =M37*D37 -> 0 | O37: 0.2094 | P37: =N37*(1+O37) -> 0
A39: C15 | K39: =IF(SUM(E39,G39,I39)=0,0,AVERAGE(E39,G39,I39)) -> 0 | L39: =IF(SUM(E39,G39,I39)=0,0,MEDIAN(E39,G39,I39)) -> 0 | M39: =SMALL(K39:L39,1) -> 0 | N39: =M39*D39 -> 0 | P39: =N39*(1+O39) -> 0
A41: C16 | D41: 0 | K41: =IF(SUM(E41,G41,I41)=0,0,AVERAGE(E41,G41,I41)) -> 0 | L41: =IF(SUM(E41,G41,I41)=0,0,MEDIAN(E41,G41,I41)) -> 0 | M41: =SMALL(K41:L41,1) -> 0 | N41: =M41*D41 -> 0 | P41: =N41*(1+O41) -> 0
A43: C17 | D43: 0 | K43: =IF(SUM(E43,G43,I43)=0,0,AVERAGE(E43,G43,I43)) -> 0 | L43: =IF(SUM(E43,G43,I43)=0,0,MEDIAN(E43,G43,I43)) -> 0 | M43: =SMALL(K43:L43,1) -> 0 | N43: =M43*D43 -> 0 | P43: =N43*(1+O43) -> 0
A45: C18 | D45: 0 | K45: =IF(SUM(E45,G45,I45)=0,0,AVERAGE(E45,G45,I45)) -> 0 | L45: =IF(SUM(E45,G45,I45)=0,0,MEDIAN(E45,G45,I45)) -> 0 | M45: =SMALL(K45:L45,1) -> 0 | N45: =M45*D45 -> 0 | P45: =N45*(1+O45) -> 0
A47: C19 | D47: 0 | K47: =IF(SUM(E47,G47,I47)=0,0,AVERAGE(E47,G47,I47)) -> 0 | L47: =IF(SUM(E47,G47,I47)=0,0,MEDIAN(E47,G47,I47)) -> 0 | M47: =SMALL(K47:L47,1) -> 0 | N47: =M47*D47 -> 0 | P47: =N47*(1+O47) -> 0
A49: C20 | D49: 0 | K49: =IF(SUM(E49,G49,I49)=0,0,AVERAGE(E49,G49,I49)) -> 0 | L49: =IF(SUM(E49,G49,I49)=0,0,MEDIAN(E49,G49,I49)) -> 0 | M49: =SMALL(K49:L49,1) -> 0 | N49: =M49*D49 -> 0 | P49: =N49*(1+O49) -> 0
A51: C21 | D51: 0 | K51: =IF(SUM(E51,G51,I51)=0,0,AVERAGE(E51,G51,I51)) -> 0 | L51: =IF(SUM(E51,G51,I51)=0,0,MEDIAN(E51,G51,I51)) -> 0 | M51: =SMALL(K51:L51,1) -> 0 | N51: =M51*D51 -> 0 | P51: =N51*(1+O51) -> 0
A53: C22 | D53: 0 | K53: =IF(SUM(E53,G53,I53)=0,0,AVERAGE(E53,G53,I53)) -> 0 | L53: =IF(SUM(E53,G53,I53)=0,0,MEDIAN(E53,G53,I53)) -> 0 | M53: =SMALL(K53:L53,1) -> 0 | N53: =M53*D53 -> 0 | P53: =N53*(1+O53) -> 0
A55: C23 | D55: 0 | K55: =IF(SUM(E55,G55,I55)=0,0,AVERAGE(E55,G55,I55)) -> 0 | L55: =IF(SUM(E55,G55,I55)=0,0,MEDIAN(E55,G55,I55)) -> 0 | M55: =SMALL(K55:L55,1) -> 0 | N55: =M55*D55 -> 0 | P55: =N55*(1+O55) -> 0
A57: C24 | D57: 0 | K57: =IF(SUM(E57,G57,I57)=0,0,AVERAGE(E57,G57,I57)) -> 0 | L57: =IF(SUM(E57,G57,I57)=0,0,MEDIAN(E57,G57,I57)) -> 0 | M57: =SMALL(K57:L57,1) -> 0 | N57: =M57*D57 -> 0 | P57: =N57*(1+O57) -> 0
A59: C25 | D59: 0 | K59: =IF(SUM(E59,G59,I59)=0,0,AVERAGE(E59,G59,I59)) -> 0 | L59: =IF(SUM(E59,G59,I59)=0,0,MEDIAN(E59,G59,I59)) -> 0 | M59: =SMALL(K59:L59,1) -> 0 | N59: =M59*D59 -> 0 | P59: =N59*(1+O59) -> 0
A61: C26 | D61: 0 | K61: =IF(SUM(E61,G61,I61)=0,0,AVERAGE(E61,G61,I61)) -> 0 | L61: =IF(SUM(E61,G61,I61)=0,0,MEDIAN(E61,G61,I61)) -> 0 | M61: =SMALL(K61:L61,1) -> 0 | N61: =M61*D61 -> 0 | P61: =N61*(1+O61) -> 0
A63: C27 | D63: 0 | K63: =IF(SUM(E63,G63,I63)=0,0,AVERAGE(E63,G63,I63)) -> 0 | L63: =IF(SUM(E63,G63,I63)=0,0,MEDIAN(E63,G63,I63)) -> 0 | M63: =SMALL(K63:L63,1) -> 0 | N63: =M63*D63 -> 0 | P63: =N63*(1+O63) -> 0
A65: C28 | D65: 0 | K65: =IF(SUM(E65,G65,I65)=0,0,AVERAGE(E65,G65,I65)) -> 0 | L65: =IF(SUM(E65,G65,I65)=0,0,MEDIAN(E65,G65,I65)) -> 0 | M65: =SMALL(K65:L65,1) -> 0 | N65: =M65*D65 -> 0 | P65: =N65*(1+O65) -> 0
A67: C29 | D67: 0 | K67: =IF(SUM(E67,G67,I67)=0,0,AVERAGE(E67,G67,I67)) -> 0 | L67: =IF(SUM(E67,G67,I67)=0,0,MEDIAN(E67,G67,I67)) -> 0 | M67: =SMALL(K67:L67,1) -> 0 | N67: =M67*D67 -> 0 | P67: =N67*(1+O67) -> 0
A69: C30 | D69: 0 | K69: =IF(SUM(E69,G69,I69)=0,0,AVERAGE(E69,G69,I69)) -> 0 | L69: =IF(SUM(E69,G69,I69)=0,0,MEDIAN(E69,G69,I69)) -> 0 | M69: =SMALL(K69:L69,1) -> 0 | N69: =M69*D69 -> 0 | P69: =N69*(1+O69) -> 0
A71: C31 | D71: 0 | K71: =IF(SUM(E71,G71,I71)=0,0,AVERAGE(E71,G71,I71)) -> 0 | L71: =IF(SUM(E71,G71,I71)=0,0,MEDIAN(E71,G71,I71)) -> 0 | M71: =SMALL(K71:L71,1) -> 0 | N71: =M71*D71 -> 0 | P71: =N71*(1+O71) -> 0
A73: C32 | D73: 0 | K73: =IF(SUM(E73,G73,I73)=0,0,AVERAGE(E73,G73,I73)) -> 0 | L73: =IF(SUM(E73,G73,I73)=0,0,MEDIAN(E73,G73,I73)) -> 0 | M73: =SMALL(K73:L73,1) -> 0 | N73: =M73*D73 -> 0 | P73: =N73*(1+O73) -> 0
A75: C33 | D75: 0 | K75: =IF(SUM(E75,G75,I75)=0,0,AVERAGE(E75,G75,I75)) -> 0 | L75: =IF(SUM(E75,G75,I75)=0,0,MEDIAN(E75,G75,I75)) -> 0 | M75: =SMALL(K75:L75,1) -> 0 | N75: =M75*D75 -> 0 | P75: =N75*(1+O75) -> 0
A77: C34 | D77: 0 | K77: =IF(SUM(E77,G77,I77)=0,0,AVERAGE(E77,G77,I77)) -> 0 | L77: =IF(SUM(E77,G77,I77)=0,0,MEDIAN(E77,G77,I77)) -> 0 | M77: =SMALL(K77:L77,1) -> 0 | N77: =M77*D77 -> 0 | P77: =N77*(1+O77) -> 0
A79: C35 | D79: 0 | K79: =IF(SUM(E79,G79,I79)=0,0,AVERAGE(E79,G79,I79)) -> 0 | L79: =IF(SUM(E79,G79,I79)=0,0,MEDIAN(E79,G79,I79)) -> 0 | M79: =SMALL(K79:L79,1) -> 0 | N79: =M79*D79 -> 0 | P79: =N79*(1+O79) -> 0
A81: C36 | D81: 0 | K81: =IF(SUM(E81,G81,I81)=0,0,AVERAGE(E81,G81,I81)) -> 0 | L81: =IF(SUM(E81,G81,I81)=0,0,MEDIAN(E81,G81,I81)) -> 0 | M81: =SMALL(K81:L81,1) -> 0 | N81: =M81*D81 -> 0 | P81: =N81*(1+O81) -> 0
A83: C37 | D83: 0 | K83: =IF(SUM(E83,G83,I83)=0,0,AVERAGE(E83,G83,I83)) -> 0 | L83: =IF(SUM(E83,G83,I83)=0,0,MEDIAN(E83,G83,I83)) -> 0 | M83: =SMALL(K83:L83,1) -> 0 | N83: =M83*D83 -> 0 | P83: =N83*(1+O83) -> 0
A85: C38 | D85: 0 | K85: =IF(SUM(E85,G85,I85)=0,0,AVERAGE(E85,G85,I85)) -> 0 | L85: =IF(SUM(E85,G85,I85)=0,0,MEDIAN(E85,G85,I85)) -> 0 | M85: =SMALL(K85:L85,1) -> 0 | N85: =M85*D85 -> 0 | P85: =N85*(1+O85) -> 0
A87: C39 | D87: 0 | K87: =IF(SUM(E87,G87,I87)=0,0,AVERAGE(E87,G87,I87)) -> 0 | L87: =IF(SUM(E87,G87,I87)=0,0,MEDIAN(E87,G87,I87)) -> 0 | M87: =SMALL(K87:L87,1) -> 0 | N87: =M87*D87 -> 0 | P87: =N87*(1+O87) -> 0
A89: C40 | D89: 0 | K89: =IF(SUM(E89,G89,I89)=0,0,AVERAGE(E89,G89,I89)) -> 0 | L89: =IF(SUM(E89,G89,I89)=0,0,MEDIAN(E89,G89,I89)) -> 0 | M89: =SMALL(K89:L89,1) -> 0 | N89: =M89*D89 -> 0 | P89: =N89*(1+O89) -> 0
A91: C41 | D91: 0 | K91: =IF(SUM(E91,G91,I91)=0,0,AVERAGE(E91,G91,I91)) -> 0 | L91: =IF(SUM(E91,G91,I91)=0,0,MEDIAN(E91,G91,I91)) -> 0 | M91: =SMALL(K91:L91,1) -> 0 | N91: =M91*D91 -> 0 | P91: =N91*(1+O91) -> 0
A93: C42 | D93: 0 | K93: =IF(SUM(E93,G93,I93)=0,0,AVERAGE(E93,G93,I93)) -> 0 | L93: =IF(SUM(E93,G93,I93)=0,0,MEDIAN(E93,G93,I93)) -> 0 | M93: =SMALL(K93:L93,1) -> 0 | N93: =M93*D93 -> 0 | P93: =N93*(1+O93) -> 0
A95: C43 | D95: 0 | K95: =IF(SUM(E95,G95,I95)=0,0,AVERAGE(E95,G95,I95)) -> 0 | L95: =IF(SUM(E95,G95,I95)=0,0,MEDIAN(E95,G95,I95)) -> 0 | M95: =SMALL(K95:L95,1) -> 0 | N95: =M95*D95 -> 0 | P95: =N95*(1+O95) -> 0
A97: C44 | D97: 0 | K97: =IF(SUM(E97,G97,I97)=0,0,AVERAGE(E97,G97,I97)) -> 0 | L97: =IF(SUM(E97,G97,I97)=0,0,MEDIAN(E97,G97,I97)) -> 0 | M97: =SMALL(K97:L97,1) -> 0 | N97: =M97*D97 -> 0 | P97: =N97*(1+O97) -> 0
A99: C45 | D99: 0 | K99: =IF(SUM(E99,G99,I99)=0,0,AVERAGE(E99,G99,I99)) -> 0 | L99: =IF(SUM(E99,G99,I99)=0,0,MEDIAN(E99,G99,I99)) -> 0 | M99: =SMALL(K99:L99,1) -> 0 | N99: =M99*D99 -> 0 | P99: =N99*(1+O99) -> 0
A101: C46 | D101: 0 | K101: =IF(SUM(E101,G101,I101)=0,0,AVERAGE(E101,G101,I101)) -> 0 | L101: =IF(SUM(E101,G101,I101)=0,0,MEDIAN(E101,G101,I101)) -> 0 | M101: =SMALL(K101:L101,1) -> 0 | N101: =M101*D101 -> 0 | P101: =N101*(1+O101) -> 0
A103: C47 | D103: 0 | K103: =IF(SUM(E103,G103,I103)=0,0,AVERAGE(E103,G103,I103)) -> 0 | L103: =IF(SUM(E103,G103,I103)=0,0,MEDIAN(E103,G103,I103)) -> 0 | M103: =SMALL(K103:L103,1) -> 0 | N103: =M103*D103 -> 0 | P103: =N103*(1+O103) -> 0
A105: C48 | D105: 0 | K105: =IF(SUM(E105,G105,I105)=0,0,AVERAGE(E105,G105,I105)) -> 0 | L105: =IF(SUM(E105,G105,I105)=0,0,MEDIAN(E105,G105,I105)) -> 0 | M105: =SMALL(K105:L105,1) -> 0 | N105: =M105*D105 -> 0 | P105: =N105*(1+O105) -> 0
A107: C49 | D107: 0 | K107: =IF(SUM(E107,G107,I107)=0,0,AVERAGE(E107,G107,I107)) -> 0 | L107: =IF(SUM(E107,G107,I107)=0,0,MEDIAN(E107,G107,I107)) -> 0 | M107: =SMALL(K107:L107,1) -> 0 | N107: =M107*D107 -> 0 | P107: =N107*(1+O107) -> 0
A109: C50 | D109: 0 | K109: =IF(SUM(E109,G109,I109)=0,0,AVERAGE(E109,G109,I109)) -> 0 | L109: =IF(SUM(E109,G109,I109)=0,0,MEDIAN(E109,G109,I109)) -> 0 | M109: =SMALL(K109:L109,1) -> 0 | N109: =M109*D109 -> 0 | P109: =N109*(1+O109) -> 0
N111: =SUM(N11:N110) -> 22910.74918 | P111: =SUM(P11:P110) -> 27708.26006
A113: SERVIDOR RESPONSÁVEL PELA COLETA DE PREÇOS | C113: 0
A114: MÉTODO UTILIZADO | C114: Foram obtidas cotações para os itens inexistentes nas tabelas SINAPI e TCPO, adotando-se o menor valor entre a média e a mediana.
A115: JUSTIFICATIVA PARA A METODOLOGIA | C115: Na quase totalidade das situações, não se deve estimar os preços de mercado a partir do menor valor. Há uma razão técnica para isso: estatisticamente, o menor valor não representa a tendência dos preços de mercado. Representa, apenas, o valor mais barato dentre os preços coletados pelo gestor. Por não ser uma medida da tendência dos preços de mercado, não há suporte técnico para adotá-lo como regra geral. As medidas estatísticas que, realmente, devem ser adotadas são a média e a mediana, pois se destinam a medir a tendência dos preços coletados na amostra. São o que, em Estatística, denominamos de medidas de tendência central. Como a média e a mediana reproduzem bem a tendência de preço, opta-se pela menor das duas, buscando-se um preço mais favorável para Administração. A pesquisa de preços foi realizada em sítios eletrônicos especializados ou de domínio amplo, conforme previsto no inciso III, art. 5º da IN nº 73, de 05 de agosto de 2020. As pesquisas de preços foram realizadas em janeiro/2026.
A117: Este documento está em conformidade com os arts. 3º e 6º da IN nº 73, de 05 de agosto de 2020.

Sheet COTA-E
E9: COTAÇÃO 1 | G9: COTAÇÃO 2 | I9: COTAÇÃO 3
A10: ITEM | B10: DESCRIÇÃO | C10: UNID | D10: QUANT | E10: VALOR | F10: FONTE | G10: VALOR | H10: FONTE | I10: VALOR | J10: FONTE | K10: MÉDIA | L10: MEDIANA | M10: MENOR DAS DUAS | N10: TOTAL | O10: BDI | P10: TOTAL C/ BDI
A11: E1 | K11: =IF(SUM(E11,G11,I11)=0,0,AVERAGE(E11,G11,I11)) -> 0 | L11: =IF(SUM(E11,G11,I11)=0,0,MEDIAN(E11,G11,I11)) -> 0 | M11: =SMALL(K11:L11,1) -> 0 | N11: =M11*D11 -> 0 | O11: 0.2094 | P11: =N11*(1+O11) -> 0
A13: E2 | K13: =IF(SUM(E13,G13,I13)=0,0,AVERAGE(E13,G13,I13)) -> 0 | L13: =IF(SUM(E13,G13,I13)=0,0,MEDIAN(E13,G13,I13)) -> 0 | M13: =SMALL(K13:L13,1) -> 0 | N13: =M13*D13 -> 0 | O13: 0.2094 | P13: =N13*(1+O13) -> 0
A15: E3 | K15: =IF(SUM(E15,G15,I15)=0,0,AVERAGE(E15,G15,I15)) -> 0 | L15: =IF(SUM(E15,G15,I15)=0,0,MEDIAN(E15,G15,I15)) -> 0 | M15: =SMALL(K15:L15,1) -> 0 | N15: =M15*D15 -> 0 | O15: 0.2094 | P15: =N15*(1+O15) -> 0
A17: E4 | K17: =IF(SUM(E17,G17,I17)=0,0,AVERAGE(E17,G17,I17)) -> 0 | L17: =IF(SUM(E17,G17,I17)=0,0,MEDIAN(E17,G17,I17)) -> 0 | M17: =SMALL(K17:L17,1) -> 0 | N17: =M17*D17 -> 0 | O17: 0.2094 | P17: =N17*(1+O17) -> 0
A19: E5 | K19: =IF(SUM(E19,G19,I19)=0,0,AVERAGE(E19,G19,I19)) -> 0 | L19: =IF(SUM(E19,G19,I19)=0,0,MEDIAN(E19,G19,I19)) -> 0 | M19: =SMALL(K19:L19,1) -> 0 | N19: =M19*D19 -> 0 | O19: 0.2094 | P19: =N19*(1+O19) -> 0
A21: E6 | K21: =IF(SUM(E21,G21,I21)=0,0,AVERAGE(E21,G21,I21)) -> 0 | L21: =IF(SUM(E21,G21,I21)=0,0,MEDIAN(E21,G21,I21)) -> 0 | M21: =SMALL(K21:L21,1) -> 0 | N21: =M21*D21 -> 0 | O21: 0.2094 | P21: =N21*(1+O21) -> 0
A23: E7 | K23: =IF(SUM(E23,G23,I23)=0,0,AVERAGE(E23,G23,I23)) -> 0 | L23: =IF(SUM(E23,G23,I23)=0,0,MEDIAN(E23,G23,I23)) -> 0 | M23: =SMALL(K23:L23,1) -> 0 | N23: =M23*D23 -> 0 | O23: 0.2094 | P23: =N23*(1+O23) -> 0
A25: E8 | K25: =IF(SUM(E25,G25,I25)=0,0,AVERAGE(E25,G25,I25)) -> 0 | L25: =IF(SUM(E25,G25,I25)=0,0,MEDIAN(E25,G25,I25)) -> 0 | M25: =SMALL(K25:L25,1) -> 0 | N25: =M25*D25 -> 0 | O25: 0.2094 | P25: =N25*(1+O25) -> 0
A27: E9 | K27: =IF(SUM(E27,G27,I27)=0,0,AVERAGE(E27,G27,I27)) -> 0 | L27: =IF(SUM(E27,G27,I27)=0,0,MEDIAN(E27,G27,I27)) -> 0 | M27: =SMALL(K27:L27,1) -> 0 | N27: =M27*D27 -> 0 | O27: 0.2094 | P27: =N27*(1+O27) -> 0
A29: E10 | K29: =IF(SUM(E29,G29,I29)=0,0,AVERAGE(E29,G29,I29)) -> 0 | L29: =IF(SUM(E29,G29,I29)=0,0,MEDIAN(E29,G29,I29)) -> 0 | M29: =SMALL(K29:L29,1) -> 0 | N29: =M29*D29 -> 0 | O29: 0.2094 | P29: =N29*(1+O29) -> 0
A31: E11 | K31: =IF(SUM(E31,G31,I31)=0,0,AVERAGE(E31,G31,I31)) -> 0 | L31: =IF(SUM(E31,G31,I31)=0,0,MEDIAN(E31,G31,I31)) -> 0 | M31: =SMALL(K31:L31,1) -> 0 | N31: =M31*D31 -> 0 | O31: 0.2094 | P31: =N31*(1+O31) -> 0
A33: E12 | K33: =IF(SUM(E33,G33,I33)=0,0,AVERAGE(E33,G33,I33)) -> 0 | L33: =IF(SUM(E33,G33,I33)=0,0,MEDIAN(E33,G33,I33)) -> 0 | M33: =SMALL(K33:L33,1) -> 0 | N33: =M33*D33 -> 0 | O33: 0.2094 | P33: =N33*(1+O33) -> 0
A35: E13 | K35: =IF(SUM(E35,G35,I35)=0,0,AVERAGE(E35,G35,I35)) -> 0 | L35: =IF(SUM(E35,G35,I35)=0,0,MEDIAN(E35,G35,I35)) -> 0 | M35: =SMALL(K35:L35,1) -> 0 | N35: =M35*D35 -> 0 | O35: 0.2094 | P35: =N35*(1+O35) -> 0
A37: E14 | K37: =IF(SUM(E37,G37,I37)=0,0,AVERAGE(E37,G37,I37)) -> 0 | L37: =IF(SUM(E37,G37,I37)=0,0,MEDIAN(E37,G37,I37)) -> 0 | M37: =SMALL(K37:L37,1) -> 0 | N37: =M37*D37 -> 0 | O37: 0.2094 | P37: =N37*(1+O37) -> 0
A39: E15 | D39: 0 | K39: =IF(SUM(E39,G39,I39)=0,0,AVERAGE(E39,G39,I39)) -> 0 | L39: =IF(SUM(E39,G39,I39)=0,0,MEDIAN(E39,G39,I39)) -> 0 | M39: =SMALL(K39:L39,1) -> 0 | N39: =M39*D39 -> 0 | P39: =N39*(1+O39) -> 0
A41: E16 | D41: 0 | K41: =IF(SUM(E41,G41,I41)=0,0,AVERAGE(E41,G41,I41)) -> 0 | L41: =IF(SUM(E41,G41,I41)=0,0,MEDIAN(E41,G41,I41)) -> 0 | M41: =SMALL(K41:L41,1) -> 0 | N41: =M41*D41 -> 0 | P41: =N41*(1+O41) -> 0
A43: E17 | D43: 0 | K43: =IF(SUM(E43,G43,I43)=0,0,AVERAGE(E43,G43,I43)) -> 0 | L43: =IF(SUM(E43,G43,I43)=0,0,MEDIAN(E43,G43,I43)) -> 0 | M43: =SMALL(K43:L43,1) -> 0 | N43: =M43*D43 -> 0 | P43: =N43*(1+O43) -> 0
A45: E18 | D45: 0 | K45: =IF(SUM(E45,G45,I45)=0,0,AVERAGE(E45,G45,I45)) -> 0 | L45: =IF(SUM(E45,G45,I45)=0,0,MEDIAN(E45,G45,I45)) -> 0 | M45: =SMALL(K45:L45,1) -> 0 | N45: =M45*D45 -> 0 | P45: =N45*(1+O45) -> 0
A47: E19 | D47: 0 | K47: =IF(SUM(E47,G47,I47)=0,0,AVERAGE(E47,G47,I47)) -> 0 | L47: =IF(SUM(E47,G47,I47)=0,0,MEDIAN(E47,G47,I47)) -> 0 | M47: =SMALL(K47:L47,1) -> 0 | N47: =M47*D47 -> 0 | P47: =N47*(1+O47) -> 0
A49: E20 | D49: 0 | K49: =IF(SUM(E49,G49,I49)=0,0,AVERAGE(E49,G49,I49)) -> 0 | L49: =IF(SUM(E49,G49,I49)=0,0,MEDIAN(E49,G49,I49)) -> 0 | M49: =SMALL(K49:L49,1) -> 0 | N49: =M49*D49 -> 0 | P49: =N49*(1+O49) -> 0
A51: E21 | D51: 0 | K51: =IF(SUM(E51,G51,I51)=0,0,AVERAGE(E51,G51,I51)) -> 0 | L51: =IF(SUM(E51,G51,I51)=0,0,MEDIAN(E51,G51,I51)) -> 0 | M51: =SMALL(K51:L51,1) -> 0 | N51: =M51*D51 -> 0 | P51: =N51*(1+O51) -> 0
A53: E22 | D53: 0 | K53: =IF(SUM(E53,G53,I53)=0,0,AVERAGE(E53,G53,I53)) -> 0 | L53: =IF(SUM(E53,G53,I53)=0,0,MEDIAN(E53,G53,I53)) -> 0 | M53: =SMALL(K53:L53,1) -> 0 | N53: =M53*D53 -> 0 | P53: =N53*(1+O53) -> 0
A55: E23 | D55: 0 | K55: =IF(SUM(E55,G55,I55)=0,0,AVERAGE(E55,G55,I55)) -> 0 | L55: =IF(SUM(E55,G55,I55)=0,0,MEDIAN(E55,G55,I55)) -> 0 | M55: =SMALL(K55:L55,1) -> 0 | N55: =M55*D55 -> 0 | P55: =N55*(1+O55) -> 0
A57: E24 | D57: 0 | K57: =IF(SUM(E57,G57,I57)=0,0,AVERAGE(E57,G57,I57)) -> 0 | L57: =IF(SUM(E57,G57,I57)=0,0,MEDIAN(E57,G57,I57)) -> 0 | M57: =SMALL(K57:L57,1) -> 0 | N57: =M57*D57 -> 0 | P57: =N57*(1+O57) -> 0
A59: E25 | D59: 0 | K59: =IF(SUM(E59,G59,I59)=0,0,AVERAGE(E59,G59,I59)) -> 0 | L59: =IF(SUM(E59,G59,I59)=0,0,MEDIAN(E59,G59,I59)) -> 0 | M59: =SMALL(K59:L59,1) -> 0 | N59: =M59*D59 -> 0 | P59: =N59*(1+O59) -> 0
A61: E26 | D61: 0 | K61: =IF(SUM(E61,G61,I61)=0,0,AVERAGE(E61,G61,I61)) -> 0 | L61: =IF(SUM(E61,G61,I61)=0,0,MEDIAN(E61,G61,I61)) -> 0 | M61: =SMALL(K61:L61,1) -> 0 | N61: =M61*D61 -> 0 | P61: =N61*(1+O61) -> 0
A63: E27 | D63: 0 | K63: =IF(SUM(E63,G63,I63)=0,0,AVERAGE(E63,G63,I63)) -> 0 | L63: =IF(SUM(E63,G63,I63)=0,0,MEDIAN(E63,G63,I63)) -> 0 | M63: =SMALL(K63:L63,1) -> 0 | N63: =M63*D63 -> 0 | P63: =N63*(1+O63) -> 0
A65: E28 | D65: 0 | K65: =IF(SUM(E65,G65,I65)=0,0,AVERAGE(E65,G65,I65)) -> 0 | L65: =IF(SUM(E65,G65,I65)=0,0,MEDIAN(E65,G65,I65)) -> 0 | M65: =SMALL(K65:L65,1) -> 0 | N65: =M65*D65 -> 0 | P65: =N65*(1+O65) -> 0
A67: E29 | D67: 0 | K67: =IF(SUM(E67,G67,I67)=0,0,AVERAGE(E67,G67,I67)) -> 0 | L67: =IF(SUM(E67,G67,I67)=0,0,MEDIAN(E67,G67,I67)) -> 0 | M67: =SMALL(K67:L67,1) -> 0 | N67: =M67*D67 -> 0 | P67: =N67*(1+O67) -> 0
A69: E30 | D69: 0 | K69: =IF(SUM(E69,G69,I69)=0,0,AVERAGE(E69,G69,I69)) -> 0 | L69: =IF(SUM(E69,G69,I69)=0,0,MEDIAN(E69,G69,I69)) -> 0 | M69: =SMALL(K69:L69,1) -> 0 | N69: =M69*D69 -> 0 | P69: =N69*(1+O69) -> 0
A71: E31 | D71: 0 | K71: =IF(SUM(E71,G71,I71)=0,0,AVERAGE(E71,G71,I71)) -> 0 | L71: =IF(SUM(E71,G71,I71)=0,0,MEDIAN(E71,G71,I71)) -> 0 | M71: =SMALL(K71:L71,1) -> 0 | N71: =M71*D71 -> 0 | P71: =N71*(1+O71) -> 0
A73: E32 | D73: 0 | K73: =IF(SUM(E73,G73,I73)=0,0,AVERAGE(E73,G73,I73)) -> 0 | L73: =IF(SUM(E73,G73,I73)=0,0,MEDIAN(E73,G73,I73)) -> 0 | M73: =SMALL(K73:L73,1) -> 0 | N73: =M73*D73 -> 0 | P73: =N73*(1+O73) -> 0
A75: E33 | D75: 0 | K75: =IF(SUM(E75,G75,I75)=0,0,AVERAGE(E75,G75,I75)) -> 0 | L75: =IF(SUM(E75,G75,I75)=0,0,MEDIAN(E75,G75,I75)) -> 0 | M75: =SMALL(K75:L75,1) -> 0 | N75: =M75*D75 -> 0 | P75: =N75*(1+O75) -> 0
A77: E34 | D77: 0 | K77: =IF(SUM(E77,G77,I77)=0,0,AVERAGE(E77,G77,I77)) -> 0 | L77: =IF(SUM(E77,G77,I77)=0,0,MEDIAN(E77,G77,I77)) -> 0 | M77: =SMALL(K77:L77,1) -> 0 | N77: =M77*D77 -> 0 | P77: =N77*(1+O77) -> 0
A79: E35 | D79: 0 | K79: =IF(SUM(E79,G79,I79)=0,0,AVERAGE(E79,G79,I79)) -> 0 | L79: =IF(SUM(E79,G79,I79)=0,0,MEDIAN(E79,G79,I79)) -> 0 | M79: =SMALL(K79:L79,1) -> 0 | N79: =M79*D79 -> 0 | P79: =N79*(1+O79) -> 0
A81: E36 | D81: 0 | K81: =IF(SUM(E81,G81,I81)=0,0,AVERAGE(E81,G81,I81)) -> 0 | L81: =IF(SUM(E81,G81,I81)=0,0,MEDIAN(E81,G81,I81)) -> 0 | M81: =SMALL(K81:L81,1) -> 0 | N81: =M81*D81 -> 0 | P81: =N81*(1+O81) -> 0
A83: E37 | D83: 0 | K83: =IF(SUM(E83,G83,I83)=0,0,AVERAGE(E83,G83,I83)) -> 0 | L83: =IF(SUM(E83,G83,I83)=0,0,MEDIAN(E83,G83,I83)) -> 0 | M83: =SMALL(K83:L83,1) -> 0 | N83: =M83*D83 -> 0 | P83: =N83*(1+O83) -> 0
A85: E38 | D85: 0 | K85: =IF(SUM(E85,G85,I85)=0,0,AVERAGE(E85,G85,I85)) -> 0 | L85: =IF(SUM(E85,G85,I85)=0,0,MEDIAN(E85,G85,I85)) -> 0 | M85: =SMALL(K85:L85,1) -> 0 | N85: =M85*D85 -> 0 | P85: =N85*(1+O85) -> 0
A87: E39 | D87: 0 | K87: =IF(SUM(E87,G87,I87)=0,0,AVERAGE(E87,G87,I87)) -> 0 | L87: =IF(SUM(E87,G87,I87)=0,0,MEDIAN(E87,G87,I87)) -> 0 | M87: =SMALL(K87:L87,1) -> 0 | N87: =M87*D87 -> 0 | P87: =N87*(1+O87) -> 0
A89: E40 | D89: 0 | K89: =IF(SUM(E89,G89,I89)=0,0,AVERAGE(E89,G89,I89)) -> 0 | L89: =IF(SUM(E89,G89,I89)=0,0,MEDIAN(E89,G89,I89)) -> 0 | M89: =SMALL(K89:L89,1) -> 0 | N89: =M89*D89 -> 0 | P89: =N89*(1+O89) -> 0
A91: E41 | D91: 0 | K91: =IF(SUM(E91,G91,I91)=0,0,AVERAGE(E91,G91,I91)) -> 0 | L91: =IF(SUM(E91,G91,I91)=0,0,MEDIAN(E91,G91,I91)) -> 0 | M91: =SMALL(K91:L91,1) -> 0 | N91: =M91*D91 -> 0 | P91: =N91*(1+O91) -> 0
A93: E42 | D93: 0 | K93: =IF(SUM(E93,G93,I93)=0,0,AVERAGE(E93,G93,I93)) -> 0 | L93: =IF(SUM(E93,G93,I93)=0,0,MEDIAN(E93,G93,I93)) -> 0 | M93: =SMALL(K93:L93,1) -> 0 | N93: =M93*D93 -> 0 | P93: =N93*(1+O93) -> 0
A95: E43 | D95: 0 | K95: =IF(SUM(E95,G95,I95)=0,0,AVERAGE(E95,G95,I95)) -> 0 | L95: =IF(SUM(E95,G95,I95)=0,0,MEDIAN(E95,G95,I95)) -> 0 | M95: =SMALL(K95:L95,1) -> 0 | N95: =M95*D95 -> 0 | P95: =N95*(1+O95) -> 0
A97: E44 | D97: 0 | K97: =IF(SUM(E97,G97,I97)=0,0,AVERAGE(E97,G97,I97)) -> 0 | L97: =IF(SUM(E97,G97,I97)=0,0,MEDIAN(E97,G97,I97)) -> 0 | M97: =SMALL(K97:L97,1) -> 0 | N97: =M97*D97 -> 0 | P97: =N97*(1+O97) -> 0
A99: E45 | D99: 0 | K99: =IF(SUM(E99,G99,I99)=0,0,AVERAGE(E99,G99,I99)) -> 0 | L99: =IF(SUM(E99,G99,I99)=0,0,MEDIAN(E99,G99,I99)) -> 0 | M99: =SMALL(K99:L99,1) -> 0 | N99: =M99*D99 -> 0 | P99: =N99*(1+O99) -> 0
A101: E46 | D101: 0 | K101: =IF(SUM(E101,G101,I101)=0,0,AVERAGE(E101,G101,I101)) -> 0 | L101: =IF(SUM(E101,G101,I101)=0,0,MEDIAN(E101,G101,I101)) -> 0 | M101: =SMALL(K101:L101,1) -> 0 | N101: =M101*D101 -> 0 | P101: =N101*(1+O101) -> 0
A103: E47 | D103: 0 | K103: =IF(SUM(E103,G103,I103)=0,0,AVERAGE(E103,G103,I103)) -> 0 | L103: =IF(SUM(E103,G103,I103)=0,0,MEDIAN(E103,G103,I103)) -> 0 | M103: =SMALL(K103:L103,1) -> 0 | N103: =M103*D103 -> 0 | P103: =N103*(1+O103) -> 0
A105: E48 | D105: 0 | K105: =IF(SUM(E105,G105,I105)=0,0,AVERAGE(E105,G105,I105)) -> 0 | L105: =IF(SUM(E105,G105,I105)=0,0,MEDIAN(E105,G105,I105)) -> 0 | M105: =SMALL(K105:L105,1) -> 0 | N105: =M105*D105 -> 0 | P105: =N105*(1+O105) -> 0
A107: E49 | D107: 0 | K107: =IF(SUM(E107,G107,I107)=0,0,AVERAGE(E107,G107,I107)) -> 0 | L107: =IF(SUM(E107,G107,I107)=0,0,MEDIAN(E107,G107,I107)) -> 0 | M107: =SMALL(K107:L107,1) -> 0 | N107: =M107*D107 -> 0 | P107: =N107*(1+O107) -> 0
A109: E50 | D109: 0 | K109: =IF(SUM(E109,G109,I109)=0,0,AVERAGE(E109,G109,I109)) -> 0 | L109: =IF(SUM(E109,G109,I109)=0,0,MEDIAN(E109,G109,I109)) -> 0 | M109: =SMALL(K109:L109,1) -> 0 | N109: =M109*D109 -> 0 | P109: =N109*(1+O109) -> 0
A111: TOTAL: | N111: =SUM(N11:N110) -> 0 | P111: =SUM(P11:P110) -> 0
A113: SERVIDOR RESPONSÁVEL PELA COLETA DE PREÇOS | C113: 0
A114: MÉTODO UTILIZADO | C114: Foram obtidas cotações para os itens inexistentes nas tabelas SINAPI e TCPO, adotando-se o menor valor entre a média e a mediana.
A115: JUSTIFICATIVA PARA A METODOLOGIA | C115: Na quase totalidade das situações, não se deve estimar os preços de mercado a partir do menor valor. Há uma razão técnica para isso: estatisticamente, o menor valor não representa a tendência dos preços de mercado. Representa, apenas, o valor mais barato dentre os preços coletados pelo gestor. Por não ser uma medida da tendência dos preços de mercado, não há suporte técnico para adotá-lo como regra geral. As medidas estatísticas que, realmente, devem ser adotadas são a média e a mediana, pois se destinam a medir a tendência dos preços coletados na amostra. São o que, em Estatística, denominamos de medidas de tendência central. Como a média e a mediana reproduzem bem a tendência de preço, opta-se pela menor das duas, buscando-se um preço mais favorável para Administração. A pesquisa de preços foi realizada em sítios eletrônicos especializados ou de domínio amplo, conforme previsto no inciso III, art. 5º da IN nº 73, de 05 de agosto de 2020. As pesquisas de preços foram realizadas em março/2025 e abril/2025.
A117: Este documento está em conformidade com os arts. 3º e 6º da IN nº 73, de 05 de agosto de 2020.

Sheet BDI-N
B2: TRIBUNAL REGIONAL DO TRABALHO DA 9ª REGIÃO
B3: SECRETARIA DE ENGENHARIA E ARQUITETURA - (41) 3310-7760 – sea@trt9.jus.br Rua Vicente Machado, 147 – 3º andar - Centro - CEP 80.420-010 – Curitiba- PR
B4: VT CAMPO MOURÃO - COBERTURA
B6: Cálculo do BDI - SERVIÇOS Acordão TCU 2.622/2013
B9: ADMINISTRAÇÃO CENTRAL..................................................................................................... | H9: 0.04
B10: SEGURO E GARANTIA............................................................................................................... | H10: 0.008
B11: RISCO............................................................................................................................................ | H11: 0.0127
B12: DESPESA FINANCEIRA............................................................................................................. | H12: 0.0123
B13: LUCRO.......................................................................................................................................... | H13: 0.074
B14: TRIBUTAÇÃO * Previdência: Com o fim da desoneração da folha de pagamento, todos os itens que apresentam mão de obra em sua composição já se encontram onerados com INSS | G14: COFINS................... | H14: 0.03
G15: * PREVIDÊNCIA.... | H15: 0
G16: PIS........................... | H16: 0.0065
G17: ISS........................... | H17: =G37 -> 0.0210017725
B19: X = Somatória de Administração Central+Seguro+Garantia+Risco.................. | H19: =H9+H10+H11 -> 0.0607
B20: Y = Despesa Financeira............................................................................... | H20: =H12 -> 0.0123
B21: Z = Lucro.................................................................................................... | H21: =H13 -> 0.074
B22: I = somatória dos tributos............................................................................ | H22: =SUM(H14:H17) -> 0.0575017725
B24: BDI = ((1 + X) (1 + Y) (1 + Z) / (1 - I)) - 1 | G24: .................................. | H24: =ROUND(((1+H19)*(1+H20)*(1+H21)/(1-H22))-1,4) -> 0.2236
B26: Acórdão TCU 2.622/2013: Para esta classificação de obra o BDI médio é de 22,12% (min. 20,34% e máx. 25,00%). O referido acórdão considera apenas os seguintes tributos no cálculo do BDI: ISS, PIS e COFINS. O BDI para a base de dados não-desonerada do SINAPI resultou próximo ao BDI médio do acórdão TCU.
B31: ** ISS DO MUNICÍPIO..................................................................................................................... | H31: 0.05
B32: =CONCATENATE("** A alíquota do ISS no Município de ",#REF!," é de ",100*#REF!,"% sobre o valor dos serviços, o que reflete em ",100*G37,"%"," sobre o valor total da planilha orçamentária.") -> 
F34: MATERIAL | G34: MÃO DE OBRA | H34: TOTAL
B35: Valores financeiros da obra.................. | F35: 104259.74 | G35: 75509.42 | H35: =IF(F35+G35=0,1E-28,F35+G35) -> 179769.16
B36: ISS da obra em dinheiro................................................... | G36: =H31*G35 -> 3775.471
B37: ISS percentual sobre o total da obra................................. | G37: =G36/H35 -> 0.0210017725

Sheet BDI-E
B2: TRIBUNAL REGIONAL DO TRABALHO DA 9ª REGIÃO
B3: SECRETARIA DE ENGENHARIA E ARQUITETURA - (41) 3310-7760 – sea@trt9.jus.br Rua Vicente Machado, 147 – 3º andar - Centro - CEP 80.420-010 – Curitiba- PR
B4: VT CAMPO MOURÃO - COBERTURA
B6: Cálculo do BDI - EQUIPAMENTOS Acordão TCU 2.622/2013
B9: ADMINISTRAÇÃO CENTRAL..................................................................................................... | H9: 0.0345
B10: SEGURO E GARANTIA............................................................................................................... | H10: 0.0048
B11: RISCO............................................................................................................................................ | H11: 0.0085
B12: DESPESA FINANCEIRA............................................................................................................. | H12: 0.0085
B13: LUCRO.......................................................................................................................................... | H13: 0.0511
B14: TRIBUTAÇÃO * Previdência: Todos os itens que apresentam mão de obra em sua composição já se encontram onerados com INSS | G14: COFINS................... | H14: 0.03
G15: * PREVIDÊNCIA.... | H15: 0
G16: PIS........................... | H16: 0.0065
B18: X = Somatória de Administração Central+Seguro+Garantia+Risco.................. | H18: =H9+H10+H11 -> 0.0478
B19: Y = Despesa Financeira............................................................................... | H19: =H12 -> 0.0085
B20: Z = Lucro.................................................................................................... | H20: =H13 -> 0.0511
B21: I = somatória dos tributos............................................................................ | H21: =SUM(H14:H16) -> 0.0365
B23: BDI = ((1 + X) (1 + Y) (1 + Z) / (1 - I)) - 1 | G23: .................................. | H23: =ROUND(((1+H18)*(1+H19)*(1+H20)/(1-H21))-1,4) -> 0.1528
B25: =CONCATENATE("Acórdão TCU 2.622/2013: O BDI Diferenciado para Equipamentos médio é de ",100*H23,"%"," (min. 11,10% e máx. 16,80%). tributos no cálculo do BDI: ISS, PIS e COFINS.") -> Acórdão TCU 2.622/2013: O BDI Diferenciado para Equipamentos médio é de 15,28% (min. 11,10% e máx. 16,80%). tributos no cálculo do BDI: ISS, PIS e COFINS.

Sheet DECLARA
A2: PODER JUDICIÁRIO FEDERAL
A3: JUSTIÇA DO TRABALHO
A4: TRIBUNAL REGIONAL DO TRABALHO 9ª REGIÃO - PARANÁ
A5: SECRETARIA DE ENGENHARIA E ARQUITETURA - (41) 3310-7760 – sea@trt9.jus.br
A6: Rua Vicente Machado, 147 – 3º andar - Centro - CEP 80.420-010 – Curitiba- PR
A11: DECLARAÇÃO DE ORÇAMENTO
A12: VT Campo Mourão - cobertura
A16: Em atendimento ao Art. 25, inciso III da Resolução nº 70/2010 do CSJT, declaro que os quantitativos das planilhas orçamentárias para instrução do procedimento licitatório que visa à contratação de empresa (s) especializada (s) para VT Campo Mourão - cobertura em imóvel pertencente a esse Tribunal, situado na Av. Goioerê, 779 - Campo Mourão, estão compatíveis com os levantamentos das necessidades de intervenção apuradas, cujos custos foram atribuídos com base na tabela SINAPI (referência mês 11/2025) e TCPO (referência mês 11/2025), e cotações de mercado de itens não encontrados nas tabelas referenciais (referência mês 01/2026). Segue tabela indicativa de percentual da fonte utilizada para os custos dos insumos:
B18: DESCRIÇÃO | C18: PROFISSIONAL ORÇAMENTISTA | D18: FONTE DE DADOS
D19: SINAPI | E19: TCPO | F19: COTAÇÕES
A20: 1 | B20: Serviços de Engenharia Civil | C20: ANADÉLIA TRENTINI CAMPARA MÔNICA RUSSO BLAZEK DE SOUZA | D20: 0.8712578117 | E20: 4.606277309e-33 | F20: 0.1287421883
C25: Curitiba, sexta-feira, 09 de janeiro de 2026.
A29: MÔNICA RUSSO BLAZEK DE SOUZA
A30: Coordenadoria de Projetos e Planejamento
A34: ANADÉLIA TRENTINI CAMPARA
A35: Eng. Civil
A36: CREA 40.539 - D/PR
A37: Coordenadoria de Projetos e Planejamento

Sheet RESUMO
B8: VT CAMPO MOURÃO - COBERTURA
A9: ITEM | B9: DESCRIÇÃO | C9: VALOR | D9: %
A10: 1 | B10: ADMINISTRAÇÃO DE OBRA E SERVIÇOS INICIAIS | C10: 77737 | D10: =C10/$C$40 -> 0.3580781782
A11: 2 | B11: REFORMA DAS COBERTURAS | C11: 130435.96 | D11: =C11/$C$40 -> 0.6008242012
A12: 3 | B12: SERVIÇOS COMPLEMENTARES | C12: 8922.09 | D12: 0.0410976206
A13: 4 | B13: =IF(ISERROR(VLOOKUP(A13,#REF!,2,FALSE))=TRUE,"",VLOOKUP(A13,#REF!,2,FALSE)) ->  | C13: =IF(ISERROR(VLOOKUP(A13,#REF!,14,FALSE))=TRUE,0,VLOOKUP(A13,#REF!,14,FALSE)) -> 0 | D13: 0
A14: 5 | B14: =IF(ISERROR(VLOOKUP(A14,#REF!,2,FALSE))=TRUE,"",VLOOKUP(A14,#REF!,2,FALSE)) ->  | C14: =IF(ISERROR(VLOOKUP(A14,#REF!,14,FALSE))=TRUE,0,VLOOKUP(A14,#REF!,14,FALSE)) -> 0 | D14: 0
A15: 6 | B15: =IF(ISERROR(VLOOKUP(A15,#REF!,2,FALSE))=TRUE,"",VLOOKUP(A15,#REF!,2,FALSE)) ->  | C15: =IF(ISERROR(VLOOKUP(A15,#REF!,14,FALSE))=TRUE,0,VLOOKUP(A15,#REF!,14,FALSE)) -> 0 | D15: 0
A16: 7 | B16: =IF(ISERROR(VLOOKUP(A16,#REF!,2,FALSE))=TRUE,"",VLOOKUP(A16,#REF!,2,FALSE)) ->  | C16: =IF(ISERROR(VLOOKUP(A16,#REF!,14,FALSE))=TRUE,0,VLOOKUP(A16,#REF!,14,FALSE)) -> 0 | D16: 0
A17: 8 | B17: =IF(ISERROR(VLOOKUP(A17,#REF!,2,FALSE))=TRUE,"",VLOOKUP(A17,#REF!,2,FALSE)) ->  | C17: =IF(ISERROR(VLOOKUP(A17,#REF!,14,FALSE))=TRUE,0,VLOOKUP(A17,#REF!,14,FALSE)) -> 0 | D17: 0
A18: 9 | B18: =IF(ISERROR(VLOOKUP(A18,#REF!,2,FALSE))=TRUE,"",VLOOKUP(A18,#REF!,2,FALSE)) ->  | C18: =IF(ISERROR(VLOOKUP(A18,#REF!,14,FALSE))=TRUE,0,VLOOKUP(A18,#REF!,14,FALSE)) -> 0 | D18: 0
A19: 10 | B19: =IF(ISERROR(VLOOKUP(A19,#REF!,2,FALSE))=TRUE,"",VLOOKUP(A19,#REF!,2,FALSE)) ->  | C19: =IF(ISERROR(VLOOKUP(A19,#REF!,14,FALSE))=TRUE,0,VLOOKUP(A19,#REF!,14,FALSE)) -> 0 | D19: 0
A20: 11 | B20: =IF(ISERROR(VLOOKUP(A20,#REF!,2,FALSE))=TRUE,"",VLOOKUP(A20,#REF!,2,FALSE)) ->  | C20: =IF(ISERROR(VLOOKUP(A20,#REF!,14,FALSE))=TRUE,0,VLOOKUP(A20,#REF!,14,FALSE)) -> 0 | D20: 0
A21: 12 | B21: =IF(ISERROR(VLOOKUP(A21,#REF!,2,FALSE))=TRUE,"",VLOOKUP(A21,#REF!,2,FALSE)) ->  | C21: =IF(ISERROR(VLOOKUP(A21,#REF!,14,FALSE))=TRUE,0,VLOOKUP(A21,#REF!,14,FALSE)) -> 0 | D21: 0
A22: 13 | B22: =IF(ISERROR(VLOOKUP(A22,#REF!,2,FALSE))=TRUE,"",VLOOKUP(A22,#REF!,2,FALSE)) ->  | C22: =IF(ISERROR(VLOOKUP(A22,#REF!,14,FALSE))=TRUE,0,VLOOKUP(A22,#REF!,14,FALSE)) -> 0 | D22: 0
A23: 14 | B23: =IF(ISERROR(VLOOKUP(A23,#REF!,2,FALSE))=TRUE,"",VLOOKUP(A23,#REF!,2,FALSE)) ->  | C23: =IF(ISERROR(VLOOKUP(A23,#REF!,14,FALSE))=TRUE,0,VLOOKUP(A23,#REF!,14,FALSE)) -> 0 | D23: 0
A24: 15 | B24: =IF(ISERROR(VLOOKUP(A24,#REF!,2,FALSE))=TRUE,"",VLOOKUP(A24,#REF!,2,FALSE)) ->  | C24: =IF(ISERROR(VLOOKUP(A24,#REF!,14,FALSE))=TRUE,0,VLOOKUP(A24,#REF!,14,FALSE)) -> 0 | D24: 0
A25: 16 | B25: =IF(ISERROR(VLOOKUP(A25,#REF!,2,FALSE))=TRUE,"",VLOOKUP(A25,#REF!,2,FALSE)) ->  | C25: =IF(ISERROR(VLOOKUP(A25,#REF!,14,FALSE))=TRUE,0,VLOOKUP(A25,#REF!,14,FALSE)) -> 0 | D25: 0
A26: 17 | B26: =IF(ISERROR(VLOOKUP(A26,#REF!,2,FALSE))=TRUE,"",VLOOKUP(A26,#REF!,2,FALSE)) ->  | C26: =IF(ISERROR(VLOOKUP(A26,#REF!,14,FALSE))=TRUE,0,VLOOKUP(A26,#REF!,14,FALSE)) -> 0 | D26: 0
A27: 18 | B27: =IF(ISERROR(VLOOKUP(A27,#REF!,2,FALSE))=TRUE,"",VLOOKUP(A27,#REF!,2,FALSE)) ->  | C27: =IF(ISERROR(VLOOKUP(A27,#REF!,14,FALSE))=TRUE,0,VLOOKUP(A27,#REF!,14,FALSE)) -> 0 | D27: 0
A28: 19 | B28: =IF(ISERROR(VLOOKUP(A28,#REF!,2,FALSE))=TRUE,"",VLOOKUP(A28,#REF!,2,FALSE)) ->  | C28: =IF(ISERROR(VLOOKUP(A28,#REF!,14,FALSE))=TRUE,0,VLOOKUP(A28,#REF!,14,FALSE)) -> 0 | D28: 0
A29: 20 | B29: =IF(ISERROR(VLOOKUP(A29,#REF!,2,FALSE))=TRUE,"",VLOOKUP(A29,#REF!,2,FALSE)) ->  | C29: =IF(ISERROR(VLOOKUP(A29,#REF!,14,FALSE))=TRUE,0,VLOOKUP(A29,#REF!,14,FALSE)) -> 0 | D29: 0
A30: 21 | B30: =IF(ISERROR(VLOOKUP(A30,#REF!,2,FALSE))=TRUE,"",VLOOKUP(A30,#REF!,2,FALSE)) ->  | C30: =IF(ISERROR(VLOOKUP(A30,#REF!,14,FALSE))=TRUE,0,VLOOKUP(A30,#REF!,14,FALSE)) -> 0 | D30: 0
A31: 22 | B31: =IF(ISERROR(VLOOKUP(A31,#REF!,2,FALSE))=TRUE,"",VLOOKUP(A31,#REF!,2,FALSE)) ->  | C31: =IF(ISERROR(VLOOKUP(A31,#REF!,14,FALSE))=TRUE,0,VLOOKUP(A31,#REF!,14,FALSE)) -> 0 | D31: 0
A32: 23 | B32: =IF(ISERROR(VLOOKUP(A32,#REF!,2,FALSE))=TRUE,"",VLOOKUP(A32,#REF!,2,FALSE)) ->  | C32: =IF(ISERROR(VLOOKUP(A32,#REF!,14,FALSE))=TRUE,0,VLOOKUP(A32,#REF!,14,FALSE)) -> 0 | D32: 0
A33: 24 | B33: =IF(ISERROR(VLOOKUP(A33,#REF!,2,FALSE))=TRUE,"",VLOOKUP(A33,#REF!,2,FALSE)) ->  | C33: =IF(ISERROR(VLOOKUP(A33,#REF!,14,FALSE))=TRUE,0,VLOOKUP(A33,#REF!,14,FALSE)) -> 0 | D33: 0
A34: 25 | B34: =IF(ISERROR(VLOOKUP(A34,#REF!,2,FALSE))=TRUE,"",VLOOKUP(A34,#REF!,2,FALSE)) ->  | C34: =IF(ISERROR(VLOOKUP(A34,#REF!,14,FALSE))=TRUE,0,VLOOKUP(A34,#REF!,14,FALSE)) -> 0 | D34: 0
A35: 26 | B35: =IF(ISERROR(VLOOKUP(A35,#REF!,2,FALSE))=TRUE,"",VLOOKUP(A35,#REF!,2,FALSE)) ->  | C35: =IF(ISERROR(VLOOKUP(A35,#REF!,14,FALSE))=TRUE,0,VLOOKUP(A35,#REF!,14,FALSE)) -> 0 | D35: 0
A36: 27 | B36: =IF(ISERROR(VLOOKUP(A36,#REF!,2,FALSE))=TRUE,"",VLOOKUP(A36,#REF!,2,FALSE)) ->  | C36: =IF(ISERROR(VLOOKUP(A36,#REF!,14,FALSE))=TRUE,0,VLOOKUP(A36,#REF!,14,FALSE)) -> 0 | D36: 0
A37: 28 | B37: =IF(ISERROR(VLOOKUP(A37,#REF!,2,FALSE))=TRUE,"",VLOOKUP(A37,#REF!,2,FALSE)) ->  | C37: =IF(ISERROR(VLOOKUP(A37,#REF!,14,FALSE))=TRUE,0,VLOOKUP(A37,#REF!,14,FALSE)) -> 0 | D37: 0
A38: 29 | B38: =IF(ISERROR(VLOOKUP(A38,#REF!,2,FALSE))=TRUE,"",VLOOKUP(A38,#REF!,2,FALSE)) ->  | C38: =IF(ISERROR(VLOOKUP(A38,#REF!,14,FALSE))=TRUE,0,VLOOKUP(A38,#REF!,14,FALSE)) -> 0 | D38: 0
A39: 30 | B39: =IF(ISERROR(VLOOKUP(A39,#REF!,2,FALSE))=TRUE,"",VLOOKUP(A39,#REF!,2,FALSE)) ->  | C39: =IF(ISERROR(VLOOKUP(A39,#REF!,14,FALSE))=TRUE,0,VLOOKUP(A39,#REF!,14,FALSE)) -> 0 | D39: 0
B40: TOTAL: | C40: =SUM(C10:C39)+1E-23 -> 217095.05 | D40: 1

Sheet ABC
G1: OBRA/REFORMA
G2: VT Campo Mourão - cobertura
G7: Curva A: | H7: 0.85
G8: Curva B: | H8: 0.95
G9: Curva C: | H9: 1
E12: PERCENTUAL
A13: CÓDIGO | B13: BASE | C13: DESCRIÇÃO | D13: VALOR | E13: ITEM | F13: ACUM | G13: CURVA | H13: DIFERENÇA
A14: 40740 | B14: SINAPI | C14: TELHA GALVALUME COM ISOLAMENTO TERMOACUSTICO EM ESPUMA RIGIDA DE POLIURETANO (PU) INJETADO, ESPESSURA DE 30 MM, DENSIDADE DE 35 KG/M3, REVESTIMENTO EM TELHA TRAPEZOIDAL NAS DUAS FACES COM ESPESSURA DE 0,50 MM CADA, ACABAMENTO NATURAL (NAO INCLUI ACESSORIOS DE FIXACAO) | D14: 46738.73 | E14: 0.2152915663 | F14: 0.2152915663 | G14: A | H14: 0.7847084337
A15: 40819 | B15: SINAPI | C15: MESTRE DE OBRAS (MENSALISTA) | D15: 45140.97 | E15: 0.2079318052 | F15: 0.4232233715 | G15: A | H15: 0.5767766285
A16: 2707 | B16: SINAPI | C16: ENGENHEIRO CIVIL DE OBRA PLENO (HORISTA) | D16: 20787.01 | E16: 0.09575071503 | F16: 0.5189740865 | G16: A | H16: 0.4810259135
A17: C10 | B17: COT. C | C17: PLACA DE POLICARBONATO COMPACTO TRANSPARENTE, E=6MM - 2000MM X 3000MM | D17: 15792.56 | E17: 0.07274489469 | F17: 0.5917189812 | G17: A | H17: 0.4082810188
A18: 88316 | B18: SINAPI | C18: SERVENTE COM ENCARGOS COMPLEMENTARES | D18: 12496.25 | E18: 0.05756118963 | F18: 0.6492801708 | G18: A | H18: 0.3507198292
A19: 43083 | B19: SINAPI | C19: PERFIL "U" ENRIJECIDO, EM CHAPA DOBRADA DE ACO LAMINADO, E = 3,75 MM, H = 200 MM, L = 75 MM (9,94 KG/M) | D19: 7914.43 | E19: 0.03645607408 | F19: 0.6857362449 | G19: A | H19: 0.3142637551
A20: 88323 | B20: SINAPI | C20: TELHADISTA COM ENCARGOS COMPLEMENTARES | D20: 7448.31 | E20: 0.03430899794 | F20: 0.7200452429 | G20: A | H20: 0.2799547571
A21: 1113 | B21: SINAPI | C21: RUFO EXTERNO/INTERNO DE CHAPA DE ACO GALVANIZADA NUM 26, CORTE 33 CM | D21: 5393.59 | E21: 0.02484435466 | F21: 0.7448895975 | G21: A | H21: 0.2551104025
A22: 40598 | B22: SINAPI | C22: PERFIL "U" SIMPLES, EM CHAPA DOBRADA DE ACO LAMINADO, E = 3 MM, H = 125 MM, L = 50 MM (5,07 KG/M) | D22: 5209.27 | E22: 0.0239953376 | F22: 0.7688849351 | G22: A | H22: 0.2311150649
A23: 40784 | B23: SINAPI | C23: CALHA QUADRADA DE CHAPA DE ACO GALVANIZADA NUM 24, CORTE 100 CM | D23: 4856.27 | E23: 0.02236931526 | F23: 0.7912542504 | G23: A | H23: 0.2087457496
A24: C1 | B24: COT. C | C24: CAÇAMBA PARA ENTULHO COMUM - LOCAÇÃO - CAPACIDADE 5M³ | D24: 4796.51 | E24: 0.0220940644 | F24: 0.8133483148 | G24: A | H24: 0.1866516852
A25: 11051 | B25: SINAPI | C25: CHAPA DE ACO GALVANIZADA BITOLA GSG 26, E = 0,50 MM (4,00 KG/M2) | D25: 4644.58 | E25: 0.02139422486 | F25: 0.8347425396 | G25: A | H25: 0.1652574604
A26: 41955 | B26: SINAPI | C26: CABO DE ACO GALVANIZADO, DIAMETRO 12,7 MM (1/2"), COM ALMA DE ACO CABO INDEPENDENTE 6 X 25 F | D26: 4097.8 | E26: 0.01887558152 | F26: 0.8536181212 | G26: B | H26: 0.1463818788
A27: 7293 | B27: SINAPI | C27: TINTA ESMALTE SINTETICO PREMIUM DE DUPLA ACAO GRAFITE FOSCO PARA SUPERFICIES METALICAS FERROSAS | D27: 3351.98 | E27: 0.01544014389 | F27: 0.869058265 | G27: B | H27: 0.130941735
A28: 13388 | B28: SINAPI | C28: SOLDA EM BARRA DE ESTANHO-CHUMBO 50/50 | D28: 2964.13 | E28: 0.01365358496 | F28: 0.88271185 | G28: B | H28: 0.11728815
A29: 92255 | B29: SINAPI | C29: INSTALAÇÃO DE TESOURA (INTEIRA OU MEIA), EM AÇO, PARA VÃOS MAIORES OU IGUAIS A 3,0 M E MENORES QUE 6,0 M, INCLUSO IÇAMENTO. AF_07/2019 | D29: 2420.55 | E29: 0.01114971303 | F29: 0.893861563 | G29: B | H29: 0.106138437
A30: C7 | B30: COT. C | C30: PROJETO DE ESTRUTURA METÁLICA | D30: 2013.21 | E30: 0.009273386042 | F30: 0.9031349491 | G30: B | H30: 0.09686505092
A31: 88278 | B31: SINAPI | C31: MONTADOR DE ESTRUTURA METÁLICA COM ENCARGOS COMPLEMENTARES | D31: 1994.93 | E31: 0.009189192045 | F31: 0.9123241411 | G31: B | H31: 0.08767585888
A32: C5 | B32: COT. C | C32: OLHAL 75X97X17MM EM AÇO INOX - 40KN | D32: 1982.23 | E32: 0.009130710287 | F32: 0.9214548514 | G32: B | H32: 0.07854514859
A33: 142 | B33: SINAPI | C33: SELANTE ELASTICO MONOCOMPONENTE A BASE DE POLIURETANO (PU) PARA JUNTAS DIVERSAS | D33: 1856.21 | E33: 0.008550198662 | F33: 0.9300050501 | G33: B | H33: 0.06999494993
A34: 4777 | B34: SINAPI | C34: CANTONEIRA ACO ABAS IGUAIS (QUALQUER BITOLA), ESPESSURA ENTRE 1/8" E 1/4" | D34: 1331.69 | E34: 0.00613414633 | F34: 0.9361391964 | G34: B | H34: 0.0638608036
A35: C2 | B35: COT. C | C35: FITA ADESIVA DUPLA-FACE A BASE DE BORRACHA BUTÍLICA 12,5MM X 2,3MM - ROLO COM 13,7M | D35: 1183.66 | E35: 0.005452280021 | F35: 0.9415914764 | G35: B | H35: 0.05840852358
A36: 88309 | B36: SINAPI | C36: PEDREIRO COM ENCARGOS COMPLEMENTARES | D36: 1135.47 | E36: 0.005230306742 | F36: 0.9468217832 | G36: B | H36: 0.05317821683
A37: 40863 | B37: SINAPI | C37: EXAMES - MENSALISTA (COLETADO CAIXA - ENCARGOS COMPLEMENTARES) | D37: 992.99 | E37: 0.004573978555 | F37: 0.9513957617 | G37: C | H37: 0.04860423828
A38: 4813 | B38: SINAPI | C38: PLACA DE OBRA (PARA CONSTRUCAO CIVIL) EM CHAPA GALVANIZADA *N. 22*, ADESIVADA, DE *2,4 X 1,2* M (SEM POSTES PARA FIXACAO) | D38: 978.88 | E38: 0.004508992734 | F38: 0.9559047545 | G38: C | H38: 0.04409524555
A39: 88310 | B39: SINAPI | C39: PINTOR COM ENCARGOS COMPLEMENTARES | D39: 889.94 | E39: 0.004099294308 | F39: 0.9600040488 | G39: C | H39: 0.03999595124
A40: 43499 | B40: SINAPI | C40: EPI - FAMILIA ENCARREGADO GERAL - MENSALISTA (ENCARGOS COMPLEMENTARES - COLETADO CAIXA) | D40: 888.3 | E40: 0.004091741856 | F40: 0.9640957906 | G40: C | H40: 0.03590420938
A41: 11621 | B41: SINAPI | C41: MANTA ASFALTICA ELASTOMERICA EM POLIESTER ALUMINIZADA 3 MM, TIPO III, CLASSE B (NBR 9952) | D41: 836.99 | E41: 0.003855400677 | F41: 0.9679511913 | G41: C | H41: 0.0320488087
A42: 95423 | B42: SINAPI | C42: CURSO DE CAPACITAÇÃO PARA MESTRE DE OBRAS (ENCARGOS COMPLEMENTARES) - MENSALISTA | D42: 720.87 | E42: 0.003320534956 | F42: 0.9712717263 | G42: C | H42: 0.02872827375
A43: C3 | B43: COT. C | C43: PARAFUSO AUTOBROCANTE 12 x 4" | D43: 617.05 | E43: 0.002842306639 | F43: 0.9741140329 | G43: C | H43: 0.02588596711
A44: C11 | B44: COT. C | C44: PERFIL TRAPÉZIO DE ALUMÍNIO COM GAXETA (6M) | D44: 491.89 | E44: 0.002265768849 | F44: 0.9763798017 | G44: C | H44: 0.02362019826
A45: 5318 | B45: SINAPI | C45: DILUENTE AGUARRAS | D45: 474.4 | E45: 0.002185227169 | F45: 0.9785650289 | G45: C | H45: 0.02143497109
A46: C6 | B46: COT. C | C46: SAPATILHO/ANILHA EM AÇO INOX 1/2" - 12,7MM | D46: 413.2 | E46: 0.001903331749 | F46: 0.9804683607 | G46: C | H46: 0.01953163934
A47: 88270 | B47: SINAPI | C47: IMPERMEABILIZADOR COM ENCARGOS COMPLEMENTARES | D47: 411.9 | E47: 0.001897306278 | F47: 0.9823656669 | G47: C | H47: 0.01763433306
A48: C9 | B48: COT. C | C48: ART DE EXECUÇÃO | D48: 349.45 | E48: 0.001609653933 | F48: 0.9839753209 | G48: C | H48: 0.01602467913
A49: 95403 | B49: SINAPI | C49: CURSO DE CAPACITAÇÃO PARA ENGENHEIRO CIVIL DE OBRA PLENO (ENCARGOS COMPLEMENTARES) - HORISTA | D49: 305.41 | E49: 0.001406805917 | F49: 0.9853821268 | G49: C | H49: 0.01461787321
A50: 40549 | B50: SINAPI | C50: PARAFUSO, COMUM, ASTM A307, SEXTAVADO, DIAMETRO 1/2" (12,7 MM), COMPRIMENTO 1" (25,4 MM) | D50: 255.89 | E50: 0.001178718266 | F50: 0.9865608451 | G50: C | H50: 0.01343915495
A51: 93282 | B51: SINAPI | C51: GUINCHO ELÉTRICO DE COLUNA, CAPACIDADE 400 KG, COM MOTO FREIO, MOTOR TRIFÁSICO DE 1,25 CV - CHI DIURNO. AF_03/2016 | D51: 240.91 | E51: 0.001109716692 | F51: 0.9876705617 | G51: C | H51: 0.01232943825
A52: 37372 | B52: SINAPI | C52: EXAMES - HORISTA (COLETADO CAIXA - ENCARGOS COMPLEMENTARES) | D52: 209.97 | E52: 0.0009671791258 | F52: 0.9886377409 | G52: C | H52: 0.01136225913
A53: C4 | B53: COT. C | C53: PARAFUSO DE COSTURA AUTOBROCANTE 12 x 7/8" | D53: 176.91 | E53: 0.0008148790153 | F53: 0.9894526199 | G53: C | H53: 0.01054738011
A54: 93281 | B54: SINAPI | C54: GUINCHO ELÉTRICO DE COLUNA, CAPACIDADE 400 KG, COM MOTO FREIO, MOTOR TRIFÁSICO DE 1,25 CV - CHP DIURNO. AF_03/2016 | D54: 169.35 | E54: 0.0007800546375 | F54: 0.9902326745 | G54: C | H54: 0.009767325476
A55: 97735 | B55: SINAPI | C55: PEÇA RETANGULAR PRÉ-MOLDADA, VOLUME DE CONCRETO DE 30 A 100 LITROS, TAXA DE AÇO APROXIMADA DE 30KG/M³. AF_03/2024 | D55: 162.57 | E55: 0.0007488309868 | F55: 0.9909815055 | G55: C | H55: 0.009018494489
A56: 11977 | B56: SINAPI | C56: CHUMBADOR DE ACO ZINCADO, DIAMETRO 1/2", COMPRIMENTO 75 MM | D56: 153.44 | E56: 0.0007067844269 | F56: 0.9916882899 | G56: C | H56: 0.008311710062
A57: 511 | B57: SINAPI | C57: PRIMER PARA MANTA ASFALTICA A BASE DE ASFALTO MODIFICADO DILUIDO EM SOLVENTE, APLICACAO A FRIO | D57: 140.69 | E57: 0.0006480617612 | F57: 0.9923363517 | G57: C | H57: 0.007663648301
A58: 9841 | B58: SINAPI | C58: TUBO PVC, SERIE R, DN 100 MM, PARA ESGOTO OU AGUAS PLUVIAIS PREDIAL (NBR 5688) | D58: 139.05 | E58: 0.0006405023995 | F58: 0.9929768541 | G58: C | H58: 0.007023145902
A59: C8 | B59: COT. C | C59: ART DE PROJETO | D59: 132.63 | E59: 0.0006109121347 | F59: 0.9935877662 | G59: C | H59: 0.006412233767
A60: 5076 | B60: SINAPI | C60: GRAMPO DE ACO POLIDO 1" X 9 | D60: 131.11 | E60: 0.0006039432977 | F60: 0.9941917095 | G60: C | H60: 0.005808290469
A61: 43486 | B61: SINAPI | C61: EPI - FAMILIA ENGENHEIRO CIVIL - HORISTA (ENCARGOS COMPLEMENTARES - COLETADO CAIXA) | D61: 113.06 | E61: 0.0005207884766 | F61: 0.994712498 | G61: C | H61: 0.005287501993
A62: 3777 | B62: SINAPI | C62: LONA PLASTICA PESADA PRETA, E = 150 MICRA | D62: 110.74 | E62: 0.0005100798031 | F62: 0.9952225778 | G62: C | H62: 0.004777422189
A63: 10997 | B63: SINAPI | C63: ELETRODO REVESTIDO AWS - E7018, DIAMETRO IGUAL A 4,00 MM | D63: 94 | E63: 0.0004329983586 | F63: 0.9956555762 | G63: C | H63: 0.004344423831
A64: 88628 | B64: SINAPI | C64: ARGAMASSA TRAÇO 1:3 (EM VOLUME DE CIMENTO E AREIA MÉDIA ÚMIDA), PREPARO MECÂNICO COM BETONEIRA 400 L. AF_08/2019 | D64: 88.31 | E64: 0.0004067674518 | F64: 0.9960623436 | G64: C | H64: 0.003937656379
A65: 7258 | B65: SINAPI | C65: TIJOLO CERAMICO MACICO COMUM DE *5 X 10 X 20* CM (L X A X C) | D65: 87.1 | E65: 0.0004011874074 | F65: 0.996463531 | G65: C | H65: 0.003536468972
A66: 5104 | B66: SINAPI | C66: REBITE DE REPUXO EM ALUMINIO VAZADO, DIAMETRO 3,2 X 8 MM DE COMPRIMENTO (1KG = 1025 UNIDADES) | D66: 79.99 | E66: 0.0003684745472 | F66: 0.9968320056 | G66: C | H66: 0.003167994424
A67: 88243 | B67: SINAPI | C67: AJUDANTE ESPECIALIZADO COM ENCARGOS COMPLEMENTARES | D67: 66.88 | E67: 0.0003080609172 | F67: 0.9971400665 | G67: C | H67: 0.002859933507
A68: 88267 | B68: SINAPI | C68: ENCANADOR OU BOMBEIRO HIDRÁULICO COM ENCARGOS COMPLEMENTARES | D68: 65.18 | E68: 0.0003002422221 | F68: 0.9974403087 | G68: C | H68: 0.002559691285
A69: 43475 | B69: SINAPI | C69: FERRAMENTAS - FAMILIA ENCARREGADO GERAL - MENSALISTA (ENCARGOS COMPLEMENTARES - COLETADO CAIXA) | D69: 56.75 | E69: 0.0002614090012 | F69: 0.9977017177 | G69: C | H69: 0.002298282284
A70: 40864 | B70: SINAPI | C70: SEGURO - MENSALISTA (COLETADO CAIXA - ENCARGOS COMPLEMENTARES) | D70: 56.75 | E70: 0.0002614090012 | F70: 0.9979631267 | G70: C | H70: 0.002036873283
A71: 91175 | B71: SINAPI | C71: FIXAÇÃO DE TUBOS VERTICAIS DE PVC ÁGUA, PVC ESGOTO, PVC ÁGUA PLUVIAL, CPVC, PPR, COBRE OU AÇO, DIÂMETROS MAIORES QUE 75 MM E MENORES OU IGUAIS A 100 MM, COM ABRAÇADEIRA METÁLICA RÍGIDA TIPO U PERFIL 4", FIXADA EM PERFILADO EM PAREDE. AF_09/2023_PS | D71: 51.43 | E71: 0.0002368911689 | F71: 0.9982000179 | G71: C | H71: 0.001799982114
A72: 88248 | B72: SINAPI | C72: AUXILIAR DE ENCANADOR OU BOMBEIRO HIDRÁULICO COM ENCARGOS COMPLEMENTARES | D72: 50.68 | E72: 0.0002334530435 | F72: 0.9984334709 | G72: C | H72: 0.00156652907
A73: 94970 | B73: SINAPI | C73: CONCRETO FCK = 20MPA, TRAÇO 1:2,7:3 (EM MASSA SECA DE CIMENTO/ AREIA MÉDIA/ BRITA 1) - PREPARO MECÂNICO COM BETONEIRA 600 L. AF_05/2021 | D73: 45.41 | E73: 0.0002091609189 | F73: 0.9986426318 | G73: C | H73: 0.001357368151
A74: 88262 | B74: SINAPI | C74: CARPINTEIRO DE FORMAS COM ENCARGOS COMPLEMENTARES | D74: 35 | E74: 0.0001611966745 | F74: 0.9988038285 | G74: C | H74: 0.001196171477
A75: 102234 | B75: SINAPI | C75: PINTURA IMUNIZANTE PARA MADEIRA, 2 DEMÃOS. AF_01/2021 | D75: 34.07 | E75: 0.0001569128366 | F75: 0.9989607414 | G75: C | H75: 0.00103925864
A76: 5061 | B76: SINAPI | C76: PREGO DE ACO POLIDO COM CABECA 18 X 27 (2 1/2 X 10) | D76: 31.4 | E76: 0.0001446541508 | F76: 0.9991053955 | G76: C | H76: 0.0008946044896
A77: 4509 | B77: SINAPI | C77: SARRAFO *2,5 X 10* CM EM PINUS, MISTA OU EQUIVALENTE DA REGIAO - BRUTA | D77: 28.34 | E77: 0.0001305354502 | F77: 0.999235931 | G77: C | H77: 0.0007640690394
A78: 11950 | B78: SINAPI | C78: BUCHA DE NYLON SEM ABA S6, COM PARAFUSO DE 4,20 X 40 MM EM ACO ZINCADO COM ROSCA SOBERBA, CABECA CHATA E FENDA PHILLIPS | D78: 27.91 | E78: 0.0001285446172 | F78: 0.9993644756 | G78: C | H78: 0.0006355244222
A79: 4226 | B79: SINAPI | C79: GAS DE COZINHA - GLP | D79: 24.05 | E79: 0.0001107579379 | F79: 0.9994752335 | G79: C | H79: 0.0005247664843
A80: 88298 | B80: SINAPI | C80: OPERADOR DE MARTELETE OU MARTELETEIRO COM ENCARGOS COMPLEMENTARES | D80: 16.62 | E80: 7.654020694e-05 | F80: 0.9995517737 | G80: C | H80: 0.0004482262773
A81: 11945 | B81: SINAPI | C81: BUCHA DE NYLON SEM ABA S4 | D81: 15.19 | E81: 6.99767224e-05 | F81: 0.9996217504 | G81: C | H81: 0.0003782495549
A82: 6193 | B82: SINAPI | C82: TABUA NAO APARELHADA *2,5 X 20* CM, EM MACARANDUBA/MASSARANDUBA, ANGELIM OU EQUIVALENTE DA REGIAO - BRUTA | D82: 14.21 | E82: 6.543677548e-05 | F82: 0.9996871872 | G82: C | H82: 0.0003128127794
A83: 102274 | B83: SINAPI | C83: MARTELO DEMOLIDOR ELÉTRICO, COM POTÊNCIA DE 2.000 W, 1.000 IMPACTOS POR MINUTO, PESO DE 30 KG - CHI DIURNO. AF_01/2021 | D83: 12.13 | E83: 5.585525805e-05 | F83: 0.9997430425 | G83: C | H83: 0.0002569575214
A84: 37373 | B84: SINAPI | C84: SEGURO - HORISTA (COLETADO CAIXA - ENCARGOS COMPLEMENTARES) | D84: 11.75 | E84: 5.410809706e-05 | F84: 0.9997971506 | G84: C | H84: 0.0002028494243
A85: 88629 | B85: SINAPI | C85: ARGAMASSA TRAÇO 1:3 (EM VOLUME DE CIMENTO E AREIA MÉDIA ÚMIDA), PREPARO MANUAL. AF_08/2019 | D85: 10.5 | E85: 4.835900235e-05 | F85: 0.9998455096 | G85: C | H85: 0.000154490422
A86: 87316 | B86: SINAPI | C86: ARGAMASSA TRAÇO 1:4 (EM VOLUME DE CIMENTO E AREIA GROSSA ÚMIDA) PARA CHAPISCO CONVENCIONAL, PREPARO MECÂNICO COM BETONEIRA 400 L. AF_08/2019 | D86: 10.14 | E86: 4.672423453e-05 | F86: 0.9998922338 | G86: C | H86: 0.0001077661874
A87: 101616 | B87: SINAPI | C87: PREPARO DE FUNDO DE VALA COM LARGURA MENOR QUE 1,5 M (ACERTO DO SOLO NATURAL). AF_08/2020 | D87: 8.76 | E87: 4.035559552e-05 | F87: 0.9999325894 | G87: C | H87: 6.741059191e-05
A88: 102275 | B88: SINAPI | C88: MARTELO DEMOLIDOR ELÉTRICO, COM POTÊNCIA DE 2.000 W, 1.000 IMPACTOS POR MINUTO, PESO DE 30 KG - CHP DIURNO. AF_01/2021 | D88: 5.31 | E88: 2.446117503e-05 | F88: 0.9999570506 | G88: C | H88: 4.294941687e-05
A89: 38383 | B89: SINAPI | C89: LIXA D'AGUA EM FOLHA, COR PRETA, GRAO 100 | D89: 1.66 | E89: 7.665306074e-06 | F89: 0.9999647159 | G89: C | H89: 3.52841108e-05
A90: 5678 | B90: SINAPI | C90: RETROESCAVADEIRA SOBRE RODAS COM CARREGADEIRA, TRAÇÃO 4X4, POTÊNCIA LÍQ. 88 HP, CAÇAMBA CARREG. CAP. MÍN. 1 M3, CAÇAMBA RETRO CAP. 0,26 M3, PESO OPERACIONAL MÍN. 6.674 KG, PROFUNDIDADE ESCAVAÇÃO MÁX. 4,37 M - CHP DIURNO. AF_06/2014 | D90: 1.62 | E90: 7.440059113e-06 | F90: 0.9999721559 | G90: C | H90: 2.784405168e-05
A91: 5679 | B91: SINAPI | C91: RETROESCAVADEIRA SOBRE RODAS COM CARREGADEIRA, TRAÇÃO 4X4, POTÊNCIA LÍQ. 88 HP, CAÇAMBA CARREG. CAP. MÍN. 1 M3, CAÇAMBA RETRO CAP. 0,26 M3, PESO OPERACIONAL MÍN. 6.674 KG, PROFUNDIDADE ESCAVAÇÃO MÁX. 4,37 M - CHI DIURNO. AF_06/2014 | D91: 1.53 | E91: 7.045301148e-06 | F91: 0.9999792012 | G91: C | H91: 2.079875054e-05
A92: 43462 | B92: SINAPI | C92: FERRAMENTAS - FAMILIA ENGENHEIRO CIVIL - HORISTA (ENCARGOS COMPLEMENTARES - COLETADO CAIXA) | D92: 1.47 | E92: 6.763396976e-06 | F92: 0.9999859646 | G92: C | H92: 1.403535356e-05
A93: 4491 | B93: SINAPI | C93: PONTALETE *7,5 X 7,5* CM EM PINUS, MISTA OU EQUIVALENTE DA REGIAO - BRUTA | D93: 1.03 | E93: 4.73433182e-06 | F93: 0.999990699 | G93: C | H93: 9.30102174e-06
A94: 5065 | B94: SINAPI | C94: PREGO DE ACO POLIDO COM CABECA 10 X 10 (7/8 X 17) | D94: 0.81 | E94: 3.720029557e-06 | F94: 0.999994419 | G94: C | H94: 5.580992184e-06
A95: 5069 | B95: SINAPI | C95: PREGO DE ACO POLIDO COM CABECA 17 X 27 (2 1/2 X 11) | D95: 0.75 | E95: 3.438125385e-06 | F95: 0.9999978571 | G95: C | H95: 2.142866799e-06
A96: 4517 | B96: SINAPI | C96: SARRAFO *2,5 X 7,5* CM EM PINUS, MISTA OU EQUIVALENTE DA REGIAO - BRUTA | D96: 0.43 | E96: 1.972868572e-06 | F96: 0.99999983 | G96: C | H96: 1.699982265e-07
A97: 2692 | B97: SINAPI | C97: DESMOLDANTE PROTETOR PARA FORMAS DE MADEIRA, DE BASE OLEOSA EMULSIONADA EM AGUA | D97: 0.04 | E97: 1.690503773e-07 | F97: 0.9999999991 | G97: C | H97: 9.478491325e-10
A98: 4377 | B98: SINAPI | C98: PARAFUSO DE ACO ZINCADO COM ROSCA SOBERBA, CABECA CHATA E FENDA SIMPLES, DIAMETRO 4,2 MM, COMPRIMENTO * 32 * MM | D98: 0 | E98: 0 | F98: 0.9999999991 | G98: C | H98: 9.478491325e-10
... 2500 more rows

Sheet CURVA

Sheet LICITA
N1: Bases de Preços | P1: DADOS GERAIS
N2: Base SINAPI:.. | O2: 2025-11-01
N3: Base TCPO:.... | O3: 2025-11-01 | P3: Obra:........ | Q3: VT Campo Mourão - cobertura
N4: Base Cotação: | O4: 2026-01-01 | P4: Endereço:. | Q4: Av. Goioerê, 779
N5: Planilha:........ | O5: 2026-01-09 | P5: Local:........ | Q5: Campo Mourão | S5: DESCONTO LINEAR
N6: Onerada | P6: Área:......... | Q6: 817,76 m2 | S6: Percentual:
P7: BDI Normal:.. | Q7: 0.2236 | T7: Descontará todos os itens que não
P8: BDI Equip:.... | Q8: 0.1528 | T8: foi inserido o desconto Individual
N10: Desconto individual (prevalece sobre o desconto linear): preencha as células brancas somente
B12: TABELA | C12: TIPO | D12: CÓDIGO | E12: ITEM | F12: DESCRIÇÃO | G12: UNIDADE | H12: QUANT | I12: PREÇO | J12: PREÇOS UNITÁRIOS | M12: DESCONTO | N12: PREÇOS UNITÁRIOS | Q12: PREÇOS TOTAIS
N13: MAT | O13: M.O. | P13: TOTAL | Q13: MAT | R13: M.O. | S13: BDI | T13: TOTAL GERAL
A14: vazia | B14: vazia | E14: 1 | F14: ADMINISTRAÇÃO DE OBRA E SERVIÇOS INICIAIS | Q14: =Q15+Q25+Q42+Q52 -> 8698.109712 | R14: =R15+R25+R42+R52 -> 54833.27429 | S14: =S15+S25+S42+S52 -> 14205.61746 | T14: =T15+T25+T42+T52 -> 77737.00146
A15: vazia | B15: vazia | E15: 1.1 | F15: PROJETOS E RESPONSABILIDADE TÉCNICA | N15: =IF(D15=0,"",IF(M15<>0,(1-M15)*J15,(1-$T$6)*J15)) ->  | O15: =IF(D15=0,"",IF(M15<>0,(1-M15)*K15,(1-$T$6)*K15)) ->  | P15: =IF(D15=0,"",IF(I15="P. BASE",0,N15+O15)) ->  | Q15: =SUM(Q16:Q24)/2 -> 2039.294 | R15: =SUM(R16:R24)/2 -> 0 | S15: =SUM(S16:S24)/2 -> 455.9861384 | T15: =SUM(T16:T24)/2 -> 2495.280138
A16: Quant | B16: COTAÇÃO | C16: COMPOSIÇÃO | D16: PRÓPRIA | E16: 1.1.1 | F16: PROJETO DE ESTRUTURA METÁLICA PARA COBERTURA (EXCLUI COBERTURA LATERAL ESQUERDA) | G16: M2 | H16: 213.4 | I16: P. BASE | J16: 7.71 | K16: 0 | L16: 7.71 | N16: =SUM(N17:N18) -> 7.71 | O16: 0 | P16: 7.71 | Q16: 1645.314 | R16: 0 | S16: 367.8922104 | T16: 2013.20621 | U16: Normal
A17: 213.4 | B17: COTAÇÃO | C17: INSUMO | D17: C7 | E17: 1.1.1.1 | F17: PROJETO DE ESTRUTURA METÁLICA | G17: UN | H17: 1 | I17: 7.71 | J17: 7.71 | K17: 0 | L17: 7.71 | N17: 7.71 | O17: 0 | P17: 7.71 | Q17: =IF(D17=0,"",IF(I17="P. BASE",0,N17*A17)) -> 1645.314 | R17: =IF(D17=0,"",IF(I17="P. BASE",0,O17*A17)) -> 0 | S17: =IF(D17=0,"",IF(I17="P. BASE",0,IF(U17="NORMAL",(Q17+R17)*$Q$7,IF(U17="EQUIPAMENTO",(Q17+R17)*$Q$8,0)))) -> 367.8922104 | T17: =IF(D17=0,"",Q17+R17+S17) -> 2013.20621 | U17: Normal
A19: Quant | B19: COTAÇÃO | C19: COMPOSIÇÃO | D19: PRÓPRIA | E19: 1.1.2 | F19: ART DE PROJETO | G19: UD | H19: 1 | I19: P. BASE | J19: 108.39 | K19: 0 | L19: 108.39 | N19: =SUM(N20:N21) -> 108.39 | O19: 0 | P19: 108.39 | Q19: 108.39 | R19: 0 | S19: 24.236004 | T19: 132.626004 | U19: Normal
A20: 1 | B20: COTAÇÃO | C20: INSUMO | D20: C8 | E20: 1.1.2.1 | F20: ART DE PROJETO | G20: UN | H20: 1 | I20: 108.39 | J20: 108.39 | K20: 0 | L20: 108.39 | N20: 108.39 | O20: 0 | P20: 108.39 | Q20: 108.39 | R20: 0 | S20: 24.236004 | T20: 132.626004 | U20: Normal
A22: Quant | B22: COTAÇÃO | C22: COMPOSIÇÃO | D22: PRÓPRIA | E22: 1.1.3 | F22: ART DE EXECUÇÃO | G22: UD | H22: 1 | I22: P. BASE | J22: 285.59 | K22: 0 | L22: 285.59 | N22: =SUM(N23:N24) -> 285.59 | O22: 0 | P22: 285.59 | Q22: 285.59 | R22: 0 | S22: 63.857924 | T22: 349.447924 | U22: Normal
A23: 1 | B23: COTAÇÃO | C23: INSUMO | D23: C9 | E23: 1.1.3.1 | F23: ART DE EXECUÇÃO | G23: UN | H23: 1 | I23: 285.59 | J23: 285.59 | K23: 0 | L23: 285.59 | N23: 285.59 | O23: 0 | P23: 285.59 | Q23: 285.59 | R23: 0 | S23: 63.857924 | T23: 349.447924 | U23: Normal
A25: vazia | B25: vazia | E25: 1.2 | F25: ADMINISTRAÇÃO DE OBRA | Q25: =SUM(Q26:Q41)/2 -> 1905.06 | R25: =SUM(R26:R41)/2 -> 54719.07 | S25: =SUM(S26:S41)/2 -> 12661.15547 | T25: =SUM(T26:T41)/2 -> 69285.28547
A26: Quant | B26: SINAPI | C26: COMPOSIÇÃO | D26: 94295 | E26: 1.2.1 | F26: MESTRE DE OBRAS COM ENCARGOS COMPLEMENTARES | G26: MES | H26: 3 | I26: 0 | J26: 543.42 | K26: 12493.69 | L26: 13037.11 | N26: =SUM(N27:N33) -> 543.42 | O26: 12493.69 | P26: 13037.11 | Q26: 1630.26 | R26: 37481.07 | S26: 8745.293388 | T26: 47856.62339 | U26: Normal
A27: 3 | B27: SINAPI | C27: COMPOSICAO | D27: 95423 | E27: 1.2.1.1 | F27: CURSO DE CAPACITAÇÃO PARA MESTRE DE OBRAS (ENCARGOS COMPLEMENTARES) - MENSALISTA | G27: MES | H27: 1 | I27: 196.38 | J27: 0 | K27: 196.38 | L27: 196.38 | N27: 0 | O27: 196.38 | P27: 196.38 | Q27: 0 | R27: 589.14 | S27: 131.731704 | T27: 720.871704 | U27: Normal
A28: 3 | B28: SINAPI | C28: INSUMO | D28: 43499 | E28: 1.2.1.2 | F28: EPI - FAMILIA ENCARREGADO GERAL - MENSALISTA (ENCARGOS COMPLEMENTARES - COLETADO CAIXA) | G28: MES | H28: 1 | I28: 241.99 | J28: 241.99 | K28: 0 | L28: 241.99 | N28: 241.99 | O28: 0 | P28: 241.99 | Q28: 725.97 | R28: 0 | S28: 162.326892 | T28: 888.296892 | U28: Normal
A29: 3 | B29: SINAPI | C29: INSUMO | D29: 43475 | E29: 1.2.1.3 | F29: FERRAMENTAS - FAMILIA ENCARREGADO GERAL - MENSALISTA (ENCARGOS COMPLEMENTARES - COLETADO CAIXA) | G29: MES | H29: 1 | I29: 15.46 | J29: 15.46 | K29: 0 | L29: 15.46 | N29: 15.46 | O29: 0 | P29: 15.46 | Q29: 46.38 | R29: 0 | S29: 10.370568 | T29: 56.750568 | U29: Normal
A30: 3 | B30: SINAPI | C30: INSUMO | D30: 40864 | E30: 1.2.1.4 | F30: SEGURO - MENSALISTA (COLETADO CAIXA - ENCARGOS COMPLEMENTARES) | G30: MES | H30: 1 | I30: 15.46 | J30: 15.46 | K30: 0 | L30: 15.46 | N30: 15.46 | O30: 0 | P30: 15.46 | Q30: 46.38 | R30: 0 | S30: 10.370568 | T30: 56.750568 | U30: Normal
A31: 3 | B31: SINAPI | C31: INSUMO | D31: 40863 | E31: 1.2.1.5 | F31: EXAMES - MENSALISTA (COLETADO CAIXA - ENCARGOS COMPLEMENTARES) | G31: MES | H31: 1 | I31: 270.51 | J31: 270.51 | K31: 0 | L31: 270.51 | N31: 270.51 | O31: 0 | P31: 270.51 | Q31: 811.53 | R31: 0 | S31: 181.458108 | T31: 992.988108 | U31: Normal
A32: 3 | B32: SINAPI | C32: INSUMO | D32: 40819 | E32: 1.2.1.6 | F32: MESTRE DE OBRAS (MENSALISTA) | G32: MES | H32: 1 | I32: 12297.31 | J32: 0 | K32: 12297.31 | L32: 12297.31 | N32: 0 | O32: 12297.31 | P32: 12297.31 | Q32: 0 | R32: 36891.93 | S32: 8249.035548 | T32: 45140.96555 | U32: Normal
A34: Quant | B34: SINAPI | C34: COMPOSIÇÃO | D34: 90778 | E34: 1.2.2 | F34: ENGENHEIRO CIVIL DE OBRA PLENO COM ENCARGOS COMPLEMENTARES | G34: H | H34: 120 | I34: 0 | J34: 2.29 | K34: 143.65 | L34: 145.94 | N34: =SUM(N35:N41) -> 2.29 | O34: 143.65 | P34: 145.94 | Q34: 274.8 | R34: 17238 | S34: 3915.86208 | T34: 21428.66208 | U34: Normal
A35: 120 | B35: SINAPI | C35: COMPOSICAO | D35: 95403 | E35: 1.2.2.1 | F35: CURSO DE CAPACITAÇÃO PARA ENGENHEIRO CIVIL DE OBRA PLENO (ENCARGOS COMPLEMENTARES) - HORISTA | G35: H | H35: 1 | I35: 2.08 | J35: 0 | K35: 2.08 | L35: 2.08 | N35: 0 | O35: 2.08 | P35: 2.08 | Q35: 0 | R35: 249.6 | S35: 55.81056 | T35: 305.41056 | U35: Normal
A36: 120 | B36: SINAPI | C36: INSUMO | D36: 43486 | E36: 1.2.2.2 | F36: EPI - FAMILIA ENGENHEIRO CIVIL - HORISTA (ENCARGOS COMPLEMENTARES - COLETADO CAIXA) | G36: H | H36: 1 | I36: 0.77 | J36: 0.77 | K36: 0 | L36: 0.77 | N36: 0.77 | O36: 0 | P36: 0.77 | Q36: 92.4 | R36: 0 | S36: 20.66064 | T36: 113.06064 | U36: Normal
A37: 120 | B37: SINAPI | C37: INSUMO | D37: 43462 | E37: 1.2.2.3 | F37: FERRAMENTAS - FAMILIA ENGENHEIRO CIVIL - HORISTA (ENCARGOS COMPLEMENTARES - COLETADO CAIXA) | G37: H | H37: 1 | I37: 0.01 | J37: 0.01 | K37: 0 | L37: 0.01 | N37: 0.01 | O37: 0 | P37: 0.01 | Q37: 1.2 | R37: 0 | S37: 0.26832 | T37: 1.46832 | U37: Normal
A38: 120 | B38: SINAPI | C38: INSUMO | D38: 37373 | E38: 1.2.2.4 | F38: SEGURO - HORISTA (COLETADO CAIXA - ENCARGOS COMPLEMENTARES) | G38: H | H38: 1 | I38: 0.08 | J38: 0.08 | K38: 0 | L38: 0.08 | N38: 0.08 | O38: 0 | P38: 0.08 | Q38: 9.6 | R38: 0 | S38: 2.14656 | T38: 11.74656 | U38: Normal
A39: 120 | B39: SINAPI | C39: INSUMO | D39: 37372 | E39: 1.2.2.5 | F39: EXAMES - HORISTA (COLETADO CAIXA - ENCARGOS COMPLEMENTARES) | G39: H | H39: 1 | I39: 1.43 | J39: 1.43 | K39: 0 | L39: 1.43 | N39: 1.43 | O39: 0 | P39: 1.43 | Q39: 171.6 | R39: 0 | S39: 38.36976 | T39: 209.96976 | U39: Normal
A40: 120 | B40: SINAPI | C40: INSUMO | D40: 2707 | E40: 1.2.2.6 | F40: ENGENHEIRO CIVIL DE OBRA PLENO (HORISTA) | G40: H | H40: 1 | I40: 141.57 | J40: 0 | K40: 141.57 | L40: 141.57 | N40: 0 | O40: 141.57 | P40: 141.57 | Q40: 0 | R40: 16988.4 | S40: 3798.60624 | T40: 20787.00624 | U40: Normal
A42: vazia | B42: vazia | E42: 1.3 | F42: FORNECIMENTO DE PLACA DE OBRA | Q42: =SUM(Q43:Q51)/2 -> 833.755712 | R42: =SUM(R43:R51)/2 -> 114.204288 | S42: =SUM(S43:S51)/2 -> 211.963856 | T42: =SUM(T43:T51)/2 -> 1159.923856
A43: Quant | B43: SINAPI | C43: COMPOSIÇÃO | D43: 103689 | E43: 1.3.1 | F43: FORNECIMENTO E INSTALAÇÃO DE PLACA DE OBRA COM CHAPA GALVANIZADA E ESTRUTURA DE MADEIRA. AF_03/2022_PS | G43: M2 | H43: 2 | I43: 0 | J43: 416.877856 | K43: 57.102144 | L43: 473.98 | N43: =SUM(N44:N51) -> 416.877856 | O43: 57.102144 | P43: 473.98 | Q43: 833.755712 | R43: 114.204288 | S43: 211.963856 | T43: 1159.923856 | U43: Normal
A44: 2 | B44: SINAPI | C44: COMPOSICAO | D44: 102234 | E44: 1.3.1.1 | F44: PINTURA IMUNIZANTE PARA MADEIRA, 2 DEMÃOS. AF_01/2021 | G44: M2 | H44: 0.5 | I44: 27.85 | J44: 4.757856 | K44: 9.162144 | L44: 13.92 | N44: 4.757856 | O44: 9.162144 | P44: 13.92 | Q44: 9.515712 | R44: 18.324288 | S44: 6.225024 | T44: 34.065024 | U44: Normal
A45: 2 | B45: SINAPI | C45: COMPOSICAO | D45: 88316 | E45: 1.3.1.2 | F45: SERVENTE COM ENCARGOS COMPLEMENTARES | G45: H | H45: 1.1186 | I45: 30.08 | J45: 0 | K45: 33.64 | L45: 33.64 | N45: 0 | O45: 33.64 | P45: 33.64 | Q45: 0 | R45: 67.28 | S45: 15.043808 | T45: 82.323808 | U45: Normal
A46: 2 | B46: SINAPI | C46: COMPOSICAO | D46: 88262 | E46: 1.3.1.3 | F46: CARPINTEIRO DE FORMAS COM ENCARGOS COMPLEMENTARES | G46: H | H46: 0.3729 | I46: 38.36 | J46: 0 | K46: 14.3 | L46: 14.3 | N46: 0 | O46: 14.3 | P46: 14.3 | Q46: 0 | R46: 28.6 | S46: 6.39496 | T46: 34.99496 | U46: Normal
A47: 2 | B47: SINAPI | C47: INSUMO | D47: 5069 | E47: 1.3.1.4 | F47: PREGO DE ACO POLIDO COM CABECA 17 X 27 (2 1/2 X 11) | G47: KG | H47: 0.0132 | I47: 15.94 | J47: 0.21 | K47: 0 | L47: 0.21 | N47: 0.21 | O47: 0 | P47: 0.21 | Q47: 0.42 | R47: 0 | S47: 0.093912 | T47: 0.513912 | U47: Normal
A48: 2 | B48: SINAPI | C48: INSUMO | D48: 5065 | E48: 1.3.1.5 | F48: PREGO DE ACO POLIDO COM CABECA 10 X 10 (7/8 X 17) | G48: KG | H48: 0.0113 | I48: 29.76 | J48: 0.33 | K48: 0 | L48: 0.33 | N48: 0.33 | O48: 0 | P48: 0.33 | Q48: 0.66 | R48: 0 | S48: 0.147576 | T48: 0.807576 | U48: Normal
A49: 2 | B49: SINAPI | C49: INSUMO | D49: 4813 | E49: 1.3.1.6 | F49: PLACA DE OBRA (PARA CONSTRUCAO CIVIL) EM CHAPA GALVANIZADA *N. 22*, ADESIVADA, DE *2,4 X 1,2* M (SEM POSTES PARA FIXACAO) | G49: M2 | H49: 1 | I49: 400 | J49: 400 | K49: 0 | L49: 400 | N49: 400 | O49: 0 | P49: 400 | Q49: 800 | R49: 0 | S49: 178.88 | T49: 978.88 | U49: Normal
A50: 2 | B50: SINAPI | C50: INSUMO | D50: 4509 | E50: 1.3.1.7 | F50: SARRAFO *2,5 X 10* CM EM PINUS, MISTA OU EQUIVALENTE DA REGIAO - BRUTA | G50: M | H50: 3.2083 | I50: 3.61 | J50: 11.58 | K50: 0 | L50: 11.58 | N50: 11.58 | O50: 0 | P50: 11.58 | Q50: 23.16 | R50: 0 | S50: 5.178576 | T50: 28.338576 | U50: Normal
A52: vazia | B52: vazia | E52: 1.4 | F52: REMOÇÃO DE ENTULHO | Q52: =SUM(Q53:Q55)/2 -> 3920 | R52: =SUM(R53:R55)/2 -> 0 | S52: =SUM(S53:S55)/2 -> 876.512 | T52: =SUM(T53:T55)/2 -> 4796.512
A53: Quant | B53: COTAÇÃO | C53: COMPOSIÇÃO | D53: PRÓPRIA | E53: 1.4.1 | F53: FORNECIMENTO DE CAÇAMBA PARA ENTULHO COMUM | G53: UN | H53: 12 | I53: P. BASE | J53: 326.6666667 | K53: 0 | L53: 326.6666667 | N53: =SUM(N54:N55) -> 326.6666667 | O53: 0 | P53: 326.6666667 | Q53: 3920 | R53: 0 | S53: 876.512 | T53: 4796.512 | U53: Normal
A54: 12 | B54: COTAÇÃO | C54: INSUMO | D54: C1 | E54: 1.4.1.1 | F54: CAÇAMBA PARA ENTULHO COMUM - LOCAÇÃO - CAPACIDADE 5M³ | G54: UN | H54: 1 | I54: 326.6666667 | J54: 326.6666667 | K54: 0 | L54: 326.6666667 | N54: 326.6666667 | O54: 0 | P54: 326.6666667 | Q54: 3920 | R54: 0 | S54: 876.512 | T54: 4796.512 | U54: Normal
A56: vazia | B56: vazia | E56: 2 | F56: REFORMA DAS COBERTURAS | Q56: =Q57+Q82+Q104+Q117+Q138+Q150 -> 89553.07793 | R56: =R57+R82+R104+R117+R138+R150 -> 19393.02718 | S56: =S57+S82+S104+S117+S138+S150 -> 21489.85786 | T56: =T57+T82+T104+T117+T138+T150 -> 130435.963
A57: vazia | B57: vazia | E57: 2.1 | F57: REMOÇÃO DAS TELHAS, TESOURAS, TERÇAS, CALHAS E RUFOS EXISTENTES | Q57: =SUM(Q58:Q81)/2 -> 127 | R57: =SUM(R58:R81)/2 -> 8046.5737 | S57: =SUM(S58:S81)/2 -> 1827.611079 | T57: =SUM(T58:T81)/2 -> 10001.18478
A58: Quant | B58: SINAPI | C58: COMPOSIÇÃO | D58: 97647 | E58: 2.1.1 | F58: REMOÇÃO DE TELHAS DE FIBROCIMENTO METÁLICA E CERÂMICA, DE FORMA MANUAL, SEM REAPROVEITAMENTO. AF_09/2023 (INCLUI COBERTURA LATERAL ESQUERDA) | G58: M2 | H58: 225.13 | I58: 0 | J58: 0 | K58: 5.01 | L58: 5.01 | N58: =SUM(N59:N61) -> 0 | O58: 5.01 | P58: 5.01 | Q58: 0 | R58: 1127.9013 | S58: 252.1987307 | T58: 1380.100031 | U58: Normal
A59: 225.13 | B59: SINAPI | C59: COMPOSICAO | D59: 88323 | E59: 2.1.1.1 | F59: TELHADISTA COM ENCARGOS COMPLEMENTARES | G59: H | H59: 0.0408 | I59: 38.01 | J59: 0 | K59: 1.55 | L59: 1.55 | N59: 0 | O59: 1.55 | P59: 1.55 | Q59: 0 | R59: 348.9515 | S59: 78.0255554 | T59: 426.9770554 | U59: Normal
A60: 225.13 | B60: SINAPI | C60: COMPOSICAO | D60: 88316 | E60: 2.1.1.2 | F60: SERVENTE COM ENCARGOS COMPLEMENTARES | G60: H | H60: 0.1153 | I60: 30.08 | J60: 0 | K60: 3.46 | L60: 3.46 | N60: 0 | O60: 3.46 | P60: 3.46 | Q60: 0 | R60: 778.9498 | S60: 174.1731753 | T60: 953.1229753 | U60: Normal
A62: Quant | B62: SINAPI | C62: COMPOSIÇÃO | D62: 97650 | E62: 2.1.2 | F62: REMOÇÃO DE TRAMA DE MADEIRA PARA COBERTURA, DE FORMA MANUAL, SEM REAPROVEITAMENTO. AF_09/2023 (EXCLUI COBERTURA LATERAL ESQUERDA, QUE JÁ TEM ESTRUTURA METÁLICA) | G62: M2 | H62: 213.4 | I62: 0 | J62: 0 | K62: 10.82 | L62: 10.82 | N62: =SUM(N63:N65) -> 0 | O62: 10.82 | P62: 10.82 | Q62: 0 | R62: 2308.988 | S62: 516.2897168 | T62: 2825.277717 | U62: Normal
A63: 213.4 | B63: SINAPI | C63: COMPOSICAO | D63: 88323 | E63: 2.1.2.1 | F63: TELHADISTA COM ENCARGOS COMPLEMENTARES | G63: H | H63: 0.0879 | I63: 38.01 | J63: 0 | K63: 3.34 | L63: 3.34 | N63: 0 | O63: 3.34 | P63: 3.34 | Q63: 0 | R63: 712.756 | S63: 159.3722416 | T63: 872.1282416 | U63: Normal
A64: 213.4 | B64: SINAPI | C64: COMPOSICAO | D64: 88316 | E64: 2.1.2.2 | F64: SERVENTE COM ENCARGOS COMPLEMENTARES | G64: H | H64: 0.2487 | I64: 30.08 | J64: 0 | K64: 7.48 | L64: 7.48 | N64: 0 | O64: 7.48 | P64: 7.48 | Q64: 0 | R64: 1596.232 | S64: 356.9174752 | T64: 1953.149475 | U64: Normal
A66: Quant | B66: SINAPI | C66: COMPOSIÇÃO | D66: 97651 | E66: 2.1.3 | F66: REMOÇÃO DE TESOURAS DE MADEIRA, COM VÃO MENOR QUE 8M, DE FORMA MANUAL, SEM REAPROVEITAMENTO. AF_09/2023 | G66: UN | H66: 5 | I66: 0 | J66: 0 | K66: 117.79 | L66: 117.79 | N66: =SUM(N67:N69) -> 0 | O66: 117.79 | P66: 117.79 | Q66: 0 | R66: 588.95 | S66: 131.68922 | T66: 720.63922 | U66: Normal
A67: 5 | B67: SINAPI | C67: COMPOSICAO | D67: 88323 | E67: 2.1.3.1 | F67: TELHADISTA COM ENCARGOS COMPLEMENTARES | G67: H | H67: 0.9572 | I67: 38.01 | J67: 0 | K67: 36.38 | L67: 36.38 | N67: 0 | O67: 36.38 | P67: 36.38 | Q67: 0 | R67: 181.9 | S67: 40.67284 | T67: 222.57284 | U67: Normal
A68: 5 | B68: SINAPI | C68: COMPOSICAO | D68: 88316 | E68: 2.1.3.2 | F68: SERVENTE COM ENCARGOS COMPLEMENTARES | G68: H | H68: 2.7066 | I68: 30.08 | J68: 0 | K68: 81.41 | L68: 81.41 | N68: 0 | O68: 81.41 | P68: 81.41 | Q68: 0 | R68: 407.05 | S68: 91.01638 | T68: 498.06638 | U68: Normal
A70: Quant | B70: SINAPI | C70: COMPOSIÇÃO | D70: 97652 | E70: 2.1.4 | F70: REMOÇÃO DE TESOURAS DE MADEIRA, COM VÃO MAIOR OU IGUAL A 8M, DE FORMA MANUAL, SEM REAPROVEITAMENTO. AF_09/2023 | G70: UN | H70: 10 | I70: 0 | J70: 0 | K70: 267.02 | L70: 267.02 | N70: =SUM(N71:N73) -> 0 | O70: 267.02 | P70: 267.02 | Q70: 0 | R70: 2670.2 | S70: 597.05672 | T70: 3267.25672 | U70: Normal
A71: 10 | B71: SINAPI | C71: COMPOSICAO | D71: 88323 | E71: 2.1.4.1 | F71: TELHADISTA COM ENCARGOS COMPLEMENTARES | G71: H | H71: 2.1699 | I71: 38.01 | J71: 0 | K71: 82.47 | L71: 82.47 | N71: 0 | O71: 82.47 | P71: 82.47 | Q71: 0 | R71: 824.7 | S71: 184.40292 | T71: 1009.10292 | U71: Normal
A72: 10 | B72: SINAPI | C72: COMPOSICAO | D72: 88316 | E72: 2.1.4.2 | F72: SERVENTE COM ENCARGOS COMPLEMENTARES | G72: H | H72: 6.1356 | I72: 30.08 | J72: 0 | K72: 184.55 | L72: 184.55 | N72: 0 | O72: 184.55 | P72: 184.55 | Q72: 0 | R72: 1845.5 | S72: 412.6538 | T72: 2258.1538 | U72: Normal
A74: Quant | B74: SINAPI | C74: COMPOSIÇÃO | D74: 104803 | E74: 2.1.5 | F74: REMOÇÃO CALHAS, RUFOS E CHAPIM, DE FORMA MANUAL, SEM REAPROVEITAMENTO. AF_09/2023 (INCLUI COBERTURA LATERAL ESQUERDA) | G74: M | H74: 195.53 | I74: 0 | J74: 0 | K74: 6.48 | L74: 6.48 | N74: =SUM(N75:N77) -> 0 | O74: 6.48 | P74: 6.48 | Q74: 0 | R74: 1267.0344 | S74: 283.3088918 | T74: 1550.343292 | U74: Normal
A75: 195.53 | B75: SINAPI | C75: COMPOSICAO | D75: 88323 | E75: 2.1.5.1 | F75: TELHADISTA COM ENCARGOS COMPLEMENTARES | G75: H | H75: 0.0829 | I75: 38.01 | J75: 0 | K75: 3.15 | L75: 3.15 | N75: 0 | O75: 3.15 | P75: 3.15 | Q75: 0 | R75: 615.9195 | S75: 137.7196002 | T75: 753.6391002 | U75: Normal
A76: 195.53 | B76: SINAPI | C76: COMPOSICAO | D76: 88316 | E76: 2.1.5.2 | F76: SERVENTE COM ENCARGOS COMPLEMENTARES | G76: H | H76: 0.111 | I76: 30.08 | J76: 0 | K76: 3.33 | L76: 3.33 | N76: 0 | O76: 3.33 | P76: 3.33 | Q76: 0 | R76: 651.1149 | S76: 145.5892916 | T76: 796.7041916 | U76: Normal
A78: Quant | B78: SINAPI | C78: COMPOSIÇÃO | D78: PRÓPRIA | E78: 2.1.6 | F78: FORNECIMENTO E INSTALAÇÃO DE LONA PLÁSTICA PESADA PRETA (E = 150 MICRA), PARA PROTEÇÃO DAS ÁREAS AFETADAS | G78: M2 | H78: 50 | I78: P. BASE | J78: 2.54 | K78: 1.67 | L78: 4.21 | N78: =SUM(N79:N81) -> 2.54 | O78: 1.67 | P78: 4.21 | Q78: 127 | R78: 83.5 | S78: 47.0678 | T78: 257.5678 | U78: Normal
A79: 50 | B79: SINAPI | C79: INSUMO | D79: 3777 | E79: 2.1.6.1 | F79: LONA PLASTICA PESADA PRETA, E = 150 MICRA | G79: M2 | H79: 1 | I79: 1.81 | J79: 1.81 | K79: 0 | L79: 1.81 | N79: =IF(D79=0,"",IF(M79<>0,(1-M79)*J79,(1-$T$6)*J79)) -> 1.81 | O79: =IF(D79=0,"",IF(M79<>0,(1-M79)*K79,(1-$T$6)*K79)) -> 0 | P79: =IF(D79=0,"",IF(I79="P. BASE",0,N79+O79)) -> 1.81 | Q79: =IF(D79=0,"",IF(I79="P. BASE",0,N79*A79)) -> 90.5 | R79: =IF(D79=0,"",IF(I79="P. BASE",0,O79*A79)) -> 0 | S79: =IF(D79=0,"",IF(I79="P. BASE",0,IF(U79="NORMAL",(Q79+R79)*$Q$7,IF(U79="EQUIPAMENTO",(Q79+R79)*$Q$8,0)))) -> 20.2358 | T79: =IF(D79=0,"",Q79+R79+S79) -> 110.7358 | U79: Normal
A80: 50 | B80: SINAPI | C80: COMPOSIÇÃO | D80: 88316 | E80: 2.1.6.2 | F80: SERVENTE COM ENCARGOS COMPLEMENTARES | G80: H | H80: 0.08 | I80: 30.08 | J80: 0.73 | K80: 1.67 | L80: 2.4 | N80: 0.73 | O80: 1.67 | P80: 2.4 | Q80: 36.5 | R80: 83.5 | S80: 26.832 | T80: 146.832 | U80: Normal
A82: vazia | B82: vazia | E82: 2.2 | F82: ESTRUTURA DE COBERTURA | Q82: =SUM(Q83:Q103)/2 -> 15708.6247 | R82: =SUM(R83:R103)/2 -> 4573.367304 | S82: =SUM(S83:S103)/2 -> 4535.053411 | T82: =SUM(T83:T103)/2 -> 24817.04541
A83: Quant | B83: SINAPI | C83: COMPOSIÇÃO | D83: 100377 | E83: 2.2.1 | F83: FABRICAÇÃO E INSTALAÇÃO DE TESOURA (INTEIRA OU MEIA) EM AÇO, QUALQUER VÃO, INCLUSO IÇAMENTO. AF_07/2019 | G83: KG | H83: 640.2 | I83: 0 | J83: 9.219943 | K83: 3.070057 | L83: 12.29 | N83: =SUM(N84:N90) -> 9.219943 | O83: 3.070057 | P83: 12.29 | Q83: 5902.607509 | R83: 1965.450491 | S83: 1759.297769 | T83: 9627.355769 | U83: Normal
A84: 640.2 | B84: SINAPI | C84: COMPOSICAO | D84: 92255 | E84: 2.2.1.1 | F84: INSTALAÇÃO DE TESOURA (INTEIRA OU MEIA), EM AÇO, PARA VÃOS MAIORES OU IGUAIS A 3,0 M E MENORES QUE 6,0 M, INCLUSO IÇAMENTO. AF_07/2019 | G84: UN | H84: 0.013 | I84: 238.3 | J84: 0.749943 | K84: 2.340057 | L84: 3.09 | N84: 0.749943 | O84: 2.340057 | P84: 3.09 | Q84: 480.1135086 | R84: 1498.104491 | S84: 442.3295448 | T84: 2420.547545 | U84: Normal
A85: 640.2 | B85: SINAPI | C85: COMPOSICAO | D85: 88316 | E85: 2.2.1.2 | F85: SERVENTE COM ENCARGOS COMPLEMENTARES | G85: H | H85: 0.004 | I85: 30.08 | J85: 0 | K85: 0.12 | L85: 0.12 | N85: 0 | O85: 0.12 | P85: 0.12 | Q85: 0 | R85: 76.824 | S85: 17.1778464 | T85: 94.0018464 | U85: Normal
A86: 640.2 | B86: SINAPI | C86: COMPOSICAO | D86: 88278 | E86: 2.2.1.3 | F86: MONTADOR DE ESTRUTURA METÁLICA COM ENCARGOS COMPLEMENTARES | G86: H | H86: 0.018 | I86: 33.93 | J86: 0 | K86: 0.61 | L86: 0.61 | N86: 0 | O86: 0.61 | P86: 0.61 | Q86: 0 | R86: 390.522 | S86: 87.3207192 | T86: 477.8427192 | U86: Normal
A87: 640.2 | B87: SINAPI | C87: INSUMO | D87: 40598 | E87: 2.2.1.4 | F87: PERFIL "U" SIMPLES, EM CHAPA DOBRADA DE ACO LAMINADO, E = 3 MM, H = 125 MM, L = 50 MM (5,07 KG/M) | G87: KG | H87: 0.787 | I87: 8.45 | J87: 6.65 | K87: 0 | L87: 6.65 | N87: 6.65 | O87: 0 | P87: 6.65 | Q87: 4257.33 | R87: 0 | S87: 951.938988 | T87: 5209.268988 | U87: Normal
A88: 640.2 | B88: SINAPI | C88: INSUMO | D88: 10997 | E88: 2.2.1.5 | F88: ELETRODO REVESTIDO AWS - E7018, DIAMETRO IGUAL A 4,00 MM | G88: KG | H88: 0.003 | I88: 40.5 | J88: 0.12 | K88: 0 | L88: 0.12 | N88: 0.12 | O88: 0 | P88: 0.12 | Q88: 76.824 | R88: 0 | S88: 17.1778464 | T88: 94.0018464 | U88: Normal
A89: 640.2 | B89: SINAPI | C89: INSUMO | D89: 4777 | E89: 2.2.1.6 | F89: CANTONEIRA ACO ABAS IGUAIS (QUALQUER BITOLA), ESPESSURA ENTRE 1/8" E 1/4" | G89: KG | H89: 0.213 | I89: 8.02 | J89: 1.7 | K89: 0 | L89: 1.7 | N89: 1.7 | O89: 0 | P89: 1.7 | Q89: 1088.34 | R89: 0 | S89: 243.352824 | T89: 1331.692824 | U89: Normal
A91: Quant | B91: SINAPI | C91: COMPOSIÇÃO | D91: 104314 | E91: 2.2.2 | F91: TRAMA DE AÇO COMPOSTA POR TERÇAS PARA TELHADOS DE ATÉ 2 ÁGUAS PARA TELHA ONDULADA DE FIBROCIMENTO, METÁLICA, PLÁSTICA OU TERMOACÚSTICA, INCLUSO TRANSPORTE VERTICAL (EM KG). AF_07/2019 | G91: KG | H91: 746.9 | I91: 0 | J91: 8.942117 | K91: 2.517883 | L91: 11.46 | N91: =SUM(N92:N98) -> 8.942117 | O91: 2.517883 | P91: 11.46 | Q91: 6678.867187 | R91: 1880.606813 | S91: 1913.898386 | T91: 10473.37239 | U91: Normal
A92: 746.9 | B92: SINAPI | C92: COMPOSICAO | D92: 93282 | E92: 2.2.2.1 | F92: GUINCHO ELÉTRICO DE COLUNA, CAPACIDADE 400 KG, COM MOTO FREIO, MOTOR TRIFÁSICO DE 1,25 CV - CHI DIURNO. AF_03/2016 | G92: CHI | H92: 0.0022 | I92: 36.5 | J92: 0.000592 | K92: 0.079408 | L92: 0.08 | N92: 0.000592 | O92: 0.079408 | P92: 0.08 | Q92: 0.4421648 | R92: 59.3098352 | S92: 13.3605472 | T92: 73.1125472 | U92: Normal
A93: 746.9 | B93: SINAPI | C93: COMPOSICAO | D93: 93281 | E93: 2.2.2.2 | F93: GUINCHO ELÉTRICO DE COLUNA, CAPACIDADE 400 KG, COM MOTO FREIO, MOTOR TRIFÁSICO DE 1,25 CV - CHP DIURNO. AF_03/2016 | G93: CHP | H93: 0.0016 | I93: 37.37 | J93: 0.001525 | K93: 0.048475 | L93: 0.05 | N93: 0.001525 | O93: 0.048475 | P93: 0.05 | Q93: 1.1390225 | R93: 36.2059775 | S93: 8.350342 | T93: 45.695342 | U93: Normal
A94: 746.9 | B94: SINAPI | C94: COMPOSICAO | D94: 88316 | E94: 2.2.2.3 | F94: SERVENTE COM ENCARGOS COMPLEMENTARES | G94: H | H94: 0.0245 | I94: 30.08 | J94: 0 | K94: 0.73 | L94: 0.73 | N94: 0 | O94: 0.73 | P94: 0.73 | Q94: 0 | R94: 545.237 | S94: 121.9149932 | T94: 667.1519932 | U94: Normal
A95: 746.9 | B95: SINAPI | C95: COMPOSICAO | D95: 88278 | E95: 2.2.2.4 | F95: MONTADOR DE ESTRUTURA METÁLICA COM ENCARGOS COMPLEMENTARES | G95: H | H95: 0.0492 | I95: 33.93 | J95: 0 | K95: 1.66 | L95: 1.66 | N95: 0 | O95: 1.66 | P95: 1.66 | Q95: 0 | R95: 1239.854 | S95: 277.2313544 | T95: 1517.085354 | U95: Normal
A96: 746.9 | B96: SINAPI | C96: INSUMO | D96: 43083 | E96: 2.2.2.5 | F96: PERFIL "U" ENRIJECIDO, EM CHAPA DOBRADA DE ACO LAMINADO, E = 3,75 MM, H = 200 MM, L = 75 MM (9,94 KG/M) | G96: KG | H96: 1 | I96: 8.66 | J96: 8.66 | K96: 0 | L96: 8.66 | N96: 8.66 | O96: 0 | P96: 8.66 | Q96: 6468.154 | R96: 0 | S96: 1446.279234 | T96: 7914.433234 | U96: Normal
A97: 746.9 | B97: SINAPI | C97: INSUMO | D97: 40549 | E97: 2.2.2.6 | F97: PARAFUSO, COMUM, ASTM A307, SEXTAVADO, DIAMETRO 1/2" (12,7 MM), COMPRIMENTO 1" (25,4 MM) | G97: CENTO | H97: 0.0016 | I97: 180.78 | J97: 0.28 | K97: 0 | L97: 0.28 | N97: 0.28 | O97: 0 | P97: 0.28 | Q97: 209.132 | R97: 0 | S97: 46.7619152 | T97: 255.8939152 | U97: Normal
A99: Quant | B99: SINAPI | C99: COMPOSIÇÃO | D99: 100723 | E99: 2.2.3 | F99: PINTURA COM TINTA ALQUÍDICA DE FUNDO E ACABAMENTO (ESMALTE SINTÉTICO GRAFITE) PULVERIZADA SOBRE PERFIL METÁLICO EXECUTADO EM FÁBRICA (POR DEMÃO). AF_01/2020_PE | G99: M2 | H99: 283 | I99: 0 | J99: 11.05 | K99: 2.57 | L99: 13.62 | N99: =SUM(N100:N103) -> 11.05 | O99: 2.57 | P99: 13.62 | Q99: 3127.15 | R99: 727.31 | S99: 861.857256 | T99: 4716.317256 | U99: Normal
A100: 283 | B100: SINAPI | C100: COMPOSICAO | D100: 88310 | E100: 2.2.3.1 | F100: PINTOR COM ENCARGOS COMPLEMENTARES | G100: H | H100: 0.0635 | I100: 40.48 | J100: 0 | K100: 2.57 | L100: 2.57 | N100: 0 | O100: 2.57 | P100: 2.57 | Q100: 0 | R100: 727.31 | S100: 162.626516 | T100: 889.936516 | U100: Normal
A101: 283 | B101: SINAPI | C101: INSUMO | D101: 7293 | E101: 2.2.3.2 | F101: TINTA ESMALTE SINTETICO PREMIUM DE DUPLA ACAO GRAFITE FOSCO PARA SUPERFICIES METALICAS FERROSAS | G101: L | H101: 0.2032 | I101: 47.64 | J101: 9.68 | K101: 0 | L101: 9.68 | N101: 9.68 | O101: 0 | P101: 9.68 | Q101: 2739.44 | R101: 0 | S101: 612.538784 | T101: 3351.978784 | U101: Normal
A102: 283 | B102: SINAPI | C102: INSUMO | D102: 5318 | E102: 2.2.3.3 | F102: DILUENTE AGUARRAS | G102: L | H102: 0.061 | I102: 22.59 | J102: 1.37 | K102: 0 | L102: 1.37 | N102: 1.37 | O102: 0 | P102: 1.37 | Q102: 387.71 | R102: 0 | S102: 86.691956 | T102: 474.401956 | U102: Normal
A104: vazia | B104: vazia | E104: 2.3 | F104: COBERTURA METÁLICA TERMOACÚSTICA | Q104: =SUM(Q105:Q116)/2 -> 42405.28418 | R104: =SUM(R105:R116)/2 -> 686.6465 | S104: =SUM(S105:S116)/2 -> 6764.864452 | T104: =SUM(T105:T116)/2 -> 49856.79514
A105: Quant | B105: TRT | C105: COMPOSIÇÃO | D105: PRÓPRIA | E105: 2.3.1 | F105: COBERTURA COM TELHA TRAPEZOIDAL EM GALVALUME, TIPO SANDUÍCHE COM ISOLAMENTO TÉRMICO E ACÚSTICO (TELHA + PU/PIR + TELHA) - ALTURA DA TELHA 40MM, E=0,50 MM - INJEÇÃO 30MM - COM INSTALAÇÃO DE FITA DE VEDAÇÃO DUPLA FACE NAS EMENDAS LONGITUDINAIS E TRANSVERSAIS. INCLUSO IÇAMENTO - TODA TELHA DEVERÁ TER O TAMANHO TOTAL DA ÁGUA, NÃO DEVENDO TER SOBREPOSIÇÃO TRANSVERSAL, EXCETO NA GOIVA (ACESSÓRIOS E INSTALAÇÃO - BDI GERAL - INCLUI COBERTURA LATERAL ESQUERDA) | G105: M2 | H105: 225.13 | I105: P. BASE | J105: 8.2691 | K105: 3.05 | L105: 11.3191 | N105: =SUM(N106:N113) -> 8.2691 | O105: 3.05 | P105: 11.3191 | Q105: 1861.622483 | R105: 686.6465 | S105: 569.7929446 | T105: 3118.061928 | U105: Normal
A106: 225.13 | B106: SINAPI | C106: COMPOSIÇÃO | D106: 88316 | E106: 2.3.1.1 | F106: SERVENTE COM ENCARGOS COMPLEMENTARES | G106: H | H106: 0.06 | I106: 30.08 | J106: 0.55 | K106: 1.25 | L106: 1.8 | N106: 0.55 | O106: 1.25 | P106: 1.8 | Q106: 123.8215 | R106: 281.4125 | S106: 90.6103224 | T106: 495.8443224 | U106: Normal
A107: 225.13 | B107: SINAPI | C107: COMPOSIÇÃO | D107: 88323 | E107: 2.3.1.2 | F107: TELHADISTA COM ENCARGOS COMPLEMENTARES | G107: H | H107: 0.06 | I107: 38.01 | J107: 0.54 | K107: 1.73 | L107: 2.27 | N107: 0.54 | O107: 1.73 | P107: 2.27 | Q107: 121.5702 | R107: 389.4749 | S107: 114.2696844 | T107: 625.3147844 | U107: Normal
A108: 225.13 | B108: SINAPI | C108: COMPOSIÇÃO | D108: 93281 | E108: 2.3.1.3 | F108: GUINCHO ELÉTRICO DE COLUNA, CAPACIDADE 400 KG, COM MOTO FREIO, MOTOR TRIFÁSICO DE 1,25 CV - CHP DIURNO. AF_03/2016 | G108: CHP | H108: 0.0009 | I108: 37.37 | J108: 0 | K108: 0.03 | L108: 0.03 | N108: 0 | O108: 0.03 | P108: 0.03 | Q108: 0 | R108: 6.7539 | S108: 1.51017204 | T108: 8.26407204 | U108: Normal
A109: 225.13 | B109: SINAPI | C109: COMPOSIÇÃO | D109: 93282 | E109: 2.3.1.4 | F109: GUINCHO ELÉTRICO DE COLUNA, CAPACIDADE 400 KG, COM MOTO FREIO, MOTOR TRIFÁSICO DE 1,25 CV - CHI DIURNO. AF_03/2016 | G109: CHI | H109: 0.0012 | I109: 36.5 | J109: 0 | K109: 0.04 | L109: 0.04 | N109: 0 | O109: 0.04 | P109: 0.04 | Q109: 0 | R109: 9.0052 | S109: 2.01356272 | T109: 11.01876272 | U109: Normal
A110: 225.13 | B110: COTAÇÃO | C110: INSUMO | D110: C2 | E110: 2.3.1.5 | F110: FITA ADESIVA DUPLA-FACE A BASE DE BORRACHA BUTÍLICA 12,5MM X 2,3MM - ROLO COM 13,7M | G110: RL | H110: 0.08 | I110: 53.71125 | J110: 4.2969 | K110: 0 | L110: 4.2969 | N110: 4.2969 | O110: 0 | P110: 4.2969 | Q110: 967.361097 | R110: 0 | S110: 216.3019413 | T110: 1183.663038 | U110: Normal
A111: 225.13 | B111: COTAÇÃO | C111: INSUMO | D111: C3 | E111: 2.3.1.6 | F111: PARAFUSO AUTOBROCANTE 12 x 4" | G111: UN | H111: 3.5 | I111: 0.64 | J111: 2.24 | K111: 0 | L111: 2.24 | N111: 2.24 | O111: 0 | P111: 2.24 | Q111: 504.2912 | R111: 0 | S111: 112.7595123 | T111: 617.0507123 | U111: Normal
A112: 225.13 | B112: COTAÇÃO | C112: INSUMO | D112: C4 | E112: 2.3.1.7 | F112: PARAFUSO DE COSTURA AUTOBROCANTE 12 x 7/8" | G112: UN | H112: 2 | I112: 0.3211 | J112: 0.6422 | K112: 0 | L112: 0.6422 | N112: 0.6422 | O112: 0 | P112: 0.6422 | Q112: 144.578486 | R112: 0 | S112: 32.32774947 | T112: 176.9062355 | U112: Normal
A114: Quant | B114: SINAPI | C114: COMPOSIÇÃO | D114: PRÓPRIA | E114: 2.3.2 | F114: COBERTURA COM TELHA TRAPEZOIDAL EM GALVALUME, TIPO SANDUÍCHE COM ISOLAMENTO TÉRMICO E ACÚSTICO (TELHA + PU/PIR + TELHA) - ALTURA DA TELHA 40MM, E=0,50 MM - INJEÇÃO 30MM - COM INSTALAÇÃO DE FITA DE VEDAÇÃO DUPLA FACE NAS EMENDAS LONGITUDINAIS E TRANSVERSAIS. INCLUSO IÇAMENTO - TODA TELHA DEVERÁ TER O TAMANHO TOTAL DA ÁGUA, NÃO DEVENDO TER SOBREPOSIÇÃO TRANSVERSAL, EXCETO NA GOIVA (TELHAS - BDI EQUIPAMENTOS - INCLUI COBERTURA LATERAL ESQUERDA) | G114: M2 | H114: 225.13 | I114: P. BASE | J114: 180.09 | K114: 0 | L114: 180.09 | N114: =SUM(N115:N116) -> 180.09 | O114: 0 | P114: 180.09 | Q114: 40543.6617 | R114: 0 | S114: 6195.071508 | T114: 46738.73321 | U114: Equipamento
A115: 225.13 | B115: SINAPI | C115: INSUMO | D115: 40740 | E115: 2.3.2.1 | F115: TELHA GALVALUME COM ISOLAMENTO TERMOACUSTICO EM ESPUMA RIGIDA DE POLIURETANO (PU) INJETADO, ESPESSURA DE 30 MM, DENSIDADE DE 35 KG/M3, REVESTIMENTO EM TELHA TRAPEZOIDAL NAS DUAS FACES COM ESPESSURA DE 0,50 MM CADA, ACABAMENTO NATURAL (NAO INCLUI ACESSORIOS DE FIXACAO) | G115: M2 | H115: 1.15 | I115: 156.6 | J115: 180.09 | K115: 0 | L115: 180.09 | N115: 180.09 | O115: 0 | P115: 180.09 | Q115: 40543.6617 | R115: 0 | S115: 6195.071508 | T115: 46738.73321 | U115: Equipamento
A117: vazia | B117: vazia | E117: 2.4 | F117: SUBSTITUIÇÃO DE COBERTURA DE POLICARBONATO ALVEOLAR POR POLICARBONATO COMPACTO | Q117: =SUM(Q118:Q137)/2 -> 14154.33077 | R117: =SUM(R118:R137)/2 -> 655.802565 | S117: =SUM(S118:S137)/2 -> 3311.545813 | T117: =SUM(T118:T137)/2 -> 18121.67915
A118: Quant | B118: SINAPI | C118: COMPOSIÇÃO | D118: PRÓPRIA | E118: 2.4.1 | F118: REMOÇÃO DA COBERTURA DE POLICARBONATO ALVEOLAR EXISTENTE | G118: M2 | H118: 30 | I118: P. BASE | J118: 3.67 | K118: 8.35 | L118: 12.02 | N118: =SUM(N119:N120) -> 3.67 | O118: 8.35 | P118: 12.02 | Q118: 110.1 | R118: 250.5 | S118: 80.63016 | T118: 441.23016 | U118: Normal
A119: 30 | B119: SINAPI | C119: COMPOSIÇÃO | D119: 88316 | E119: 2.4.1.1 | F119: SERVENTE COM ENCARGOS COMPLEMENTARES | G119: H | H119: 0.4 | I119: 30.08 | J119: 3.67 | K119: 8.35 | L119: 12.02 | N119: 3.67 | O119: 8.35 | P119: 12.02 | Q119: 110.1 | R119: 250.5 | S119: 80.63016 | T119: 441.23016 | U119: Normal
A121: Quant | B121: TRT | C121: COMPOSIÇÃO | D121: PRÓPRIA | E121: 2.4.2 | F121: COBERTURA EM POLICARBONATO COMPACTO, APROVEITANDO ESTRUTURA METÁLICA E CALHAS EXISTENTES | G121: M2 | H121: 30 | I121: P. BASE | J121: 446.0711111 | K121: 6.6 | L121: 452.6711111 | N121: =SUM(N122:N126) -> 446.0711111 | O121: 6.6 | P121: 452.6711111 | Q121: 13382.13333 | R121: 198 | S121: 3036.517813 | T121: 16616.65115 | U121: Normal
A122: 30 | B122: COTAÇÃO | C122: INSUMO | D122: C10 | E122: 2.4.2.1 | F122: PLACA DE POLICARBONATO COMPACTO TRANSPARENTE, E=6MM - 2000MM X 3000MM | G122: M2 | H122: 1 | I122: 430.2211111 | J122: 430.2211111 | K122: 0 | L122: 430.2211111 | N122: 430.2211111 | O122: 0 | P122: 430.2211111 | Q122: 12906.63333 | R122: 0 | S122: 2885.923213 | T122: 15792.55655 | U122: Normal
A123: 30 | B123: COTAÇÃO | C123: INSUMO | D123: C11 | E123: 2.4.2.2 | F123: PERFIL TRAPÉZIO DE ALUMÍNIO COM GAXETA (6M) | G123: UD | H123: 0.1 | I123: 134 | J123: 13.4 | K123: 0 | L123: 13.4 | N123: 13.4 | O123: 0 | P123: 13.4 | Q123: 402 | R123: 0 | S123: 89.8872 | T123: 491.8872 | U123: Normal
A124: 30 | B124: SINAPI | C124: COMPOSIÇÃO | D124: 88316 | E124: 2.4.2.3 | F124: SERVENTE COM ENCARGOS COMPLEMENTARES | G124: H | H124: 0.15 | I124: 30.08 | J124: 1.37 | K124: 3.13 | L124: 4.5 | N124: 1.37 | O124: 3.13 | P124: 4.5 | Q124: 41.1 | R124: 93.9 | S124: 30.186 | T124: 165.186 | U124: Normal
A125: 30 | B125: SINAPI | C125: COMPOSIÇÃO | D125: 88323 | E125: 2.4.2.4 | F125: TELHADISTA COM ENCARGOS COMPLEMENTARES | G125: H | H125: 0.12 | I125: 38.01 | J125: 1.08 | K125: 3.47 | L125: 4.55 | N125: 1.08 | O125: 3.47 | P125: 4.55 | Q125: 32.4 | R125: 104.1 | S125: 30.5214 | T125: 167.0214 | U125: Normal
A127: Quant | B127: SINAPI | C127: COMPOSIÇÃO | D127: 100327 | E127: 2.4.3 | F127: RUFO EXTERNO/INTERNO EM CHAPA DE AÇO GALVANIZADO NÚMERO 26, CORTE DE 33 CM, INCLUSO IÇAMENTO. AF_07/2019 | G127: M | H127: 15 | I127: 0 | J127: 44.139829 | K127: 13.820171 | L127: 57.96 | N127: =SUM(N128:N137) -> 44.139829 | O127: 13.820171 | P127: 57.96 | Q127: 662.097435 | R127: 207.302565 | S127: 194.39784 | T127: 1063.79784 | U127: Normal
A128: 15 | B128: SINAPI | C128: COMPOSICAO | D128: 93282 | E128: 2.4.3.1 | F128: GUINCHO ELÉTRICO DE COLUNA, CAPACIDADE 400 KG, COM MOTO FREIO, MOTOR TRIFÁSICO DE 1,25 CV - CHI DIURNO. AF_03/2016 | G128: CHI | H128: 0.0183 | I128: 36.5 | J128: 0.004884 | K128: 0.655116 | L128: 0.66 | N128: 0.004884 | O128: 0.655116 | P128: 0.66 | Q128: 0.07326 | R128: 9.82674 | S128: 2.21364 | T128: 12.11364 | U128: Normal
A129: 15 | B129: SINAPI | C129: COMPOSICAO | D129: 93281 | E129: 2.4.3.2 | F129: GUINCHO ELÉTRICO DE COLUNA, CAPACIDADE 400 KG, COM MOTO FREIO, MOTOR TRIFÁSICO DE 1,25 CV - CHP DIURNO. AF_03/2016 | G129: CHP | H129: 0.0132 | I129: 37.37 | J129: 0.014945 | K129: 0.475055 | L129: 0.49 | N129: 0.014945 | O129: 0.475055 | P129: 0.49 | Q129: 0.224175 | R129: 7.125825 | S129: 1.64346 | T129: 8.99346 | U129: Normal
A130: 15 | B130: SINAPI | C130: COMPOSICAO | D130: 88323 | E130: 2.4.3.3 | F130: TELHADISTA COM ENCARGOS COMPLEMENTARES | G130: H | H130: 0.145 | I130: 38.01 | J130: 0 | K130: 5.51 | L130: 5.51 | N130: 0 | O130: 5.51 | P130: 5.51 | Q130: 0 | R130: 82.65 | S130: 18.48054 | T130: 101.13054 | U130: Normal
A131: 15 | B131: SINAPI | C131: COMPOSICAO | D131: 88316 | E131: 2.4.3.4 | F131: SERVENTE COM ENCARGOS COMPLEMENTARES | G131: H | H131: 0.239 | I131: 30.08 | J131: 0 | K131: 7.18 | L131: 7.18 | N131: 0 | O131: 7.18 | P131: 7.18 | Q131: 0 | R131: 107.7 | S131: 24.08172 | T131: 131.78172 | U131: Normal
A132: 15 | B132: SINAPI | C132: INSUMO | D132: 13388 | E132: 2.4.3.5 | F132: SOLDA EM BARRA DE ESTANHO-CHUMBO 50/50 | G132: KG | H132: 0.059 | I132: 197.09 | J132: 11.62 | K132: 0 | L132: 11.62 | N132: 11.62 | O132: 0 | P132: 11.62 | Q132: 174.3 | R132: 0 | S132: 38.97348 | T132: 213.27348 | U132: Normal
A133: 15 | B133: SINAPI | C133: INSUMO | D133: 5104 | E133: 2.4.3.6 | F133: REBITE DE REPUXO EM ALUMINIO VAZADO, DIAMETRO 3,2 X 8 MM DE COMPRIMENTO (1KG = 1025 UNIDADES) | G133: KG | H133: 0.0016 | I133: 89.86 | J133: 0.14 | K133: 0 | L133: 0.14 | N133: 0.14 | O133: 0 | P133: 0.14 | Q133: 2.1 | R133: 0 | S133: 0.46956 | T133: 2.56956 | U133: Normal
A134: 15 | B134: SINAPI | C134: INSUMO | D134: 5061 | E134: 2.4.3.7 | F134: PREGO DE ACO POLIDO COM CABECA 18 X 27 (2 1/2 X 10) | G134: KG | H134: 0.008 | I134: 15.38 | J134: 0.12 | K134: 0 | L134: 0.12 | N134: 0.12 | O134: 0 | P134: 0.12 | Q134: 1.8 | R134: 0 | S134: 0.40248 | T134: 2.20248 | U134: Normal
A135: 15 | B135: SINAPI | C135: INSUMO | D135: 1113 | E135: 2.4.3.8 | F135: RUFO EXTERNO/INTERNO DE CHAPA DE ACO GALVANIZADA NUM 26, CORTE 33 CM | G135: M | H135: 1.05 | I135: 24.32 | J135: 25.53 | K135: 0 | L135: 25.53 | N135: 25.53 | O135: 0 | P135: 25.53 | Q135: 382.95 | R135: 0 | S135: 85.62762 | T135: 468.57762 | U135: Normal
A136: 15 | B136: SINAPI | C136: INSUMO | D136: 142 | E136: 2.4.3.9 | F136: SELANTE ELASTICO MONOCOMPONENTE A BASE DE POLIURETANO (PU) PARA JUNTAS DIVERSAS | G136: 310ML | H136: 0.211 | I136: 31.84 | J136: 6.71 | K136: 0 | L136: 6.71 | N136: 6.71 | O136: 0 | P136: 6.71 | Q136: 100.65 | R136: 0 | S136: 22.50534 | T136: 123.15534 | U136: Normal
A138: vazia | B138: vazia | E138: 2.5 | F138: IMPERMEABILIZAÇÃO DE LAJES E MARQUISES | Q138: =SUM(Q139:Q149)/2 -> 915.0968 | R138: =SUM(R139:R149)/2 -> 442.1018 | S138: =SUM(S139:S149)/2 -> 303.469607 | T138: =SUM(T139:T149)/2 -> 1660.668207
A139: Quant | B139: SINAPI | C139: COMPOSIÇÃO | D139: 97631 | E139: 2.5.1 | F139: DEMOLIÇÃO DE ARGAMASSAS, DE FORMA MANUAL, SEM REAPROVEITAMENTO. AF_09/2023 (DEMOLIÇÃO DA ARGAMASSA DE PROTEÇÃO EXISTENTE E RETIRADA DA MANTA ASFÁLTICA EXISTENTE) | G139: M2 | H139: 9.14 | I139: 0 | J139: 0 | K139: 16.11 | L139: 16.11 | N139: =SUM(N140:N142) -> 0 | O139: 16.11 | P139: 16.11 | Q139: 0 | R139: 147.2454 | S139: 32.92407144 | T139: 180.1694714 | U139: Normal
A140: 9.14 | B140: SINAPI | C140: COMPOSICAO | D140: 88316 | E140: 2.5.1.1 | F140: SERVENTE COM ENCARGOS COMPLEMENTARES | G140: H | H140: 0.3872 | I140: 30.08 | J140: 0 | K140: 11.64 | L140: 11.64 | N140: 0 | O140: 11.64 | P140: 11.64 | Q140: 0 | R140: 106.3896 | S140: 23.78871456 | T140: 130.1783146 | U140: Normal
A141: 9.14 | B141: SINAPI | C141: COMPOSICAO | D141: 88309 | E141: 2.5.1.2 | F141: PEDREIRO COM ENCARGOS COMPLEMENTARES | G141: H | H141: 0.1151 | I141: 38.86 | J141: 0 | K141: 4.47 | L141: 4.47 | N141: 0 | O141: 4.47 | P141: 4.47 | Q141: 0 | R141: 40.8558 | S141: 9.13535688 | T141: 49.99115688 | U141: Normal
A143: Quant | B143: SINAPI | C143: COMPOSIÇÃO | D143: PRÓPRIA | E143: 2.5.2 | F143: IMPERMEABILIZAÇÃO DE SUPERFÍCIE COM MANTA ASFÁLTICA ELASTOMÉRICA EM POLIÉSTER ALUMINIZADA, UMA CAMADA, INCLUSIVE APLICAÇÃO DE PRIMER ASFÁLTICO, E=3MM. AF_06/2018 | G143: M2 | H143: 9.14 | I143: P. BASE | J143: 100.12 | K143: 32.26 | L143: 132.38 | N143: =SUM(N144:N149) -> 100.12 | O143: 32.26 | P143: 132.38 | Q143: 915.0968 | R143: 294.8564 | S143: 270.5455355 | T143: 1480.498736 | U143: Normal
A144: 9.14 | B144: SINAPI | C144: INSUMO | D144: 511 | E144: 2.5.2.1 | F144: PRIMER PARA MANTA ASFALTICA A BASE DE ASFALTO MODIFICADO DILUIDO EM SOLVENTE, APLICACAO A FRIO | G144: L | H144: 0.615 | I144: 20.46 | J144: 12.58 | K144: 0 | L144: 12.58 | N144: =IF(D144=0,"",IF(M144<>0,(1-M144)*J144,(1-$T$6)*J144)) -> 12.58 | O144: =IF(D144=0,"",IF(M144<>0,(1-M144)*K144,(1-$T$6)*K144)) -> 0 | P144: =IF(D144=0,"",IF(I144="P. BASE",0,N144+O144)) -> 12.58 | Q144: =IF(D144=0,"",IF(I144="P. BASE",0,N144*A144)) -> 114.9812 | R144: =IF(D144=0,"",IF(I144="P. BASE",0,O144*A144)) -> 0 | S144: =IF(D144=0,"",IF(I144="P. BASE",0,IF(U144="NORMAL",(Q144+R144)*$Q$7,IF(U144="EQUIPAMENTO",(Q144+R144)*$Q$8,0)))) -> 25.70979632 | T144: =IF(D144=0,"",Q144+R144+S144) -> 140.6909963 | U144: Normal
A145: 9.14 | B145: SINAPI | C145: INSUMO | D145: 11621 | E145: 2.5.2.2 | F145: MANTA ASFALTICA ELASTOMERICA EM POLIESTER ALUMINIZADA 3 MM, TIPO III, CLASSE B (NBR 9952) | G145: M2 | H145: 1.125 | I145: 66.53 | J145: 74.84 | K145: 0 | L145: 74.84 | N145: 74.84 | O145: 0 | P145: 74.84 | Q145: 684.0376 | R145: 0 | S145: 152.9508074 | T145: 836.9884074 | U145: Normal
A146: 9.14 | B146: SINAPI | C146: INSUMO | D146: 4226 | E146: 2.5.2.3 | F146: GAS DE COZINHA - GLP | G146: KG | H146: 0.26 | I146: 8.29 | J146: 2.15 | K146: 0 | L146: 2.15 | N146: 2.15 | O146: 0 | P146: 2.15 | Q146: 19.651 | R146: 0 | S146: 4.3939636 | T146: 24.0449636 | U146: Normal
A147: 9.14 | B147: SINAPI | C147: COMPOSIÇÃO | D147: 88243 | E147: 2.5.2.4 | F147: AJUDANTE ESPECIALIZADO COM ENCARGOS COMPLEMENTARES | G147: H | H147: 0.192 | I147: 31.22 | J147: 1.76 | K147: 4.22 | L147: 5.98 | N147: 1.76 | O147: 4.22 | P147: 5.98 | Q147: 16.0864 | R147: 38.5708 | S147: 12.22134992 | T147: 66.87854992 | U147: Normal
A148: 9.14 | B148: SINAPI | C148: COMPOSIÇÃO | D148: 88270 | E148: 2.5.2.5 | F148: IMPERMEABILIZADOR COM ENCARGOS COMPLEMENTARES | G148: H | H148: 0.948 | I148: 38.86 | J148: 8.79 | K148: 28.04 | L148: 36.83 | N148: 8.79 | O148: 28.04 | P148: 36.83 | Q148: 80.3406 | R148: 256.2856 | S148: 75.26961832 | T148: 411.8958183 | U148: Normal
A150: vazia | B150: vazia | E150: 2.6 | F150: CALHAS, RUFOS E AJUSTES NAS TUBULAÇÕES HIDROSSANITÁRIAS | Q150: =SUM(Q151:Q231)/2 -> 16242.74149 | R150: =SUM(R151:R231)/2 -> 4988.535314 | S150: =SUM(S151:S231)/2 -> 4747.313492 | T150: =SUM(T151:T231)/2 -> 25978.59029
A151: Quant | B151: SINAPI | C151: COMPOSIÇÃO | D151: 94229 | E151: 2.6.1 | F151: CALHA EM CHAPA DE AÇO GALVANIZADO NÚMERO 24, DESENVOLVIMENTO DE 100 CM, INCLUSO TRANSPORTE VERTICAL. AF_07/2019 | G151: M | H151: 47.31 | I151: 0 | J151: 125.319829 | K151: 40.650171 | L151: 165.97 | N151: =SUM(N152:N161) -> 125.319829 | O151: 40.650171 | P151: 165.97 | Q151: 5928.88111 | R151: 1923.15959 | S151: 1755.716301 | T151: 9607.757001 | U151: Normal
A152: 47.31 | B152: SINAPI | C152: COMPOSICAO | D152: 93282 | E152: 2.6.1.1 | F152: GUINCHO ELÉTRICO DE COLUNA, CAPACIDADE 400 KG, COM MOTO FREIO, MOTOR TRIFÁSICO DE 1,25 CV - CHI DIURNO. AF_03/2016 | G152: CHI | H152: 0.0183 | I152: 36.5 | J152: 0.004884 | K152: 0.655116 | L152: 0.66 | N152: 0.004884 | O152: 0.655116 | P152: 0.66 | Q152: 0.23106204 | R152: 30.99353796 | S152: 6.98182056 | T152: 38.20642056 | U152: Normal
A153: 47.31 | B153: SINAPI | C153: COMPOSICAO | D153: 93281 | E153: 2.6.1.2 | F153: GUINCHO ELÉTRICO DE COLUNA, CAPACIDADE 400 KG, COM MOTO FREIO, MOTOR TRIFÁSICO DE 1,25 CV - CHP DIURNO. AF_03/2016 | G153: CHP | H153: 0.0132 | I153: 37.37 | J153: 0.014945 | K153: 0.475055 | L153: 0.49 | N153: 0.014945 | O153: 0.475055 | P153: 0.49 | Q153: 0.70704795 | R153: 22.47485205 | S153: 5.18347284 | T153: 28.36537284 | U153: Normal
A154: 47.31 | B154: SINAPI | C154: COMPOSICAO | D154: 88323 | E154: 2.6.1.3 | F154: TELHADISTA COM ENCARGOS COMPLEMENTARES | G154: H | H154: 0.539 | I154: 38.01 | J154: 0 | K154: 20.48 | L154: 20.48 | N154: 0 | O154: 20.48 | P154: 20.48 | Q154: 0 | R154: 968.9088 | S154: 216.6480077 | T154: 1185.556808 | U154: Normal
A155: 47.31 | B155: SINAPI | C155: COMPOSICAO | D155: 88316 | E155: 2.6.1.4 | F155: SERVENTE COM ENCARGOS COMPLEMENTARES | G155: H | H155: 0.633 | I155: 30.08 | J155: 0 | K155: 19.04 | L155: 19.04 | N155: 0 | O155: 19.04 | P155: 19.04 | Q155: 0 | R155: 900.7824 | S155: 201.4149446 | T155: 1102.197345 | U155: Normal
A156: 47.31 | B156: SINAPI | C156: INSUMO | D156: 40784 | E156: 2.6.1.5 | F156: CALHA QUADRADA DE CHAPA DE ACO GALVANIZADA NUM 24, CORTE 100 CM | G156: M | H156: 1.05 | I156: 79.9 | J156: 83.89 | K156: 0 | L156: 83.89 | N156: 83.89 | O156: 0 | P156: 83.89 | Q156: 3968.8359 | R156: 0 | S156: 887.4317072 | T156: 4856.267607 | U156: Normal
A157: 47.31 | B157: SINAPI | C157: INSUMO | D157: 13388 | E157: 2.6.1.6 | F157: SOLDA EM BARRA DE ESTANHO-CHUMBO 50/50 | G157: KG | H157: 0.18 | I157: 197.09 | J157: 35.47 | K157: 0 | L157: 35.47 | N157: 35.47 | O157: 0 | P157: 35.47 | Q157: 1678.0857 | R157: 0 | S157: 375.2199625 | T157: 2053.305663 | U157: Normal
A158: 47.31 | B158: SINAPI | C158: INSUMO | D158: 5104 | E158: 2.6.1.7 | F158: REBITE DE REPUXO EM ALUMINIO VAZADO, DIAMETRO 3,2 X 8 MM DE COMPRIMENTO (1KG = 1025 UNIDADES) | G158: KG | H158: 0.0049 | I158: 89.86 | J158: 0.44 | K158: 0 | L158: 0.44 | N158: 0.44 | O158: 0 | P158: 0.44 | Q158: 20.8164 | R158: 0 | S158: 4.65454704 | T158: 25.47094704 | U158: Normal
A159: 47.31 | B159: SINAPI | C159: INSUMO | D159: 5061 | E159: 2.6.1.8 | F159: PREGO DE ACO POLIDO COM CABECA 18 X 27 (2 1/2 X 10) | G159: KG | H159: 0.025 | I159: 15.38 | J159: 0.38 | K159: 0 | L159: 0.38 | N159: 0.38 | O159: 0 | P159: 0.38 | Q159: 17.9778 | R159: 0 | S159: 4.01983608 | T159: 21.99763608 | U159: Normal
A160: 47.31 | B160: SINAPI | C160: INSUMO | D160: 142 | E160: 2.6.1.9 | F160: SELANTE ELASTICO MONOCOMPONENTE A BASE DE POLIURETANO (PU) PARA JUNTAS DIVERSAS | G160: 310ML | H160: 0.161 | I160: 31.84 | J160: 5.12 | K160: 0 | L160: 5.12 | N160: 5.12 | O160: 0 | P160: 5.12 | Q160: 242.2272 | R160: 0 | S160: 54.16200192 | T160: 296.3892019 | U160: Normal
A162: Quant | B162: SINAPI | C162: COMPOSIÇÃO | D162: 100327 | E162: 2.6.2 | F162: RUFO EXTERNO/INTERNO EM CHAPA DE AÇO GALVANIZADO NÚMERO 26, CORTE DE 33 CM, INCLUSO IÇAMENTO. AF_07/2019 | G162: M | H162: 49.06 | I162: 0 | J162: 44.139829 | K162: 13.820171 | L162: 57.96 | N162: =SUM(N163:N172) -> 44.139829 | O162: 13.820171 | P162: 57.96 | Q162: 2165.500011 | R162: 678.0175893 | S162: 635.8105354 | T162: 3479.328135 | U162: Normal
A163: 49.06 | B163: SINAPI | C163: COMPOSICAO | D163: 93282 | E163: 2.6.2.1 | F163: GUINCHO ELÉTRICO DE COLUNA, CAPACIDADE 400 KG, COM MOTO FREIO, MOTOR TRIFÁSICO DE 1,25 CV - CHI DIURNO. AF_03/2016 | G163: CHI | H163: 0.0183 | I163: 36.5 | J163: 0.004884 | K163: 0.655116 | L163: 0.66 | N163: 0.004884 | O163: 0.655116 | P163: 0.66 | Q163: 0.23960904 | R163: 32.13999096 | S163: 7.24007856 | T163: 39.61967856 | U163: Normal
A164: 49.06 | B164: SINAPI | C164: COMPOSICAO | D164: 93281 | E164: 2.6.2.2 | F164: GUINCHO ELÉTRICO DE COLUNA, CAPACIDADE 400 KG, COM MOTO FREIO, MOTOR TRIFÁSICO DE 1,25 CV - CHP DIURNO. AF_03/2016 | G164: CHP | H164: 0.0132 | I164: 37.37 | J164: 0.014945 | K164: 0.475055 | L164: 0.49 | N164: 0.014945 | O164: 0.475055 | P164: 0.49 | Q164: 0.7332017 | R164: 23.3061983 | S164: 5.37520984 | T164: 29.41460984 | U164: Normal
A165: 49.06 | B165: SINAPI | C165: COMPOSICAO | D165: 88323 | E165: 2.6.2.3 | F165: TELHADISTA COM ENCARGOS COMPLEMENTARES | G165: H | H165: 0.145 | I165: 38.01 | J165: 0 | K165: 5.51 | L165: 5.51 | N165: 0 | O165: 5.51 | P165: 5.51 | Q165: 0 | R165: 270.3206 | S165: 60.44368616 | T165: 330.7642862 | U165: Normal
A166: 49.06 | B166: SINAPI | C166: COMPOSICAO | D166: 88316 | E166: 2.6.2.4 | F166: SERVENTE COM ENCARGOS COMPLEMENTARES | G166: H | H166: 0.239 | I166: 30.08 | J166: 0 | K166: 7.18 | L166: 7.18 | N166: 0 | O166: 7.18 | P166: 7.18 | Q166: 0 | R166: 352.2508 | S166: 78.76327888 | T166: 431.0140789 | U166: Normal
A167: 49.06 | B167: SINAPI | C167: INSUMO | D167: 13388 | E167: 2.6.2.5 | F167: SOLDA EM BARRA DE ESTANHO-CHUMBO 50/50 | G167: KG | H167: 0.059 | I167: 197.09 | J167: 11.62 | K167: 0 | L167: 11.62 | N167: 11.62 | O167: 0 | P167: 11.62 | Q167: 570.0772 | R167: 0 | S167: 127.4692619 | T167: 697.5464619 | U167: Normal
A168: 49.06 | B168: SINAPI | C168: INSUMO | D168: 5104 | E168: 2.6.2.6 | F168: REBITE DE REPUXO EM ALUMINIO VAZADO, DIAMETRO 3,2 X 8 MM DE COMPRIMENTO (1KG = 1025 UNIDADES) | G168: KG | H168: 0.0016 | I168: 89.86 | J168: 0.14 | K168: 0 | L168: 0.14 | N168: 0.14 | O168: 0 | P168: 0.14 | Q168: 6.8684 | R168: 0 | S168: 1.53577424 | T168: 8.40417424 | U168: Normal
A169: 49.06 | B169: SINAPI | C169: INSUMO | D169: 5061 | E169: 2.6.2.7 | F169: PREGO DE ACO POLIDO COM CABECA 18 X 27 (2 1/2 X 10) | G169: KG | H169: 0.008 | I169: 15.38 | J169: 0.12 | K169: 0 | L169: 0.12 | N169: 0.12 | O169: 0 | P169: 0.12 | Q169: 5.8872 | R169: 0 | S169: 1.31637792 | T169: 7.20357792 | U169: Normal
A170: 49.06 | B170: SINAPI | C170: INSUMO | D170: 1113 | E170: 2.6.2.8 | F170: RUFO EXTERNO/INTERNO DE CHAPA DE ACO GALVANIZADA NUM 26, CORTE 33 CM | G170: M | H170: 1.05 | I170: 24.32 | J170: 25.53 | K170: 0 | L170: 25.53 | N170: 25.53 | O170: 0 | P170: 25.53 | Q170: 1252.5018 | R170: 0 | S170: 280.0594025 | T170: 1532.561202 | U170: Normal
A171: 49.06 | B171: SINAPI | C171: INSUMO | D171: 142 | E171: 2.6.2.9 | F171: SELANTE ELASTICO MONOCOMPONENTE A BASE DE POLIURETANO (PU) PARA JUNTAS DIVERSAS | G171: 310ML | H171: 0.211 | I171: 31.84 | J171: 6.71 | K171: 0 | L171: 6.71 | N171: 6.71 | O171: 0 | P171: 6.71 | Q171: 329.1926 | R171: 0 | S171: 73.60746536 | T171: 402.8000654 | U171: Normal
A173: Quant | B173: SINAPI | C173: COMPOSIÇÃO | D173: PRÓPRIA | E173: 2.6.3 | F173: REVESTIMENTO INTERNO DE PLATIBANDA COM CHAPA DE AÇO GALVANIZADO Nº 26, INCLUSO IÇAMENTO - REVESTIR TODA FACE INTERNA DAS PLATIBANDAS DO PRÉDIO PRINCIPAL, DESDE O CHAPIM ATÉ A CALHA, COM SOBREPOSIÇÃO DE 5CM SOBRE AS CALHAS. | G173: M2 | H173: 82.77 | I173: P. BASE | J173: 56.66 | K173: 10.31 | L173: 66.97 | N173: =SUM(N174:N183) -> 56.66 | O173: 10.31 | P173: 66.97 | Q173: 4689.7482 | R173: 853.3587 | S173: 1239.438703 | T173: 6782.545603 | U173: Normal
A174: 82.77 | B174: SINAPI | C174: INSUMO | D174: 142 | E174: 2.6.3.1 | F174: SELANTE ELASTICO MONOCOMPONENTE A BASE DE POLIURETANO (PU) PARA JUNTAS DIVERSAS | G174: 310ML | H174: 0.211 | I174: 31.84 | J174: 6.71 | K174: 0 | L174: 6.71 | N174: 6.71 | O174: 0 | P174: 6.71 | Q174: 555.3867 | R174: 0 | S174: 124.1844661 | T174: 679.5711661 | U174: Normal
A175: 82.77 | B175: SINAPI | C175: INSUMO | D175: 11051 | E175: 2.6.3.2 | F175: CHAPA DE ACO GALVANIZADA BITOLA GSG 26, E = 0,50 MM (4,00 KG/M2) | G175: KG | H175: 4.2 | I175: 10.92 | J175: 45.86 | K175: 0 | L175: 45.86 | N175: 45.86 | O175: 0 | P175: 45.86 | Q175: 3795.8322 | R175: 0 | S175: 848.7480799 | T175: 4644.58028 | U175: Normal
A176: 82.77 | B176: SINAPI | C176: INSUMO | D176: 4377 | E176: 2.6.3.3 | F176: PARAFUSO DE ACO ZINCADO COM ROSCA SOBERBA, CABECA CHATA E FENDA SIMPLES, DIAMETRO 4,2 MM, COMPRIMENTO * 32 * MM | G176: UN | H176: 0.024 | I176: 0.18 | J176: 0 | K176: 0 | L176: 0 | N176: 0 | O176: 0 | P176: 0 | Q176: 0 | R176: 0 | S176: 0 | T176: 0 | U176: Normal
A177: 82.77 | B177: SINAPI | C177: INSUMO | D177: 5104 | E177: 2.6.3.4 | F177: REBITE DE REPUXO EM ALUMINIO VAZADO, DIAMETRO 3,2 X 8 MM DE COMPRIMENTO (1KG = 1025 UNIDADES) | G177: KG | H177: 0.0048 | I177: 89.86 | J177: 0.43 | K177: 0 | L177: 0.43 | N177: 0.43 | O177: 0 | P177: 0.43 | Q177: 35.5911 | R177: 0 | S177: 7.95816996 | T177: 43.54926996 | U177: Normal
A178: 82.77 | B178: SINAPI | C178: INSUMO | D178: 11945 | E178: 2.6.3.5 | F178: BUCHA DE NYLON SEM ABA S4 | G178: UN | H178: 3 | I178: 0.05 | J178: 0.15 | K178: 0 | L178: 0.15 | N178: 0.15 | O178: 0 | P178: 0.15 | Q178: 12.4155 | R178: 0 | S178: 2.7761058 | T178: 15.1916058 | U178: Normal
A179: 82.77 | B179: SINAPI | C179: COMPOSIÇÃO | D179: 88316 | E179: 2.6.3.6 | F179: SERVENTE COM ENCARGOS COMPLEMENTARES | G179: H | H179: 0.239 | I179: 30.08 | J179: 2.19 | K179: 4.99 | L179: 7.18 | N179: 2.19 | O179: 4.99 | P179: 7.18 | Q179: 181.2663 | R179: 413.0223 | S179: 132.882931 | T179: 727.171531 | U179: Normal
A180: 82.77 | B180: SINAPI | C180: COMPOSIÇÃO | D180: 88323 | E180: 2.6.3.7 | F180: TELHADISTA COM ENCARGOS COMPLEMENTARES | G180: H | H180: 0.145 | I180: 38.01 | J180: 1.31 | K180: 4.19 | L180: 5.5 | N180: 1.31 | O180: 4.19 | P180: 5.5 | Q180: 108.4287 | R180: 346.8063 | S180: 101.790546 | T180: 557.025546 | U180: Normal
A181: 82.77 | B181: SINAPI | C181: COMPOSIÇÃO | D181: 93281 | E181: 2.6.3.8 | F181: GUINCHO ELÉTRICO DE COLUNA, CAPACIDADE 400 KG, COM MOTO FREIO, MOTOR TRIFÁSICO DE 1,25 CV - CHP DIURNO. AF_03/2016 | G181: CHP | H181: 0.0132 | I181: 37.37 | J181: 0.01 | K181: 0.47 | L181: 0.48 | N181: 0.01 | O181: 0.47 | P181: 0.48 | Q181: 0.8277 | R181: 38.9019 | S181: 8.88353856 | T181: 48.61313856 | U181: Normal
A182: 82.77 | B182: SINAPI | C182: COMPOSIÇÃO | D182: 93282 | E182: 2.6.3.9 | F182: GUINCHO ELÉTRICO DE COLUNA, CAPACIDADE 400 KG, COM MOTO FREIO, MOTOR TRIFÁSICO DE 1,25 CV - CHI DIURNO. AF_03/2016 | G182: CHI | H182: 0.0183 | I182: 36.5 | J182: 0 | K182: 0.66 | L182: 0.66 | N182: 0 | O182: 0.66 | P182: 0.66 | Q182: 0 | R182: 54.6282 | S182: 12.21486552 | T182: 66.84306552 | U182: Normal
A184: Quant | B184: SINAPI | C184: COMPOSIÇÃO | D184: 101979 | E184: 2.6.4 | F184: CHAPIM (RUFO CAPA) EM AÇO GALVANIZADO, CORTE 33. AF_11/2020 | G184: M | H184: 99.16 | I184: 0 | J184: 31.11 | K184: 9.65 | L184: 40.76 | N184: =SUM(N185:N190) -> 31.11 | O184: 9.65 | P184: 40.76 | Q184: 3084.8676 | R184: 956.894 | S184: 903.7378938 | T184: 4945.499494 | U184: Normal
A185: 99.16 | B185: SINAPI | C185: COMPOSICAO | D185: 88316 | E185: 2.6.4.1 | F185: SERVENTE COM ENCARGOS COMPLEMENTARES | G185: H | H185: 0.09 | I185: 30.08 | J185: 0 | K185: 2.7 | L185: 2.7 | N185: 0 | O185: 2.7 | P185: 2.7 | Q185: 0 | R185: 267.732 | S185: 59.8648752 | T185: 327.5968752 | U185: Normal
A186: 99.16 | B186: SINAPI | C186: COMPOSICAO | D186: 88309 | E186: 2.6.4.2 | F186: PEDREIRO COM ENCARGOS COMPLEMENTARES | G186: H | H186: 0.179 | I186: 38.86 | J186: 0 | K186: 6.95 | L186: 6.95 | N186: 0 | O186: 6.95 | P186: 6.95 | Q186: 0 | R186: 689.162 | S186: 154.0966232 | T186: 843.2586232 | U186: Normal
A187: 99.16 | B187: SINAPI | C187: INSUMO | D187: 11950 | E187: 2.6.4.3 | F187: BUCHA DE NYLON SEM ABA S6, COM PARAFUSO DE 4,20 X 40 MM EM ACO ZINCADO COM ROSCA SOBERBA, CABECA CHATA E FENDA PHILLIPS | G187: UN | H187: 1.33 | I187: 0.18 | J187: 0.23 | K187: 0 | L187: 0.23 | N187: 0.23 | O187: 0 | P187: 0.23 | Q187: 22.8068 | R187: 0 | S187: 5.09960048 | T187: 27.90640048 | U187: Normal
A188: 99.16 | B188: SINAPI | C188: INSUMO | D188: 1113 | E188: 2.6.4.4 | F188: RUFO EXTERNO/INTERNO DE CHAPA DE ACO GALVANIZADA NUM 26, CORTE 33 CM | G188: M | H188: 1.15 | I188: 24.32 | J188: 27.96 | K188: 0 | L188: 27.96 | N188: 27.96 | O188: 0 | P188: 27.96 | Q188: 2772.5136 | R188: 0 | S188: 619.934041 | T188: 3392.447641 | U188: Normal
A189: 99.16 | B189: SINAPI | C189: INSUMO | D189: 142 | E189: 2.6.4.5 | F189: SELANTE ELASTICO MONOCOMPONENTE A BASE DE POLIURETANO (PU) PARA JUNTAS DIVERSAS | G189: 310ML | H189: 0.092 | I189: 31.84 | J189: 2.92 | K189: 0 | L189: 2.92 | N189: 2.92 | O189: 0 | P189: 2.92 | Q189: 289.5472 | R189: 0 | S189: 64.74275392 | T189: 354.2899539 | U189: Normal
A191: Quant | B191: SINAPI | C191: COMPOSIÇÃO | D191: PRÓPRIA | E191: 2.6.5 | F191: PRUMADA PLUVIAL EM PVC SÉRIE R, DN=100MM COMPOSTA DE CONDUTORES FIXADOS POR ABRAÇADEIRAS METÁLICAS (QUANDO NECESSÁRIO O ACRÉSCIMO NO NÚMERO DE DESCIDAS) | G191: M | H191: 3 | I191: P. BASE | J191: 38.64 | K191: 24.21 | L191: 62.85 | N191: =SUM(N192:N197) -> 38.64 | O191: 24.21 | P191: 62.85 | Q191: 115.92 | R191: 72.63 | S191: 42.15978 | T191: 230.70978 | U191: Normal
A192: 3 | B192: SINAPI | C192: INSUMO | D192: 9841 | E192: 2.6.5.1 | F192: TUBO PVC, SERIE R, DN 100 MM, PARA ESGOTO OU AGUAS PLUVIAIS PREDIAL (NBR 5688) | G192: M | H192: 1.05 | I192: 27.06 | J192: 28.41 | K192: 0 | L192: 28.41 | N192: 28.41 | O192: 0 | P192: 28.41 | Q192: 85.23 | R192: 0 | S192: 19.057428 | T192: 104.287428 | U192: Normal
A193: 3 | B193: SINAPI | C193: COMPOSIÇÃO | D193: 91175 | E193: 2.6.5.2 | F193: FIXAÇÃO DE TUBOS VERTICAIS DE PVC ÁGUA, PVC ESGOTO, PVC ÁGUA PLUVIAL, CPVC, PPR, COBRE OU AÇO, DIÂMETROS MAIORES QUE 75 MM E MENORES OU IGUAIS A 100 MM, COM ABRAÇADEIRA METÁLICA RÍGIDA TIPO U PERFIL 4", FIXADA EM PERFILADO EM PAREDE. AF_09/2023_PS | G193: M | H193: 1.05 | I193: 13.35 | J193: 4.89 | K193: 9.12 | L193: 14.01 | N193: 4.89 | O193: 9.12 | P193: 14.01 | Q193: 14.67 | R193: 27.36 | S193: 9.397908 | T193: 51.427908 | U193: Normal
A194: 3 | B194: SINAPI | C194: INSUMO | D194: 38383 | E194: 2.6.5.3 | F194: LIXA D'AGUA EM FOLHA, COR PRETA, GRAO 100 | G194: UN | H194: 0.16 | I194: 2.15 | J194: 0.34 | K194: 0 | L194: 0.34 | N194: 0.34 | O194: 0 | P194: 0.34 | Q194: 1.02 | R194: 0 | S194: 0.228072 | T194: 1.248072 | U194: Normal
A195: 3 | B195: SINAPI | C195: COMPOSIÇÃO | D195: 88248 | E195: 2.6.5.4 | F195: AUXILIAR DE ENCANADOR OU BOMBEIRO HIDRÁULICO COM ENCARGOS COMPLEMENTARES | G195: H | H195: 0.29 | I195: 31.19 | J195: 2.5 | K195: 6.54 | L195: 9.04 | N195: 2.5 | O195: 6.54 | P195: 9.04 | Q195: 7.5 | R195: 19.62 | S195: 6.064032 | T195: 33.184032 | U195: Normal
A196: 3 | B196: SINAPI | C196: COMPOSIÇÃO | D196: 88267 | E196: 2.6.5.5 | F196: ENCANADOR OU BOMBEIRO HIDRÁULICO COM ENCARGOS COMPLEMENTARES | G196: H | H196: 0.29 | I196: 38.12 | J196: 2.5 | K196: 8.55 | L196: 11.05 | N196: 2.5 | O196: 8.55 | P196: 11.05 | Q196: 7.5 | R196: 25.65 | S196: 7.41234 | T196: 40.56234 | U196: Normal
A198: Quant | B198: SINAPI | C198: COMPOSIÇÃO | D198: 99253 | E198: 2.6.6 | F198: CAIXA ENTERRADA HIDRÁULICA RETANGULAR EM ALVENARIA COM TIJOLOS CERÂMICOS MACIÇOS, DIMENSÕES INTERNAS: 0,6X0,6X0,6 M PARA REDE DE DRENAGEM. AF_12/2020 (PARA AS NOVAS PRUMADAS DE ÁGUA PLUVIAL) | G198: UN | H198: 1 | I198: 0 | J198: 217.691854 | K198: 445.028146 | L198: 662.72 | N198: =SUM(N199:N214) -> 217.691854 | O198: 445.028146 | P198: 662.72 | Q198: 217.691854 | R198: 445.028146 | S198: 148.184192 | T198: 810.904192 | U198: Normal
A199: 1 | B199: SINAPI | C199: COMPOSICAO | D199: 101616 | E199: 2.6.6.1 | F199: PREPARO DE FUNDO DE VALA COM LARGURA MENOR QUE 1,5 M (ACERTO DO SOLO NATURAL). AF_08/2020 | G199: M2 | H199: 0.81 | I199: 8.85 | J199: 0.024344 | K199: 7.135656 | L199: 7.16 | N199: 0.024344 | O199: 7.135656 | P199: 7.16 | Q199: 0.024344 | R199: 7.135656 | S199: 1.600976 | T199: 8.760976 | U199: Normal
A200: 1 | B200: SINAPI | C200: COMPOSICAO | D200: 97735 | E200: 2.6.6.2 | F200: PEÇA RETANGULAR PRÉ-MOLDADA, VOLUME DE CONCRETO DE 30 A 100 LITROS, TAXA DE AÇO APROXIMADA DE 30KG/M³. AF_03/2024 | G200: M3 | H200: 0.0448 | I200: 2965.74 | J200: 38.33011 | K200: 94.52989 | L200: 132.86 | N200: 38.33011 | O200: 94.52989 | P200: 132.86 | Q200: 38.33011 | R200: 94.52989 | S200: 29.707496 | T200: 162.567496 | U200: Normal
A201: 1 | B201: SINAPI | C201: COMPOSICAO | D201: 94970 | E201: 2.6.6.3 | F201: CONCRETO FCK = 20MPA, TRAÇO 1:2,7:3 (EM MASSA SECA DE CIMENTO/ AREIA MÉDIA/ BRITA 1) - PREPARO MECÂNICO COM BETONEIRA 600 L. AF_05/2021 | G201: M3 | H201: 0.0744 | I201: 498.85 | J201: 29.268657 | K201: 7.841343 | L201: 37.11 | N201: 29.268657 | O201: 7.841343 | P201: 37.11 | Q201: 29.268657 | R201: 7.841343 | S201: 8.297796 | T201: 45.407796 | U201: Normal
A202: 1 | B202: SINAPI | C202: COMPOSICAO | D202: 88628 | E202: 2.6.6.4 | F202: ARGAMASSA TRAÇO 1:3 (EM VOLUME DE CIMENTO E AREIA MÉDIA ÚMIDA), PREPARO MECÂNICO COM BETONEIRA 400 L. AF_08/2019 | G202: M3 | H202: 0.1156 | I202: 624.36 | J202: 58.407181 | K202: 13.762819 | L202: 72.17 | N202: 58.407181 | O202: 13.762819 | P202: 72.17 | Q202: 58.407181 | R202: 13.762819 | S202: 16.137212 | T202: 88.307212 | U202: Normal
A203: 1 | B203: SINAPI | C203: COMPOSICAO | D203: 88316 | E203: 2.6.6.5 | F203: SERVENTE COM ENCARGOS COMPLEMENTARES | G203: H | H203: 4.0028 | I203: 30.08 | J203: 0 | K203: 120.4 | L203: 120.4 | N203: 0 | O203: 120.4 | P203: 120.4 | Q203: 0 | R203: 120.4 | S203: 26.92144 | T203: 147.32144 | U203: Normal
A204: 1 | B204: SINAPI | C204: COMPOSICAO | D204: 88309 | E204: 2.6.6.6 | F204: PEDREIRO COM ENCARGOS COMPLEMENTARES | G204: H | H204: 5.0944 | I204: 38.86 | J204: 0 | K204: 197.96 | L204: 197.96 | N204: 0 | O204: 197.96 | P204: 197.96 | Q204: 0 | R204: 197.96 | S204: 44.263856 | T204: 242.223856 | U204: Normal
A205: 1 | B205: SINAPI | C205: COMPOSICAO | D205: 87316 | E205: 2.6.6.7 | F205: ARGAMASSA TRAÇO 1:4 (EM VOLUME DE CIMENTO E AREIA GROSSA ÚMIDA) PARA CHAPISCO CONVENCIONAL, PREPARO MECÂNICO COM BETONEIRA 400 L. AF_08/2019 | G205: M3 | H205: 0.0148 | I205: 560.2 | J205: 5.899993 | K205: 2.390007 | L205: 8.29 | N205: 5.899993 | O205: 2.390007 | P205: 8.29 | Q205: 5.899993 | R205: 2.390007 | S205: 1.853644 | T205: 10.143644 | U205: Normal
A206: 1 | B206: SINAPI | C206: INSUMO | D206: 7258 | E206: 2.6.6.8 | F206: TIJOLO CERAMICO MACICO COMUM DE *5 X 10 X 20* CM (L X A X C) | G206: UN | H206: 131.8188 | I206: 0.54 | J206: 71.18 | K206: 0 | L206: 71.18 | N206: 71.18 | O206: 0 | P206: 71.18 | Q206: 71.18 | R206: 0 | S206: 15.915848 | T206: 87.095848 | U206: Normal
A207: 1 | B207: SINAPI | C207: INSUMO | D207: 6193 | E207: 2.6.6.9 | F207: TABUA NAO APARELHADA *2,5 X 20* CM, EM MACARANDUBA/MASSARANDUBA, ANGELIM OU EQUIVALENTE DA REGIAO - BRUTA | G207: M | H207: 0.4416 | I207: 26.31 | J207: 11.61 | K207: 0 | L207: 11.61 | N207: =IF(D207=0,"",IF(M207<>0,(1-M207)*J207,(1-$T$6)*J207)) -> 11.61 | O207: =IF(D207=0,"",IF(M207<>0,(1-M207)*K207,(1-$T$6)*K207)) -> 0 | P207: =IF(D207=0,"",IF(I207="P. BASE",0,N207+O207)) -> 11.61 | Q207: =IF(D207=0,"",IF(I207="P. BASE",0,N207*A207)) -> 11.61 | R207: =IF(D207=0,"",IF(I207="P. BASE",0,O207*A207)) -> 0 | S207: =IF(D207=0,"",IF(I207="P. BASE",0,IF(U207="NORMAL",(Q207+R207)*$Q$7,IF(U207="EQUIPAMENTO",(Q207+R207)*$Q$8,0)))) -> 2.595996 | T207: =IF(D207=0,"",Q207+R207+S207) -> 14.205996 | U207: Normal
A208: 1 | B208: SINAPI | C208: COMPOSICAO | D208: 5679 | E208: 2.6.6.10 | F208: RETROESCAVADEIRA SOBRE RODAS COM CARREGADEIRA, TRAÇÃO 4X4, POTÊNCIA LÍQ. 88 HP, CAÇAMBA CARREG. CAP. MÍN. 1 M3, CAÇAMBA RETRO CAP. 0,26 M3, PESO OPERACIONAL MÍN. 6.674 KG, PROFUNDIDADE ESCAVAÇÃO MÁX. 4,37 M - CHI DIURNO. AF_06/2014 | G208: CHI | H208: 0.0178 | I208: 70.49 | J208: 0.572625 | K208: 0.677375 | L208: 1.25 | N208: 0.572625 | O208: 0.677375 | P208: 1.25 | Q208: 0.572625 | R208: 0.677375 | S208: 0.2795 | T208: 1.5295 | U208: Normal
A209: 1 | B209: SINAPI | C209: COMPOSICAO | D209: 5678 | E209: 2.6.6.11 | F209: RETROESCAVADEIRA SOBRE RODAS COM CARREGADEIRA, TRAÇÃO 4X4, POTÊNCIA LÍQ. 88 HP, CAÇAMBA CARREG. CAP. MÍN. 1 M3, CAÇAMBA RETRO CAP. 0,26 M3, PESO OPERACIONAL MÍN. 6.674 KG, PROFUNDIDADE ESCAVAÇÃO MÁX. 4,37 M - CHP DIURNO. AF_06/2014 | G209: CHP | H209: 0.0087 | I209: 152.31 | J209: 0.988944 | K209: 0.331056 | L209: 1.32 | N209: 0.988944 | O209: 0.331056 | P209: 1.32 | Q209: 0.988944 | R209: 0.331056 | S209: 0.295152 | T209: 1.615152 | U209: Normal
A210: 1 | B210: SINAPI | C210: INSUMO | D210: 5069 | E210: 2.6.6.12 | F210: PREGO DE ACO POLIDO COM CABECA 17 X 27 (2 1/2 X 11) | G210: KG | H210: 0.0125 | I210: 15.94 | J210: 0.19 | K210: 0 | L210: 0.19 | N210: 0.19 | O210: 0 | P210: 0.19 | Q210: 0.19 | R210: 0 | S210: 0.042484 | T210: 0.232484 | U210: Normal
A211: 1 | B211: SINAPI | C211: INSUMO | D211: 4517 | E211: 2.6.6.13 | F211: SARRAFO *2,5 X 7,5* CM EM PINUS, MISTA OU EQUIVALENTE DA REGIAO - BRUTA | G211: M | H211: 0.1408 | I211: 2.49 | J211: 0.35 | K211: 0 | L211: 0.35 | N211: 0.35 | O211: 0 | P211: 0.35 | Q211: 0.35 | R211: 0 | S211: 0.07826 | T211: 0.42826 | U211: Normal
A212: 1 | B212: SINAPI | C212: INSUMO | D212: 4491 | E212: 2.6.6.14 | F212: PONTALETE *7,5 X 7,5* CM EM PINUS, MISTA OU EQUIVALENTE DA REGIAO - BRUTA | G212: M | H212: 0.1184 | I212: 7.11 | J212: 0.84 | K212: 0 | L212: 0.84 | N212: 0.84 | O212: 0 | P212: 0.84 | Q212: 0.84 | R212: 0 | S212: 0.187824 | T212: 1.027824 | U212: Normal
A213: 1 | B213: SINAPI | C213: INSUMO | D213: 2692 | E213: 2.6.6.15 | F213: DESMOLDANTE PROTETOR PARA FORMAS DE MADEIRA, DE BASE OLEOSA EMULSIONADA EM AGUA | G213: L | H213: 0.0054 | I213: 6.38 | J213: 0.03 | K213: 0 | L213: 0.03 | N213: 0.03 | O213: 0 | P213: 0.03 | Q213: 0.03 | R213: 0 | S213: 0.006708 | T213: 0.036708 | U213: Normal
A215: Quant | B215: SINAPI | C215: COMPOSIÇÃO | D215: 90446 | E215: 2.6.7 | F215: RASGO LINEAR MECANIZADO EM CONTRAPISO, PARA RAMAIS/ DISTRIBUIÇÃO DE INSTALAÇÕES HIDRÁULICAS, DIÂMETROS MAIORES QUE 75 MM E MENORES OU IGUAIS A 100 MM. AF_09/2023_PS (PARA INSTALAÇÃO DE TUBULAÇÃO PARA LIGAR CAIXAS NA REDE DE ÁGUA PLUVIAL) | G215: M | H215: 1 | I215: 0 | J215: 0.692189 | K215: 30.677811 | L215: 31.37 | N215: =SUM(N216:N220) -> 0.692189 | O215: 30.677811 | P215: 31.37 | Q215: 0.692189 | R215: 30.677811 | S215: 7.014332 | T215: 38.384332 | U215: Normal
A216: 1 | B216: SINAPI | C216: COMPOSICAO | D216: 102275 | E216: 2.6.7.1 | F216: MARTELO DEMOLIDOR ELÉTRICO, COM POTÊNCIA DE 2.000 W, 1.000 IMPACTOS POR MINUTO, PESO DE 30 KG - CHP DIURNO. AF_01/2021 | G216: CHP | H216: 0.1175 | I216: 37.02 | J216: 0.40579 | K216: 3.93421 | L216: 4.34 | N216: 0.40579 | O216: 3.93421 | P216: 4.34 | Q216: 0.40579 | R216: 3.93421 | S216: 0.970424 | T216: 5.310424 | U216: Normal
A217: 1 | B217: SINAPI | C217: COMPOSICAO | D217: 102274 | E217: 2.6.7.2 | F217: MARTELO DEMOLIDOR ELÉTRICO, COM POTÊNCIA DE 2.000 W, 1.000 IMPACTOS POR MINUTO, PESO DE 30 KG - CHI DIURNO. AF_01/2021 | G217: CHI | H217: 0.287 | I217: 34.56 | J217: 0.286399 | K217: 9.623601 | L217: 9.91 | N217: 0.286399 | O217: 9.623601 | P217: 9.91 | Q217: 0.286399 | R217: 9.623601 | S217: 2.215876 | T217: 12.125876 | U217: Normal
A218: 1 | B218: SINAPI | C218: COMPOSICAO | D218: 88298 | E218: 2.6.7.3 | F218: OPERADOR DE MARTELETE OU MARTELETEIRO COM ENCARGOS COMPLEMENTARES | G218: H | H218: 0.4047 | I218: 33.56 | J218: 0 | K218: 13.58 | L218: 13.58 | N218: 0 | O218: 13.58 | P218: 13.58 | Q218: 0 | R218: 13.58 | S218: 3.036488 | T218: 16.616488 | U218: Normal
A219: 1 | B219: SINAPI | C219: COMPOSICAO | D219: 88248 | E219: 2.6.7.4 | F219: AUXILIAR DE ENCANADOR OU BOMBEIRO HIDRÁULICO COM ENCARGOS COMPLEMENTARES | G219: H | H219: 0.1138 | I219: 31.19 | J219: 0 | K219: 3.54 | L219: 3.54 | N219: 0 | O219: 3.54 | P219: 3.54 | Q219: 0 | R219: 3.54 | S219: 0.791544 | T219: 4.331544 | U219: Normal
A221: Quant | B221: SINAPI | C221: COMPOSIÇÃO | D221: PRÓPRIA | E221: 2.6.8 | F221: EXECUÇÃO DE TUBULAÇÃO PARA CONECTAR AS NOVAS CAIXAS HIDRÁULICAS AO SISTEMA COLETOR DE ÁGUAS PLUVIAIS (QUANDO NECESSÁRIO O ACRÉSCIMO NO NÚMERO DE DESCIDAS) | G221: M | H221: 1 | I221: P. BASE | J221: 33.77 | K221: 15.18 | L221: 48.95 | N221: =SUM(N222:N226) -> 33.77 | O221: 15.18 | P221: 48.95 | Q221: 33.77 | R221: 15.18 | S221: 10.94522 | T221: 59.89522 | U221: Normal
A222: 1 | B222: SINAPI | C222: INSUMO | D222: 9841 | E222: 2.6.8.1 | F222: TUBO PVC, SERIE R, DN 100 MM, PARA ESGOTO OU AGUAS PLUVIAIS PREDIAL (NBR 5688) | G222: M | H222: 1.05 | I222: 27.06 | J222: 28.41 | K222: 0 | L222: 28.41 | N222: 28.41 | O222: 0 | P222: 28.41 | Q222: 28.41 | R222: 0 | S222: 6.352476 | T222: 34.762476 | U222: Normal
A223: 1 | B223: SINAPI | C223: INSUMO | D223: 38383 | E223: 2.6.8.2 | F223: LIXA D'AGUA EM FOLHA, COR PRETA, GRAO 100 | G223: UN | H223: 0.1617 | I223: 2.15 | J223: 0.34 | K223: 0 | L223: 0.34 | N223: 0.34 | O223: 0 | P223: 0.34 | Q223: 0.34 | R223: 0 | S223: 0.076024 | T223: 0.416024 | U223: Normal
A224: 1 | B224: SINAPI | C224: COMPOSIÇÃO | D224: 88248 | E224: 2.6.8.3 | F224: AUXILIAR DE ENCANADOR OU BOMBEIRO HIDRÁULICO COM ENCARGOS COMPLEMENTARES | G224: H | H224: 0.29183 | I224: 31.19 | J224: 2.51 | K224: 6.58 | L224: 9.09 | N224: 2.51 | O224: 6.58 | P224: 9.09 | Q224: 2.51 | R224: 6.58 | S224: 2.032524 | T224: 11.122524 | U224: Normal
A225: 1 | B225: SINAPI | C225: COMPOSIÇÃO | D225: 88267 | E225: 2.6.8.4 | F225: ENCANADOR OU BOMBEIRO HIDRÁULICO COM ENCARGOS COMPLEMENTARES | G225: H | H225: 0.29183 | I225: 38.12 | J225: 2.51 | K225: 8.6 | L225: 11.11 | N225: 2.51 | O225: 8.6 | P225: 11.11 | Q225: 2.51 | R225: 8.6 | S225: 2.484196 | T225: 13.594196 | U225: Normal
A227: Quant | B227: SINAPI | C227: COMPOSIÇÃO | D227: 90470 | E227: 2.6.9 | F227: CHUMBAMENTO LINEAR EM CONTRAPISO PARA RAMAIS/DISTRIBUIÇÃO DE INSTALAÇÕES HIDRÁULICAS COM DIÂMETROS MAIORES QUE 75 MM E MENORES OU IGUAIS A 100 MM. AF_09/2023 (PARA FECHAMENTO DO PISO RASGADO PARA LIGAR CAIXAS NA REDE DE ÁGUA PLUVIAL) | G227: M | H227: 1 | I227: 0 | J227: 5.670522 | K227: 13.589478 | L227: 19.26 | N227: =SUM(N228:N231) -> 5.670522 | O227: 13.589478 | P227: 19.26 | Q227: 5.670522 | R227: 13.589478 | S227: 4.306536 | T227: 23.566536 | U227: Normal
A228: 1 | B228: SINAPI | C228: COMPOSICAO | D228: 88629 | E228: 2.6.9.1 | F228: ARGAMASSA TRAÇO 1:3 (EM VOLUME DE CIMENTO E AREIA MÉDIA ÚMIDA), PREPARO MANUAL. AF_08/2019 | G228: M3 | H228: 0.0113 | I228: 760.14 | J228: 5.670522 | K228: 2.909478 | L228: 8.58 | N228: 5.670522 | O228: 2.909478 | P228: 8.58 | Q228: 5.670522 | R228: 2.909478 | S228: 1.918488 | T228: 10.498488 | U228: Normal
A229: 1 | B229: SINAPI | C229: COMPOSICAO | D229: 88267 | E229: 2.6.9.2 | F229: ENCANADOR OU BOMBEIRO HIDRÁULICO COM ENCARGOS COMPLEMENTARES | G229: H | H229: 0.2365 | I229: 38.12 | J229: 0 | K229: 9.01 | L229: 9.01 | N229: 0 | O229: 9.01 | P229: 9.01 | Q229: 0 | R229: 9.01 | S229: 2.014636 | T229: 11.024636 | U229: Normal
A230: 1 | B230: SINAPI | C230: COMPOSICAO | D230: 88248 | E230: 2.6.9.3 | F230: AUXILIAR DE ENCANADOR OU BOMBEIRO HIDRÁULICO COM ENCARGOS COMPLEMENTARES | G230: H | H230: 0.0538 | I230: 31.19 | J230: 0 | K230: 1.67 | L230: 1.67 | N230: 0 | O230: 1.67 | P230: 1.67 | Q230: 0 | R230: 1.67 | S230: 0.373412 | T230: 2.043412 | U230: Normal
A232: vazia | B232: vazia | E232: 3 | F232: SERVIÇOS COMPLEMENTARES | Q232: =Q233 -> 6008.549618 | R232: =R233 -> 1283.1184 | S232: =S233 -> 1630.416969 | T232: =T233 -> 8922.084987
A233: vazia | B233: vazia | E233: 3.1 | F233: INSTALAÇÃO DE LINHAS DE VIDA | Q233: =SUM(Q234:Q246)/2 -> 6008.549618 | R233: =SUM(R234:R246)/2 -> 1283.1184 | S233: =SUM(S234:S246)/2 -> 1630.416969 | T233: =SUM(T234:T246)/2 -> 8922.084987
A234: Quant | B234: TRT | C234: COMPOSIÇÃO | D234: PRÓPRIA | E234: 3.1.1 | F234: OLHAL DE ANCORAGEM PREDIAL, SEMICIRCULAR,75X97X17MM, EM AÇO INOX, COM NERVURAS LATERAIS E PARABOLT DE FIXAÇÃO 1/2" ASTM A325. | G234: UD | H234: 12 | I234: P. BASE | J234: 150 | K234: 12.45 | L234: 162.45 | N234: =SUM(N235:N239) -> 150 | O234: 12.45 | P234: 162.45 | Q234: 1800 | R234: 149.4 | S234: 435.88584 | T234: 2385.28584 | U234: Normal
... 80 more rows

Sheet CRONO
B12: ITEM | C12: DESCRIÇÃO | D12: VALOR | F12: 1º MÊS | I12: 2º MÊS | L12: 3º MÊS | O12: 4º MÊS | R12: 5º MÊS | U12: 6º MÊS | X12: 7º MÊS | AA12: 8º MÊS | AD12: 9º MÊS | AG12: 10º MÊS | AJ12: 11º MÊS | AM12: 12º MÊS | AP12: 13º MÊS | AS12: 14º MÊS | AV12: 15º MÊS | AY12: 16º MÊS | BB12: 17º MÊS | BE12: 18º MÊS | BH12: 19º MÊS | BK12: 20º MÊS | BN12: 21º MÊS | BQ12: 22º MÊS | BT12: 23º MÊS | BW12: 24º MÊS | BZ12: TOTAL
F13: % | G13: Valor | I13: % | J13: Valor | L13: % | M13: Valor | O13: % | P13: Valor | R13: % | S13: Valor | U13: % | V13: Valor | X13: % | Y13: Valor | AA13: % | AB13: Valor | AD13: % | AE13: Valor | AG13: % | AH13: Valor | AJ13: % | AK13: Valor | AM13: % | AN13: Valor | AP13: % | AQ13: Valor | AS13: % | AT13: Valor | AV13: % | AW13: Valor | AY13: % | AZ13: Valor | BB13: % | BC13: Valor | BE13: % | BF13: Valor | BH13: % | BI13: Valor | BK13: % | BL13: Valor | BN13: % | BO13: Valor | BQ13: % | BR13: Valor | BT13: % | BU13: Valor | BW13: % | BX13: Valor | BZ13: % | CA13: Valor
A14: 1 | B14: =A14 -> 1 | C14: ADMINISTRAÇÃO DE OBRA E SERVIÇOS INICIAIS | D14: 77737 | F14: =IF(ISERROR(G14/$D14=TRUE),0,G14/$D14) -> 0.3647435857 | G14: =SUM(G15:G44) -> 28354.07212 | I14: =IF(ISERROR(J14/$D14=TRUE),0,J14/$D14) -> 0.3176282072 | J14: =SUM(J15:J44) -> 24691.46394 | L14: =IF(ISERROR(M14/$D14=TRUE),0,M14/$D14) -> 0.3176282072 | M14: =SUM(M15:M44) -> 24691.46394 | O14: =IF(ISERROR(P14/$D14=TRUE),0,P14/$D14) -> 0 | P14: =SUM(P15:P44) -> 0 | R14: =IF(ISERROR(S14/$D14=TRUE),0,S14/$D14) -> 0 | S14: =SUM(S15:S44) -> 0 | U14: =IF(ISERROR(V14/$D14=TRUE),0,V14/$D14) -> 0 | V14: =SUM(V15:V44) -> 0 | X14: =IF(ISERROR(Y14/$D14=TRUE),0,Y14/$D14) -> 0 | Y14: =SUM(Y15:Y44) -> 0 | AA14: =IF(ISERROR(AB14/$D14=TRUE),0,AB14/$D14) -> 0 | AB14: =SUM(AB15:AB44) -> 0 | AD14: =IF(ISERROR(AE14/$D14=TRUE),0,AE14/$D14) -> 0 | AE14: =SUM(AE15:AE44) -> 0 | AG14: =IF(ISERROR(AH14/$D14=TRUE),0,AH14/$D14) -> 0 | AH14: =SUM(AH15:AH44) -> 0 | AJ14: =IF(ISERROR(AK14/$D14=TRUE),0,AK14/$D14) -> 0 | AK14: =SUM(AK15:AK44) -> 0 | AM14: =IF(ISERROR(AN14/$D14=TRUE),0,AN14/$D14) -> 0 | AN14: =SUM(AN15:AN44) -> 0 | AP14: =IF(ISERROR(AQ14/$D14=TRUE),0,AQ14/$D14) -> 0 | AQ14: =SUM(AQ15:AQ44) -> 0 | AS14: =IF(ISERROR(AT14/$D14=TRUE),0,AT14/$D14) -> 0 | AT14: =SUM(AT15:AT44) -> 0 | AV14: =IF(ISERROR(AW14/$D14=TRUE),0,AW14/$D14) -> 0 | AW14: =SUM(AW15:AW44) -> 0 | AY14: =IF(ISERROR(AZ14/$D14=TRUE),0,AZ14/$D14) -> 0 | AZ14: =SUM(AZ15:AZ44) -> 0 | BB14: =IF(ISERROR(BC14/$D14=TRUE),0,BC14/$D14) -> 0 | BC14: =SUM(BC15:BC44) -> 0 | BE14: =IF(ISERROR(BF14/$D14=TRUE),0,BF14/$D14) -> 0 | BF14: =SUM(BF15:BF44) -> 0 | BH14: =IF(ISERROR(BI14/$D14=TRUE),0,BI14/$D14) -> 0 | BI14: =SUM(BI15:BI44) -> 0 | BK14: =IF(ISERROR(BL14/$D14=TRUE),0,BL14/$D14) -> 0 | BL14: =SUM(BL15:BL44) -> 0 | BN14: =IF(ISERROR(BO14/$D14=TRUE),0,BO14/$D14) -> 0 | BO14: =SUM(BO15:BO44) -> 0 | BQ14: =IF(ISERROR(BR14/$D14=TRUE),0,BR14/$D14) -> 0 | BR14: =SUM(BR15:BR44) -> 0 | BT14: =IF(ISERROR(BU14/$D14=TRUE),0,BU14/$D14) -> 0 | BU14: =SUM(BU15:BU44) -> 0 | BW14: =IF(ISERROR(BX14/$D14=TRUE),0,BX14/$D14) -> 0 | BX14: =SUM(BX15:BX44) -> 0 | BZ14: =IF(ISERROR(CA14/$D14=TRUE),0,CA14/$D14) -> 1 | CA14: =SUM(CA15:CA44) -> 77737
A15: 1 | B15: =CONCATENATE(A14,".",A15) -> 1.1 | C15: PROJETOS E RESPONSABILIDADE TÉCNICA | D15: 2495.28 | F15: 1 | G15: =F15*$D15 -> 2495.28 | I15: 0 | J15: =I15*$D15 -> 0 | L15: 0 | M15: =L15*$D15 -> 0 | O15: 0 | P15: =O15*$D15 -> 0 | R15: 0 | S15: =R15*$D15 -> 0 | U15: 0 | V15: =U15*$D15 -> 0 | X15: 0 | Y15: =X15*$D15 -> 0 | AA15: 0 | AB15: =AA15*$D15 -> 0 | AD15: 0 | AE15: =AD15*$D15 -> 0 | AG15: 0 | AH15: =AG15*$D15 -> 0 | AJ15: 0 | AK15: =AJ15*$D15 -> 0 | AM15: 0 | AN15: =AM15*$D15 -> 0 | AP15: 0 | AQ15: =AP15*$D15 -> 0 | AS15: 0 | AT15: =AS15*$D15 -> 0 | AV15: 0 | AW15: =AV15*$D15 -> 0 | AY15: 0 | AZ15: =AY15*$D15 -> 0 | BB15: 0 | BC15: =BB15*$D15 -> 0 | BE15: 0 | BF15: =BE15*$D15 -> 0 | BH15: 0 | BI15: =BH15*$D15 -> 0 | BK15: 0 | BL15: =BK15*$D15 -> 0 | BN15: 0 | BO15: =BN15*$D15 -> 0 | BQ15: 0 | BR15: =BQ15*$D15 -> 0 | BT15: 0 | BU15: =BT15*$D15 -> 0 | BW15: 0 | BX15: =BW15*$D15 -> 0 | BZ15: =IF(ISERROR(CA15/$D15=TRUE),0,CA15/$D15) -> 1 | CA15: =BX15+BU15+BR15+BO15+BL15+BI15+BF15+BC15+AZ15+AW15+AT15+AQ15+AN15+AK15+AH15+AE15+AB15+Y15+V15+S15+P15+M15+J15+G15 -> 2495.28
A16: 2 | B16: =CONCATENATE(A14,".",A16) -> 1.2 | C16: ADMINISTRAÇÃO DE OBRA | D16: 69285.29 | F16: 0.3334 | G16: =F16*$D16 -> 23099.71569 | I16: 0.3333 | J16: =I16*$D16 -> 23092.78716 | L16: 0.3333 | M16: =L16*$D16 -> 23092.78716 | O16: 0 | P16: =O16*$D16 -> 0 | R16: 0 | S16: =R16*$D16 -> 0 | U16: 0 | V16: =U16*$D16 -> 0 | X16: 0 | Y16: =X16*$D16 -> 0 | AA16: 0 | AB16: =AA16*$D16 -> 0 | AD16: 0 | AE16: =AD16*$D16 -> 0 | AG16: 0 | AH16: =AG16*$D16 -> 0 | AJ16: 0 | AK16: =AJ16*$D16 -> 0 | AM16: 0 | AN16: =AM16*$D16 -> 0 | AP16: 0 | AQ16: =AP16*$D16 -> 0 | AS16: 0 | AT16: =AS16*$D16 -> 0 | AV16: 0 | AW16: =AV16*$D16 -> 0 | AY16: 0 | AZ16: =AY16*$D16 -> 0 | BB16: 0 | BC16: =BB16*$D16 -> 0 | BE16: 0 | BF16: =BE16*$D16 -> 0 | BH16: 0 | BI16: =BH16*$D16 -> 0 | BK16: 0 | BL16: =BK16*$D16 -> 0 | BN16: 0 | BO16: =BN16*$D16 -> 0 | BQ16: 0 | BR16: =BQ16*$D16 -> 0 | BT16: 0 | BU16: =BT16*$D16 -> 0 | BW16: 0 | BX16: =BW16*$D16 -> 0 | BZ16: =IF(ISERROR(CA16/$D16=TRUE),0,CA16/$D16) -> 1 | CA16: =BX16+BU16+BR16+BO16+BL16+BI16+BF16+BC16+AZ16+AW16+AT16+AQ16+AN16+AK16+AH16+AE16+AB16+Y16+V16+S16+P16+M16+J16+G16 -> 69285.29
A17: 3 | B17: =CONCATENATE(A14,".",A17) -> 1.3 | C17: FORNECIMENTO DE PLACA DE OBRA | D17: 1159.92 | F17: 1 | G17: 1159.92 | I17: 0 | J17: 0 | L17: 0 | M17: 0 | O17: 0 | P17: 0 | R17: 0 | S17: 0 | U17: 0 | V17: 0 | X17: 0 | Y17: 0 | AA17: 0 | AB17: 0 | AD17: 0 | AE17: 0 | AG17: 0 | AH17: 0 | AJ17: 0 | AK17: 0 | AM17: 0 | AN17: 0 | AP17: 0 | AQ17: 0 | AS17: 0 | AT17: 0 | AV17: 0 | AW17: 0 | AY17: 0 | AZ17: 0 | BB17: 0 | BC17: 0 | BE17: 0 | BF17: 0 | BH17: 0 | BI17: 0 | BK17: 0 | BL17: 0 | BN17: 0 | BO17: 0 | BQ17: 0 | BR17: 0 | BT17: 0 | BU17: 0 | BW17: 0 | BX17: 0 | BZ17: 1 | CA17: 1159.92
A18: 4 | B18: =CONCATENATE(A14,".",A18) -> 1.4 | C18: REMOÇÃO DE ENTULHO | D18: 4796.51 | F18: 0.3334 | G18: 1599.156434 | I18: 0.3333 | J18: 1598.676783 | L18: 0.3333 | M18: 1598.676783 | O18: 0 | P18: 0 | R18: 0 | S18: 0 | U18: 0 | V18: 0 | X18: 0 | Y18: 0 | AA18: 0 | AB18: 0 | AD18: 0 | AE18: 0 | AG18: 0 | AH18: 0 | AJ18: 0 | AK18: 0 | AM18: 0 | AN18: 0 | AP18: 0 | AQ18: 0 | AS18: 0 | AT18: 0 | AV18: 0 | AW18: 0 | AY18: 0 | AZ18: 0 | BB18: 0 | BC18: 0 | BE18: 0 | BF18: 0 | BH18: 0 | BI18: 0 | BK18: 0 | BL18: 0 | BN18: 0 | BO18: 0 | BQ18: 0 | BR18: 0 | BT18: 0 | BU18: 0 | BW18: 0 | BX18: 0 | BZ18: 1 | CA18: 4796.51
A19: 5 | B19: =CONCATENATE(A14,".",A19) -> 1.5 | C19: 0 | D19: 0 | F19: 0 | G19: 0 | I19: 0 | J19: 0 | L19: 0 | M19: 0 | O19: 0 | P19: 0 | R19: 0 | S19: 0 | U19: 0 | V19: 0 | X19: 0 | Y19: 0 | AA19: 0 | AB19: 0 | AD19: 0 | AE19: 0 | AG19: 0 | AH19: 0 | AJ19: 0 | AK19: 0 | AM19: 0 | AN19: 0 | AP19: 0 | AQ19: 0 | AS19: 0 | AT19: 0 | AV19: 0 | AW19: 0 | AY19: 0 | AZ19: 0 | BB19: 0 | BC19: 0 | BE19: 0 | BF19: 0 | BH19: 0 | BI19: 0 | BK19: 0 | BL19: 0 | BN19: 0 | BO19: 0 | BQ19: 0 | BR19: 0 | BT19: 0 | BU19: 0 | BW19: 0 | BX19: 0 | BZ19: 0 | CA19: 0
A20: 6 | B20: =CONCATENATE(A14,".",A20) -> 1.6 | C20: 0 | D20: 0 | F20: 0 | G20: 0 | I20: 0 | J20: 0 | L20: 0 | M20: 0 | O20: 0 | P20: 0 | R20: 0 | S20: 0 | U20: 0 | V20: 0 | X20: 0 | Y20: 0 | AA20: 0 | AB20: 0 | AD20: 0 | AE20: 0 | AG20: 0 | AH20: 0 | AJ20: 0 | AK20: 0 | AM20: 0 | AN20: 0 | AP20: 0 | AQ20: 0 | AS20: 0 | AT20: 0 | AV20: 0 | AW20: 0 | AY20: 0 | AZ20: 0 | BB20: 0 | BC20: 0 | BE20: 0 | BF20: 0 | BH20: 0 | BI20: 0 | BK20: 0 | BL20: 0 | BN20: 0 | BO20: 0 | BQ20: 0 | BR20: 0 | BT20: 0 | BU20: 0 | BW20: 0 | BX20: 0 | BZ20: 0 | CA20: 0
A21: 7 | B21: =CONCATENATE(A14,".",A21) -> 1.7 | C21: 0 | D21: 0 | F21: 0 | G21: 0 | I21: 0 | J21: 0 | L21: 0 | M21: 0 | O21: 0 | P21: 0 | R21: 0 | S21: 0 | U21: 0 | V21: 0 | X21: 0 | Y21: 0 | AA21: 0 | AB21: 0 | AD21: 0 | AE21: 0 | AG21: 0 | AH21: 0 | AJ21: 0 | AK21: 0 | AM21: 0 | AN21: 0 | AP21: 0 | AQ21: 0 | AS21: 0 | AT21: 0 | AV21: 0 | AW21: 0 | AY21: 0 | AZ21: 0 | BB21: 0 | BC21: 0 | BE21: 0 | BF21: 0 | BH21: 0 | BI21: 0 | BK21: 0 | BL21: 0 | BN21: 0 | BO21: 0 | BQ21: 0 | BR21: 0 | BT21: 0 | BU21: 0 | BW21: 0 | BX21: 0 | BZ21: 0 | CA21: 0
A22: 8 | B22: =CONCATENATE(A14,".",A22) -> 1.8 | C22: 0 | D22: 0 | F22: 0 | G22: 0 | I22: 0 | J22: 0 | L22: 0 | M22: 0 | O22: 0 | P22: 0 | R22: 0 | S22: 0 | U22: 0 | V22: 0 | X22: 0 | Y22: 0 | AA22: 0 | AB22: 0 | AD22: 0 | AE22: 0 | AG22: 0 | AH22: 0 | AJ22: 0 | AK22: 0 | AM22: 0 | AN22: 0 | AP22: 0 | AQ22: 0 | AS22: 0 | AT22: 0 | AV22: 0 | AW22: 0 | AY22: 0 | AZ22: 0 | BB22: 0 | BC22: 0 | BE22: 0 | BF22: 0 | BH22: 0 | BI22: 0 | BK22: 0 | BL22: 0 | BN22: 0 | BO22: 0 | BQ22: 0 | BR22: 0 | BT22: 0 | BU22: 0 | BW22: 0 | BX22: 0 | BZ22: 0 | CA22: 0
A23: 9 | B23: =CONCATENATE(A14,".",A23) -> 1.9 | C23: 0 | D23: 0 | F23: 0 | G23: 0 | I23: 0 | J23: 0 | L23: 0 | M23: 0 | O23: 0 | P23: 0 | R23: 0 | S23: 0 | U23: 0 | V23: 0 | X23: 0 | Y23: 0 | AA23: 0 | AB23: 0 | AD23: 0 | AE23: 0 | AG23: 0 | AH23: 0 | AJ23: 0 | AK23: 0 | AM23: 0 | AN23: 0 | AP23: 0 | AQ23: 0 | AS23: 0 | AT23: 0 | AV23: 0 | AW23: 0 | AY23: 0 | AZ23: 0 | BB23: 0 | BC23: 0 | BE23: 0 | BF23: 0 | BH23: 0 | BI23: 0 | BK23: 0 | BL23: 0 | BN23: 0 | BO23: 0 | BQ23: 0 | BR23: 0 | BT23: 0 | BU23: 0 | BW23: 0 | BX23: 0 | BZ23: 0 | CA23: 0
A24: 10 | B24: =CONCATENATE(A14,".",A24) -> 1.10 | C24: 0 | D24: 0 | F24: 0 | G24: 0 | I24: 0 | J24: 0 | L24: 0 | M24: 0 | O24: 0 | P24: 0 | R24: 0 | S24: 0 | U24: 0 | V24: 0 | X24: 0 | Y24: 0 | AA24: 0 | AB24: 0 | AD24: 0 | AE24: 0 | AG24: 0 | AH24: 0 | AJ24: 0 | AK24: 0 | AM24: 0 | AN24: 0 | AP24: 0 | AQ24: 0 | AS24: 0 | AT24: 0 | AV24: 0 | AW24: 0 | AY24: 0 | AZ24: 0 | BB24: 0 | BC24: 0 | BE24: 0 | BF24: 0 | BH24: 0 | BI24: 0 | BK24: 0 | BL24: 0 | BN24: 0 | BO24: 0 | BQ24: 0 | BR24: 0 | BT24: 0 | BU24: 0 | BW24: 0 | BX24: 0 | BZ24: 0 | CA24: 0
A25: 11 | B25: =CONCATENATE(A14,".",A25) -> 1.11 | C25: 0 | D25: 0 | F25: 0 | G25: 0 | I25: 0 | J25: 0 | L25: 0 | M25: 0 | O25: 0 | P25: 0 | R25: 0 | S25: 0 | U25: 0 | V25: 0 | X25: 0 | Y25: 0 | AA25: 0 | AB25: 0 | AD25: 0 | AE25: 0 | AG25: 0 | AH25: 0 | AJ25: 0 | AK25: 0 | AM25: 0 | AN25: 0 | AP25: 0 | AQ25: 0 | AS25: 0 | AT25: 0 | AV25: 0 | AW25: 0 | AY25: 0 | AZ25: 0 | BB25: 0 | BC25: 0 | BE25: 0 | BF25: 0 | BH25: 0 | BI25: 0 | BK25: 0 | BL25: 0 | BN25: 0 | BO25: 0 | BQ25: 0 | BR25: 0 | BT25: 0 | BU25: 0 | BW25: 0 | BX25: 0 | BZ25: 0 | CA25: 0
A26: 12 | B26: =CONCATENATE(A14,".",A26) -> 1.12 | C26: 0 | D26: 0 | F26: 0 | G26: 0 | I26: 0 | J26: 0 | L26: 0 | M26: 0 | O26: 0 | P26: 0 | R26: 0 | S26: 0 | U26: 0 | V26: 0 | X26: 0 | Y26: 0 | AA26: 0 | AB26: 0 | AD26: 0 | AE26: 0 | AG26: 0 | AH26: 0 | AJ26: 0 | AK26: 0 | AM26: 0 | AN26: 0 | AP26: 0 | AQ26: 0 | AS26: 0 | AT26: 0 | AV26: 0 | AW26: 0 | AY26: 0 | AZ26: 0 | BB26: 0 | BC26: 0 | BE26: 0 | BF26: 0 | BH26: 0 | BI26: 0 | BK26: 0 | BL26: 0 | BN26: 0 | BO26: 0 | BQ26: 0 | BR26: 0 | BT26: 0 | BU26: 0 | BW26: 0 | BX26: 0 | BZ26: 0 | CA26: 0
A27: 13 | B27: =CONCATENATE(A14,".",A27) -> 1.13 | C27: 0 | D27: 0 | F27: 0 | G27: 0 | I27: 0 | J27: 0 | L27: 0 | M27: 0 | O27: 0 | P27: 0 | R27: 0 | S27: 0 | U27: 0 | V27: 0 | X27: 0 | Y27: 0 | AA27: 0 | AB27: 0 | AD27: 0 | AE27: 0 | AG27: 0 | AH27: 0 | AJ27: 0 | AK27: 0 | AM27: 0 | AN27: 0 | AP27: 0 | AQ27: 0 | AS27: 0 | AT27: 0 | AV27: 0 | AW27: 0 | AY27: 0 | AZ27: 0 | BB27: 0 | BC27: 0 | BE27: 0 | BF27: 0 | BH27: 0 | BI27: 0 | BK27: 0 | BL27: 0 | BN27: 0 | BO27: 0 | BQ27: 0 | BR27: 0 | BT27: 0 | BU27: 0 | BW27: 0 | BX27: 0 | BZ27: 0 | CA27: 0
A28: 14 | B28: =CONCATENATE(A14,".",A28) -> 1.14 | C28: 0 | D28: 0 | F28: 0 | G28: 0 | I28: 0 | J28: 0 | L28: 0 | M28: 0 | O28: 0 | P28: 0 | R28: 0 | S28: 0 | U28: 0 | V28: 0 | X28: 0 | Y28: 0 | AA28: 0 | AB28: 0 | AD28: 0 | AE28: 0 | AG28: 0 | AH28: 0 | AJ28: 0 | AK28: 0 | AM28: 0 | AN28: 0 | AP28: 0 | AQ28: 0 | AS28: 0 | AT28: 0 | AV28: 0 | AW28: 0 | AY28: 0 | AZ28: 0 | BB28: 0 | BC28: 0 | BE28: 0 | BF28: 0 | BH28: 0 | BI28: 0 | BK28: 0 | BL28: 0 | BN28: 0 | BO28: 0 | BQ28: 0 | BR28: 0 | BT28: 0 | BU28: 0 | BW28: 0 | BX28: 0 | BZ28: 0 | CA28: 0
A29: 15 | B29: =CONCATENATE(A14,".",A29) -> 1.15 | C29: 0 | D29: 0 | F29: 0 | G29: 0 | I29: 0 | J29: 0 | L29: 0 | M29: 0 | O29: 0 | P29: 0 | R29: 0 | S29: 0 | U29: 0 | V29: 0 | X29: 0 | Y29: 0 | AA29: 0 | AB29: 0 | AD29: 0 | AE29: 0 | AG29: 0 | AH29: 0 | AJ29: 0 | AK29: 0 | AM29: 0 | AN29: 0 | AP29: 0 | AQ29: 0 | AS29: 0 | AT29: 0 | AV29: 0 | AW29: 0 | AY29: 0 | AZ29: 0 | BB29: 0 | BC29: 0 | BE29: 0 | BF29: 0 | BH29: 0 | BI29: 0 | BK29: 0 | BL29: 0 | BN29: 0 | BO29: 0 | BQ29: 0 | BR29: 0 | BT29: 0 | BU29: 0 | BW29: 0 | BX29: 0 | BZ29: 0 | CA29: 0
A30: 16 | B30: =CONCATENATE(A14,".",A30) -> 1.16 | C30: 0 | D30: 0 | F30: 0 | G30: 0 | I30: 0 | J30: 0 | L30: 0 | M30: 0 | O30: 0 | P30: 0 | R30: 0 | S30: 0 | U30: 0 | V30: 0 | X30: 0 | Y30: 0 | AA30: 0 | AB30: 0 | AD30: 0 | AE30: 0 | AG30: 0 | AH30: 0 | AJ30: 0 | AK30: 0 | AM30: 0 | AN30: 0 | AP30: 0 | AQ30: 0 | AS30: 0 | AT30: 0 | AV30: 0 | AW30: 0 | AY30: 0 | AZ30: 0 | BB30: 0 | BC30: 0 | BE30: 0 | BF30: 0 | BH30: 0 | BI30: 0 | BK30: 0 | BL30: 0 | BN30: 0 | BO30: 0 | BQ30: 0 | BR30: 0 | BT30: 0 | BU30: 0 | BW30: 0 | BX30: 0 | BZ30: 0 | CA30: 0
A31: 17 | B31: =CONCATENATE(A14,".",A31) -> 1.17 | C31: 0 | D31: 0 | F31: 0 | G31: 0 | I31: 0 | J31: 0 | L31: 0 | M31: 0 | O31: 0 | P31: 0 | R31: 0 | S31: 0 | U31: 0 | V31: 0 | X31: 0 | Y31: 0 | AA31: 0 | AB31: 0 | AD31: 0 | AE31: 0 | AG31: 0 | AH31: 0 | AJ31: 0 | AK31: 0 | AM31: 0 | AN31: 0 | AP31: 0 | AQ31: 0 | AS31: 0 | AT31: 0 | AV31: 0 | AW31: 0 | AY31: 0 | AZ31: 0 | BB31: 0 | BC31: 0 | BE31: 0 | BF31: 0 | BH31: 0 | BI31: 0 | BK31: 0 | BL31: 0 | BN31: 0 | BO31: 0 | BQ31: 0 | BR31: 0 | BT31: 0 | BU31: 0 | BW31: 0 | BX31: 0 | BZ31: 0 | CA31: 0
A32: 18 | B32: =CONCATENATE(A14,".",A32) -> 1.18 | C32: 0 | D32: 0 | F32: 0 | G32: 0 | I32: 0 | J32: 0 | L32: 0 | M32: 0 | O32: 0 | P32: 0 | R32: 0 | S32: 0 | U32: 0 | V32: 0 | X32: 0 | Y32: 0 | AA32: 0 | AB32: 0 | AD32: 0 | AE32: 0 | AG32: 0 | AH32: 0 | AJ32: 0 | AK32: 0 | AM32: 0 | AN32: 0 | AP32: 0 | AQ32: 0 | AS32: 0 | AT32: 0 | AV32: 0 | AW32: 0 | AY32: 0 | AZ32: 0 | BB32: 0 | BC32: 0 | BE32: 0 | BF32: 0 | BH32: 0 | BI32: 0 | BK32: 0 | BL32: 0 | BN32: 0 | BO32: 0 | BQ32: 0 | BR32: 0 | BT32: 0 | BU32: 0 | BW32: 0 | BX32: 0 | BZ32: 0 | CA32: 0
A33: 19 | B33: =CONCATENATE(A14,".",A33) -> 1.19 | C33: 0 | D33: 0 | F33: 0 | G33: 0 | I33: 0 | J33: 0 | L33: 0 | M33: 0 | O33: 0 | P33: 0 | R33: 0 | S33: 0 | U33: 0 | V33: 0 | X33: 0 | Y33: 0 | AA33: 0 | AB33: 0 | AD33: 0 | AE33: 0 | AG33: 0 | AH33: 0 | AJ33: 0 | AK33: 0 | AM33: 0 | AN33: 0 | AP33: 0 | AQ33: 0 | AS33: 0 | AT33: 0 | AV33: 0 | AW33: 0 | AY33: 0 | AZ33: 0 | BB33: 0 | BC33: 0 | BE33: 0 | BF33: 0 | BH33: 0 | BI33: 0 | BK33: 0 | BL33: 0 | BN33: 0 | BO33: 0 | BQ33: 0 | BR33: 0 | BT33: 0 | BU33: 0 | BW33: 0 | BX33: 0 | BZ33: 0 | CA33: 0
A34: 20 | B34: =CONCATENATE(A14,".",A34) -> 1.20 | C34: 0 | D34: 0 | F34: 0 | G34: 0 | I34: 0 | J34: 0 | L34: 0 | M34: 0 | O34: 0 | P34: 0 | R34: 0 | S34: 0 | U34: 0 | V34: 0 | X34: 0 | Y34: 0 | AA34: 0 | AB34: 0 | AD34: 0 | AE34: 0 | AG34: 0 | AH34: 0 | AJ34: 0 | AK34: 0 | AM34: 0 | AN34: 0 | AP34: 0 | AQ34: 0 | AS34: 0 | AT34: 0 | AV34: 0 | AW34: 0 | AY34: 0 | AZ34: 0 | BB34: 0 | BC34: 0 | BE34: 0 | BF34: 0 | BH34: 0 | BI34: 0 | BK34: 0 | BL34: 0 | BN34: 0 | BO34: 0 | BQ34: 0 | BR34: 0 | BT34: 0 | BU34: 0 | BW34: 0 | BX34: 0 | BZ34: 0 | CA34: 0
A35: 21 | B35: =CONCATENATE(A14,".",A35) -> 1.21 | C35: 0 | D35: 0 | F35: 0 | G35: 0 | I35: 0 | J35: 0 | L35: 0 | M35: 0 | O35: 0 | P35: 0 | R35: 0 | S35: 0 | U35: 0 | V35: 0 | X35: 0 | Y35: 0 | AA35: 0 | AB35: 0 | AD35: 0 | AE35: 0 | AG35: 0 | AH35: 0 | AJ35: 0 | AK35: 0 | AM35: 0 | AN35: 0 | AP35: 0 | AQ35: 0 | AS35: 0 | AT35: 0 | AV35: 0 | AW35: 0 | AY35: 0 | AZ35: 0 | BB35: 0 | BC35: 0 | BE35: 0 | BF35: 0 | BH35: 0 | BI35: 0 | BK35: 0 | BL35: 0 | BN35: 0 | BO35: 0 | BQ35: 0 | BR35: 0 | BT35: 0 | BU35: 0 | BW35: 0 | BX35: 0 | BZ35: 0 | CA35: 0
A36: 22 | B36: =CONCATENATE(A14,".",A36) -> 1.22 | C36: 0 | D36: 0 | F36: 0 | G36: 0 | I36: 0 | J36: 0 | L36: 0 | M36: 0 | O36: 0 | P36: 0 | R36: 0 | S36: 0 | U36: 0 | V36: 0 | X36: 0 | Y36: 0 | AA36: 0 | AB36: 0 | AD36: 0 | AE36: 0 | AG36: 0 | AH36: 0 | AJ36: 0 | AK36: 0 | AM36: 0 | AN36: 0 | AP36: 0 | AQ36: 0 | AS36: 0 | AT36: 0 | AV36: 0 | AW36: 0 | AY36: 0 | AZ36: 0 | BB36: 0 | BC36: 0 | BE36: 0 | BF36: 0 | BH36: 0 | BI36: 0 | BK36: 0 | BL36: 0 | BN36: 0 | BO36: 0 | BQ36: 0 | BR36: 0 | BT36: 0 | BU36: 0 | BW36: 0 | BX36: 0 | BZ36: 0 | CA36: 0
A37: 23 | B37: =CONCATENATE(A14,".",A37) -> 1.23 | C37: 0 | D37: 0 | F37: 0 | G37: 0 | I37: 0 | J37: 0 | L37: 0 | M37: 0 | O37: 0 | P37: 0 | R37: 0 | S37: 0 | U37: 0 | V37: 0 | X37: 0 | Y37: 0 | AA37: 0 | AB37: 0 | AD37: 0 | AE37: 0 | AG37: 0 | AH37: 0 | AJ37: 0 | AK37: 0 | AM37: 0 | AN37: 0 | AP37: 0 | AQ37: 0 | AS37: 0 | AT37: 0 | AV37: 0 | AW37: 0 | AY37: 0 | AZ37: 0 | BB37: 0 | BC37: 0 | BE37: 0 | BF37: 0 | BH37: 0 | BI37: 0 | BK37: 0 | BL37: 0 | BN37: 0 | BO37: 0 | BQ37: 0 | BR37: 0 | BT37: 0 | BU37: 0 | BW37: 0 | BX37: 0 | BZ37: 0 | CA37: 0
A38: 24 | B38: =CONCATENATE(A14,".",A38) -> 1.24 | C38: 0 | D38: 0 | F38: 0 | G38: 0 | I38: 0 | J38: 0 | L38: 0 | M38: 0 | O38: 0 | P38: 0 | R38: 0 | S38: 0 | U38: 0 | V38: 0 | X38: 0 | Y38: 0 | AA38: 0 | AB38: 0 | AD38: 0 | AE38: 0 | AG38: 0 | AH38: 0 | AJ38: 0 | AK38: 0 | AM38: 0 | AN38: 0 | AP38: 0 | AQ38: 0 | AS38: 0 | AT38: 0 | AV38: 0 | AW38: 0 | AY38: 0 | AZ38: 0 | BB38: 0 | BC38: 0 | BE38: 0 | BF38: 0 | BH38: 0 | BI38: 0 | BK38: 0 | BL38: 0 | BN38: 0 | BO38: 0 | BQ38: 0 | BR38: 0 | BT38: 0 | BU38: 0 | BW38: 0 | BX38: 0 | BZ38: 0 | CA38: 0
A39: 25 | B39: =CONCATENATE(A14,".",A39) -> 1.25 | C39: 0 | D39: 0 | F39: 0 | G39: 0 | I39: 0 | J39: 0 | L39: 0 | M39: 0 | O39: 0 | P39: 0 | R39: 0 | S39: 0 | U39: 0 | V39: 0 | X39: 0 | Y39: 0 | AA39: 0 | AB39: 0 | AD39: 0 | AE39: 0 | AG39: 0 | AH39: 0 | AJ39: 0 | AK39: 0 | AM39: 0 | AN39: 0 | AP39: 0 | AQ39: 0 | AS39: 0 | AT39: 0 | AV39: 0 | AW39: 0 | AY39: 0 | AZ39: 0 | BB39: 0 | BC39: 0 | BE39: 0 | BF39: 0 | BH39: 0 | BI39: 0 | BK39: 0 | BL39: 0 | BN39: 0 | BO39: 0 | BQ39: 0 | BR39: 0 | BT39: 0 | BU39: 0 | BW39: 0 | BX39: 0 | BZ39: 0 | CA39: 0
A40: 26 | B40: =CONCATENATE(A14,".",A40) -> 1.26 | C40: 0 | D40: 0 | F40: 0 | G40: 0 | I40: 0 | J40: 0 | L40: 0 | M40: 0 | O40: 0 | P40: 0 | R40: 0 | S40: 0 | U40: 0 | V40: 0 | X40: 0 | Y40: 0 | AA40: 0 | AB40: 0 | AD40: 0 | AE40: 0 | AG40: 0 | AH40: 0 | AJ40: 0 | AK40: 0 | AM40: 0 | AN40: 0 | AP40: 0 | AQ40: 0 | AS40: 0 | AT40: 0 | AV40: 0 | AW40: 0 | AY40: 0 | AZ40: 0 | BB40: 0 | BC40: 0 | BE40: 0 | BF40: 0 | BH40: 0 | BI40: 0 | BK40: 0 | BL40: 0 | BN40: 0 | BO40: 0 | BQ40: 0 | BR40: 0 | BT40: 0 | BU40: 0 | BW40: 0 | BX40: 0 | BZ40: 0 | CA40: 0
A41: 27 | B41: =CONCATENATE(A14,".",A41) -> 1.27 | C41: 0 | D41: 0 | F41: 0 | G41: 0 | I41: 0 | J41: 0 | L41: 0 | M41: 0 | O41: 0 | P41: 0 | R41: 0 | S41: 0 | U41: 0 | V41: 0 | X41: 0 | Y41: 0 | AA41: 0 | AB41: 0 | AD41: 0 | AE41: 0 | AG41: 0 | AH41: 0 | AJ41: 0 | AK41: 0 | AM41: 0 | AN41: 0 | AP41: 0 | AQ41: 0 | AS41: 0 | AT41: 0 | AV41: 0 | AW41: 0 | AY41: 0 | AZ41: 0 | BB41: 0 | BC41: 0 | BE41: 0 | BF41: 0 | BH41: 0 | BI41: 0 | BK41: 0 | BL41: 0 | BN41: 0 | BO41: 0 | BQ41: 0 | BR41: 0 | BT41: 0 | BU41: 0 | BW41: 0 | BX41: 0 | BZ41: 0 | CA41: 0
A42: 28 | B42: =CONCATENATE(A14,".",A42) -> 1.28 | C42: 0 | D42: 0 | F42: 0 | G42: 0 | I42: 0 | J42: 0 | L42: 0 | M42: 0 | O42: 0 | P42: 0 | R42: 0 | S42: 0 | U42: 0 | V42: 0 | X42: 0 | Y42: 0 | AA42: 0 | AB42: 0 | AD42: 0 | AE42: 0 | AG42: 0 | AH42: 0 | AJ42: 0 | AK42: 0 | AM42: 0 | AN42: 0 | AP42: 0 | AQ42: 0 | AS42: 0 | AT42: 0 | AV42: 0 | AW42: 0 | AY42: 0 | AZ42: 0 | BB42: 0 | BC42: 0 | BE42: 0 | BF42: 0 | BH42: 0 | BI42: 0 | BK42: 0 | BL42: 0 | BN42: 0 | BO42: 0 | BQ42: 0 | BR42: 0 | BT42: 0 | BU42: 0 | BW42: 0 | BX42: 0 | BZ42: 0 | CA42: 0
A43: 29 | B43: =CONCATENATE(A14,".",A43) -> 1.29 | C43: 0 | D43: 0 | F43: 0 | G43: 0 | I43: 0 | J43: 0 | L43: 0 | M43: 0 | O43: 0 | P43: 0 | R43: 0 | S43: 0 | U43: 0 | V43: 0 | X43: 0 | Y43: 0 | AA43: 0 | AB43: 0 | AD43: 0 | AE43: 0 | AG43: 0 | AH43: 0 | AJ43: 0 | AK43: 0 | AM43: 0 | AN43: 0 | AP43: 0 | AQ43: 0 | AS43: 0 | AT43: 0 | AV43: 0 | AW43: 0 | AY43: 0 | AZ43: 0 | BB43: 0 | BC43: 0 | BE43: 0 | BF43: 0 | BH43: 0 | BI43: 0 | BK43: 0 | BL43: 0 | BN43: 0 | BO43: 0 | BQ43: 0 | BR43: 0 | BT43: 0 | BU43: 0 | BW43: 0 | BX43: 0 | BZ43: 0 | CA43: 0
A44: 30 | B44: =CONCATENATE(A14,".",A44) -> 1.30 | C44: 0 | D44: 0 | F44: 0 | G44: 0 | I44: 0 | J44: 0 | L44: 0 | M44: 0 | O44: 0 | P44: 0 | R44: 0 | S44: 0 | U44: 0 | V44: 0 | X44: 0 | Y44: 0 | AA44: 0 | AB44: 0 | AD44: 0 | AE44: 0 | AG44: 0 | AH44: 0 | AJ44: 0 | AK44: 0 | AM44: 0 | AN44: 0 | AP44: 0 | AQ44: 0 | AS44: 0 | AT44: 0 | AV44: 0 | AW44: 0 | AY44: 0 | AZ44: 0 | BB44: 0 | BC44: 0 | BE44: 0 | BF44: 0 | BH44: 0 | BI44: 0 | BK44: 0 | BL44: 0 | BN44: 0 | BO44: 0 | BQ44: 0 | BR44: 0 | BT44: 0 | BU44: 0 | BW44: 0 | BX44: 0 | BZ44: 0 | CA44: 0
A45: 2 | B45: =A45 -> 2 | C45: REFORMA DAS COBERTURAS | D45: 130435.96 | F45: =IF(ISERROR(G45/$D45=TRUE),0,G45/$D45) -> 0.216433068 | G45: =SUM(G46:G75) -> 28230.655 | I45: =IF(ISERROR(J45/$D45=TRUE),0,J45/$D45) -> 0.2227339953 | J45: =SUM(J46:J75) -> 29052.5225 | L45: =IF(ISERROR(M45/$D45=TRUE),0,M45/$D45) -> 0.5608330134 | M45: =SUM(M46:M75) -> 73152.7925 | O45: =IF(ISERROR(P45/$D45=TRUE),0,P45/$D45) -> 0 | P45: =SUM(P46:P75) -> 0 | R45: =IF(ISERROR(S45/$D45=TRUE),0,S45/$D45) -> 0 | S45: =SUM(S46:S75) -> 0 | U45: =IF(ISERROR(V45/$D45=TRUE),0,V45/$D45) -> 0 | V45: =SUM(V46:V75) -> 0 | X45: =IF(ISERROR(Y45/$D45=TRUE),0,Y45/$D45) -> 0 | Y45: =SUM(Y46:Y75) -> 0 | AA45: =IF(ISERROR(AB45/$D45=TRUE),0,AB45/$D45) -> 0 | AB45: =SUM(AB46:AB75) -> 0 | AD45: =IF(ISERROR(AE45/$D45=TRUE),0,AE45/$D45) -> 0 | AE45: =SUM(AE46:AE75) -> 0 | AG45: =IF(ISERROR(AH45/$D45=TRUE),0,AH45/$D45) -> 0 | AH45: =SUM(AH46:AH75) -> 0 | AJ45: =IF(ISERROR(AK45/$D45=TRUE),0,AK45/$D45) -> 0 | AK45: =SUM(AK46:AK75) -> 0 | AM45: =IF(ISERROR(AN45/$D45=TRUE),0,AN45/$D45) -> 0 | AN45: =SUM(AN46:AN75) -> 0 | AP45: =IF(ISERROR(AQ45/$D45=TRUE),0,AQ45/$D45) -> 0 | AQ45: =SUM(AQ46:AQ75) -> 0 | AS45: =IF(ISERROR(AT45/$D45=TRUE),0,AT45/$D45) -> 0 | AT45: =SUM(AT46:AT75) -> 0 | AV45: =IF(ISERROR(AW45/$D45=TRUE),0,AW45/$D45) -> 0 | AW45: =SUM(AW46:AW75) -> 0 | AY45: =IF(ISERROR(AZ45/$D45=TRUE),0,AZ45/$D45) -> 0 | AZ45: =SUM(AZ46:AZ75) -> 0 | BB45: =IF(ISERROR(BC45/$D45=TRUE),0,BC45/$D45) -> 0 | BC45: =SUM(BC46:BC75) -> 0 | BE45: =IF(ISERROR(BF45/$D45=TRUE),0,BF45/$D45) -> 0 | BF45: =SUM(BF46:BF75) -> 0 | BH45: =IF(ISERROR(BI45/$D45=TRUE),0,BI45/$D45) -> 0 | BI45: =SUM(BI46:BI75) -> 0 | BK45: =IF(ISERROR(BL45/$D45=TRUE),0,BL45/$D45) -> 0 | BL45: =SUM(BL46:BL75) -> 0 | BN45: =IF(ISERROR(BO45/$D45=TRUE),0,BO45/$D45) -> 0 | BO45: =SUM(BO46:BO75) -> 0 | BQ45: =IF(ISERROR(BR45/$D45=TRUE),0,BR45/$D45) -> 0 | BR45: =SUM(BR46:BR75) -> 0 | BT45: =IF(ISERROR(BU45/$D45=TRUE),0,BU45/$D45) -> 0 | BU45: =SUM(BU46:BU75) -> 0 | BW45: =IF(ISERROR(BX45/$D45=TRUE),0,BX45/$D45) -> 0 | BX45: =SUM(BX46:BX75) -> 0 | BZ45: =IF(ISERROR(CA45/$D45=TRUE),0,CA45/$D45) -> 1.000000077 | CA45: =SUM(CA46:CA75) -> 130435.97
A46: 1 | B46: =CONCATENATE(A45,".",A46) -> 2.1 | C46: REMOÇÃO DAS TELHAS, TESOURAS, TERÇAS, CALHAS E RUFOS EXISTENTES | D46: 10001.18 | F46: 0.3334 | G46: =F46*$D46 -> 3334.393412 | I46: 0.3333 | J46: =I46*$D46 -> 3333.393294 | L46: 0.3333 | M46: =L46*$D46 -> 3333.393294 | O46: 0 | P46: =O46*$D46 -> 0 | R46: 0 | S46: =R46*$D46 -> 0 | U46: 0 | V46: =U46*$D46 -> 0 | X46: 0 | Y46: =X46*$D46 -> 0 | AA46: 0 | AB46: =AA46*$D46 -> 0 | AD46: 0 | AE46: =AD46*$D46 -> 0 | AG46: 0 | AH46: =AG46*$D46 -> 0 | AJ46: 0 | AK46: =AJ46*$D46 -> 0 | AM46: 0 | AN46: =AM46*$D46 -> 0 | AP46: 0 | AQ46: =AP46*$D46 -> 0 | AS46: 0 | AT46: =AS46*$D46 -> 0 | AV46: 0 | AW46: =AV46*$D46 -> 0 | AY46: 0 | AZ46: =AY46*$D46 -> 0 | BB46: 0 | BC46: =BB46*$D46 -> 0 | BE46: 0 | BF46: =BE46*$D46 -> 0 | BH46: 0 | BI46: =BH46*$D46 -> 0 | BK46: 0 | BL46: =BK46*$D46 -> 0 | BN46: 0 | BO46: =BN46*$D46 -> 0 | BQ46: 0 | BR46: =BQ46*$D46 -> 0 | BT46: 0 | BU46: =BT46*$D46 -> 0 | BW46: 0 | BX46: =BW46*$D46 -> 0 | BZ46: =IF(ISERROR(CA46/$D46=TRUE),0,CA46/$D46) -> 1 | CA46: =BX46+BU46+BR46+BO46+BL46+BI46+BF46+BC46+AZ46+AW46+AT46+AQ46+AN46+AK46+AH46+AE46+AB46+Y46+V46+S46+P46+M46+J46+G46 -> 10001.18
A47: 2 | B47: =CONCATENATE(A45,".",A47) -> 2.2 | C47: ESTRUTURA DE COBERTURA | D47: 24817.05 | F47: 0.3334 | G47: =F47*$D47 -> 8274.00447 | I47: 0.3333 | J47: =I47*$D47 -> 8271.522765 | L47: 0.3333 | M47: =L47*$D47 -> 8271.522765 | O47: 0 | P47: =O47*$D47 -> 0 | R47: 0 | S47: =R47*$D47 -> 0 | U47: 0 | V47: =U47*$D47 -> 0 | X47: 0 | Y47: =X47*$D47 -> 0 | AA47: 0 | AB47: =AA47*$D47 -> 0 | AD47: 0 | AE47: =AD47*$D47 -> 0 | AG47: 0 | AH47: =AG47*$D47 -> 0 | AJ47: 0 | AK47: =AJ47*$D47 -> 0 | AM47: 0 | AN47: =AM47*$D47 -> 0 | AP47: 0 | AQ47: =AP47*$D47 -> 0 | AS47: 0 | AT47: =AS47*$D47 -> 0 | AV47: 0 | AW47: =AV47*$D47 -> 0 | AY47: 0 | AZ47: =AY47*$D47 -> 0 | BB47: 0 | BC47: =BB47*$D47 -> 0 | BE47: 0 | BF47: =BE47*$D47 -> 0 | BH47: 0 | BI47: =BH47*$D47 -> 0 | BK47: 0 | BL47: =BK47*$D47 -> 0 | BN47: 0 | BO47: =BN47*$D47 -> 0 | BQ47: 0 | BR47: =BQ47*$D47 -> 0 | BT47: 0 | BU47: =BT47*$D47 -> 0 | BW47: 0 | BX47: =BW47*$D47 -> 0 | BZ47: =IF(ISERROR(CA47/$D47=TRUE),0,CA47/$D47) -> 1 | CA47: =BX47+BU47+BR47+BO47+BL47+BI47+BF47+BC47+AZ47+AW47+AT47+AQ47+AN47+AK47+AH47+AE47+AB47+Y47+V47+S47+P47+M47+J47+G47 -> 24817.05
A48: 3 | B48: =CONCATENATE(A45,".",A48) -> 2.3 | C48: COBERTURA METÁLICA TERMOACÚSTICA | D48: 49856.8 | F48: 0.3334 | G48: 16622.25712 | I48: 0.3333 | J48: 16617.27144 | L48: 0.3333 | M48: 16617.27144 | O48: 0 | P48: 0 | R48: 0 | S48: 0 | U48: 0 | V48: 0 | X48: 0 | Y48: 0 | AA48: 0 | AB48: 0 | AD48: 0 | AE48: 0 | AG48: 0 | AH48: 0 | AJ48: 0 | AK48: 0 | AM48: 0 | AN48: 0 | AP48: 0 | AQ48: 0 | AS48: 0 | AT48: 0 | AV48: 0 | AW48: 0 | AY48: 0 | AZ48: 0 | BB48: 0 | BC48: 0 | BE48: 0 | BF48: 0 | BH48: 0 | BI48: 0 | BK48: 0 | BL48: 0 | BN48: 0 | BO48: 0 | BQ48: 0 | BR48: 0 | BT48: 0 | BU48: 0 | BW48: 0 | BX48: 0 | BZ48: 1 | CA48: 49856.8
A49: 4 | B49: =CONCATENATE(A45,".",A49) -> 2.4 | C49: SUBSTITUIÇÃO DE COBERTURA DE POLICARBONATO ALVEOLAR POR POLICARBONATO COMPACTO | D49: 18121.68 | F49: 0 | G49: 0 | I49: 0 | J49: 0 | L49: 1 | M49: 18121.68 | O49: 0 | P49: 0 | R49: 0 | S49: 0 | U49: 0 | V49: 0 | X49: 0 | Y49: 0 | AA49: 0 | AB49: 0 | AD49: 0 | AE49: 0 | AG49: 0 | AH49: 0 | AJ49: 0 | AK49: 0 | AM49: 0 | AN49: 0 | AP49: 0 | AQ49: 0 | AS49: 0 | AT49: 0 | AV49: 0 | AW49: 0 | AY49: 0 | AZ49: 0 | BB49: 0 | BC49: 0 | BE49: 0 | BF49: 0 | BH49: 0 | BI49: 0 | BK49: 0 | BL49: 0 | BN49: 0 | BO49: 0 | BQ49: 0 | BR49: 0 | BT49: 0 | BU49: 0 | BW49: 0 | BX49: 0 | BZ49: 1 | CA49: 18121.68
A50: 5 | B50: =CONCATENATE(A45,".",A50) -> 2.5 | C50: IMPERMEABILIZAÇÃO DE LAJES E MARQUISES | D50: 1660.67 | F50: 0 | G50: 0 | I50: 0.5 | J50: 830.335 | L50: 0.5 | M50: 830.335 | O50: 0 | P50: 0 | R50: 0 | S50: 0 | U50: 0 | V50: 0 | X50: 0 | Y50: 0 | AA50: 0 | AB50: 0 | AD50: 0 | AE50: 0 | AG50: 0 | AH50: 0 | AJ50: 0 | AK50: 0 | AM50: 0 | AN50: 0 | AP50: 0 | AQ50: 0 | AS50: 0 | AT50: 0 | AV50: 0 | AW50: 0 | AY50: 0 | AZ50: 0 | BB50: 0 | BC50: 0 | BE50: 0 | BF50: 0 | BH50: 0 | BI50: 0 | BK50: 0 | BL50: 0 | BN50: 0 | BO50: 0 | BQ50: 0 | BR50: 0 | BT50: 0 | BU50: 0 | BW50: 0 | BX50: 0 | BZ50: 1 | CA50: 1660.67
A51: 6 | B51: =CONCATENATE(A45,".",A51) -> 2.6 | C51: CALHAS, RUFOS E AJUSTES NAS TUBULAÇÕES HIDROSSANITÁRIAS | D51: 25978.59 | F51: 0 | G51: 0 | I51: 0 | J51: 0 | L51: 1 | M51: 25978.59 | O51: 0 | P51: 0 | R51: 0 | S51: 0 | U51: 0 | V51: 0 | X51: 0 | Y51: 0 | AA51: 0 | AB51: 0 | AD51: 0 | AE51: 0 | AG51: 0 | AH51: 0 | AJ51: 0 | AK51: 0 | AM51: 0 | AN51: 0 | AP51: 0 | AQ51: 0 | AS51: 0 | AT51: 0 | AV51: 0 | AW51: 0 | AY51: 0 | AZ51: 0 | BB51: 0 | BC51: 0 | BE51: 0 | BF51: 0 | BH51: 0 | BI51: 0 | BK51: 0 | BL51: 0 | BN51: 0 | BO51: 0 | BQ51: 0 | BR51: 0 | BT51: 0 | BU51: 0 | BW51: 0 | BX51: 0 | BZ51: 1 | CA51: 25978.59
A52: 7 | B52: =CONCATENATE(A45,".",A52) -> 2.7 | C52: 0 | D52: 0 | F52: 0 | G52: 0 | I52: 0 | J52: 0 | L52: 0 | M52: 0 | O52: 0 | P52: 0 | R52: 0 | S52: 0 | U52: 0 | V52: 0 | X52: 0 | Y52: 0 | AA52: 0 | AB52: 0 | AD52: 0 | AE52: 0 | AG52: 0 | AH52: 0 | AJ52: 0 | AK52: 0 | AM52: 0 | AN52: 0 | AP52: 0 | AQ52: 0 | AS52: 0 | AT52: 0 | AV52: 0 | AW52: 0 | AY52: 0 | AZ52: 0 | BB52: 0 | BC52: 0 | BE52: 0 | BF52: 0 | BH52: 0 | BI52: 0 | BK52: 0 | BL52: 0 | BN52: 0 | BO52: 0 | BQ52: 0 | BR52: 0 | BT52: 0 | BU52: 0 | BW52: 0 | BX52: 0 | BZ52: 0 | CA52: 0
A53: 8 | B53: =CONCATENATE(A45,".",A53) -> 2.8 | C53: 0 | D53: 0 | F53: 0 | G53: 0 | I53: 0 | J53: 0 | L53: 0 | M53: 0 | O53: 0 | P53: 0 | R53: 0 | S53: 0 | U53: 0 | V53: 0 | X53: 0 | Y53: 0 | AA53: 0 | AB53: 0 | AD53: 0 | AE53: 0 | AG53: 0 | AH53: 0 | AJ53: 0 | AK53: 0 | AM53: 0 | AN53: 0 | AP53: 0 | AQ53: 0 | AS53: 0 | AT53: 0 | AV53: 0 | AW53: 0 | AY53: 0 | AZ53: 0 | BB53: 0 | BC53: 0 | BE53: 0 | BF53: 0 | BH53: 0 | BI53: 0 | BK53: 0 | BL53: 0 | BN53: 0 | BO53: 0 | BQ53: 0 | BR53: 0 | BT53: 0 | BU53: 0 | BW53: 0 | BX53: 0 | BZ53: 0 | CA53: 0
A54: 9 | B54: =CONCATENATE(A45,".",A54) -> 2.9 | C54: 0 | D54: 0 | F54: 0 | G54: 0 | I54: 0 | J54: 0 | L54: 0 | M54: 0 | O54: 0 | P54: 0 | R54: 0 | S54: 0 | U54: 0 | V54: 0 | X54: 0 | Y54: 0 | AA54: 0 | AB54: 0 | AD54: 0 | AE54: 0 | AG54: 0 | AH54: 0 | AJ54: 0 | AK54: 0 | AM54: 0 | AN54: 0 | AP54: 0 | AQ54: 0 | AS54: 0 | AT54: 0 | AV54: 0 | AW54: 0 | AY54: 0 | AZ54: 0 | BB54: 0 | BC54: 0 | BE54: 0 | BF54: 0 | BH54: 0 | BI54: 0 | BK54: 0 | BL54: 0 | BN54: 0 | BO54: 0 | BQ54: 0 | BR54: 0 | BT54: 0 | BU54: 0 | BW54: 0 | BX54: 0 | BZ54: 0 | CA54: 0
A55: 10 | B55: =CONCATENATE(A45,".",A55) -> 2.10 | C55: 0 | D55: 0 | F55: 0 | G55: 0 | I55: 0 | J55: 0 | L55: 0 | M55: 0 | O55: 0 | P55: 0 | R55: 0 | S55: 0 | U55: 0 | V55: 0 | X55: 0 | Y55: 0 | AA55: 0 | AB55: 0 | AD55: 0 | AE55: 0 | AG55: 0 | AH55: 0 | AJ55: 0 | AK55: 0 | AM55: 0 | AN55: 0 | AP55: 0 | AQ55: 0 | AS55: 0 | AT55: 0 | AV55: 0 | AW55: 0 | AY55: 0 | AZ55: 0 | BB55: 0 | BC55: 0 | BE55: 0 | BF55: 0 | BH55: 0 | BI55: 0 | BK55: 0 | BL55: 0 | BN55: 0 | BO55: 0 | BQ55: 0 | BR55: 0 | BT55: 0 | BU55: 0 | BW55: 0 | BX55: 0 | BZ55: 0 | CA55: 0
A56: 11 | B56: =CONCATENATE(A45,".",A56) -> 2.11 | C56: 0 | D56: 0 | F56: 0 | G56: 0 | I56: 0 | J56: 0 | L56: 0 | M56: 0 | O56: 0 | P56: 0 | R56: 0 | S56: 0 | U56: 0 | V56: 0 | X56: 0 | Y56: 0 | AA56: 0 | AB56: 0 | AD56: 0 | AE56: 0 | AG56: 0 | AH56: 0 | AJ56: 0 | AK56: 0 | AM56: 0 | AN56: 0 | AP56: 0 | AQ56: 0 | AS56: 0 | AT56: 0 | AV56: 0 | AW56: 0 | AY56: 0 | AZ56: 0 | BB56: 0 | BC56: 0 | BE56: 0 | BF56: 0 | BH56: 0 | BI56: 0 | BK56: 0 | BL56: 0 | BN56: 0 | BO56: 0 | BQ56: 0 | BR56: 0 | BT56: 0 | BU56: 0 | BW56: 0 | BX56: 0 | BZ56: 0 | CA56: 0
A57: 12 | B57: =CONCATENATE(A45,".",A57) -> 2.12 | C57: 0 | D57: 0 | F57: 0 | G57: 0 | I57: 0 | J57: 0 | L57: 0 | M57: 0 | O57: 0 | P57: 0 | R57: 0 | S57: 0 | U57: 0 | V57: 0 | X57: 0 | Y57: 0 | AA57: 0 | AB57: 0 | AD57: 0 | AE57: 0 | AG57: 0 | AH57: 0 | AJ57: 0 | AK57: 0 | AM57: 0 | AN57: 0 | AP57: 0 | AQ57: 0 | AS57: 0 | AT57: 0 | AV57: 0 | AW57: 0 | AY57: 0 | AZ57: 0 | BB57: 0 | BC57: 0 | BE57: 0 | BF57: 0 | BH57: 0 | BI57: 0 | BK57: 0 | BL57: 0 | BN57: 0 | BO57: 0 | BQ57: 0 | BR57: 0 | BT57: 0 | BU57: 0 | BW57: 0 | BX57: 0 | BZ57: 0 | CA57: 0
A58: 13 | B58: =CONCATENATE(A45,".",A58) -> 2.13 | C58: 0 | D58: 0 | F58: 0 | G58: 0 | I58: 0 | J58: 0 | L58: 0 | M58: 0 | O58: 0 | P58: 0 | R58: 0 | S58: 0 | U58: 0 | V58: 0 | X58: 0 | Y58: 0 | AA58: 0 | AB58: 0 | AD58: 0 | AE58: 0 | AG58: 0 | AH58: 0 | AJ58: 0 | AK58: 0 | AM58: 0 | AN58: 0 | AP58: 0 | AQ58: 0 | AS58: 0 | AT58: 0 | AV58: 0 | AW58: 0 | AY58: 0 | AZ58: 0 | BB58: 0 | BC58: 0 | BE58: 0 | BF58: 0 | BH58: 0 | BI58: 0 | BK58: 0 | BL58: 0 | BN58: 0 | BO58: 0 | BQ58: 0 | BR58: 0 | BT58: 0 | BU58: 0 | BW58: 0 | BX58: 0 | BZ58: 0 | CA58: 0
A59: 14 | B59: =CONCATENATE(A45,".",A59) -> 2.14 | C59: 0 | D59: 0 | F59: 0 | G59: 0 | I59: 0 | J59: 0 | L59: 0 | M59: 0 | O59: 0 | P59: 0 | R59: 0 | S59: 0 | U59: 0 | V59: 0 | X59: 0 | Y59: 0 | AA59: 0 | AB59: 0 | AD59: 0 | AE59: 0 | AG59: 0 | AH59: 0 | AJ59: 0 | AK59: 0 | AM59: 0 | AN59: 0 | AP59: 0 | AQ59: 0 | AS59: 0 | AT59: 0 | AV59: 0 | AW59: 0 | AY59: 0 | AZ59: 0 | BB59: 0 | BC59: 0 | BE59: 0 | BF59: 0 | BH59: 0 | BI59: 0 | BK59: 0 | BL59: 0 | BN59: 0 | BO59: 0 | BQ59: 0 | BR59: 0 | BT59: 0 | BU59: 0 | BW59: 0 | BX59: 0 | BZ59: 0 | CA59: 0
A60: 15 | B60: =CONCATENATE(A45,".",A60) -> 2.15 | C60: 0 | D60: 0 | F60: 0 | G60: 0 | I60: 0 | J60: 0 | L60: 0 | M60: 0 | O60: 0 | P60: 0 | R60: 0 | S60: 0 | U60: 0 | V60: 0 | X60: 0 | Y60: 0 | AA60: 0 | AB60: 0 | AD60: 0 | AE60: 0 | AG60: 0 | AH60: 0 | AJ60: 0 | AK60: 0 | AM60: 0 | AN60: 0 | AP60: 0 | AQ60: 0 | AS60: 0 | AT60: 0 | AV60: 0 | AW60: 0 | AY60: 0 | AZ60: 0 | BB60: 0 | BC60: 0 | BE60: 0 | BF60: 0 | BH60: 0 | BI60: 0 | BK60: 0 | BL60: 0 | BN60: 0 | BO60: 0 | BQ60: 0 | BR60: 0 | BT60: 0 | BU60: 0 | BW60: 0 | BX60: 0 | BZ60: 0 | CA60: 0
A61: 16 | B61: =CONCATENATE(A45,".",A61) -> 2.16 | C61: 0 | D61: 0 | F61: 0 | G61: 0 | I61: 0 | J61: 0 | L61: 0 | M61: 0 | O61: 0 | P61: 0 | R61: 0 | S61: 0 | U61: 0 | V61: 0 | X61: 0 | Y61: 0 | AA61: 0 | AB61: 0 | AD61: 0 | AE61: 0 | AG61: 0 | AH61: 0 | AJ61: 0 | AK61: 0 | AM61: 0 | AN61: 0 | AP61: 0 | AQ61: 0 | AS61: 0 | AT61: 0 | AV61: 0 | AW61: 0 | AY61: 0 | AZ61: 0 | BB61: 0 | BC61: 0 | BE61: 0 | BF61: 0 | BH61: 0 | BI61: 0 | BK61: 0 | BL61: 0 | BN61: 0 | BO61: 0 | BQ61: 0 | BR61: 0 | BT61: 0 | BU61: 0 | BW61: 0 | BX61: 0 | BZ61: 0 | CA61: 0
A62: 17 | B62: =CONCATENATE(A45,".",A62) -> 2.17 | C62: 0 | D62: 0 | F62: 0 | G62: 0 | I62: 0 | J62: 0 | L62: 0 | M62: 0 | O62: 0 | P62: 0 | R62: 0 | S62: 0 | U62: 0 | V62: 0 | X62: 0 | Y62: 0 | AA62: 0 | AB62: 0 | AD62: 0 | AE62: 0 | AG62: 0 | AH62: 0 | AJ62: 0 | AK62: 0 | AM62: 0 | AN62: 0 | AP62: 0 | AQ62: 0 | AS62: 0 | AT62: 0 | AV62: 0 | AW62: 0 | AY62: 0 | AZ62: 0 | BB62: 0 | BC62: 0 | BE62: 0 | BF62: 0 | BH62: 0 | BI62: 0 | BK62: 0 | BL62: 0 | BN62: 0 | BO62: 0 | BQ62: 0 | BR62: 0 | BT62: 0 | BU62: 0 | BW62: 0 | BX62: 0 | BZ62: 0 | CA62: 0
A63: 18 | B63: =CONCATENATE(A45,".",A63) -> 2.18 | C63: 0 | D63: 0 | F63: 0 | G63: 0 | I63: 0 | J63: 0 | L63: 0 | M63: 0 | O63: 0 | P63: 0 | R63: 0 | S63: 0 | U63: 0 | V63: 0 | X63: 0 | Y63: 0 | AA63: 0 | AB63: 0 | AD63: 0 | AE63: 0 | AG63: 0 | AH63: 0 | AJ63: 0 | AK63: 0 | AM63: 0 | AN63: 0 | AP63: 0 | AQ63: 0 | AS63: 0 | AT63: 0 | AV63: 0 | AW63: 0 | AY63: 0 | AZ63: 0 | BB63: 0 | BC63: 0 | BE63: 0 | BF63: 0 | BH63: 0 | BI63: 0 | BK63: 0 | BL63: 0 | BN63: 0 | BO63: 0 | BQ63: 0 | BR63: 0 | BT63: 0 | BU63: 0 | BW63: 0 | BX63: 0 | BZ63: 0 | CA63: 0
A64: 19 | B64: =CONCATENATE(A45,".",A64) -> 2.19 | C64: 0 | D64: 0 | F64: 0 | G64: 0 | I64: 0 | J64: 0 | L64: 0 | M64: 0 | O64: 0 | P64: 0 | R64: 0 | S64: 0 | U64: 0 | V64: 0 | X64: 0 | Y64: 0 | AA64: 0 | AB64: 0 | AD64: 0 | AE64: 0 | AG64: 0 | AH64: 0 | AJ64: 0 | AK64: 0 | AM64: 0 | AN64: 0 | AP64: 0 | AQ64: 0 | AS64: 0 | AT64: 0 | AV64: 0 | AW64: 0 | AY64: 0 | AZ64: 0 | BB64: 0 | BC64: 0 | BE64: 0 | BF64: 0 | BH64: 0 | BI64: 0 | BK64: 0 | BL64: 0 | BN64: 0 | BO64: 0 | BQ64: 0 | BR64: 0 | BT64: 0 | BU64: 0 | BW64: 0 | BX64: 0 | BZ64: 0 | CA64: 0
A65: 20 | B65: =CONCATENATE(A45,".",A65) -> 2.20 | C65: 0 | D65: 0 | F65: 0 | G65: 0 | I65: 0 | J65: 0 | L65: 0 | M65: 0 | O65: 0 | P65: 0 | R65: 0 | S65: 0 | U65: 0 | V65: 0 | X65: 0 | Y65: 0 | AA65: 0 | AB65: 0 | AD65: 0 | AE65: 0 | AG65: 0 | AH65: 0 | AJ65: 0 | AK65: 0 | AM65: 0 | AN65: 0 | AP65: 0 | AQ65: 0 | AS65: 0 | AT65: 0 | AV65: 0 | AW65: 0 | AY65: 0 | AZ65: 0 | BB65: 0 | BC65: 0 | BE65: 0 | BF65: 0 | BH65: 0 | BI65: 0 | BK65: 0 | BL65: 0 | BN65: 0 | BO65: 0 | BQ65: 0 | BR65: 0 | BT65: 0 | BU65: 0 | BW65: 0 | BX65: 0 | BZ65: 0 | CA65: 0
A66: 21 | B66: =CONCATENATE(A45,".",A66) -> 2.21 | C66: 0 | D66: 0 | F66: 0 | G66: 0 | I66: 0 | J66: 0 | L66: 0 | M66: 0 | O66: 0 | P66: 0 | R66: 0 | S66: 0 | U66: 0 | V66: 0 | X66: 0 | Y66: 0 | AA66: 0 | AB66: 0 | AD66: 0 | AE66: 0 | AG66: 0 | AH66: 0 | AJ66: 0 | AK66: 0 | AM66: 0 | AN66: 0 | AP66: 0 | AQ66: 0 | AS66: 0 | AT66: 0 | AV66: 0 | AW66: 0 | AY66: 0 | AZ66: 0 | BB66: 0 | BC66: 0 | BE66: 0 | BF66: 0 | BH66: 0 | BI66: 0 | BK66: 0 | BL66: 0 | BN66: 0 | BO66: 0 | BQ66: 0 | BR66: 0 | BT66: 0 | BU66: 0 | BW66: 0 | BX66: 0 | BZ66: 0 | CA66: 0
A67: 22 | B67: =CONCATENATE(A45,".",A67) -> 2.22 | C67: 0 | D67: 0 | F67: 0 | G67: 0 | I67: 0 | J67: 0 | L67: 0 | M67: 0 | O67: 0 | P67: 0 | R67: 0 | S67: 0 | U67: 0 | V67: 0 | X67: 0 | Y67: 0 | AA67: 0 | AB67: 0 | AD67: 0 | AE67: 0 | AG67: 0 | AH67: 0 | AJ67: 0 | AK67: 0 | AM67: 0 | AN67: 0 | AP67: 0 | AQ67: 0 | AS67: 0 | AT67: 0 | AV67: 0 | AW67: 0 | AY67: 0 | AZ67: 0 | BB67: 0 | BC67: 0 | BE67: 0 | BF67: 0 | BH67: 0 | BI67: 0 | BK67: 0 | BL67: 0 | BN67: 0 | BO67: 0 | BQ67: 0 | BR67: 0 | BT67: 0 | BU67: 0 | BW67: 0 | BX67: 0 | BZ67: 0 | CA67: 0
A68: 23 | B68: =CONCATENATE(A45,".",A68) -> 2.23 | C68: 0 | D68: 0 | F68: 0 | G68: 0 | I68: 0 | J68: 0 | L68: 0 | M68: 0 | O68: 0 | P68: 0 | R68: 0 | S68: 0 | U68: 0 | V68: 0 | X68: 0 | Y68: 0 | AA68: 0 | AB68: 0 | AD68: 0 | AE68: 0 | AG68: 0 | AH68: 0 | AJ68: 0 | AK68: 0 | AM68: 0 | AN68: 0 | AP68: 0 | AQ68: 0 | AS68: 0 | AT68: 0 | AV68: 0 | AW68: 0 | AY68: 0 | AZ68: 0 | BB68: 0 | BC68: 0 | BE68: 0 | BF68: 0 | BH68: 0 | BI68: 0 | BK68: 0 | BL68: 0 | BN68: 0 | BO68: 0 | BQ68: 0 | BR68: 0 | BT68: 0 | BU68: 0 | BW68: 0 | BX68: 0 | BZ68: 0 | CA68: 0
A69: 24 | B69: =CONCATENATE(A45,".",A69) -> 2.24 | C69: 0 | D69: 0 | F69: 0 | G69: 0 | I69: 0 | J69: 0 | L69: 0 | M69: 0 | O69: 0 | P69: 0 | R69: 0 | S69: 0 | U69: 0 | V69: 0 | X69: 0 | Y69: 0 | AA69: 0 | AB69: 0 | AD69: 0 | AE69: 0 | AG69: 0 | AH69: 0 | AJ69: 0 | AK69: 0 | AM69: 0 | AN69: 0 | AP69: 0 | AQ69: 0 | AS69: 0 | AT69: 0 | AV69: 0 | AW69: 0 | AY69: 0 | AZ69: 0 | BB69: 0 | BC69: 0 | BE69: 0 | BF69: 0 | BH69: 0 | BI69: 0 | BK69: 0 | BL69: 0 | BN69: 0 | BO69: 0 | BQ69: 0 | BR69: 0 | BT69: 0 | BU69: 0 | BW69: 0 | BX69: 0 | BZ69: 0 | CA69: 0
A70: 25 | B70: =CONCATENATE(A45,".",A70) -> 2.25 | C70: 0 | D70: 0 | F70: 0 | G70: 0 | I70: 0 | J70: 0 | L70: 0 | M70: 0 | O70: 0 | P70: 0 | R70: 0 | S70: 0 | U70: 0 | V70: 0 | X70: 0 | Y70: 0 | AA70: 0 | AB70: 0 | AD70: 0 | AE70: 0 | AG70: 0 | AH70: 0 | AJ70: 0 | AK70: 0 | AM70: 0 | AN70: 0 | AP70: 0 | AQ70: 0 | AS70: 0 | AT70: 0 | AV70: 0 | AW70: 0 | AY70: 0 | AZ70: 0 | BB70: 0 | BC70: 0 | BE70: 0 | BF70: 0 | BH70: 0 | BI70: 0 | BK70: 0 | BL70: 0 | BN70: 0 | BO70: 0 | BQ70: 0 | BR70: 0 | BT70: 0 | BU70: 0 | BW70: 0 | BX70: 0 | BZ70: 0 | CA70: 0
A71: 26 | B71: =CONCATENATE(A45,".",A71) -> 2.26 | C71: 0 | D71: 0 | F71: 0 | G71: 0 | I71: 0 | J71: 0 | L71: 0 | M71: 0 | O71: 0 | P71: 0 | R71: 0 | S71: 0 | U71: 0 | V71: 0 | X71: 0 | Y71: 0 | AA71: 0 | AB71: 0 | AD71: 0 | AE71: 0 | AG71: 0 | AH71: 0 | AJ71: 0 | AK71: 0 | AM71: 0 | AN71: 0 | AP71: 0 | AQ71: 0 | AS71: 0 | AT71: 0 | AV71: 0 | AW71: 0 | AY71: 0 | AZ71: 0 | BB71: 0 | BC71: 0 | BE71: 0 | BF71: 0 | BH71: 0 | BI71: 0 | BK71: 0 | BL71: 0 | BN71: 0 | BO71: 0 | BQ71: 0 | BR71: 0 | BT71: 0 | BU71: 0 | BW71: 0 | BX71: 0 | BZ71: 0 | CA71: 0
A72: 27 | B72: =CONCATENATE(A45,".",A72) -> 2.27 | C72: 0 | D72: 0 | F72: 0 | G72: 0 | I72: 0 | J72: 0 | L72: 0 | M72: 0 | O72: 0 | P72: 0 | R72: 0 | S72: 0 | U72: 0 | V72: 0 | X72: 0 | Y72: 0 | AA72: 0 | AB72: 0 | AD72: 0 | AE72: 0 | AG72: 0 | AH72: 0 | AJ72: 0 | AK72: 0 | AM72: 0 | AN72: 0 | AP72: 0 | AQ72: 0 | AS72: 0 | AT72: 0 | AV72: 0 | AW72: 0 | AY72: 0 | AZ72: 0 | BB72: 0 | BC72: 0 | BE72: 0 | BF72: 0 | BH72: 0 | BI72: 0 | BK72: 0 | BL72: 0 | BN72: 0 | BO72: 0 | BQ72: 0 | BR72: 0 | BT72: 0 | BU72: 0 | BW72: 0 | BX72: 0 | BZ72: 0 | CA72: 0
A73: 28 | B73: =CONCATENATE(A45,".",A73) -> 2.28 | C73: 0 | D73: 0 | F73: 0 | G73: 0 | I73: 0 | J73: 0 | L73: 0 | M73: 0 | O73: 0 | P73: 0 | R73: 0 | S73: 0 | U73: 0 | V73: 0 | X73: 0 | Y73: 0 | AA73: 0 | AB73: 0 | AD73: 0 | AE73: 0 | AG73: 0 | AH73: 0 | AJ73: 0 | AK73: 0 | AM73: 0 | AN73: 0 | AP73: 0 | AQ73: 0 | AS73: 0 | AT73: 0 | AV73: 0 | AW73: 0 | AY73: 0 | AZ73: 0 | BB73: 0 | BC73: 0 | BE73: 0 | BF73: 0 | BH73: 0 | BI73: 0 | BK73: 0 | BL73: 0 | BN73: 0 | BO73: 0 | BQ73: 0 | BR73: 0 | BT73: 0 | BU73: 0 | BW73: 0 | BX73: 0 | BZ73: 0 | CA73: 0
A74: 29 | B74: =CONCATENATE(A45,".",A74) -> 2.29 | C74: 0 | D74: 0 | F74: 0 | G74: 0 | I74: 0 | J74: 0 | L74: 0 | M74: 0 | O74: 0 | P74: 0 | R74: 0 | S74: 0 | U74: 0 | V74: 0 | X74: 0 | Y74: 0 | AA74: 0 | AB74: 0 | AD74: 0 | AE74: 0 | AG74: 0 | AH74: 0 | AJ74: 0 | AK74: 0 | AM74: 0 | AN74: 0 | AP74: 0 | AQ74: 0 | AS74: 0 | AT74: 0 | AV74: 0 | AW74: 0 | AY74: 0 | AZ74: 0 | BB74: 0 | BC74: 0 | BE74: 0 | BF74: 0 | BH74: 0 | BI74: 0 | BK74: 0 | BL74: 0 | BN74: 0 | BO74: 0 | BQ74: 0 | BR74: 0 | BT74: 0 | BU74: 0 | BW74: 0 | BX74: 0 | BZ74: 0 | CA74: 0
A75: 30 | B75: =CONCATENATE(A45,".",A75) -> 2.30 | C75: 0 | D75: 0 | F75: 0 | G75: 0 | I75: 0 | J75: 0 | L75: 0 | M75: 0 | O75: 0 | P75: 0 | R75: 0 | S75: 0 | U75: 0 | V75: 0 | X75: 0 | Y75: 0 | AA75: 0 | AB75: 0 | AD75: 0 | AE75: 0 | AG75: 0 | AH75: 0 | AJ75: 0 | AK75: 0 | AM75: 0 | AN75: 0 | AP75: 0 | AQ75: 0 | AS75: 0 | AT75: 0 | AV75: 0 | AW75: 0 | AY75: 0 | AZ75: 0 | BB75: 0 | BC75: 0 | BE75: 0 | BF75: 0 | BH75: 0 | BI75: 0 | BK75: 0 | BL75: 0 | BN75: 0 | BO75: 0 | BQ75: 0 | BR75: 0 | BT75: 0 | BU75: 0 | BW75: 0 | BX75: 0 | BZ75: 0 | CA75: 0
A76: 3 | B76: =A76 -> 3 | C76: SERVIÇOS COMPLEMENTARES | D76: 8922.09 | F76: =IF(ISERROR(G76/$D76=TRUE),0,G76/$D76) -> 0 | G76: =SUM(G77:G106) -> 0 | I76: =IF(ISERROR(J76/$D76=TRUE),0,J76/$D76) -> 0 | J76: =SUM(J77:J106) -> 0 | L76: =IF(ISERROR(M76/$D76=TRUE),0,M76/$D76) -> 1 | M76: =SUM(M77:M106) -> 8922.09 | O76: =IF(ISERROR(P76/$D76=TRUE),0,P76/$D76) -> 0 | P76: =SUM(P77:P106) -> 0 | R76: =IF(ISERROR(S76/$D76=TRUE),0,S76/$D76) -> 0 | S76: =SUM(S77:S106) -> 0 | U76: =IF(ISERROR(V76/$D76=TRUE),0,V76/$D76) -> 0 | V76: =SUM(V77:V106) -> 0 | X76: =IF(ISERROR(Y76/$D76=TRUE),0,Y76/$D76) -> 0 | Y76: =SUM(Y77:Y106) -> 0 | AA76: =IF(ISERROR(AB76/$D76=TRUE),0,AB76/$D76) -> 0 | AB76: =SUM(AB77:AB106) -> 0 | AD76: =IF(ISERROR(AE76/$D76=TRUE),0,AE76/$D76) -> 0 | AE76: =SUM(AE77:AE106) -> 0 | AG76: =IF(ISERROR(AH76/$D76=TRUE),0,AH76/$D76) -> 0 | AH76: =SUM(AH77:AH106) -> 0 | AJ76: =IF(ISERROR(AK76/$D76=TRUE),0,AK76/$D76) -> 0 | AK76: =SUM(AK77:AK106) -> 0 | AM76: =IF(ISERROR(AN76/$D76=TRUE),0,AN76/$D76) -> 0 | AN76: =SUM(AN77:AN106) -> 0 | AP76: =IF(ISERROR(AQ76/$D76=TRUE),0,AQ76/$D76) -> 0 | AQ76: =SUM(AQ77:AQ106) -> 0 | AS76: =IF(ISERROR(AT76/$D76=TRUE),0,AT76/$D76) -> 0 | AT76: =SUM(AT77:AT106) -> 0 | AV76: =IF(ISERROR(AW76/$D76=TRUE),0,AW76/$D76) -> 0 | AW76: =SUM(AW77:AW106) -> 0 | AY76: =IF(ISERROR(AZ76/$D76=TRUE),0,AZ76/$D76) -> 0 | AZ76: =SUM(AZ77:AZ106) -> 0 | BB76: =IF(ISERROR(BC76/$D76=TRUE),0,BC76/$D76) -> 0 | BC76: =SUM(BC77:BC106) -> 0 | BE76: =IF(ISERROR(BF76/$D76=TRUE),0,BF76/$D76) -> 0 | BF76: =SUM(BF77:BF106) -> 0 | BH76: =IF(ISERROR(BI76/$D76=TRUE),0,BI76/$D76) -> 0 | BI76: =SUM(BI77:BI106) -> 0 | BK76: =IF(ISERROR(BL76/$D76=TRUE),0,BL76/$D76) -> 0 | BL76: =SUM(BL77:BL106) -> 0 | BN76: =IF(ISERROR(BO76/$D76=TRUE),0,BO76/$D76) -> 0 | BO76: =SUM(BO77:BO106) -> 0 | BQ76: =IF(ISERROR(BR76/$D76=TRUE),0,BR76/$D76) -> 0 | BR76: =SUM(BR77:BR106) -> 0 | BT76: =IF(ISERROR(BU76/$D76=TRUE),0,BU76/$D76) -> 0 | BU76: =SUM(BU77:BU106) -> 0 | BW76: =IF(ISERROR(BX76/$D76=TRUE),0,BX76/$D76) -> 0 | BX76: =SUM(BX77:BX106) -> 0 | BZ76: =IF(ISERROR(CA76/$D76=TRUE),0,CA76/$D76) -> 1 | CA76: =SUM(CA77:CA106) -> 8922.09
A77: 1 | B77: =CONCATENATE(A76,".",A77) -> 3.1 | C77: INSTALAÇÃO DE LINHAS DE VIDA | D77: 8922.09 | F77: 0 | G77: =F77*$D77 -> 0 | I77: 0 | J77: =I77*$D77 -> 0 | L77: 1 | M77: =L77*$D77 -> 8922.09 | O77: 0 | P77: =O77*$D77 -> 0 | R77: 0 | S77: =R77*$D77 -> 0 | U77: 0 | V77: =U77*$D77 -> 0 | X77: 0 | Y77: =X77*$D77 -> 0 | AA77: 0 | AB77: =AA77*$D77 -> 0 | AD77: 0 | AE77: =AD77*$D77 -> 0 | AG77: 0 | AH77: =AG77*$D77 -> 0 | AJ77: 0 | AK77: =AJ77*$D77 -> 0 | AM77: 0 | AN77: =AM77*$D77 -> 0 | AP77: 0 | AQ77: =AP77*$D77 -> 0 | AS77: 0 | AT77: =AS77*$D77 -> 0 | AV77: 0 | AW77: =AV77*$D77 -> 0 | AY77: 0 | AZ77: =AY77*$D77 -> 0 | BB77: 0 | BC77: =BB77*$D77 -> 0 | BE77: 0 | BF77: =BE77*$D77 -> 0 | BH77: 0 | BI77: =BH77*$D77 -> 0 | BK77: 0 | BL77: =BK77*$D77 -> 0 | BN77: 0 | BO77: =BN77*$D77 -> 0 | BQ77: 0 | BR77: =BQ77*$D77 -> 0 | BT77: 0 | BU77: =BT77*$D77 -> 0 | BW77: 0 | BX77: =BW77*$D77 -> 0 | BZ77: =IF(ISERROR(CA77/$D77=TRUE),0,CA77/$D77) -> 1 | CA77: =BX77+BU77+BR77+BO77+BL77+BI77+BF77+BC77+AZ77+AW77+AT77+AQ77+AN77+AK77+AH77+AE77+AB77+Y77+V77+S77+P77+M77+J77+G77 -> 8922.09
A78: 2 | B78: =CONCATENATE(A76,".",A78) -> 3.2 | C78: 0 | D78: 0 | F78: 0.5 | G78: =F78*$D78 -> 0 | I78: 0.5 | J78: =I78*$D78 -> 0 | L78: 0 | M78: =L78*$D78 -> 0 | O78: 0 | P78: =O78*$D78 -> 0 | R78: 0 | S78: =R78*$D78 -> 0 | U78: 0 | V78: =U78*$D78 -> 0 | X78: 0 | Y78: =X78*$D78 -> 0 | AA78: 0 | AB78: =AA78*$D78 -> 0 | AD78: 0 | AE78: =AD78*$D78 -> 0 | AG78: 0 | AH78: =AG78*$D78 -> 0 | AJ78: 0 | AK78: =AJ78*$D78 -> 0 | AM78: 0 | AN78: =AM78*$D78 -> 0 | AP78: 0 | AQ78: =AP78*$D78 -> 0 | AS78: 0 | AT78: =AS78*$D78 -> 0 | AV78: 0 | AW78: =AV78*$D78 -> 0 | AY78: 0 | AZ78: =AY78*$D78 -> 0 | BB78: 0 | BC78: =BB78*$D78 -> 0 | BE78: 0 | BF78: =BE78*$D78 -> 0 | BH78: 0 | BI78: =BH78*$D78 -> 0 | BK78: 0 | BL78: =BK78*$D78 -> 0 | BN78: 0 | BO78: =BN78*$D78 -> 0 | BQ78: 0 | BR78: =BQ78*$D78 -> 0 | BT78: 0 | BU78: =BT78*$D78 -> 0 | BW78: 0 | BX78: =BW78*$D78 -> 0 | BZ78: =IF(ISERROR(CA78/$D78=TRUE),0,CA78/$D78) -> 0 | CA78: =BX78+BU78+BR78+BO78+BL78+BI78+BF78+BC78+AZ78+AW78+AT78+AQ78+AN78+AK78+AH78+AE78+AB78+Y78+V78+S78+P78+M78+J78+G78 -> 0
A79: 3 | B79: =CONCATENATE(A76,".",A79) -> 3.3 | C79: 0 | D79: 0 | F79: 0 | G79: 0 | I79: 0 | J79: 0 | L79: 0 | M79: 0 | O79: 0 | P79: 0 | R79: 0 | S79: 0 | U79: 0 | V79: 0 | X79: 0 | Y79: 0 | AA79: 0 | AB79: 0 | AD79: 0 | AE79: 0 | AG79: 0 | AH79: 0 | AJ79: 0 | AK79: 0 | AM79: 0 | AN79: 0 | AP79: 0 | AQ79: 0 | AS79: 0 | AT79: 0 | AV79: 0 | AW79: 0 | AY79: 0 | AZ79: 0 | BB79: 0 | BC79: 0 | BE79: 0 | BF79: 0 | BH79: 0 | BI79: 0 | BK79: 0 | BL79: 0 | BN79: 0 | BO79: 0 | BQ79: 0 | BR79: 0 | BT79: 0 | BU79: 0 | BW79: 0 | BX79: 0 | BZ79: 0 | CA79: 0
A80: 4 | B80: =CONCATENATE(A76,".",A80) -> 3.4 | C80: 0 | D80: 0 | F80: 0 | G80: 0 | I80: 0 | J80: 0 | L80: 0 | M80: 0 | O80: 0 | P80: 0 | R80: 0 | S80: 0 | U80: 0 | V80: 0 | X80: 0 | Y80: 0 | AA80: 0 | AB80: 0 | AD80: 0 | AE80: 0 | AG80: 0 | AH80: 0 | AJ80: 0 | AK80: 0 | AM80: 0 | AN80: 0 | AP80: 0 | AQ80: 0 | AS80: 0 | AT80: 0 | AV80: 0 | AW80: 0 | AY80: 0 | AZ80: 0 | BB80: 0 | BC80: 0 | BE80: 0 | BF80: 0 | BH80: 0 | BI80: 0 | BK80: 0 | BL80: 0 | BN80: 0 | BO80: 0 | BQ80: 0 | BR80: 0 | BT80: 0 | BU80: 0 | BW80: 0 | BX80: 0 | BZ80: 0 | CA80: 0
A81: 5 | B81: =CONCATENATE(A76,".",A81) -> 3.5 | C81: 0 | D81: 0 | F81: 0 | G81: 0 | I81: 0 | J81: 0 | L81: 0 | M81: 0 | O81: 0 | P81: 0 | R81: 0 | S81: 0 | U81: 0 | V81: 0 | X81: 0 | Y81: 0 | AA81: 0 | AB81: 0 | AD81: 0 | AE81: 0 | AG81: 0 | AH81: 0 | AJ81: 0 | AK81: 0 | AM81: 0 | AN81: 0 | AP81: 0 | AQ81: 0 | AS81: 0 | AT81: 0 | AV81: 0 | AW81: 0 | AY81: 0 | AZ81: 0 | BB81: 0 | BC81: 0 | BE81: 0 | BF81: 0 | BH81: 0 | BI81: 0 | BK81: 0 | BL81: 0 | BN81: 0 | BO81: 0 | BQ81: 0 | BR81: 0 | BT81: 0 | BU81: 0 | BW81: 0 | BX81: 0 | BZ81: 0 | CA81: 0
A82: 6 | B82: =CONCATENATE(A76,".",A82) -> 3.6 | C82: 0 | D82: 0 | F82: 0 | G82: 0 | I82: 0 | J82: 0 | L82: 0 | M82: 0 | O82: 0 | P82: 0 | R82: 0 | S82: 0 | U82: 0 | V82: 0 | X82: 0 | Y82: 0 | AA82: 0 | AB82: 0 | AD82: 0 | AE82: 0 | AG82: 0 | AH82: 0 | AJ82: 0 | AK82: 0 | AM82: 0 | AN82: 0 | AP82: 0 | AQ82: 0 | AS82: 0 | AT82: 0 | AV82: 0 | AW82: 0 | AY82: 0 | AZ82: 0 | BB82: 0 | BC82: 0 | BE82: 0 | BF82: 0 | BH82: 0 | BI82: 0 | BK82: 0 | BL82: 0 | BN82: 0 | BO82: 0 | BQ82: 0 | BR82: 0 | BT82: 0 | BU82: 0 | BW82: 0 | BX82: 0 | BZ82: 0 | CA82: 0
A83: 7 | B83: =CONCATENATE(A76,".",A83) -> 3.7 | C83: 0 | D83: 0 | F83: 0 | G83: 0 | I83: 0 | J83: 0 | L83: 0 | M83: 0 | O83: 0 | P83: 0 | R83: 0 | S83: 0 | U83: 0 | V83: 0 | X83: 0 | Y83: 0 | AA83: 0 | AB83: 0 | AD83: 0 | AE83: 0 | AG83: 0 | AH83: 0 | AJ83: 0 | AK83: 0 | AM83: 0 | AN83: 0 | AP83: 0 | AQ83: 0 | AS83: 0 | AT83: 0 | AV83: 0 | AW83: 0 | AY83: 0 | AZ83: 0 | BB83: 0 | BC83: 0 | BE83: 0 | BF83: 0 | BH83: 0 | BI83: 0 | BK83: 0 | BL83: 0 | BN83: 0 | BO83: 0 | BQ83: 0 | BR83: 0 | BT83: 0 | BU83: 0 | BW83: 0 | BX83: 0 | BZ83: 0 | CA83: 0
A84: 8 | B84: =CONCATENATE(A76,".",A84) -> 3.8 | C84: 0 | D84: 0 | F84: 0 | G84: 0 | I84: 0 | J84: 0 | L84: 0 | M84: 0 | O84: 0 | P84: 0 | R84: 0 | S84: 0 | U84: 0 | V84: 0 | X84: 0 | Y84: 0 | AA84: 0 | AB84: 0 | AD84: 0 | AE84: 0 | AG84: 0 | AH84: 0 | AJ84: 0 | AK84: 0 | AM84: 0 | AN84: 0 | AP84: 0 | AQ84: 0 | AS84: 0 | AT84: 0 | AV84: 0 | AW84: 0 | AY84: 0 | AZ84: 0 | BB84: 0 | BC84: 0 | BE84: 0 | BF84: 0 | BH84: 0 | BI84: 0 | BK84: 0 | BL84: 0 | BN84: 0 | BO84: 0 | BQ84: 0 | BR84: 0 | BT84: 0 | BU84: 0 | BW84: 0 | BX84: 0 | BZ84: 0 | CA84: 0
A85: 9 | B85: =CONCATENATE(A76,".",A85) -> 3.9 | C85: 0 | D85: 0 | F85: 0 | G85: 0 | I85: 0 | J85: 0 | L85: 0 | M85: 0 | O85: 0 | P85: 0 | R85: 0 | S85: 0 | U85: 0 | V85: 0 | X85: 0 | Y85: 0 | AA85: 0 | AB85: 0 | AD85: 0 | AE85: 0 | AG85: 0 | AH85: 0 | AJ85: 0 | AK85: 0 | AM85: 0 | AN85: 0 | AP85: 0 | AQ85: 0 | AS85: 0 | AT85: 0 | AV85: 0 | AW85: 0 | AY85: 0 | AZ85: 0 | BB85: 0 | BC85: 0 | BE85: 0 | BF85: 0 | BH85: 0 | BI85: 0 | BK85: 0 | BL85: 0 | BN85: 0 | BO85: 0 | BQ85: 0 | BR85: 0 | BT85: 0 | BU85: 0 | BW85: 0 | BX85: 0 | BZ85: 0 | CA85: 0
A86: 10 | B86: =CONCATENATE(A76,".",A86) -> 3.10 | C86: 0 | D86: 0 | F86: 0 | G86: 0 | I86: 0 | J86: 0 | L86: 0 | M86: 0 | O86: 0 | P86: 0 | R86: 0 | S86: 0 | U86: 0 | V86: 0 | X86: 0 | Y86: 0 | AA86: 0 | AB86: 0 | AD86: 0 | AE86: 0 | AG86: 0 | AH86: 0 | AJ86: 0 | AK86: 0 | AM86: 0 | AN86: 0 | AP86: 0 | AQ86: 0 | AS86: 0 | AT86: 0 | AV86: 0 | AW86: 0 | AY86: 0 | AZ86: 0 | BB86: 0 | BC86: 0 | BE86: 0 | BF86: 0 | BH86: 0 | BI86: 0 | BK86: 0 | BL86: 0 | BN86: 0 | BO86: 0 | BQ86: 0 | BR86: 0 | BT86: 0 | BU86: 0 | BW86: 0 | BX86: 0 | BZ86: 0 | CA86: 0
A87: 11 | B87: =CONCATENATE(A76,".",A87) -> 3.11 | C87: 0 | D87: 0 | F87: 0 | G87: 0 | I87: 0 | J87: 0 | L87: 0 | M87: 0 | O87: 0 | P87: 0 | R87: 0 | S87: 0 | U87: 0 | V87: 0 | X87: 0 | Y87: 0 | AA87: 0 | AB87: 0 | AD87: 0 | AE87: 0 | AG87: 0 | AH87: 0 | AJ87: 0 | AK87: 0 | AM87: 0 | AN87: 0 | AP87: 0 | AQ87: 0 | AS87: 0 | AT87: 0 | AV87: 0 | AW87: 0 | AY87: 0 | AZ87: 0 | BB87: 0 | BC87: 0 | BE87: 0 | BF87: 0 | BH87: 0 | BI87: 0 | BK87: 0 | BL87: 0 | BN87: 0 | BO87: 0 | BQ87: 0 | BR87: 0 | BT87: 0 | BU87: 0 | BW87: 0 | BX87: 0 | BZ87: 0 | CA87: 0
A88: 12 | B88: =CONCATENATE(A76,".",A88) -> 3.12 | C88: 0 | D88: 0 | F88: 0 | G88: 0 | I88: 0 | J88: 0 | L88: 0 | M88: 0 | O88: 0 | P88: 0 | R88: 0 | S88: 0 | U88: 0 | V88: 0 | X88: 0 | Y88: 0 | AA88: 0 | AB88: 0 | AD88: 0 | AE88: 0 | AG88: 0 | AH88: 0 | AJ88: 0 | AK88: 0 | AM88: 0 | AN88: 0 | AP88: 0 | AQ88: 0 | AS88: 0 | AT88: 0 | AV88: 0 | AW88: 0 | AY88: 0 | AZ88: 0 | BB88: 0 | BC88: 0 | BE88: 0 | BF88: 0 | BH88: 0 | BI88: 0 | BK88: 0 | BL88: 0 | BN88: 0 | BO88: 0 | BQ88: 0 | BR88: 0 | BT88: 0 | BU88: 0 | BW88: 0 | BX88: 0 | BZ88: 0 | CA88: 0
A89: 13 | B89: =CONCATENATE(A76,".",A89) -> 3.13 | C89: 0 | D89: 0 | F89: 0 | G89: 0 | I89: 0 | J89: 0 | L89: 0 | M89: 0 | O89: 0 | P89: 0 | R89: 0 | S89: 0 | U89: 0 | V89: 0 | X89: 0 | Y89: 0 | AA89: 0 | AB89: 0 | AD89: 0 | AE89: 0 | AG89: 0 | AH89: 0 | AJ89: 0 | AK89: 0 | AM89: 0 | AN89: 0 | AP89: 0 | AQ89: 0 | AS89: 0 | AT89: 0 | AV89: 0 | AW89: 0 | AY89: 0 | AZ89: 0 | BB89: 0 | BC89: 0 | BE89: 0 | BF89: 0 | BH89: 0 | BI89: 0 | BK89: 0 | BL89: 0 | BN89: 0 | BO89: 0 | BQ89: 0 | BR89: 0 | BT89: 0 | BU89: 0 | BW89: 0 | BX89: 0 | BZ89: 0 | CA89: 0
A90: 14 | B90: =CONCATENATE(A76,".",A90) -> 3.14 | C90: 0 | D90: 0 | F90: 0 | G90: 0 | I90: 0 | J90: 0 | L90: 0 | M90: 0 | O90: 0 | P90: 0 | R90: 0 | S90: 0 | U90: 0 | V90: 0 | X90: 0 | Y90: 0 | AA90: 0 | AB90: 0 | AD90: 0 | AE90: 0 | AG90: 0 | AH90: 0 | AJ90: 0 | AK90: 0 | AM90: 0 | AN90: 0 | AP90: 0 | AQ90: 0 | AS90: 0 | AT90: 0 | AV90: 0 | AW90: 0 | AY90: 0 | AZ90: 0 | BB90: 0 | BC90: 0 | BE90: 0 | BF90: 0 | BH90: 0 | BI90: 0 | BK90: 0 | BL90: 0 | BN90: 0 | BO90: 0 | BQ90: 0 | BR90: 0 | BT90: 0 | BU90: 0 | BW90: 0 | BX90: 0 | BZ90: 0 | CA90: 0
A91: 15 | B91: =CONCATENATE(A76,".",A91) -> 3.15 | C91: 0 | D91: 0 | F91: 0 | G91: 0 | I91: 0 | J91: 0 | L91: 0 | M91: 0 | O91: 0 | P91: 0 | R91: 0 | S91: 0 | U91: 0 | V91: 0 | X91: 0 | Y91: 0 | AA91: 0 | AB91: 0 | AD91: 0 | AE91: 0 | AG91: 0 | AH91: 0 | AJ91: 0 | AK91: 0 | AM91: 0 | AN91: 0 | AP91: 0 | AQ91: 0 | AS91: 0 | AT91: 0 | AV91: 0 | AW91: 0 | AY91: 0 | AZ91: 0 | BB91: 0 | BC91: 0 | BE91: 0 | BF91: 0 | BH91: 0 | BI91: 0 | BK91: 0 | BL91: 0 | BN91: 0 | BO91: 0 | BQ91: 0 | BR91: 0 | BT91: 0 | BU91: 0 | BW91: 0 | BX91: 0 | BZ91: 0 | CA91: 0
A92: 16 | B92: =CONCATENATE(A76,".",A92) -> 3.16 | C92: 0 | D92: 0 | F92: 0 | G92: 0 | I92: 0 | J92: 0 | L92: 0 | M92: 0 | O92: 0 | P92: 0 | R92: 0 | S92: 0 | U92: 0 | V92: 0 | X92: 0 | Y92: 0 | AA92: 0 | AB92: 0 | AD92: 0 | AE92: 0 | AG92: 0 | AH92: 0 | AJ92: 0 | AK92: 0 | AM92: 0 | AN92: 0 | AP92: 0 | AQ92: 0 | AS92: 0 | AT92: 0 | AV92: 0 | AW92: 0 | AY92: 0 | AZ92: 0 | BB92: 0 | BC92: 0 | BE92: 0 | BF92: 0 | BH92: 0 | BI92: 0 | BK92: 0 | BL92: 0 | BN92: 0 | BO92: 0 | BQ92: 0 | BR92: 0 | BT92: 0 | BU92: 0 | BW92: 0 | BX92: 0 | BZ92: 0 | CA92: 0
A93: 17 | B93: =CONCATENATE(A76,".",A93) -> 3.17 | C93: 0 | D93: 0 | F93: 0 | G93: 0 | I93: 0 | J93: 0 | L93: 0 | M93: 0 | O93: 0 | P93: 0 | R93: 0 | S93: 0 | U93: 0 | V93: 0 | X93: 0 | Y93: 0 | AA93: 0 | AB93: 0 | AD93: 0 | AE93: 0 | AG93: 0 | AH93: 0 | AJ93: 0 | AK93: 0 | AM93: 0 | AN93: 0 | AP93: 0 | AQ93: 0 | AS93: 0 | AT93: 0 | AV93: 0 | AW93: 0 | AY93: 0 | AZ93: 0 | BB93: 0 | BC93: 0 | BE93: 0 | BF93: 0 | BH93: 0 | BI93: 0 | BK93: 0 | BL93: 0 | BN93: 0 | BO93: 0 | BQ93: 0 | BR93: 0 | BT93: 0 | BU93: 0 | BW93: 0 | BX93: 0 | BZ93: 0 | CA93: 0
A94: 18 | B94: =CONCATENATE(A76,".",A94) -> 3.18 | C94: 0 | D94: 0 | F94: 0 | G94: 0 | I94: 0 | J94: 0 | L94: 0 | M94: 0 | O94: 0 | P94: 0 | R94: 0 | S94: 0 | U94: 0 | V94: 0 | X94: 0 | Y94: 0 | AA94: 0 | AB94: 0 | AD94: 0 | AE94: 0 | AG94: 0 | AH94: 0 | AJ94: 0 | AK94: 0 | AM94: 0 | AN94: 0 | AP94: 0 | AQ94: 0 | AS94: 0 | AT94: 0 | AV94: 0 | AW94: 0 | AY94: 0 | AZ94: 0 | BB94: 0 | BC94: 0 | BE94: 0 | BF94: 0 | BH94: 0 | BI94: 0 | BK94: 0 | BL94: 0 | BN94: 0 | BO94: 0 | BQ94: 0 | BR94: 0 | BT94: 0 | BU94: 0 | BW94: 0 | BX94: 0 | BZ94: 0 | CA94: 0
A95: 19 | B95: =CONCATENATE(A76,".",A95) -> 3.19 | C95: 0 | D95: 0 | F95: 0 | G95: 0 | I95: 0 | J95: 0 | L95: 0 | M95: 0 | O95: 0 | P95: 0 | R95: 0 | S95: 0 | U95: 0 | V95: 0 | X95: 0 | Y95: 0 | AA95: 0 | AB95: 0 | AD95: 0 | AE95: 0 | AG95: 0 | AH95: 0 | AJ95: 0 | AK95: 0 | AM95: 0 | AN95: 0 | AP95: 0 | AQ95: 0 | AS95: 0 | AT95: 0 | AV95: 0 | AW95: 0 | AY95: 0 | AZ95: 0 | BB95: 0 | BC95: 0 | BE95: 0 | BF95: 0 | BH95: 0 | BI95: 0 | BK95: 0 | BL95: 0 | BN95: 0 | BO95: 0 | BQ95: 0 | BR95: 0 | BT95: 0 | BU95: 0 | BW95: 0 | BX95: 0 | BZ95: 0 | CA95: 0
A96: 20 | B96: =CONCATENATE(A76,".",A96) -> 3.20 | C96: 0 | D96: 0 | F96: 0 | G96: 0 | I96: 0 | J96: 0 | L96: 0 | M96: 0 | O96: 0 | P96: 0 | R96: 0 | S96: 0 | U96: 0 | V96: 0 | X96: 0 | Y96: 0 | AA96: 0 | AB96: 0 | AD96: 0 | AE96: 0 | AG96: 0 | AH96: 0 | AJ96: 0 | AK96: 0 | AM96: 0 | AN96: 0 | AP96: 0 | AQ96: 0 | AS96: 0 | AT96: 0 | AV96: 0 | AW96: 0 | AY96: 0 | AZ96: 0 | BB96: 0 | BC96: 0 | BE96: 0 | BF96: 0 | BH96: 0 | BI96: 0 | BK96: 0 | BL96: 0 | BN96: 0 | BO96: 0 | BQ96: 0 | BR96: 0 | BT96: 0 | BU96: 0 | BW96: 0 | BX96: 0 | BZ96: 0 | CA96: 0
A97: 21 | B97: =CONCATENATE(A76,".",A97) -> 3.21 | C97: 0 | D97: 0 | F97: 0 | G97: 0 | I97: 0 | J97: 0 | L97: 0 | M97: 0 | O97: 0 | P97: 0 | R97: 0 | S97: 0 | U97: 0 | V97: 0 | X97: 0 | Y97: 0 | AA97: 0 | AB97: 0 | AD97: 0 | AE97: 0 | AG97: 0 | AH97: 0 | AJ97: 0 | AK97: 0 | AM97: 0 | AN97: 0 | AP97: 0 | AQ97: 0 | AS97: 0 | AT97: 0 | AV97: 0 | AW97: 0 | AY97: 0 | AZ97: 0 | BB97: 0 | BC97: 0 | BE97: 0 | BF97: 0 | BH97: 0 | BI97: 0 | BK97: 0 | BL97: 0 | BN97: 0 | BO97: 0 | BQ97: 0 | BR97: 0 | BT97: 0 | BU97: 0 | BW97: 0 | BX97: 0 | BZ97: 0 | CA97: 0
A98: 22 | B98: =CONCATENATE(A76,".",A98) -> 3.22 | C98: 0 | D98: 0 | F98: 0 | G98: 0 | I98: 0 | J98: 0 | L98: 0 | M98: 0 | O98: 0 | P98: 0 | R98: 0 | S98: 0 | U98: 0 | V98: 0 | X98: 0 | Y98: 0 | AA98: 0 | AB98: 0 | AD98: 0 | AE98: 0 | AG98: 0 | AH98: 0 | AJ98: 0 | AK98: 0 | AM98: 0 | AN98: 0 | AP98: 0 | AQ98: 0 | AS98: 0 | AT98: 0 | AV98: 0 | AW98: 0 | AY98: 0 | AZ98: 0 | BB98: 0 | BC98: 0 | BE98: 0 | BF98: 0 | BH98: 0 | BI98: 0 | BK98: 0 | BL98: 0 | BN98: 0 | BO98: 0 | BQ98: 0 | BR98: 0 | BT98: 0 | BU98: 0 | BW98: 0 | BX98: 0 | BZ98: 0 | CA98: 0
A99: 23 | B99: =CONCATENATE(A76,".",A99) -> 3.23 | C99: 0 | D99: 0 | F99: 0 | G99: 0 | I99: 0 | J99: 0 | L99: 0 | M99: 0 | O99: 0 | P99: 0 | R99: 0 | S99: 0 | U99: 0 | V99: 0 | X99: 0 | Y99: 0 | AA99: 0 | AB99: 0 | AD99: 0 | AE99: 0 | AG99: 0 | AH99: 0 | AJ99: 0 | AK99: 0 | AM99: 0 | AN99: 0 | AP99: 0 | AQ99: 0 | AS99: 0 | AT99: 0 | AV99: 0 | AW99: 0 | AY99: 0 | AZ99: 0 | BB99: 0 | BC99: 0 | BE99: 0 | BF99: 0 | BH99: 0 | BI99: 0 | BK99: 0 | BL99: 0 | BN99: 0 | BO99: 0 | BQ99: 0 | BR99: 0 | BT99: 0 | BU99: 0 | BW99: 0 | BX99: 0 | BZ99: 0 | CA99: 0
A100: 24 | B100: =CONCATENATE(A76,".",A100) -> 3.24 | C100: 0 | D100: 0 | F100: 0 | G100: 0 | I100: 0 | J100: 0 | L100: 0 | M100: 0 | O100: 0 | P100: 0 | R100: 0 | S100: 0 | U100: 0 | V100: 0 | X100: 0 | Y100: 0 | AA100: 0 | AB100: 0 | AD100: 0 | AE100: 0 | AG100: 0 | AH100: 0 | AJ100: 0 | AK100: 0 | AM100: 0 | AN100: 0 | AP100: 0 | AQ100: 0 | AS100: 0 | AT100: 0 | AV100: 0 | AW100: 0 | AY100: 0 | AZ100: 0 | BB100: 0 | BC100: 0 | BE100: 0 | BF100: 0 | BH100: 0 | BI100: 0 | BK100: 0 | BL100: 0 | BN100: 0 | BO100: 0 | BQ100: 0 | BR100: 0 | BT100: 0 | BU100: 0 | BW100: 0 | BX100: 0 | BZ100: 0 | CA100: 0
A101: 25 | B101: =CONCATENATE(A76,".",A101) -> 3.25 | C101: 0 | D101: 0 | F101: 0 | G101: 0 | I101: 0 | J101: 0 | L101: 0 | M101: 0 | O101: 0 | P101: 0 | R101: 0 | S101: 0 | U101: 0 | V101: 0 | X101: 0 | Y101: 0 | AA101: 0 | AB101: 0 | AD101: 0 | AE101: 0 | AG101: 0 | AH101: 0 | AJ101: 0 | AK101: 0 | AM101: 0 | AN101: 0 | AP101: 0 | AQ101: 0 | AS101: 0 | AT101: 0 | AV101: 0 | AW101: 0 | AY101: 0 | AZ101: 0 | BB101: 0 | BC101: 0 | BE101: 0 | BF101: 0 | BH101: 0 | BI101: 0 | BK101: 0 | BL101: 0 | BN101: 0 | BO101: 0 | BQ101: 0 | BR101: 0 | BT101: 0 | BU101: 0 | BW101: 0 | BX101: 0 | BZ101: 0 | CA101: 0
A102: 26 | B102: =CONCATENATE(A76,".",A102) -> 3.26 | C102: 0 | D102: 0 | F102: 0 | G102: 0 | I102: 0 | J102: 0 | L102: 0 | M102: 0 | O102: 0 | P102: 0 | R102: 0 | S102: 0 | U102: 0 | V102: 0 | X102: 0 | Y102: 0 | AA102: 0 | AB102: 0 | AD102: 0 | AE102: 0 | AG102: 0 | AH102: 0 | AJ102: 0 | AK102: 0 | AM102: 0 | AN102: 0 | AP102: 0 | AQ102: 0 | AS102: 0 | AT102: 0 | AV102: 0 | AW102: 0 | AY102: 0 | AZ102: 0 | BB102: 0 | BC102: 0 | BE102: 0 | BF102: 0 | BH102: 0 | BI102: 0 | BK102: 0 | BL102: 0 | BN102: 0 | BO102: 0 | BQ102: 0 | BR102: 0 | BT102: 0 | BU102: 0 | BW102: 0 | BX102: 0 | BZ102: 0 | CA102: 0
A103: 27 | B103: =CONCATENATE(A76,".",A103) -> 3.27 | C103: 0 | D103: 0 | F103: 0 | G103: 0 | I103: 0 | J103: 0 | L103: 0 | M103: 0 | O103: 0 | P103: 0 | R103: 0 | S103: 0 | U103: 0 | V103: 0 | X103: 0 | Y103: 0 | AA103: 0 | AB103: 0 | AD103: 0 | AE103: 0 | AG103: 0 | AH103: 0 | AJ103: 0 | AK103: 0 | AM103: 0 | AN103: 0 | AP103: 0 | AQ103: 0 | AS103: 0 | AT103: 0 | AV103: 0 | AW103: 0 | AY103: 0 | AZ103: 0 | BB103: 0 | BC103: 0 | BE103: 0 | BF103: 0 | BH103: 0 | BI103: 0 | BK103: 0 | BL103: 0 | BN103: 0 | BO103: 0 | BQ103: 0 | BR103: 0 | BT103: 0 | BU103: 0 | BW103: 0 | BX103: 0 | BZ103: 0 | CA103: 0
A104: 28 | B104: =CONCATENATE(A76,".",A104) -> 3.28 | C104: 0 | D104: 0 | F104: 0 | G104: 0 | I104: 0 | J104: 0 | L104: 0 | M104: 0 | O104: 0 | P104: 0 | R104: 0 | S104: 0 | U104: 0 | V104: 0 | X104: 0 | Y104: 0 | AA104: 0 | AB104: 0 | AD104: 0 | AE104: 0 | AG104: 0 | AH104: 0 | AJ104: 0 | AK104: 0 | AM104: 0 | AN104: 0 | AP104: 0 | AQ104: 0 | AS104: 0 | AT104: 0 | AV104: 0 | AW104: 0 | AY104: 0 | AZ104: 0 | BB104: 0 | BC104: 0 | BE104: 0 | BF104: 0 | BH104: 0 | BI104: 0 | BK104: 0 | BL104: 0 | BN104: 0 | BO104: 0 | BQ104: 0 | BR104: 0 | BT104: 0 | BU104: 0 | BW104: 0 | BX104: 0 | BZ104: 0 | CA104: 0
A105: 29 | B105: =CONCATENATE(A76,".",A105) -> 3.29 | C105: 0 | D105: 0 | F105: 0 | G105: 0 | I105: 0 | J105: 0 | L105: 0 | M105: 0 | O105: 0 | P105: 0 | R105: 0 | S105: 0 | U105: 0 | V105: 0 | X105: 0 | Y105: 0 | AA105: 0 | AB105: 0 | AD105: 0 | AE105: 0 | AG105: 0 | AH105: 0 | AJ105: 0 | AK105: 0 | AM105: 0 | AN105: 0 | AP105: 0 | AQ105: 0 | AS105: 0 | AT105: 0 | AV105: 0 | AW105: 0 | AY105: 0 | AZ105: 0 | BB105: 0 | BC105: 0 | BE105: 0 | BF105: 0 | BH105: 0 | BI105: 0 | BK105: 0 | BL105: 0 | BN105: 0 | BO105: 0 | BQ105: 0 | BR105: 0 | BT105: 0 | BU105: 0 | BW105: 0 | BX105: 0 | BZ105: 0 | CA105: 0
A106: 30 | B106: =CONCATENATE(A76,".",A106) -> 3.30 | C106: 0 | D106: 0 | F106: 0 | G106: 0 | I106: 0 | J106: 0 | L106: 0 | M106: 0 | O106: 0 | P106: 0 | R106: 0 | S106: 0 | U106: 0 | V106: 0 | X106: 0 | Y106: 0 | AA106: 0 | AB106: 0 | AD106: 0 | AE106: 0 | AG106: 0 | AH106: 0 | AJ106: 0 | AK106: 0 | AM106: 0 | AN106: 0 | AP106: 0 | AQ106: 0 | AS106: 0 | AT106: 0 | AV106: 0 | AW106: 0 | AY106: 0 | AZ106: 0 | BB106: 0 | BC106: 0 | BE106: 0 | BF106: 0 | BH106: 0 | BI106: 0 | BK106: 0 | BL106: 0 | BN106: 0 | BO106: 0 | BQ106: 0 | BR106: 0 | BT106: 0 | BU106: 0 | BW106: 0 | BX106: 0 | BZ106: 0 | CA106: 0
A107: 4 | B107: =A107 -> 4 | C107: 0 | D107: 0 | F107: =IF(ISERROR(G107/$D107=TRUE),0,G107/$D107) -> 0 | G107: =SUM(G108:G137) -> 0 | I107: =IF(ISERROR(J107/$D107=TRUE),0,J107/$D107) -> 0 | J107: =SUM(J108:J137) -> 0 | L107: =IF(ISERROR(M107/$D107=TRUE),0,M107/$D107) -> 0 | M107: =SUM(M108:M137) -> 0 | O107: =IF(ISERROR(P107/$D107=TRUE),0,P107/$D107) -> 0 | P107: =SUM(P108:P137) -> 0 | R107: =IF(ISERROR(S107/$D107=TRUE),0,S107/$D107) -> 0 | S107: =SUM(S108:S137) -> 0 | U107: =IF(ISERROR(V107/$D107=TRUE),0,V107/$D107) -> 0 | V107: =SUM(V108:V137) -> 0 | X107: =IF(ISERROR(Y107/$D107=TRUE),0,Y107/$D107) -> 0 | Y107: =SUM(Y108:Y137) -> 0 | AA107: =IF(ISERROR(AB107/$D107=TRUE),0,AB107/$D107) -> 0 | AB107: =SUM(AB108:AB137) -> 0 | AD107: =IF(ISERROR(AE107/$D107=TRUE),0,AE107/$D107) -> 0 | AE107: =SUM(AE108:AE137) -> 0 | AG107: =IF(ISERROR(AH107/$D107=TRUE),0,AH107/$D107) -> 0 | AH107: =SUM(AH108:AH137) -> 0 | AJ107: =IF(ISERROR(AK107/$D107=TRUE),0,AK107/$D107) -> 0 | AK107: =SUM(AK108:AK137) -> 0 | AM107: =IF(ISERROR(AN107/$D107=TRUE),0,AN107/$D107) -> 0 | AN107: =SUM(AN108:AN137) -> 0 | AP107: =IF(ISERROR(AQ107/$D107=TRUE),0,AQ107/$D107) -> 0 | AQ107: =SUM(AQ108:AQ137) -> 0 | AS107: =IF(ISERROR(AT107/$D107=TRUE),0,AT107/$D107) -> 0 | AT107: =SUM(AT108:AT137) -> 0 | AV107: =IF(ISERROR(AW107/$D107=TRUE),0,AW107/$D107) -> 0 | AW107: =SUM(AW108:AW137) -> 0 | AY107: =IF(ISERROR(AZ107/$D107=TRUE),0,AZ107/$D107) -> 0 | AZ107: =SUM(AZ108:AZ137) -> 0 | BB107: =IF(ISERROR(BC107/$D107=TRUE),0,BC107/$D107) -> 0 | BC107: =SUM(BC108:BC137) -> 0 | BE107: =IF(ISERROR(BF107/$D107=TRUE),0,BF107/$D107) -> 0 | BF107: =SUM(BF108:BF137) -> 0 | BH107: =IF(ISERROR(BI107/$D107=TRUE),0,BI107/$D107) -> 0 | BI107: =SUM(BI108:BI137) -> 0 | BK107: =IF(ISERROR(BL107/$D107=TRUE),0,BL107/$D107) -> 0 | BL107: =SUM(BL108:BL137) -> 0 | BN107: =IF(ISERROR(BO107/$D107=TRUE),0,BO107/$D107) -> 0 | BO107: =SUM(BO108:BO137) -> 0 | BQ107: =IF(ISERROR(BR107/$D107=TRUE),0,BR107/$D107) -> 0 | BR107: =SUM(BR108:BR137) -> 0 | BT107: =IF(ISERROR(BU107/$D107=TRUE),0,BU107/$D107) -> 0 | BU107: =SUM(BU108:BU137) -> 0 | BW107: =IF(ISERROR(BX107/$D107=TRUE),0,BX107/$D107) -> 0 | BX107: =SUM(BX108:BX137) -> 0 | BZ107: =IF(ISERROR(CA107/$D107=TRUE),0,CA107/$D107) -> 0 | CA107: =SUM(CA108:CA137) -> 0
A108: 1 | B108: =CONCATENATE(A107,".",A108) -> 4.1 | C108: 0 | D108: 0 | F108: 0 | G108: =F108*$D108 -> 0 | I108: 0 | J108: =I108*$D108 -> 0 | L108: 0 | M108: =L108*$D108 -> 0 | O108: 0 | P108: =O108*$D108 -> 0 | R108: 0 | S108: =R108*$D108 -> 0 | U108: 0 | V108: =U108*$D108 -> 0 | X108: 0 | Y108: =X108*$D108 -> 0 | AA108: 0 | AB108: =AA108*$D108 -> 0 | AD108: 0 | AE108: =AD108*$D108 -> 0 | AG108: 0 | AH108: =AG108*$D108 -> 0 | AJ108: 0 | AK108: =AJ108*$D108 -> 0 | AM108: 0 | AN108: =AM108*$D108 -> 0 | AP108: 0 | AQ108: =AP108*$D108 -> 0 | AS108: 0 | AT108: =AS108*$D108 -> 0 | AV108: 0 | AW108: =AV108*$D108 -> 0 | AY108: 0 | AZ108: =AY108*$D108 -> 0 | BB108: 0 | BC108: =BB108*$D108 -> 0 | BE108: 0 | BF108: =BE108*$D108 -> 0 | BH108: 0 | BI108: =BH108*$D108 -> 0 | BK108: 0 | BL108: =BK108*$D108 -> 0 | BN108: 0 | BO108: =BN108*$D108 -> 0 | BQ108: 0 | BR108: =BQ108*$D108 -> 0 | BT108: 0 | BU108: =BT108*$D108 -> 0 | BW108: 0 | BX108: =BW108*$D108 -> 0 | BZ108: =IF(ISERROR(CA108/$D108=TRUE),0,CA108/$D108) -> 0 | CA108: =BX108+BU108+BR108+BO108+BL108+BI108+BF108+BC108+AZ108+AW108+AT108+AQ108+AN108+AK108+AH108+AE108+AB108+Y108+V108+S108+P108+M108+J108+G108 -> 0
A109: 2 | B109: =CONCATENATE(A107,".",A109) -> 4.2 | C109: 0 | D109: 0 | F109: 0 | G109: =F109*$D109 -> 0 | I109: 0 | J109: =I109*$D109 -> 0 | L109: 0 | M109: =L109*$D109 -> 0 | O109: 0 | P109: =O109*$D109 -> 0 | R109: 0 | S109: =R109*$D109 -> 0 | U109: 0 | V109: =U109*$D109 -> 0 | X109: 0 | Y109: =X109*$D109 -> 0 | AA109: 0 | AB109: =AA109*$D109 -> 0 | AD109: 0 | AE109: =AD109*$D109 -> 0 | AG109: 0 | AH109: =AG109*$D109 -> 0 | AJ109: 0 | AK109: =AJ109*$D109 -> 0 | AM109: 0 | AN109: =AM109*$D109 -> 0 | AP109: 0 | AQ109: =AP109*$D109 -> 0 | AS109: 0 | AT109: =AS109*$D109 -> 0 | AV109: 0 | AW109: =AV109*$D109 -> 0 | AY109: 0 | AZ109: =AY109*$D109 -> 0 | BB109: 0 | BC109: =BB109*$D109 -> 0 | BE109: 0 | BF109: =BE109*$D109 -> 0 | BH109: 0 | BI109: =BH109*$D109 -> 0 | BK109: 0 | BL109: =BK109*$D109 -> 0 | BN109: 0 | BO109: =BN109*$D109 -> 0 | BQ109: 0 | BR109: =BQ109*$D109 -> 0 | BT109: 0 | BU109: =BT109*$D109 -> 0 | BW109: 0 | BX109: =BW109*$D109 -> 0 | BZ109: =IF(ISERROR(CA109/$D109=TRUE),0,CA109/$D109) -> 0 | CA109: =BX109+BU109+BR109+BO109+BL109+BI109+BF109+BC109+AZ109+AW109+AT109+AQ109+AN109+AK109+AH109+AE109+AB109+Y109+V109+S109+P109+M109+J109+G109 -> 0
A110: 3 | B110: =CONCATENATE(A107,".",A110) -> 4.3 | C110: 0 | D110: 0 | F110: 0 | G110: 0 | I110: 0 | J110: 0 | L110: 0 | M110: 0 | O110: 0 | P110: 0 | R110: 0 | S110: 0 | U110: 0 | V110: 0 | X110: 0 | Y110: 0 | AA110: 0 | AB110: 0 | AD110: 0 | AE110: 0 | AG110: 0 | AH110: 0 | AJ110: 0 | AK110: 0 | AM110: 0 | AN110: 0 | AP110: 0 | AQ110: 0 | AS110: 0 | AT110: 0 | AV110: 0 | AW110: 0 | AY110: 0 | AZ110: 0 | BB110: 0 | BC110: 0 | BE110: 0 | BF110: 0 | BH110: 0 | BI110: 0 | BK110: 0 | BL110: 0 | BN110: 0 | BO110: 0 | BQ110: 0 | BR110: 0 | BT110: 0 | BU110: 0 | BW110: 0 | BX110: 0 | BZ110: 0 | CA110: 0
A111: 4 | B111: =CONCATENATE(A107,".",A111) -> 4.4 | C111: 0 | D111: 0 | F111: 0 | G111: 0 | I111: 0 | J111: 0 | L111: 0 | M111: 0 | O111: 0 | P111: 0 | R111: 0 | S111: 0 | U111: 0 | V111: 0 | X111: 0 | Y111: 0 | AA111: 0 | AB111: 0 | AD111: 0 | AE111: 0 | AG111: 0 | AH111: 0 | AJ111: 0 | AK111: 0 | AM111: 0 | AN111: 0 | AP111: 0 | AQ111: 0 | AS111: 0 | AT111: 0 | AV111: 0 | AW111: 0 | AY111: 0 | AZ111: 0 | BB111: 0 | BC111: 0 | BE111: 0 | BF111: 0 | BH111: 0 | BI111: 0 | BK111: 0 | BL111: 0 | BN111: 0 | BO111: 0 | BQ111: 0 | BR111: 0 | BT111: 0 | BU111: 0 | BW111: 0 | BX111: 0 | BZ111: 0 | CA111: 0
A112: 5 | B112: =CONCATENATE(A107,".",A112) -> 4.5 | C112: 0 | D112: 0 | F112: 0 | G112: 0 | I112: 0 | J112: 0 | L112: 0 | M112: 0 | O112: 0 | P112: 0 | R112: 0 | S112: 0 | U112: 0 | V112: 0 | X112: 0 | Y112: 0 | AA112: 0 | AB112: 0 | AD112: 0 | AE112: 0 | AG112: 0 | AH112: 0 | AJ112: 0 | AK112: 0 | AM112: 0 | AN112: 0 | AP112: 0 | AQ112: 0 | AS112: 0 | AT112: 0 | AV112: 0 | AW112: 0 | AY112: 0 | AZ112: 0 | BB112: 0 | BC112: 0 | BE112: 0 | BF112: 0 | BH112: 0 | BI112: 0 | BK112: 0 | BL112: 0 | BN112: 0 | BO112: 0 | BQ112: 0 | BR112: 0 | BT112: 0 | BU112: 0 | BW112: 0 | BX112: 0 | BZ112: 0 | CA112: 0
A113: 6 | B113: =CONCATENATE(A107,".",A113) -> 4.6 | C113: 0 | D113: 0 | F113: 0 | G113: 0 | I113: 0 | J113: 0 | L113: 0 | M113: 0 | O113: 0 | P113: 0 | R113: 0 | S113: 0 | U113: 0 | V113: 0 | X113: 0 | Y113: 0 | AA113: 0 | AB113: 0 | AD113: 0 | AE113: 0 | AG113: 0 | AH113: 0 | AJ113: 0 | AK113: 0 | AM113: 0 | AN113: 0 | AP113: 0 | AQ113: 0 | AS113: 0 | AT113: 0 | AV113: 0 | AW113: 0 | AY113: 0 | AZ113: 0 | BB113: 0 | BC113: 0 | BE113: 0 | BF113: 0 | BH113: 0 | BI113: 0 | BK113: 0 | BL113: 0 | BN113: 0 | BO113: 0 | BQ113: 0 | BR113: 0 | BT113: 0 | BU113: 0 | BW113: 0 | BX113: 0 | BZ113: 0 | CA113: 0
A114: 7 | B114: =CONCATENATE(A107,".",A114) -> 4.7 | C114: 0 | D114: 0 | F114: 0 | G114: 0 | I114: 0 | J114: 0 | L114: 0 | M114: 0 | O114: 0 | P114: 0 | R114: 0 | S114: 0 | U114: 0 | V114: 0 | X114: 0 | Y114: 0 | AA114: 0 | AB114: 0 | AD114: 0 | AE114: 0 | AG114: 0 | AH114: 0 | AJ114: 0 | AK114: 0 | AM114: 0 | AN114: 0 | AP114: 0 | AQ114: 0 | AS114: 0 | AT114: 0 | AV114: 0 | AW114: 0 | AY114: 0 | AZ114: 0 | BB114: 0 | BC114: 0 | BE114: 0 | BF114: 0 | BH114: 0 | BI114: 0 | BK114: 0 | BL114: 0 | BN114: 0 | BO114: 0 | BQ114: 0 | BR114: 0 | BT114: 0 | BU114: 0 | BW114: 0 | BX114: 0 | BZ114: 0 | CA114: 0
A115: 8 | B115: =CONCATENATE(A107,".",A115) -> 4.8 | C115: 0 | D115: 0 | F115: 0 | G115: 0 | I115: 0 | J115: 0 | L115: 0 | M115: 0 | O115: 0 | P115: 0 | R115: 0 | S115: 0 | U115: 0 | V115: 0 | X115: 0 | Y115: 0 | AA115: 0 | AB115: 0 | AD115: 0 | AE115: 0 | AG115: 0 | AH115: 0 | AJ115: 0 | AK115: 0 | AM115: 0 | AN115: 0 | AP115: 0 | AQ115: 0 | AS115: 0 | AT115: 0 | AV115: 0 | AW115: 0 | AY115: 0 | AZ115: 0 | BB115: 0 | BC115: 0 | BE115: 0 | BF115: 0 | BH115: 0 | BI115: 0 | BK115: 0 | BL115: 0 | BN115: 0 | BO115: 0 | BQ115: 0 | BR115: 0 | BT115: 0 | BU115: 0 | BW115: 0 | BX115: 0 | BZ115: 0 | CA115: 0
A116: 9 | B116: =CONCATENATE(A107,".",A116) -> 4.9 | C116: 0 | D116: 0 | F116: 0 | G116: 0 | I116: 0 | J116: 0 | L116: 0 | M116: 0 | O116: 0 | P116: 0 | R116: 0 | S116: 0 | U116: 0 | V116: 0 | X116: 0 | Y116: 0 | AA116: 0 | AB116: 0 | AD116: 0 | AE116: 0 | AG116: 0 | AH116: 0 | AJ116: 0 | AK116: 0 | AM116: 0 | AN116: 0 | AP116: 0 | AQ116: 0 | AS116: 0 | AT116: 0 | AV116: 0 | AW116: 0 | AY116: 0 | AZ116: 0 | BB116: 0 | BC116: 0 | BE116: 0 | BF116: 0 | BH116: 0 | BI116: 0 | BK116: 0 | BL116: 0 | BN116: 0 | BO116: 0 | BQ116: 0 | BR116: 0 | BT116: 0 | BU116: 0 | BW116: 0 | BX116: 0 | BZ116: 0 | CA116: 0
A117: 10 | B117: =CONCATENATE(A107,".",A117) -> 4.10 | C117: 0 | D117: 0 | F117: 0 | G117: 0 | I117: 0 | J117: 0 | L117: 0 | M117: 0 | O117: 0 | P117: 0 | R117: 0 | S117: 0 | U117: 0 | V117: 0 | X117: 0 | Y117: 0 | AA117: 0 | AB117: 0 | AD117: 0 | AE117: 0 | AG117: 0 | AH117: 0 | AJ117: 0 | AK117: 0 | AM117: 0 | AN117: 0 | AP117: 0 | AQ117: 0 | AS117: 0 | AT117: 0 | AV117: 0 | AW117: 0 | AY117: 0 | AZ117: 0 | BB117: 0 | BC117: 0 | BE117: 0 | BF117: 0 | BH117: 0 | BI117: 0 | BK117: 0 | BL117: 0 | BN117: 0 | BO117: 0 | BQ117: 0 | BR117: 0 | BT117: 0 | BU117: 0 | BW117: 0 | BX117: 0 | BZ117: 0 | CA117: 0
A118: 11 | B118: =CONCATENATE(A107,".",A118) -> 4.11 | C118: 0 | D118: 0 | F118: 0 | G118: 0 | I118: 0 | J118: 0 | L118: 0 | M118: 0 | O118: 0 | P118: 0 | R118: 0 | S118: 0 | U118: 0 | V118: 0 | X118: 0 | Y118: 0 | AA118: 0 | AB118: 0 | AD118: 0 | AE118: 0 | AG118: 0 | AH118: 0 | AJ118: 0 | AK118: 0 | AM118: 0 | AN118: 0 | AP118: 0 | AQ118: 0 | AS118: 0 | AT118: 0 | AV118: 0 | AW118: 0 | AY118: 0 | AZ118: 0 | BB118: 0 | BC118: 0 | BE118: 0 | BF118: 0 | BH118: 0 | BI118: 0 | BK118: 0 | BL118: 0 | BN118: 0 | BO118: 0 | BQ118: 0 | BR118: 0 | BT118: 0 | BU118: 0 | BW118: 0 | BX118: 0 | BZ118: 0 | CA118: 0
A119: 12 | B119: =CONCATENATE(A107,".",A119) -> 4.12 | C119: 0 | D119: 0 | F119: 0 | G119: 0 | I119: 0 | J119: 0 | L119: 0 | M119: 0 | O119: 0 | P119: 0 | R119: 0 | S119: 0 | U119: 0 | V119: 0 | X119: 0 | Y119: 0 | AA119: 0 | AB119: 0 | AD119: 0 | AE119: 0 | AG119: 0 | AH119: 0 | AJ119: 0 | AK119: 0 | AM119: 0 | AN119: 0 | AP119: 0 | AQ119: 0 | AS119: 0 | AT119: 0 | AV119: 0 | AW119: 0 | AY119: 0 | AZ119: 0 | BB119: 0 | BC119: 0 | BE119: 0 | BF119: 0 | BH119: 0 | BI119: 0 | BK119: 0 | BL119: 0 | BN119: 0 | BO119: 0 | BQ119: 0 | BR119: 0 | BT119: 0 | BU119: 0 | BW119: 0 | BX119: 0 | BZ119: 0 | CA119: 0
A120: 13 | B120: =CONCATENATE(A107,".",A120) -> 4.13 | C120: 0 | D120: 0 | F120: 0 | G120: 0 | I120: 0 | J120: 0 | L120: 0 | M120: 0 | O120: 0 | P120: 0 | R120: 0 | S120: 0 | U120: 0 | V120: 0 | X120: 0 | Y120: 0 | AA120: 0 | AB120: 0 | AD120: 0 | AE120: 0 | AG120: 0 | AH120: 0 | AJ120: 0 | AK120: 0 | AM120: 0 | AN120: 0 | AP120: 0 | AQ120: 0 | AS120: 0 | AT120: 0 | AV120: 0 | AW120: 0 | AY120: 0 | AZ120: 0 | BB120: 0 | BC120: 0 | BE120: 0 | BF120: 0 | BH120: 0 | BI120: 0 | BK120: 0 | BL120: 0 | BN120: 0 | BO120: 0 | BQ120: 0 | BR120: 0 | BT120: 0 | BU120: 0 | BW120: 0 | BX120: 0 | BZ120: 0 | CA120: 0
A121: 14 | B121: =CONCATENATE(A107,".",A121) -> 4.14 | C121: 0 | D121: 0 | F121: 0 | G121: 0 | I121: 0 | J121: 0 | L121: 0 | M121: 0 | O121: 0 | P121: 0 | R121: 0 | S121: 0 | U121: 0 | V121: 0 | X121: 0 | Y121: 0 | AA121: 0 | AB121: 0 | AD121: 0 | AE121: 0 | AG121: 0 | AH121: 0 | AJ121: 0 | AK121: 0 | AM121: 0 | AN121: 0 | AP121: 0 | AQ121: 0 | AS121: 0 | AT121: 0 | AV121: 0 | AW121: 0 | AY121: 0 | AZ121: 0 | BB121: 0 | BC121: 0 | BE121: 0 | BF121: 0 | BH121: 0 | BI121: 0 | BK121: 0 | BL121: 0 | BN121: 0 | BO121: 0 | BQ121: 0 | BR121: 0 | BT121: 0 | BU121: 0 | BW121: 0 | BX121: 0 | BZ121: 0 | CA121: 0
A122: 15 | B122: =CONCATENATE(A107,".",A122) -> 4.15 | C122: 0 | D122: 0 | F122: 0 | G122: 0 | I122: 0 | J122: 0 | L122: 0 | M122: 0 | O122: 0 | P122: 0 | R122: 0 | S122: 0 | U122: 0 | V122: 0 | X122: 0 | Y122: 0 | AA122: 0 | AB122: 0 | AD122: 0 | AE122: 0 | AG122: 0 | AH122: 0 | AJ122: 0 | AK122: 0 | AM122: 0 | AN122: 0 | AP122: 0 | AQ122: 0 | AS122: 0 | AT122: 0 | AV122: 0 | AW122: 0 | AY122: 0 | AZ122: 0 | BB122: 0 | BC122: 0 | BE122: 0 | BF122: 0 | BH122: 0 | BI122: 0 | BK122: 0 | BL122: 0 | BN122: 0 | BO122: 0 | BQ122: 0 | BR122: 0 | BT122: 0 | BU122: 0 | BW122: 0 | BX122: 0 | BZ122: 0 | CA122: 0
A123: 16 | B123: =CONCATENATE(A107,".",A123) -> 4.16 | C123: 0 | D123: 0 | F123: 0 | G123: 0 | I123: 0 | J123: 0 | L123: 0 | M123: 0 | O123: 0 | P123: 0 | R123: 0 | S123: 0 | U123: 0 | V123: 0 | X123: 0 | Y123: 0 | AA123: 0 | AB123: 0 | AD123: 0 | AE123: 0 | AG123: 0 | AH123: 0 | AJ123: 0 | AK123: 0 | AM123: 0 | AN123: 0 | AP123: 0 | AQ123: 0 | AS123: 0 | AT123: 0 | AV123: 0 | AW123: 0 | AY123: 0 | AZ123: 0 | BB123: 0 | BC123: 0 | BE123: 0 | BF123: 0 | BH123: 0 | BI123: 0 | BK123: 0 | BL123: 0 | BN123: 0 | BO123: 0 | BQ123: 0 | BR123: 0 | BT123: 0 | BU123: 0 | BW123: 0 | BX123: 0 | BZ123: 0 | CA123: 0
A124: 17 | B124: =CONCATENATE(A107,".",A124) -> 4.17 | C124: 0 | D124: 0 | F124: 0 | G124: 0 | I124: 0 | J124: 0 | L124: 0 | M124: 0 | O124: 0 | P124: 0 | R124: 0 | S124: 0 | U124: 0 | V124: 0 | X124: 0 | Y124: 0 | AA124: 0 | AB124: 0 | AD124: 0 | AE124: 0 | AG124: 0 | AH124: 0 | AJ124: 0 | AK124: 0 | AM124: 0 | AN124: 0 | AP124: 0 | AQ124: 0 | AS124: 0 | AT124: 0 | AV124: 0 | AW124: 0 | AY124: 0 | AZ124: 0 | BB124: 0 | BC124: 0 | BE124: 0 | BF124: 0 | BH124: 0 | BI124: 0 | BK124: 0 | BL124: 0 | BN124: 0 | BO124: 0 | BQ124: 0 | BR124: 0 | BT124: 0 | BU124: 0 | BW124: 0 | BX124: 0 | BZ124: 0 | CA124: 0
A125: 18 | B125: =CONCATENATE(A107,".",A125) -> 4.18 | C125: 0 | D125: 0 | F125: 0 | G125: 0 | I125: 0 | J125: 0 | L125: 0 | M125: 0 | O125: 0 | P125: 0 | R125: 0 | S125: 0 | U125: 0 | V125: 0 | X125: 0 | Y125: 0 | AA125: 0 | AB125: 0 | AD125: 0 | AE125: 0 | AG125: 0 | AH125: 0 | AJ125: 0 | AK125: 0 | AM125: 0 | AN125: 0 | AP125: 0 | AQ125: 0 | AS125: 0 | AT125: 0 | AV125: 0 | AW125: 0 | AY125: 0 | AZ125: 0 | BB125: 0 | BC125: 0 | BE125: 0 | BF125: 0 | BH125: 0 | BI125: 0 | BK125: 0 | BL125: 0 | BN125: 0 | BO125: 0 | BQ125: 0 | BR125: 0 | BT125: 0 | BU125: 0 | BW125: 0 | BX125: 0 | BZ125: 0 | CA125: 0
A126: 19 | B126: =CONCATENATE(A107,".",A126) -> 4.19 | C126: 0 | D126: 0 | F126: 0 | G126: 0 | I126: 0 | J126: 0 | L126: 0 | M126: 0 | O126: 0 | P126: 0 | R126: 0 | S126: 0 | U126: 0 | V126: 0 | X126: 0 | Y126: 0 | AA126: 0 | AB126: 0 | AD126: 0 | AE126: 0 | AG126: 0 | AH126: 0 | AJ126: 0 | AK126: 0 | AM126: 0 | AN126: 0 | AP126: 0 | AQ126: 0 | AS126: 0 | AT126: 0 | AV126: 0 | AW126: 0 | AY126: 0 | AZ126: 0 | BB126: 0 | BC126: 0 | BE126: 0 | BF126: 0 | BH126: 0 | BI126: 0 | BK126: 0 | BL126: 0 | BN126: 0 | BO126: 0 | BQ126: 0 | BR126: 0 | BT126: 0 | BU126: 0 | BW126: 0 | BX126: 0 | BZ126: 0 | CA126: 0
A127: 20 | B127: =CONCATENATE(A107,".",A127) -> 4.20 | C127: 0 | D127: 0 | F127: 0 | G127: 0 | I127: 0 | J127: 0 | L127: 0 | M127: 0 | O127: 0 | P127: 0 | R127: 0 | S127: 0 | U127: 0 | V127: 0 | X127: 0 | Y127: 0 | AA127: 0 | AB127: 0 | AD127: 0 | AE127: 0 | AG127: 0 | AH127: 0 | AJ127: 0 | AK127: 0 | AM127: 0 | AN127: 0 | AP127: 0 | AQ127: 0 | AS127: 0 | AT127: 0 | AV127: 0 | AW127: 0 | AY127: 0 | AZ127: 0 | BB127: 0 | BC127: 0 | BE127: 0 | BF127: 0 | BH127: 0 | BI127: 0 | BK127: 0 | BL127: 0 | BN127: 0 | BO127: 0 | BQ127: 0 | BR127: 0 | BT127: 0 | BU127: 0 | BW127: 0 | BX127: 0 | BZ127: 0 | CA127: 0
A128: 21 | B128: =CONCATENATE(A107,".",A128) -> 4.21 | C128: 0 | D128: 0 | F128: 0 | G128: 0 | I128: 0 | J128: 0 | L128: 0 | M128: 0 | O128: 0 | P128: 0 | R128: 0 | S128: 0 | U128: 0 | V128: 0 | X128: 0 | Y128: 0 | AA128: 0 | AB128: 0 | AD128: 0 | AE128: 0 | AG128: 0 | AH128: 0 | AJ128: 0 | AK128: 0 | AM128: 0 | AN128: 0 | AP128: 0 | AQ128: 0 | AS128: 0 | AT128: 0 | AV128: 0 | AW128: 0 | AY128: 0 | AZ128: 0 | BB128: 0 | BC128: 0 | BE128: 0 | BF128: 0 | BH128: 0 | BI128: 0 | BK128: 0 | BL128: 0 | BN128: 0 | BO128: 0 | BQ128: 0 | BR128: 0 | BT128: 0 | BU128: 0 | BW128: 0 | BX128: 0 | BZ128: 0 | CA128: 0
A129: 22 | B129: =CONCATENATE(A107,".",A129) -> 4.22 | C129: 0 | D129: 0 | F129: 0 | G129: 0 | I129: 0 | J129: 0 | L129: 0 | M129: 0 | O129: 0 | P129: 0 | R129: 0 | S129: 0 | U129: 0 | V129: 0 | X129: 0 | Y129: 0 | AA129: 0 | AB129: 0 | AD129: 0 | AE129: 0 | AG129: 0 | AH129: 0 | AJ129: 0 | AK129: 0 | AM129: 0 | AN129: 0 | AP129: 0 | AQ129: 0 | AS129: 0 | AT129: 0 | AV129: 0 | AW129: 0 | AY129: 0 | AZ129: 0 | BB129: 0 | BC129: 0 | BE129: 0 | BF129: 0 | BH129: 0 | BI129: 0 | BK129: 0 | BL129: 0 | BN129: 0 | BO129: 0 | BQ129: 0 | BR129: 0 | BT129: 0 | BU129: 0 | BW129: 0 | BX129: 0 | BZ129: 0 | CA129: 0
A130: 23 | B130: =CONCATENATE(A107,".",A130) -> 4.23 | C130: 0 | D130: 0 | F130: 0 | G130: 0 | I130: 0 | J130: 0 | L130: 0 | M130: 0 | O130: 0 | P130: 0 | R130: 0 | S130: 0 | U130: 0 | V130: 0 | X130: 0 | Y130: 0 | AA130: 0 | AB130: 0 | AD130: 0 | AE130: 0 | AG130: 0 | AH130: 0 | AJ130: 0 | AK130: 0 | AM130: 0 | AN130: 0 | AP130: 0 | AQ130: 0 | AS130: 0 | AT130: 0 | AV130: 0 | AW130: 0 | AY130: 0 | AZ130: 0 | BB130: 0 | BC130: 0 | BE130: 0 | BF130: 0 | BH130: 0 | BI130: 0 | BK130: 0 | BL130: 0 | BN130: 0 | BO130: 0 | BQ130: 0 | BR130: 0 | BT130: 0 | BU130: 0 | BW130: 0 | BX130: 0 | BZ130: 0 | CA130: 0
A131: 24 | B131: =CONCATENATE(A107,".",A131) -> 4.24 | C131: 0 | D131: 0 | F131: 0 | G131: 0 | I131: 0 | J131: 0 | L131: 0 | M131: 0 | O131: 0 | P131: 0 | R131: 0 | S131: 0 | U131: 0 | V131: 0 | X131: 0 | Y131: 0 | AA131: 0 | AB131: 0 | AD131: 0 | AE131: 0 | AG131: 0 | AH131: 0 | AJ131: 0 | AK131: 0 | AM131: 0 | AN131: 0 | AP131: 0 | AQ131: 0 | AS131: 0 | AT131: 0 | AV131: 0 | AW131: 0 | AY131: 0 | AZ131: 0 | BB131: 0 | BC131: 0 | BE131: 0 | BF131: 0 | BH131: 0 | BI131: 0 | BK131: 0 | BL131: 0 | BN131: 0 | BO131: 0 | BQ131: 0 | BR131: 0 | BT131: 0 | BU131: 0 | BW131: 0 | BX131: 0 | BZ131: 0 | CA131: 0
A132: 25 | B132: =CONCATENATE(A107,".",A132) -> 4.25 | C132: 0 | D132: 0 | F132: 0 | G132: 0 | I132: 0 | J132: 0 | L132: 0 | M132: 0 | O132: 0 | P132: 0 | R132: 0 | S132: 0 | U132: 0 | V132: 0 | X132: 0 | Y132: 0 | AA132: 0 | AB132: 0 | AD132: 0 | AE132: 0 | AG132: 0 | AH132: 0 | AJ132: 0 | AK132: 0 | AM132: 0 | AN132: 0 | AP132: 0 | AQ132: 0 | AS132: 0 | AT132: 0 | AV132: 0 | AW132: 0 | AY132: 0 | AZ132: 0 | BB132: 0 | BC132: 0 | BE132: 0 | BF132: 0 | BH132: 0 | BI132: 0 | BK132: 0 | BL132: 0 | BN132: 0 | BO132: 0 | BQ132: 0 | BR132: 0 | BT132: 0 | BU132: 0 | BW132: 0 | BX132: 0 | BZ132: 0 | CA132: 0
A133: 26 | B133: =CONCATENATE(A107,".",A133) -> 4.26 | C133: 0 | D133: 0 | F133: 0 | G133: 0 | I133: 0 | J133: 0 | L133: 0 | M133: 0 | O133: 0 | P133: 0 | R133: 0 | S133: 0 | U133: 0 | V133: 0 | X133: 0 | Y133: 0 | AA133: 0 | AB133: 0 | AD133: 0 | AE133: 0 | AG133: 0 | AH133: 0 | AJ133: 0 | AK133: 0 | AM133: 0 | AN133: 0 | AP133: 0 | AQ133: 0 | AS133: 0 | AT133: 0 | AV133: 0 | AW133: 0 | AY133: 0 | AZ133: 0 | BB133: 0 | BC133: 0 | BE133: 0 | BF133: 0 | BH133: 0 | BI133: 0 | BK133: 0 | BL133: 0 | BN133: 0 | BO133: 0 | BQ133: 0 | BR133: 0 | BT133: 0 | BU133: 0 | BW133: 0 | BX133: 0 | BZ133: 0 | CA133: 0
A134: 27 | B134: =CONCATENATE(A107,".",A134) -> 4.27 | C134: 0 | D134: 0 | F134: 0 | G134: 0 | I134: 0 | J134: 0 | L134: 0 | M134: 0 | O134: 0 | P134: 0 | R134: 0 | S134: 0 | U134: 0 | V134: 0 | X134: 0 | Y134: 0 | AA134: 0 | AB134: 0 | AD134: 0 | AE134: 0 | AG134: 0 | AH134: 0 | AJ134: 0 | AK134: 0 | AM134: 0 | AN134: 0 | AP134: 0 | AQ134: 0 | AS134: 0 | AT134: 0 | AV134: 0 | AW134: 0 | AY134: 0 | AZ134: 0 | BB134: 0 | BC134: 0 | BE134: 0 | BF134: 0 | BH134: 0 | BI134: 0 | BK134: 0 | BL134: 0 | BN134: 0 | BO134: 0 | BQ134: 0 | BR134: 0 | BT134: 0 | BU134: 0 | BW134: 0 | BX134: 0 | BZ134: 0 | CA134: 0
A135: 28 | B135: =CONCATENATE(A107,".",A135) -> 4.28 | C135: 0 | D135: 0 | F135: 0 | G135: 0 | I135: 0 | J135: 0 | L135: 0 | M135: 0 | O135: 0 | P135: 0 | R135: 0 | S135: 0 | U135: 0 | V135: 0 | X135: 0 | Y135: 0 | AA135: 0 | AB135: 0 | AD135: 0 | AE135: 0 | AG135: 0 | AH135: 0 | AJ135: 0 | AK135: 0 | AM135: 0 | AN135: 0 | AP135: 0 | AQ135: 0 | AS135: 0 | AT135: 0 | AV135: 0 | AW135: 0 | AY135: 0 | AZ135: 0 | BB135: 0 | BC135: 0 | BE135: 0 | BF135: 0 | BH135: 0 | BI135: 0 | BK135: 0 | BL135: 0 | BN135: 0 | BO135: 0 | BQ135: 0 | BR135: 0 | BT135: 0 | BU135: 0 | BW135: 0 | BX135: 0 | BZ135: 0 | CA135: 0
A136: 29 | B136: =CONCATENATE(A107,".",A136) -> 4.29 | C136: 0 | D136: 0 | F136: 0 | G136: 0 | I136: 0 | J136: 0 | L136: 0 | M136: 0 | O136: 0 | P136: 0 | R136: 0 | S136: 0 | U136: 0 | V136: 0 | X136: 0 | Y136: 0 | AA136: 0 | AB136: 0 | AD136: 0 | AE136: 0 | AG136: 0 | AH136: 0 | AJ136: 0 | AK136: 0 | AM136: 0 | AN136: 0 | AP136: 0 | AQ136: 0 | AS136: 0 | AT136: 0 | AV136: 0 | AW136: 0 | AY136: 0 | AZ136: 0 | BB136: 0 | BC136: 0 | BE136: 0 | BF136: 0 | BH136: 0 | BI136: 0 | BK136: 0 | BL136: 0 | BN136: 0 | BO136: 0 | BQ136: 0 | BR136: 0 | BT136: 0 | BU136: 0 | BW136: 0 | BX136: 0 | BZ136: 0 | CA136: 0
A137: 30 | B137: =CONCATENATE(A107,".",A137) -> 4.30 | C137: 0 | D137: 0 | F137: 0 | G137: 0 | I137: 0 | J137: 0 | L137: 0 | M137: 0 | O137: 0 | P137: 0 | R137: 0 | S137: 0 | U137: 0 | V137: 0 | X137: 0 | Y137: 0 | AA137: 0 | AB137: 0 | AD137: 0 | AE137: 0 | AG137: 0 | AH137: 0 | AJ137: 0 | AK137: 0 | AM137: 0 | AN137: 0 | AP137: 0 | AQ137: 0 | AS137: 0 | AT137: 0 | AV137: 0 | AW137: 0 | AY137: 0 | AZ137: 0 | BB137: 0 | BC137: 0 | BE137: 0 | BF137: 0 | BH137: 0 | BI137: 0 | BK137: 0 | BL137: 0 | BN137: 0 | BO137: 0 | BQ137: 0 | BR137: 0 | BT137: 0 | BU137: 0 | BW137: 0 | BX137: 0 | BZ137: 0 | CA137: 0
A138: 5 | B138: =A138 -> 5 | C138: 0 | D138: 0 | F138: =IF(ISERROR(G138/$D138=TRUE),0,G138/$D138) -> 0 | G138: =SUM(G139:G168) -> 0 | I138: =IF(ISERROR(J138/$D138=TRUE),0,J138/$D138) -> 0 | J138: =SUM(J139:J168) -> 0 | L138: =IF(ISERROR(M138/$D138=TRUE),0,M138/$D138) -> 0 | M138: =SUM(M139:M168) -> 0 | O138: =IF(ISERROR(P138/$D138=TRUE),0,P138/$D138) -> 0 | P138: =SUM(P139:P168) -> 0 | R138: =IF(ISERROR(S138/$D138=TRUE),0,S138/$D138) -> 0 | S138: =SUM(S139:S168) -> 0 | U138: =IF(ISERROR(V138/$D138=TRUE),0,V138/$D138) -> 0 | V138: =SUM(V139:V168) -> 0 | X138: =IF(ISERROR(Y138/$D138=TRUE),0,Y138/$D138) -> 0 | Y138: =SUM(Y139:Y168) -> 0 | AA138: =IF(ISERROR(AB138/$D138=TRUE),0,AB138/$D138) -> 0 | AB138: =SUM(AB139:AB168) -> 0 | AD138: =IF(ISERROR(AE138/$D138=TRUE),0,AE138/$D138) -> 0 | AE138: =SUM(AE139:AE168) -> 0 | AG138: =IF(ISERROR(AH138/$D138=TRUE),0,AH138/$D138) -> 0 | AH138: =SUM(AH139:AH168) -> 0 | AJ138: =IF(ISERROR(AK138/$D138=TRUE),0,AK138/$D138) -> 0 | AK138: =SUM(AK139:AK168) -> 0 | AM138: =IF(ISERROR(AN138/$D138=TRUE),0,AN138/$D138) -> 0 | AN138: =SUM(AN139:AN168) -> 0 | AP138: =IF(ISERROR(AQ138/$D138=TRUE),0,AQ138/$D138) -> 0 | AQ138: =SUM(AQ139:AQ168) -> 0 | AS138: =IF(ISERROR(AT138/$D138=TRUE),0,AT138/$D138) -> 0 | AT138: =SUM(AT139:AT168) -> 0 | AV138: =IF(ISERROR(AW138/$D138=TRUE),0,AW138/$D138) -> 0 | AW138: =SUM(AW139:AW168) -> 0 | AY138: =IF(ISERROR(AZ138/$D138=TRUE),0,AZ138/$D138) -> 0 | AZ138: =SUM(AZ139:AZ168) -> 0 | BB138: =IF(ISERROR(BC138/$D138=TRUE),0,BC138/$D138) -> 0 | BC138: =SUM(BC139:BC168) -> 0 | BE138: =IF(ISERROR(BF138/$D138=TRUE),0,BF138/$D138) -> 0 | BF138: =SUM(BF139:BF168) -> 0 | BH138: =IF(ISERROR(BI138/$D138=TRUE),0,BI138/$D138) -> 0 | BI138: =SUM(BI139:BI168) -> 0 | BK138: =IF(ISERROR(BL138/$D138=TRUE),0,BL138/$D138) -> 0 | BL138: =SUM(BL139:BL168) -> 0 | BN138: =IF(ISERROR(BO138/$D138=TRUE),0,BO138/$D138) -> 0 | BO138: =SUM(BO139:BO168) -> 0 | BQ138: =IF(ISERROR(BR138/$D138=TRUE),0,BR138/$D138) -> 0 | BR138: =SUM(BR139:BR168) -> 0 | BT138: =IF(ISERROR(BU138/$D138=TRUE),0,BU138/$D138) -> 0 | BU138: =SUM(BU139:BU168) -> 0 | BW138: =IF(ISERROR(BX138/$D138=TRUE),0,BX138/$D138) -> 0 | BX138: =SUM(BX139:BX168) -> 0 | BZ138: =IF(ISERROR(CA138/$D138=TRUE),0,CA138/$D138) -> 0 | CA138: =SUM(CA139:CA168)+0.01 -> 0.01
A139: 1 | B139: =CONCATENATE(A138,".",A139) -> 5.1 | C139: 0 | D139: 0 | F139: 0 | G139: =F139*$D139 -> 0 | I139: 0 | J139: =I139*$D139 -> 0 | L139: 0 | M139: =L139*$D139 -> 0 | O139: 0 | P139: =O139*$D139 -> 0 | R139: 0 | S139: =R139*$D139 -> 0 | U139: 0 | V139: =U139*$D139 -> 0 | X139: 0 | Y139: =X139*$D139 -> 0 | AA139: 0 | AB139: =AA139*$D139 -> 0 | AD139: 0 | AE139: =AD139*$D139 -> 0 | AG139: 0 | AH139: =AG139*$D139 -> 0 | AJ139: 0 | AK139: =AJ139*$D139 -> 0 | AM139: 0 | AN139: =AM139*$D139 -> 0 | AP139: 0 | AQ139: =AP139*$D139 -> 0 | AS139: 0 | AT139: =AS139*$D139 -> 0 | AV139: 0 | AW139: =AV139*$D139 -> 0 | AY139: 0 | AZ139: =AY139*$D139 -> 0 | BB139: 0 | BC139: =BB139*$D139 -> 0 | BE139: 0 | BF139: =BE139*$D139 -> 0 | BH139: 0 | BI139: =BH139*$D139 -> 0 | BK139: 0 | BL139: =BK139*$D139 -> 0 | BN139: 0 | BO139: =BN139*$D139 -> 0 | BQ139: 0 | BR139: =BQ139*$D139 -> 0 | BT139: 0 | BU139: =BT139*$D139 -> 0 | BW139: 0 | BX139: =BW139*$D139 -> 0 | BZ139: =IF(ISERROR(CA139/$D139=TRUE),0,CA139/$D139) -> 0 | CA139: =BX139+BU139+BR139+BO139+BL139+BI139+BF139+BC139+AZ139+AW139+AT139+AQ139+AN139+AK139+AH139+AE139+AB139+Y139+V139+S139+P139+M139+J139+G139 -> 0
A140: 2 | B140: =CONCATENATE(A138,".",A140) -> 5.2 | C140: 0 | D140: 0 | F140: 0 | G140: =F140*$D140 -> 0 | I140: 0 | J140: =I140*$D140 -> 0 | L140: 0 | M140: =L140*$D140 -> 0 | O140: 0 | P140: =O140*$D140 -> 0 | R140: 0 | S140: =R140*$D140 -> 0 | U140: 0 | V140: =U140*$D140 -> 0 | X140: 0 | Y140: =X140*$D140 -> 0 | AA140: 0 | AB140: =AA140*$D140 -> 0 | AD140: 0 | AE140: =AD140*$D140 -> 0 | AG140: 0 | AH140: =AG140*$D140 -> 0 | AJ140: 0 | AK140: =AJ140*$D140 -> 0 | AM140: 0 | AN140: =AM140*$D140 -> 0 | AP140: 0 | AQ140: =AP140*$D140 -> 0 | AS140: 0 | AT140: =AS140*$D140 -> 0 | AV140: 0 | AW140: =AV140*$D140 -> 0 | AY140: 0 | AZ140: =AY140*$D140 -> 0 | BB140: 0 | BC140: =BB140*$D140 -> 0 | BE140: 0 | BF140: =BE140*$D140 -> 0 | BH140: 0 | BI140: =BH140*$D140 -> 0 | BK140: 0 | BL140: =BK140*$D140 -> 0 | BN140: 0 | BO140: =BN140*$D140 -> 0 | BQ140: 0 | BR140: =BQ140*$D140 -> 0 | BT140: 0 | BU140: =BT140*$D140 -> 0 | BW140: 0 | BX140: =BW140*$D140 -> 0 | BZ140: =IF(ISERROR(CA140/$D140=TRUE),0,CA140/$D140) -> 0 | CA140: =BX140+BU140+BR140+BO140+BL140+BI140+BF140+BC140+AZ140+AW140+AT140+AQ140+AN140+AK140+AH140+AE140+AB140+Y140+V140+S140+P140+M140+J140+G140 -> 0
A141: 3 | B141: =CONCATENATE(A138,".",A141) -> 5.3 | C141: 0 | D141: 0 | F141: 0 | G141: 0 | I141: 0 | J141: 0 | L141: 0 | M141: 0 | O141: 0 | P141: 0 | R141: 0 | S141: 0 | U141: 0 | V141: 0 | X141: 0 | Y141: 0 | AA141: 0 | AB141: 0 | AD141: 0 | AE141: 0 | AG141: 0 | AH141: 0 | AJ141: 0 | AK141: 0 | AM141: 0 | AN141: 0 | AP141: 0 | AQ141: 0 | AS141: 0 | AT141: 0 | AV141: 0 | AW141: 0 | AY141: 0 | AZ141: 0 | BB141: 0 | BC141: 0 | BE141: 0 | BF141: 0 | BH141: 0 | BI141: 0 | BK141: 0 | BL141: 0 | BN141: 0 | BO141: 0 | BQ141: 0 | BR141: 0 | BT141: 0 | BU141: 0 | BW141: 0 | BX141: 0 | BZ141: 0 | CA141: 0
A142: 4 | B142: =CONCATENATE(A138,".",A142) -> 5.4 | C142: 0 | D142: 0 | F142: 0 | G142: 0 | I142: 0 | J142: 0 | L142: 0 | M142: 0 | O142: 0 | P142: 0 | R142: 0 | S142: 0 | U142: 0 | V142: 0 | X142: 0 | Y142: 0 | AA142: 0 | AB142: 0 | AD142: 0 | AE142: 0 | AG142: 0 | AH142: 0 | AJ142: 0 | AK142: 0 | AM142: 0 | AN142: 0 | AP142: 0 | AQ142: 0 | AS142: 0 | AT142: 0 | AV142: 0 | AW142: 0 | AY142: 0 | AZ142: 0 | BB142: 0 | BC142: 0 | BE142: 0 | BF142: 0 | BH142: 0 | BI142: 0 | BK142: 0 | BL142: 0 | BN142: 0 | BO142: 0 | BQ142: 0 | BR142: 0 | BT142: 0 | BU142: 0 | BW142: 0 | BX142: 0 | BZ142: 0 | CA142: 0
A143: 5 | B143: =CONCATENATE(A138,".",A143) -> 5.5 | C143: 0 | D143: 0 | F143: 0 | G143: 0 | I143: 0 | J143: 0 | L143: 0 | M143: 0 | O143: 0 | P143: 0 | R143: 0 | S143: 0 | U143: 0 | V143: 0 | X143: 0 | Y143: 0 | AA143: 0 | AB143: 0 | AD143: 0 | AE143: 0 | AG143: 0 | AH143: 0 | AJ143: 0 | AK143: 0 | AM143: 0 | AN143: 0 | AP143: 0 | AQ143: 0 | AS143: 0 | AT143: 0 | AV143: 0 | AW143: 0 | AY143: 0 | AZ143: 0 | BB143: 0 | BC143: 0 | BE143: 0 | BF143: 0 | BH143: 0 | BI143: 0 | BK143: 0 | BL143: 0 | BN143: 0 | BO143: 0 | BQ143: 0 | BR143: 0 | BT143: 0 | BU143: 0 | BW143: 0 | BX143: 0 | BZ143: 0 | CA143: 0
A144: 6 | B144: =CONCATENATE(A138,".",A144) -> 5.6 | C144: 0 | D144: 0 | F144: 0 | G144: 0 | I144: 0 | J144: 0 | L144: 0 | M144: 0 | O144: 0 | P144: 0 | R144: 0 | S144: 0 | U144: 0 | V144: 0 | X144: 0 | Y144: 0 | AA144: 0 | AB144: 0 | AD144: 0 | AE144: 0 | AG144: 0 | AH144: 0 | AJ144: 0 | AK144: 0 | AM144: 0 | AN144: 0 | AP144: 0 | AQ144: 0 | AS144: 0 | AT144: 0 | AV144: 0 | AW144: 0 | AY144: 0 | AZ144: 0 | BB144: 0 | BC144: 0 | BE144: 0 | BF144: 0 | BH144: 0 | BI144: 0 | BK144: 0 | BL144: 0 | BN144: 0 | BO144: 0 | BQ144: 0 | BR144: 0 | BT144: 0 | BU144: 0 | BW144: 0 | BX144: 0 | BZ144: 0 | CA144: 0
A145: 7 | B145: =CONCATENATE(A138,".",A145) -> 5.7 | C145: 0 | D145: 0 | F145: 0 | G145: 0 | I145: 0 | J145: 0 | L145: 0 | M145: 0 | O145: 0 | P145: 0 | R145: 0 | S145: 0 | U145: 0 | V145: 0 | X145: 0 | Y145: 0 | AA145: 0 | AB145: 0 | AD145: 0 | AE145: 0 | AG145: 0 | AH145: 0 | AJ145: 0 | AK145: 0 | AM145: 0 | AN145: 0 | AP145: 0 | AQ145: 0 | AS145: 0 | AT145: 0 | AV145: 0 | AW145: 0 | AY145: 0 | AZ145: 0 | BB145: 0 | BC145: 0 | BE145: 0 | BF145: 0 | BH145: 0 | BI145: 0 | BK145: 0 | BL145: 0 | BN145: 0 | BO145: 0 | BQ145: 0 | BR145: 0 | BT145: 0 | BU145: 0 | BW145: 0 | BX145: 0 | BZ145: 0 | CA145: 0
A146: 8 | B146: =CONCATENATE(A138,".",A146) -> 5.8 | C146: 0 | D146: 0 | F146: 0 | G146: 0 | I146: 0 | J146: 0 | L146: 0 | M146: 0 | O146: 0 | P146: 0 | R146: 0 | S146: 0 | U146: 0 | V146: 0 | X146: 0 | Y146: 0 | AA146: 0 | AB146: 0 | AD146: 0 | AE146: 0 | AG146: 0 | AH146: 0 | AJ146: 0 | AK146: 0 | AM146: 0 | AN146: 0 | AP146: 0 | AQ146: 0 | AS146: 0 | AT146: 0 | AV146: 0 | AW146: 0 | AY146: 0 | AZ146: 0 | BB146: 0 | BC146: 0 | BE146: 0 | BF146: 0 | BH146: 0 | BI146: 0 | BK146: 0 | BL146: 0 | BN146: 0 | BO146: 0 | BQ146: 0 | BR146: 0 | BT146: 0 | BU146: 0 | BW146: 0 | BX146: 0 | BZ146: 0 | CA146: 0
A147: 9 | B147: =CONCATENATE(A138,".",A147) -> 5.9 | C147: 0 | D147: 0 | F147: 0 | G147: 0 | I147: 0 | J147: 0 | L147: 0 | M147: 0 | O147: 0 | P147: 0 | R147: 0 | S147: 0 | U147: 0 | V147: 0 | X147: 0 | Y147: 0 | AA147: 0 | AB147: 0 | AD147: 0 | AE147: 0 | AG147: 0 | AH147: 0 | AJ147: 0 | AK147: 0 | AM147: 0 | AN147: 0 | AP147: 0 | AQ147: 0 | AS147: 0 | AT147: 0 | AV147: 0 | AW147: 0 | AY147: 0 | AZ147: 0 | BB147: 0 | BC147: 0 | BE147: 0 | BF147: 0 | BH147: 0 | BI147: 0 | BK147: 0 | BL147: 0 | BN147: 0 | BO147: 0 | BQ147: 0 | BR147: 0 | BT147: 0 | BU147: 0 | BW147: 0 | BX147: 0 | BZ147: 0 | CA147: 0
A148: 10 | B148: =CONCATENATE(A138,".",A148) -> 5.10 | C148: 0 | D148: 0 | F148: 0 | G148: 0 | I148: 0 | J148: 0 | L148: 0 | M148: 0 | O148: 0 | P148: 0 | R148: 0 | S148: 0 | U148: 0 | V148: 0 | X148: 0 | Y148: 0 | AA148: 0 | AB148: 0 | AD148: 0 | AE148: 0 | AG148: 0 | AH148: 0 | AJ148: 0 | AK148: 0 | AM148: 0 | AN148: 0 | AP148: 0 | AQ148: 0 | AS148: 0 | AT148: 0 | AV148: 0 | AW148: 0 | AY148: 0 | AZ148: 0 | BB148: 0 | BC148: 0 | BE148: 0 | BF148: 0 | BH148: 0 | BI148: 0 | BK148: 0 | BL148: 0 | BN148: 0 | BO148: 0 | BQ148: 0 | BR148: 0 | BT148: 0 | BU148: 0 | BW148: 0 | BX148: 0 | BZ148: 0 | CA148: 0
A149: 11 | B149: =CONCATENATE(A138,".",A149) -> 5.11 | C149: 0 | D149: 0 | F149: 0 | G149: 0 | I149: 0 | J149: 0 | L149: 0 | M149: 0 | O149: 0 | P149: 0 | R149: 0 | S149: 0 | U149: 0 | V149: 0 | X149: 0 | Y149: 0 | AA149: 0 | AB149: 0 | AD149: 0 | AE149: 0 | AG149: 0 | AH149: 0 | AJ149: 0 | AK149: 0 | AM149: 0 | AN149: 0 | AP149: 0 | AQ149: 0 | AS149: 0 | AT149: 0 | AV149: 0 | AW149: 0 | AY149: 0 | AZ149: 0 | BB149: 0 | BC149: 0 | BE149: 0 | BF149: 0 | BH149: 0 | BI149: 0 | BK149: 0 | BL149: 0 | BN149: 0 | BO149: 0 | BQ149: 0 | BR149: 0 | BT149: 0 | BU149: 0 | BW149: 0 | BX149: 0 | BZ149: 0 | CA149: 0
A150: 12 | B150: =CONCATENATE(A138,".",A150) -> 5.12 | C150: 0 | D150: 0 | F150: 0 | G150: 0 | I150: 0 | J150: 0 | L150: 0 | M150: 0 | O150: 0 | P150: 0 | R150: 0 | S150: 0 | U150: 0 | V150: 0 | X150: 0 | Y150: 0 | AA150: 0 | AB150: 0 | AD150: 0 | AE150: 0 | AG150: 0 | AH150: 0 | AJ150: 0 | AK150: 0 | AM150: 0 | AN150: 0 | AP150: 0 | AQ150: 0 | AS150: 0 | AT150: 0 | AV150: 0 | AW150: 0 | AY150: 0 | AZ150: 0 | BB150: 0 | BC150: 0 | BE150: 0 | BF150: 0 | BH150: 0 | BI150: 0 | BK150: 0 | BL150: 0 | BN150: 0 | BO150: 0 | BQ150: 0 | BR150: 0 | BT150: 0 | BU150: 0 | BW150: 0 | BX150: 0 | BZ150: 0 | CA150: 0
A151: 13 | B151: =CONCATENATE(A138,".",A151) -> 5.13 | C151: 0 | D151: 0 | F151: 0 | G151: 0 | I151: 0 | J151: 0 | L151: 0 | M151: 0 | O151: 0 | P151: 0 | R151: 0 | S151: 0 | U151: 0 | V151: 0 | X151: 0 | Y151: 0 | AA151: 0 | AB151: 0 | AD151: 0 | AE151: 0 | AG151: 0 | AH151: 0 | AJ151: 0 | AK151: 0 | AM151: 0 | AN151: 0 | AP151: 0 | AQ151: 0 | AS151: 0 | AT151: 0 | AV151: 0 | AW151: 0 | AY151: 0 | AZ151: 0 | BB151: 0 | BC151: 0 | BE151: 0 | BF151: 0 | BH151: 0 | BI151: 0 | BK151: 0 | BL151: 0 | BN151: 0 | BO151: 0 | BQ151: 0 | BR151: 0 | BT151: 0 | BU151: 0 | BW151: 0 | BX151: 0 | BZ151: 0 | CA151: 0
A152: 14 | B152: =CONCATENATE(A138,".",A152) -> 5.14 | C152: 0 | D152: 0 | F152: 0 | G152: 0 | I152: 0 | J152: 0 | L152: 0 | M152: 0 | O152: 0 | P152: 0 | R152: 0 | S152: 0 | U152: 0 | V152: 0 | X152: 0 | Y152: 0 | AA152: 0 | AB152: 0 | AD152: 0 | AE152: 0 | AG152: 0 | AH152: 0 | AJ152: 0 | AK152: 0 | AM152: 0 | AN152: 0 | AP152: 0 | AQ152: 0 | AS152: 0 | AT152: 0 | AV152: 0 | AW152: 0 | AY152: 0 | AZ152: 0 | BB152: 0 | BC152: 0 | BE152: 0 | BF152: 0 | BH152: 0 | BI152: 0 | BK152: 0 | BL152: 0 | BN152: 0 | BO152: 0 | BQ152: 0 | BR152: 0 | BT152: 0 | BU152: 0 | BW152: 0 | BX152: 0 | BZ152: 0 | CA152: 0
A153: 15 | B153: =CONCATENATE(A138,".",A153) -> 5.15 | C153: 0 | D153: 0 | F153: 0 | G153: 0 | I153: 0 | J153: 0 | L153: 0 | M153: 0 | O153: 0 | P153: 0 | R153: 0 | S153: 0 | U153: 0 | V153: 0 | X153: 0 | Y153: 0 | AA153: 0 | AB153: 0 | AD153: 0 | AE153: 0 | AG153: 0 | AH153: 0 | AJ153: 0 | AK153: 0 | AM153: 0 | AN153: 0 | AP153: 0 | AQ153: 0 | AS153: 0 | AT153: 0 | AV153: 0 | AW153: 0 | AY153: 0 | AZ153: 0 | BB153: 0 | BC153: 0 | BE153: 0 | BF153: 0 | BH153: 0 | BI153: 0 | BK153: 0 | BL153: 0 | BN153: 0 | BO153: 0 | BQ153: 0 | BR153: 0 | BT153: 0 | BU153: 0 | BW153: 0 | BX153: 0 | BZ153: 0 | CA153: 0
A154: 16 | B154: =CONCATENATE(A138,".",A154) -> 5.16 | C154: 0 | D154: 0 | F154: 0 | G154: 0 | I154: 0 | J154: 0 | L154: 0 | M154: 0 | O154: 0 | P154: 0 | R154: 0 | S154: 0 | U154: 0 | V154: 0 | X154: 0 | Y154: 0 | AA154: 0 | AB154: 0 | AD154: 0 | AE154: 0 | AG154: 0 | AH154: 0 | AJ154: 0 | AK154: 0 | AM154: 0 | AN154: 0 | AP154: 0 | AQ154: 0 | AS154: 0 | AT154: 0 | AV154: 0 | AW154: 0 | AY154: 0 | AZ154: 0 | BB154: 0 | BC154: 0 | BE154: 0 | BF154: 0 | BH154: 0 | BI154: 0 | BK154: 0 | BL154: 0 | BN154: 0 | BO154: 0 | BQ154: 0 | BR154: 0 | BT154: 0 | BU154: 0 | BW154: 0 | BX154: 0 | BZ154: 0 | CA154: 0
A155: 17 | B155: =CONCATENATE(A138,".",A155) -> 5.17 | C155: 0 | D155: 0 | F155: 0 | G155: 0 | I155: 0 | J155: 0 | L155: 0 | M155: 0 | O155: 0 | P155: 0 | R155: 0 | S155: 0 | U155: 0 | V155: 0 | X155: 0 | Y155: 0 | AA155: 0 | AB155: 0 | AD155: 0 | AE155: 0 | AG155: 0 | AH155: 0 | AJ155: 0 | AK155: 0 | AM155: 0 | AN155: 0 | AP155: 0 | AQ155: 0 | AS155: 0 | AT155: 0 | AV155: 0 | AW155: 0 | AY155: 0 | AZ155: 0 | BB155: 0 | BC155: 0 | BE155: 0 | BF155: 0 | BH155: 0 | BI155: 0 | BK155: 0 | BL155: 0 | BN155: 0 | BO155: 0 | BQ155: 0 | BR155: 0 | BT155: 0 | BU155: 0 | BW155: 0 | BX155: 0 | BZ155: 0 | CA155: 0
A156: 18 | B156: =CONCATENATE(A138,".",A156) -> 5.18 | C156: 0 | D156: 0 | F156: 0 | G156: 0 | I156: 0 | J156: 0 | L156: 0 | M156: 0 | O156: 0 | P156: 0 | R156: 0 | S156: 0 | U156: 0 | V156: 0 | X156: 0 | Y156: 0 | AA156: 0 | AB156: 0 | AD156: 0 | AE156: 0 | AG156: 0 | AH156: 0 | AJ156: 0 | AK156: 0 | AM156: 0 | AN156: 0 | AP156: 0 | AQ156: 0 | AS156: 0 | AT156: 0 | AV156: 0 | AW156: 0 | AY156: 0 | AZ156: 0 | BB156: 0 | BC156: 0 | BE156: 0 | BF156: 0 | BH156: 0 | BI156: 0 | BK156: 0 | BL156: 0 | BN156: 0 | BO156: 0 | BQ156: 0 | BR156: 0 | BT156: 0 | BU156: 0 | BW156: 0 | BX156: 0 | BZ156: 0 | CA156: 0
A157: 19 | B157: =CONCATENATE(A138,".",A157) -> 5.19 | C157: 0 | D157: 0 | F157: 0 | G157: 0 | I157: 0 | J157: 0 | L157: 0 | M157: 0 | O157: 0 | P157: 0 | R157: 0 | S157: 0 | U157: 0 | V157: 0 | X157: 0 | Y157: 0 | AA157: 0 | AB157: 0 | AD157: 0 | AE157: 0 | AG157: 0 | AH157: 0 | AJ157: 0 | AK157: 0 | AM157: 0 | AN157: 0 | AP157: 0 | AQ157: 0 | AS157: 0 | AT157: 0 | AV157: 0 | AW157: 0 | AY157: 0 | AZ157: 0 | BB157: 0 | BC157: 0 | BE157: 0 | BF157: 0 | BH157: 0 | BI157: 0 | BK157: 0 | BL157: 0 | BN157: 0 | BO157: 0 | BQ157: 0 | BR157: 0 | BT157: 0 | BU157: 0 | BW157: 0 | BX157: 0 | BZ157: 0 | CA157: 0
A158: 20 | B158: =CONCATENATE(A138,".",A158) -> 5.20 | C158: 0 | D158: 0 | F158: 0 | G158: 0 | I158: 0 | J158: 0 | L158: 0 | M158: 0 | O158: 0 | P158: 0 | R158: 0 | S158: 0 | U158: 0 | V158: 0 | X158: 0 | Y158: 0 | AA158: 0 | AB158: 0 | AD158: 0 | AE158: 0 | AG158: 0 | AH158: 0 | AJ158: 0 | AK158: 0 | AM158: 0 | AN158: 0 | AP158: 0 | AQ158: 0 | AS158: 0 | AT158: 0 | AV158: 0 | AW158: 0 | AY158: 0 | AZ158: 0 | BB158: 0 | BC158: 0 | BE158: 0 | BF158: 0 | BH158: 0 | BI158: 0 | BK158: 0 | BL158: 0 | BN158: 0 | BO158: 0 | BQ158: 0 | BR158: 0 | BT158: 0 | BU158: 0 | BW158: 0 | BX158: 0 | BZ158: 0 | CA158: 0
A159: 21 | B159: =CONCATENATE(A138,".",A159) -> 5.21 | C159: 0 | D159: 0 | F159: 0 | G159: 0 | I159: 0 | J159: 0 | L159: 0 | M159: 0 | O159: 0 | P159: 0 | R159: 0 | S159: 0 | U159: 0 | V159: 0 | X159: 0 | Y159: 0 | AA159: 0 | AB159: 0 | AD159: 0 | AE159: 0 | AG159: 0 | AH159: 0 | AJ159: 0 | AK159: 0 | AM159: 0 | AN159: 0 | AP159: 0 | AQ159: 0 | AS159: 0 | AT159: 0 | AV159: 0 | AW159: 0 | AY159: 0 | AZ159: 0 | BB159: 0 | BC159: 0 | BE159: 0 | BF159: 0 | BH159: 0 | BI159: 0 | BK159: 0 | BL159: 0 | BN159: 0 | BO159: 0 | BQ159: 0 | BR159: 0 | BT159: 0 | BU159: 0 | BW159: 0 | BX159: 0 | BZ159: 0 | CA159: 0
A160: 22 | B160: =CONCATENATE(A138,".",A160) -> 5.22 | C160: 0 | D160: 0 | F160: 0 | G160: 0 | I160: 0 | J160: 0 | L160: 0 | M160: 0 | O160: 0 | P160: 0 | R160: 0 | S160: 0 | U160: 0 | V160: 0 | X160: 0 | Y160: 0 | AA160: 0 | AB160: 0 | AD160: 0 | AE160: 0 | AG160: 0 | AH160: 0 | AJ160: 0 | AK160: 0 | AM160: 0 | AN160: 0 | AP160: 0 | AQ160: 0 | AS160: 0 | AT160: 0 | AV160: 0 | AW160: 0 | AY160: 0 | AZ160: 0 | BB160: 0 | BC160: 0 | BE160: 0 | BF160: 0 | BH160: 0 | BI160: 0 | BK160: 0 | BL160: 0 | BN160: 0 | BO160: 0 | BQ160: 0 | BR160: 0 | BT160: 0 | BU160: 0 | BW160: 0 | BX160: 0 | BZ160: 0 | CA160: 0
A161: 23 | B161: =CONCATENATE(A138,".",A161) -> 5.23 | C161: 0 | D161: 0 | F161: 0 | G161: 0 | I161: 0 | J161: 0 | L161: 0 | M161: 0 | O161: 0 | P161: 0 | R161: 0 | S161: 0 | U161: 0 | V161: 0 | X161: 0 | Y161: 0 | AA161: 0 | AB161: 0 | AD161: 0 | AE161: 0 | AG161: 0 | AH161: 0 | AJ161: 0 | AK161: 0 | AM161: 0 | AN161: 0 | AP161: 0 | AQ161: 0 | AS161: 0 | AT161: 0 | AV161: 0 | AW161: 0 | AY161: 0 | AZ161: 0 | BB161: 0 | BC161: 0 | BE161: 0 | BF161: 0 | BH161: 0 | BI161: 0 | BK161: 0 | BL161: 0 | BN161: 0 | BO161: 0 | BQ161: 0 | BR161: 0 | BT161: 0 | BU161: 0 | BW161: 0 | BX161: 0 | BZ161: 0 | CA161: 0
A162: 24 | B162: =CONCATENATE(A138,".",A162) -> 5.24 | C162: 0 | D162: 0 | F162: 0 | G162: 0 | I162: 0 | J162: 0 | L162: 0 | M162: 0 | O162: 0 | P162: 0 | R162: 0 | S162: 0 | U162: 0 | V162: 0 | X162: 0 | Y162: 0 | AA162: 0 | AB162: 0 | AD162: 0 | AE162: 0 | AG162: 0 | AH162: 0 | AJ162: 0 | AK162: 0 | AM162: 0 | AN162: 0 | AP162: 0 | AQ162: 0 | AS162: 0 | AT162: 0 | AV162: 0 | AW162: 0 | AY162: 0 | AZ162: 0 | BB162: 0 | BC162: 0 | BE162: 0 | BF162: 0 | BH162: 0 | BI162: 0 | BK162: 0 | BL162: 0 | BN162: 0 | BO162: 0 | BQ162: 0 | BR162: 0 | BT162: 0 | BU162: 0 | BW162: 0 | BX162: 0 | BZ162: 0 | CA162: 0
A163: 25 | B163: =CONCATENATE(A138,".",A163) -> 5.25 | C163: 0 | D163: 0 | F163: 0 | G163: 0 | I163: 0 | J163: 0 | L163: 0 | M163: 0 | O163: 0 | P163: 0 | R163: 0 | S163: 0 | U163: 0 | V163: 0 | X163: 0 | Y163: 0 | AA163: 0 | AB163: 0 | AD163: 0 | AE163: 0 | AG163: 0 | AH163: 0 | AJ163: 0 | AK163: 0 | AM163: 0 | AN163: 0 | AP163: 0 | AQ163: 0 | AS163: 0 | AT163: 0 | AV163: 0 | AW163: 0 | AY163: 0 | AZ163: 0 | BB163: 0 | BC163: 0 | BE163: 0 | BF163: 0 | BH163: 0 | BI163: 0 | BK163: 0 | BL163: 0 | BN163: 0 | BO163: 0 | BQ163: 0 | BR163: 0 | BT163: 0 | BU163: 0 | BW163: 0 | BX163: 0 | BZ163: 0 | CA163: 0
A164: 26 | B164: =CONCATENATE(A138,".",A164) -> 5.26 | C164: 0 | D164: 0 | F164: 0 | G164: 0 | I164: 0 | J164: 0 | L164: 0 | M164: 0 | O164: 0 | P164: 0 | R164: 0 | S164: 0 | U164: 0 | V164: 0 | X164: 0 | Y164: 0 | AA164: 0 | AB164: 0 | AD164: 0 | AE164: 0 | AG164: 0 | AH164: 0 | AJ164: 0 | AK164: 0 | AM164: 0 | AN164: 0 | AP164: 0 | AQ164: 0 | AS164: 0 | AT164: 0 | AV164: 0 | AW164: 0 | AY164: 0 | AZ164: 0 | BB164: 0 | BC164: 0 | BE164: 0 | BF164: 0 | BH164: 0 | BI164: 0 | BK164: 0 | BL164: 0 | BN164: 0 | BO164: 0 | BQ164: 0 | BR164: 0 | BT164: 0 | BU164: 0 | BW164: 0 | BX164: 0 | BZ164: 0 | CA164: 0
A165: 27 | B165: =CONCATENATE(A138,".",A165) -> 5.27 | C165: 0 | D165: 0 | F165: 0 | G165: 0 | I165: 0 | J165: 0 | L165: 0 | M165: 0 | O165: 0 | P165: 0 | R165: 0 | S165: 0 | U165: 0 | V165: 0 | X165: 0 | Y165: 0 | AA165: 0 | AB165: 0 | AD165: 0 | AE165: 0 | AG165: 0 | AH165: 0 | AJ165: 0 | AK165: 0 | AM165: 0 | AN165: 0 | AP165: 0 | AQ165: 0 | AS165: 0 | AT165: 0 | AV165: 0 | AW165: 0 | AY165: 0 | AZ165: 0 | BB165: 0 | BC165: 0 | BE165: 0 | BF165: 0 | BH165: 0 | BI165: 0 | BK165: 0 | BL165: 0 | BN165: 0 | BO165: 0 | BQ165: 0 | BR165: 0 | BT165: 0 | BU165: 0 | BW165: 0 | BX165: 0 | BZ165: 0 | CA165: 0
A166: 28 | B166: =CONCATENATE(A138,".",A166) -> 5.28 | C166: 0 | D166: 0 | F166: 0 | G166: 0 | I166: 0 | J166: 0 | L166: 0 | M166: 0 | O166: 0 | P166: 0 | R166: 0 | S166: 0 | U166: 0 | V166: 0 | X166: 0 | Y166: 0 | AA166: 0 | AB166: 0 | AD166: 0 | AE166: 0 | AG166: 0 | AH166: 0 | AJ166: 0 | AK166: 0 | AM166: 0 | AN166: 0 | AP166: 0 | AQ166: 0 | AS166: 0 | AT166: 0 | AV166: 0 | AW166: 0 | AY166: 0 | AZ166: 0 | BB166: 0 | BC166: 0 | BE166: 0 | BF166: 0 | BH166: 0 | BI166: 0 | BK166: 0 | BL166: 0 | BN166: 0 | BO166: 0 | BQ166: 0 | BR166: 0 | BT166: 0 | BU166: 0 | BW166: 0 | BX166: 0 | BZ166: 0 | CA166: 0
A167: 29 | B167: =CONCATENATE(A138,".",A167) -> 5.29 | C167: 0 | D167: 0 | F167: 0 | G167: 0 | I167: 0 | J167: 0 | L167: 0 | M167: 0 | O167: 0 | P167: 0 | R167: 0 | S167: 0 | U167: 0 | V167: 0 | X167: 0 | Y167: 0 | AA167: 0 | AB167: 0 | AD167: 0 | AE167: 0 | AG167: 0 | AH167: 0 | AJ167: 0 | AK167: 0 | AM167: 0 | AN167: 0 | AP167: 0 | AQ167: 0 | AS167: 0 | AT167: 0 | AV167: 0 | AW167: 0 | AY167: 0 | AZ167: 0 | BB167: 0 | BC167: 0 | BE167: 0 | BF167: 0 | BH167: 0 | BI167: 0 | BK167: 0 | BL167: 0 | BN167: 0 | BO167: 0 | BQ167: 0 | BR167: 0 | BT167: 0 | BU167: 0 | BW167: 0 | BX167: 0 | BZ167: 0 | CA167: 0
A168: 30 | B168: =CONCATENATE(A138,".",A168) -> 5.30 | C168: 0 | D168: 0 | F168: 0 | G168: 0 | I168: 0 | J168: 0 | L168: 0 | M168: 0 | O168: 0 | P168: 0 | R168: 0 | S168: 0 | U168: 0 | V168: 0 | X168: 0 | Y168: 0 | AA168: 0 | AB168: 0 | AD168: 0 | AE168: 0 | AG168: 0 | AH168: 0 | AJ168: 0 | AK168: 0 | AM168: 0 | AN168: 0 | AP168: 0 | AQ168: 0 | AS168: 0 | AT168: 0 | AV168: 0 | AW168: 0 | AY168: 0 | AZ168: 0 | BB168: 0 | BC168: 0 | BE168: 0 | BF168: 0 | BH168: 0 | BI168: 0 | BK168: 0 | BL168: 0 | BN168: 0 | BO168: 0 | BQ168: 0 | BR168: 0 | BT168: 0 | BU168: 0 | BW168: 0 | BX168: 0 | BZ168: 0 | CA168: 0
A169: 6 | B169: =A169 -> 6 | C169: 0 | D169: 0 | F169: =IF(ISERROR(G169/$D169=TRUE),0,G169/$D169) -> 0 | G169: =SUM(G170:G199) -> 0 | I169: =IF(ISERROR(J169/$D169=TRUE),0,J169/$D169) -> 0 | J169: =SUM(J170:J199) -> 0 | L169: =IF(ISERROR(M169/$D169=TRUE),0,M169/$D169) -> 0 | M169: =SUM(M170:M199) -> 0 | O169: =IF(ISERROR(P169/$D169=TRUE),0,P169/$D169) -> 0 | P169: =SUM(P170:P199) -> 0 | R169: =IF(ISERROR(S169/$D169=TRUE),0,S169/$D169) -> 0 | S169: =SUM(S170:S199) -> 0 | U169: =IF(ISERROR(V169/$D169=TRUE),0,V169/$D169) -> 0 | V169: =SUM(V170:V199) -> 0 | X169: =IF(ISERROR(Y169/$D169=TRUE),0,Y169/$D169) -> 0 | Y169: =SUM(Y170:Y199) -> 0 | AA169: =IF(ISERROR(AB169/$D169=TRUE),0,AB169/$D169) -> 0 | AB169: =SUM(AB170:AB199) -> 0 | AD169: =IF(ISERROR(AE169/$D169=TRUE),0,AE169/$D169) -> 0 | AE169: =SUM(AE170:AE199) -> 0 | AG169: =IF(ISERROR(AH169/$D169=TRUE),0,AH169/$D169) -> 0 | AH169: =SUM(AH170:AH199) -> 0 | AJ169: =IF(ISERROR(AK169/$D169=TRUE),0,AK169/$D169) -> 0 | AK169: =SUM(AK170:AK199) -> 0 | AM169: =IF(ISERROR(AN169/$D169=TRUE),0,AN169/$D169) -> 0 | AN169: =SUM(AN170:AN199) -> 0 | AP169: =IF(ISERROR(AQ169/$D169=TRUE),0,AQ169/$D169) -> 0 | AQ169: =SUM(AQ170:AQ199) -> 0 | AS169: =IF(ISERROR(AT169/$D169=TRUE),0,AT169/$D169) -> 0 | AT169: =SUM(AT170:AT199) -> 0 | AV169: =IF(ISERROR(AW169/$D169=TRUE),0,AW169/$D169) -> 0 | AW169: =SUM(AW170:AW199) -> 0 | AY169: =IF(ISERROR(AZ169/$D169=TRUE),0,AZ169/$D169) -> 0 | AZ169: =SUM(AZ170:AZ199) -> 0 | BB169: =IF(ISERROR(BC169/$D169=TRUE),0,BC169/$D169) -> 0 | BC169: =SUM(BC170:BC199) -> 0 | BE169: =IF(ISERROR(BF169/$D169=TRUE),0,BF169/$D169) -> 0 | BF169: =SUM(BF170:BF199) -> 0 | BH169: =IF(ISERROR(BI169/$D169=TRUE),0,BI169/$D169) -> 0 | BI169: =SUM(BI170:BI199) -> 0 | BK169: =IF(ISERROR(BL169/$D169=TRUE),0,BL169/$D169) -> 0 | BL169: =SUM(BL170:BL199) -> 0 | BN169: =IF(ISERROR(BO169/$D169=TRUE),0,BO169/$D169) -> 0 | BO169: =SUM(BO170:BO199) -> 0 | BQ169: =IF(ISERROR(BR169/$D169=TRUE),0,BR169/$D169) -> 0 | BR169: =SUM(BR170:BR199) -> 0 | BT169: =IF(ISERROR(BU169/$D169=TRUE),0,BU169/$D169) -> 0 | BU169: =SUM(BU170:BU199) -> 0 | BW169: =IF(ISERROR(BX169/$D169=TRUE),0,BX169/$D169) -> 0 | BX169: =SUM(BX170:BX199) -> 0 | BZ169: =IF(ISERROR(CA169/$D169=TRUE),0,CA169/$D169) -> 0 | CA169: =SUM(CA170:CA199) -> 0
A170: 1 | B170: =CONCATENATE(A169,".",A170) -> 6.1 | C170: 0 | D170: 0 | F170: 0 | G170: =F170*$D170 -> 0 | I170: 0 | J170: =I170*$D170 -> 0 | L170: 0 | M170: =L170*$D170 -> 0 | O170: 0 | P170: =O170*$D170 -> 0 | R170: 0 | S170: =R170*$D170 -> 0 | U170: 0 | V170: =U170*$D170 -> 0 | X170: 0 | Y170: =X170*$D170 -> 0 | AA170: 0 | AB170: =AA170*$D170 -> 0 | AD170: 0 | AE170: =AD170*$D170 -> 0 | AG170: 0 | AH170: =AG170*$D170 -> 0 | AJ170: 0 | AK170: =AJ170*$D170 -> 0 | AM170: 0 | AN170: =AM170*$D170 -> 0 | AP170: 0 | AQ170: =AP170*$D170 -> 0 | AS170: 0 | AT170: =AS170*$D170 -> 0 | AV170: 0 | AW170: =AV170*$D170 -> 0 | AY170: 0 | AZ170: =AY170*$D170 -> 0 | BB170: 0 | BC170: =BB170*$D170 -> 0 | BE170: 0 | BF170: =BE170*$D170 -> 0 | BH170: 0 | BI170: =BH170*$D170 -> 0 | BK170: 0 | BL170: =BK170*$D170 -> 0 | BN170: 0 | BO170: =BN170*$D170 -> 0 | BQ170: 0 | BR170: =BQ170*$D170 -> 0 | BT170: 0 | BU170: =BT170*$D170 -> 0 | BW170: 0 | BX170: =BW170*$D170 -> 0 | BZ170: =IF(ISERROR(CA170/$D170=TRUE),0,CA170/$D170) -> 0 | CA170: =BX170+BU170+BR170+BO170+BL170+BI170+BF170+BC170+AZ170+AW170+AT170+AQ170+AN170+AK170+AH170+AE170+AB170+Y170+V170+S170+P170+M170+J170+G170 -> 0
A171: 2 | B171: =CONCATENATE(A169,".",A171) -> 6.2 | C171: 0 | D171: 0 | F171: 0 | G171: =F171*$D171 -> 0 | I171: 0 | J171: =I171*$D171 -> 0 | L171: 0 | M171: =L171*$D171 -> 0 | O171: 0 | P171: =O171*$D171 -> 0 | R171: 0 | S171: =R171*$D171 -> 0 | U171: 0 | V171: =U171*$D171 -> 0 | X171: 0 | Y171: =X171*$D171 -> 0 | AA171: 0 | AB171: =AA171*$D171 -> 0 | AD171: 0 | AE171: =AD171*$D171 -> 0 | AG171: 0 | AH171: =AG171*$D171 -> 0 | AJ171: 0 | AK171: =AJ171*$D171 -> 0 | AM171: 0 | AN171: =AM171*$D171 -> 0 | AP171: 0 | AQ171: =AP171*$D171 -> 0 | AS171: 0 | AT171: =AS171*$D171 -> 0 | AV171: 0 | AW171: =AV171*$D171 -> 0 | AY171: 0 | AZ171: =AY171*$D171 -> 0 | BB171: 0 | BC171: =BB171*$D171 -> 0 | BE171: 0 | BF171: =BE171*$D171 -> 0 | BH171: 0 | BI171: =BH171*$D171 -> 0 | BK171: 0 | BL171: =BK171*$D171 -> 0 | BN171: 0 | BO171: =BN171*$D171 -> 0 | BQ171: 0 | BR171: =BQ171*$D171 -> 0 | BT171: 0 | BU171: =BT171*$D171 -> 0 | BW171: 0 | BX171: =BW171*$D171 -> 0 | BZ171: =IF(ISERROR(CA171/$D171=TRUE),0,CA171/$D171) -> 0 | CA171: =BX171+BU171+BR171+BO171+BL171+BI171+BF171+BC171+AZ171+AW171+AT171+AQ171+AN171+AK171+AH171+AE171+AB171+Y171+V171+S171+P171+M171+J171+G171 -> 0
A172: 3 | B172: =CONCATENATE(A169,".",A172) -> 6.3 | C172: 0 | D172: 0 | F172: 0 | G172: 0 | I172: 0 | J172: 0 | L172: 0 | M172: 0 | O172: 0 | P172: 0 | R172: 0 | S172: 0 | U172: 0 | V172: 0 | X172: 0 | Y172: 0 | AA172: 0 | AB172: 0 | AD172: 0 | AE172: 0 | AG172: 0 | AH172: 0 | AJ172: 0 | AK172: 0 | AM172: 0 | AN172: 0 | AP172: 0 | AQ172: 0 | AS172: 0 | AT172: 0 | AV172: 0 | AW172: 0 | AY172: 0 | AZ172: 0 | BB172: 0 | BC172: 0 | BE172: 0 | BF172: 0 | BH172: 0 | BI172: 0 | BK172: 0 | BL172: 0 | BN172: 0 | BO172: 0 | BQ172: 0 | BR172: 0 | BT172: 0 | BU172: 0 | BW172: 0 | BX172: 0 | BZ172: 0 | CA172: 0
A173: 4 | B173: =CONCATENATE(A169,".",A173) -> 6.4 | C173: 0 | D173: 0 | F173: 0 | G173: 0 | I173: 0 | J173: 0 | L173: 0 | M173: 0 | O173: 0 | P173: 0 | R173: 0 | S173: 0 | U173: 0 | V173: 0 | X173: 0 | Y173: 0 | AA173: 0 | AB173: 0 | AD173: 0 | AE173: 0 | AG173: 0 | AH173: 0 | AJ173: 0 | AK173: 0 | AM173: 0 | AN173: 0 | AP173: 0 | AQ173: 0 | AS173: 0 | AT173: 0 | AV173: 0 | AW173: 0 | AY173: 0 | AZ173: 0 | BB173: 0 | BC173: 0 | BE173: 0 | BF173: 0 | BH173: 0 | BI173: 0 | BK173: 0 | BL173: 0 | BN173: 0 | BO173: 0 | BQ173: 0 | BR173: 0 | BT173: 0 | BU173: 0 | BW173: 0 | BX173: 0 | BZ173: 0 | CA173: 0
A174: 5 | B174: =CONCATENATE(A169,".",A174) -> 6.5 | C174: 0 | D174: 0 | F174: 0 | G174: 0 | I174: 0 | J174: 0 | L174: 0 | M174: 0 | O174: 0 | P174: 0 | R174: 0 | S174: 0 | U174: 0 | V174: 0 | X174: 0 | Y174: 0 | AA174: 0 | AB174: 0 | AD174: 0 | AE174: 0 | AG174: 0 | AH174: 0 | AJ174: 0 | AK174: 0 | AM174: 0 | AN174: 0 | AP174: 0 | AQ174: 0 | AS174: 0 | AT174: 0 | AV174: 0 | AW174: 0 | AY174: 0 | AZ174: 0 | BB174: 0 | BC174: 0 | BE174: 0 | BF174: 0 | BH174: 0 | BI174: 0 | BK174: 0 | BL174: 0 | BN174: 0 | BO174: 0 | BQ174: 0 | BR174: 0 | BT174: 0 | BU174: 0 | BW174: 0 | BX174: 0 | BZ174: 0 | CA174: 0
A175: 6 | B175: =CONCATENATE(A169,".",A175) -> 6.6 | C175: 0 | D175: 0 | F175: 0 | G175: 0 | I175: 0 | J175: 0 | L175: 0 | M175: 0 | O175: 0 | P175: 0 | R175: 0 | S175: 0 | U175: 0 | V175: 0 | X175: 0 | Y175: 0 | AA175: 0 | AB175: 0 | AD175: 0 | AE175: 0 | AG175: 0 | AH175: 0 | AJ175: 0 | AK175: 0 | AM175: 0 | AN175: 0 | AP175: 0 | AQ175: 0 | AS175: 0 | AT175: 0 | AV175: 0 | AW175: 0 | AY175: 0 | AZ175: 0 | BB175: 0 | BC175: 0 | BE175: 0 | BF175: 0 | BH175: 0 | BI175: 0 | BK175: 0 | BL175: 0 | BN175: 0 | BO175: 0 | BQ175: 0 | BR175: 0 | BT175: 0 | BU175: 0 | BW175: 0 | BX175: 0 | BZ175: 0 | CA175: 0
A176: 7 | B176: =CONCATENATE(A169,".",A176) -> 6.7 | C176: 0 | D176: 0 | F176: 0 | G176: 0 | I176: 0 | J176: 0 | L176: 0 | M176: 0 | O176: 0 | P176: 0 | R176: 0 | S176: 0 | U176: 0 | V176: 0 | X176: 0 | Y176: 0 | AA176: 0 | AB176: 0 | AD176: 0 | AE176: 0 | AG176: 0 | AH176: 0 | AJ176: 0 | AK176: 0 | AM176: 0 | AN176: 0 | AP176: 0 | AQ176: 0 | AS176: 0 | AT176: 0 | AV176: 0 | AW176: 0 | AY176: 0 | AZ176: 0 | BB176: 0 | BC176: 0 | BE176: 0 | BF176: 0 | BH176: 0 | BI176: 0 | BK176: 0 | BL176: 0 | BN176: 0 | BO176: 0 | BQ176: 0 | BR176: 0 | BT176: 0 | BU176: 0 | BW176: 0 | BX176: 0 | BZ176: 0 | CA176: 0
A177: 8 | B177: =CONCATENATE(A169,".",A177) -> 6.8 | C177: 0 | D177: 0 | F177: 0 | G177: 0 | I177: 0 | J177: 0 | L177: 0 | M177: 0 | O177: 0 | P177: 0 | R177: 0 | S177: 0 | U177: 0 | V177: 0 | X177: 0 | Y177: 0 | AA177: 0 | AB177: 0 | AD177: 0 | AE177: 0 | AG177: 0 | AH177: 0 | AJ177: 0 | AK177: 0 | AM177: 0 | AN177: 0 | AP177: 0 | AQ177: 0 | AS177: 0 | AT177: 0 | AV177: 0 | AW177: 0 | AY177: 0 | AZ177: 0 | BB177: 0 | BC177: 0 | BE177: 0 | BF177: 0 | BH177: 0 | BI177: 0 | BK177: 0 | BL177: 0 | BN177: 0 | BO177: 0 | BQ177: 0 | BR177: 0 | BT177: 0 | BU177: 0 | BW177: 0 | BX177: 0 | BZ177: 0 | CA177: 0
A178: 9 | B178: =CONCATENATE(A169,".",A178) -> 6.9 | C178: 0 | D178: 0 | F178: 0 | G178: 0 | I178: 0 | J178: 0 | L178: 0 | M178: 0 | O178: 0 | P178: 0 | R178: 0 | S178: 0 | U178: 0 | V178: 0 | X178: 0 | Y178: 0 | AA178: 0 | AB178: 0 | AD178: 0 | AE178: 0 | AG178: 0 | AH178: 0 | AJ178: 0 | AK178: 0 | AM178: 0 | AN178: 0 | AP178: 0 | AQ178: 0 | AS178: 0 | AT178: 0 | AV178: 0 | AW178: 0 | AY178: 0 | AZ178: 0 | BB178: 0 | BC178: 0 | BE178: 0 | BF178: 0 | BH178: 0 | BI178: 0 | BK178: 0 | BL178: 0 | BN178: 0 | BO178: 0 | BQ178: 0 | BR178: 0 | BT178: 0 | BU178: 0 | BW178: 0 | BX178: 0 | BZ178: 0 | CA178: 0
A179: 10 | B179: =CONCATENATE(A169,".",A179) -> 6.10 | C179: 0 | D179: 0 | F179: 0 | G179: 0 | I179: 0 | J179: 0 | L179: 0 | M179: 0 | O179: 0 | P179: 0 | R179: 0 | S179: 0 | U179: 0 | V179: 0 | X179: 0 | Y179: 0 | AA179: 0 | AB179: 0 | AD179: 0 | AE179: 0 | AG179: 0 | AH179: 0 | AJ179: 0 | AK179: 0 | AM179: 0 | AN179: 0 | AP179: 0 | AQ179: 0 | AS179: 0 | AT179: 0 | AV179: 0 | AW179: 0 | AY179: 0 | AZ179: 0 | BB179: 0 | BC179: 0 | BE179: 0 | BF179: 0 | BH179: 0 | BI179: 0 | BK179: 0 | BL179: 0 | BN179: 0 | BO179: 0 | BQ179: 0 | BR179: 0 | BT179: 0 | BU179: 0 | BW179: 0 | BX179: 0 | BZ179: 0 | CA179: 0
A180: 11 | B180: =CONCATENATE(A169,".",A180) -> 6.11 | C180: 0 | D180: 0 | F180: 0 | G180: 0 | I180: 0 | J180: 0 | L180: 0 | M180: 0 | O180: 0 | P180: 0 | R180: 0 | S180: 0 | U180: 0 | V180: 0 | X180: 0 | Y180: 0 | AA180: 0 | AB180: 0 | AD180: 0 | AE180: 0 | AG180: 0 | AH180: 0 | AJ180: 0 | AK180: 0 | AM180: 0 | AN180: 0 | AP180: 0 | AQ180: 0 | AS180: 0 | AT180: 0 | AV180: 0 | AW180: 0 | AY180: 0 | AZ180: 0 | BB180: 0 | BC180: 0 | BE180: 0 | BF180: 0 | BH180: 0 | BI180: 0 | BK180: 0 | BL180: 0 | BN180: 0 | BO180: 0 | BQ180: 0 | BR180: 0 | BT180: 0 | BU180: 0 | BW180: 0 | BX180: 0 | BZ180: 0 | CA180: 0
A181: 12 | B181: =CONCATENATE(A169,".",A181) -> 6.12 | C181: 0 | D181: 0 | F181: 0 | G181: 0 | I181: 0 | J181: 0 | L181: 0 | M181: 0 | O181: 0 | P181: 0 | R181: 0 | S181: 0 | U181: 0 | V181: 0 | X181: 0 | Y181: 0 | AA181: 0 | AB181: 0 | AD181: 0 | AE181: 0 | AG181: 0 | AH181: 0 | AJ181: 0 | AK181: 0 | AM181: 0 | AN181: 0 | AP181: 0 | AQ181: 0 | AS181: 0 | AT181: 0 | AV181: 0 | AW181: 0 | AY181: 0 | AZ181: 0 | BB181: 0 | BC181: 0 | BE181: 0 | BF181: 0 | BH181: 0 | BI181: 0 | BK181: 0 | BL181: 0 | BN181: 0 | BO181: 0 | BQ181: 0 | BR181: 0 | BT181: 0 | BU181: 0 | BW181: 0 | BX181: 0 | BZ181: 0 | CA181: 0
A182: 13 | B182: =CONCATENATE(A169,".",A182) -> 6.13 | C182: 0 | D182: 0 | F182: 0 | G182: 0 | I182: 0 | J182: 0 | L182: 0 | M182: 0 | O182: 0 | P182: 0 | R182: 0 | S182: 0 | U182: 0 | V182: 0 | X182: 0 | Y182: 0 | AA182: 0 | AB182: 0 | AD182: 0 | AE182: 0 | AG182: 0 | AH182: 0 | AJ182: 0 | AK182: 0 | AM182: 0 | AN182: 0 | AP182: 0 | AQ182: 0 | AS182: 0 | AT182: 0 | AV182: 0 | AW182: 0 | AY182: 0 | AZ182: 0 | BB182: 0 | BC182: 0 | BE182: 0 | BF182: 0 | BH182: 0 | BI182: 0 | BK182: 0 | BL182: 0 | BN182: 0 | BO182: 0 | BQ182: 0 | BR182: 0 | BT182: 0 | BU182: 0 | BW182: 0 | BX182: 0 | BZ182: 0 | CA182: 0
A183: 14 | B183: =CONCATENATE(A169,".",A183) -> 6.14 | C183: 0 | D183: 0 | F183: 0 | G183: 0 | I183: 0 | J183: 0 | L183: 0 | M183: 0 | O183: 0 | P183: 0 | R183: 0 | S183: 0 | U183: 0 | V183: 0 | X183: 0 | Y183: 0 | AA183: 0 | AB183: 0 | AD183: 0 | AE183: 0 | AG183: 0 | AH183: 0 | AJ183: 0 | AK183: 0 | AM183: 0 | AN183: 0 | AP183: 0 | AQ183: 0 | AS183: 0 | AT183: 0 | AV183: 0 | AW183: 0 | AY183: 0 | AZ183: 0 | BB183: 0 | BC183: 0 | BE183: 0 | BF183: 0 | BH183: 0 | BI183: 0 | BK183: 0 | BL183: 0 | BN183: 0 | BO183: 0 | BQ183: 0 | BR183: 0 | BT183: 0 | BU183: 0 | BW183: 0 | BX183: 0 | BZ183: 0 | CA183: 0
A184: 15 | B184: =CONCATENATE(A169,".",A184) -> 6.15 | C184: 0 | D184: 0 | F184: 0 | G184: 0 | I184: 0 | J184: 0 | L184: 0 | M184: 0 | O184: 0 | P184: 0 | R184: 0 | S184: 0 | U184: 0 | V184: 0 | X184: 0 | Y184: 0 | AA184: 0 | AB184: 0 | AD184: 0 | AE184: 0 | AG184: 0 | AH184: 0 | AJ184: 0 | AK184: 0 | AM184: 0 | AN184: 0 | AP184: 0 | AQ184: 0 | AS184: 0 | AT184: 0 | AV184: 0 | AW184: 0 | AY184: 0 | AZ184: 0 | BB184: 0 | BC184: 0 | BE184: 0 | BF184: 0 | BH184: 0 | BI184: 0 | BK184: 0 | BL184: 0 | BN184: 0 | BO184: 0 | BQ184: 0 | BR184: 0 | BT184: 0 | BU184: 0 | BW184: 0 | BX184: 0 | BZ184: 0 | CA184: 0
A185: 16 | B185: =CONCATENATE(A169,".",A185) -> 6.16 | C185: 0 | D185: 0 | F185: 0 | G185: 0 | I185: 0 | J185: 0 | L185: 0 | M185: 0 | O185: 0 | P185: 0 | R185: 0 | S185: 0 | U185: 0 | V185: 0 | X185: 0 | Y185: 0 | AA185: 0 | AB185: 0 | AD185: 0 | AE185: 0 | AG185: 0 | AH185: 0 | AJ185: 0 | AK185: 0 | AM185: 0 | AN185: 0 | AP185: 0 | AQ185: 0 | AS185: 0 | AT185: 0 | AV185: 0 | AW185: 0 | AY185: 0 | AZ185: 0 | BB185: 0 | BC185: 0 | BE185: 0 | BF185: 0 | BH185: 0 | BI185: 0 | BK185: 0 | BL185: 0 | BN185: 0 | BO185: 0 | BQ185: 0 | BR185: 0 | BT185: 0 | BU185: 0 | BW185: 0 | BX185: 0 | BZ185: 0 | CA185: 0
A186: 17 | B186: =CONCATENATE(A169,".",A186) -> 6.17 | C186: 0 | D186: 0 | F186: 0 | G186: 0 | I186: 0 | J186: 0 | L186: 0 | M186: 0 | O186: 0 | P186: 0 | R186: 0 | S186: 0 | U186: 0 | V186: 0 | X186: 0 | Y186: 0 | AA186: 0 | AB186: 0 | AD186: 0 | AE186: 0 | AG186: 0 | AH186: 0 | AJ186: 0 | AK186: 0 | AM186: 0 | AN186: 0 | AP186: 0 | AQ186: 0 | AS186: 0 | AT186: 0 | AV186: 0 | AW186: 0 | AY186: 0 | AZ186: 0 | BB186: 0 | BC186: 0 | BE186: 0 | BF186: 0 | BH186: 0 | BI186: 0 | BK186: 0 | BL186: 0 | BN186: 0 | BO186: 0 | BQ186: 0 | BR186: 0 | BT186: 0 | BU186: 0 | BW186: 0 | BX186: 0 | BZ186: 0 | CA186: 0
A187: 18 | B187: =CONCATENATE(A169,".",A187) -> 6.18 | C187: 0 | D187: 0 | F187: 0 | G187: 0 | I187: 0 | J187: 0 | L187: 0 | M187: 0 | O187: 0 | P187: 0 | R187: 0 | S187: 0 | U187: 0 | V187: 0 | X187: 0 | Y187: 0 | AA187: 0 | AB187: 0 | AD187: 0 | AE187: 0 | AG187: 0 | AH187: 0 | AJ187: 0 | AK187: 0 | AM187: 0 | AN187: 0 | AP187: 0 | AQ187: 0 | AS187: 0 | AT187: 0 | AV187: 0 | AW187: 0 | AY187: 0 | AZ187: 0 | BB187: 0 | BC187: 0 | BE187: 0 | BF187: 0 | BH187: 0 | BI187: 0 | BK187: 0 | BL187: 0 | BN187: 0 | BO187: 0 | BQ187: 0 | BR187: 0 | BT187: 0 | BU187: 0 | BW187: 0 | BX187: 0 | BZ187: 0 | CA187: 0
A188: 19 | B188: =CONCATENATE(A169,".",A188) -> 6.19 | C188: 0 | D188: 0 | F188: 0 | G188: 0 | I188: 0 | J188: 0 | L188: 0 | M188: 0 | O188: 0 | P188: 0 | R188: 0 | S188: 0 | U188: 0 | V188: 0 | X188: 0 | Y188: 0 | AA188: 0 | AB188: 0 | AD188: 0 | AE188: 0 | AG188: 0 | AH188: 0 | AJ188: 0 | AK188: 0 | AM188: 0 | AN188: 0 | AP188: 0 | AQ188: 0 | AS188: 0 | AT188: 0 | AV188: 0 | AW188: 0 | AY188: 0 | AZ188: 0 | BB188: 0 | BC188: 0 | BE188: 0 | BF188: 0 | BH188: 0 | BI188: 0 | BK188: 0 | BL188: 0 | BN188: 0 | BO188: 0 | BQ188: 0 | BR188: 0 | BT188: 0 | BU188: 0 | BW188: 0 | BX188: 0 | BZ188: 0 | CA188: 0
A189: 20 | B189: =CONCATENATE(A169,".",A189) -> 6.20 | C189: 0 | D189: 0 | F189: 0 | G189: 0 | I189: 0 | J189: 0 | L189: 0 | M189: 0 | O189: 0 | P189: 0 | R189: 0 | S189: 0 | U189: 0 | V189: 0 | X189: 0 | Y189: 0 | AA189: 0 | AB189: 0 | AD189: 0 | AE189: 0 | AG189: 0 | AH189: 0 | AJ189: 0 | AK189: 0 | AM189: 0 | AN189: 0 | AP189: 0 | AQ189: 0 | AS189: 0 | AT189: 0 | AV189: 0 | AW189: 0 | AY189: 0 | AZ189: 0 | BB189: 0 | BC189: 0 | BE189: 0 | BF189: 0 | BH189: 0 | BI189: 0 | BK189: 0 | BL189: 0 | BN189: 0 | BO189: 0 | BQ189: 0 | BR189: 0 | BT189: 0 | BU189: 0 | BW189: 0 | BX189: 0 | BZ189: 0 | CA189: 0
A190: 21 | B190: =CONCATENATE(A169,".",A190) -> 6.21 | C190: 0 | D190: 0 | F190: 0 | G190: 0 | I190: 0 | J190: 0 | L190: 0 | M190: 0 | O190: 0 | P190: 0 | R190: 0 | S190: 0 | U190: 0 | V190: 0 | X190: 0 | Y190: 0 | AA190: 0 | AB190: 0 | AD190: 0 | AE190: 0 | AG190: 0 | AH190: 0 | AJ190: 0 | AK190: 0 | AM190: 0 | AN190: 0 | AP190: 0 | AQ190: 0 | AS190: 0 | AT190: 0 | AV190: 0 | AW190: 0 | AY190: 0 | AZ190: 0 | BB190: 0 | BC190: 0 | BE190: 0 | BF190: 0 | BH190: 0 | BI190: 0 | BK190: 0 | BL190: 0 | BN190: 0 | BO190: 0 | BQ190: 0 | BR190: 0 | BT190: 0 | BU190: 0 | BW190: 0 | BX190: 0 | BZ190: 0 | CA190: 0
A191: 22 | B191: =CONCATENATE(A169,".",A191) -> 6.22 | C191: 0 | D191: 0 | F191: 0 | G191: 0 | I191: 0 | J191: 0 | L191: 0 | M191: 0 | O191: 0 | P191: 0 | R191: 0 | S191: 0 | U191: 0 | V191: 0 | X191: 0 | Y191: 0 | AA191: 0 | AB191: 0 | AD191: 0 | AE191: 0 | AG191: 0 | AH191: 0 | AJ191: 0 | AK191: 0 | AM191: 0 | AN191: 0 | AP191: 0 | AQ191: 0 | AS191: 0 | AT191: 0 | AV191: 0 | AW191: 0 | AY191: 0 | AZ191: 0 | BB191: 0 | BC191: 0 | BE191: 0 | BF191: 0 | BH191: 0 | BI191: 0 | BK191: 0 | BL191: 0 | BN191: 0 | BO191: 0 | BQ191: 0 | BR191: 0 | BT191: 0 | BU191: 0 | BW191: 0 | BX191: 0 | BZ191: 0 | CA191: 0
A192: 23 | B192: =CONCATENATE(A169,".",A192) -> 6.23 | C192: 0 | D192: 0 | F192: 0 | G192: 0 | I192: 0 | J192: 0 | L192: 0 | M192: 0 | O192: 0 | P192: 0 | R192: 0 | S192: 0 | U192: 0 | V192: 0 | X192: 0 | Y192: 0 | AA192: 0 | AB192: 0 | AD192: 0 | AE192: 0 | AG192: 0 | AH192: 0 | AJ192: 0 | AK192: 0 | AM192: 0 | AN192: 0 | AP192: 0 | AQ192: 0 | AS192: 0 | AT192: 0 | AV192: 0 | AW192: 0 | AY192: 0 | AZ192: 0 | BB192: 0 | BC192: 0 | BE192: 0 | BF192: 0 | BH192: 0 | BI192: 0 | BK192: 0 | BL192: 0 | BN192: 0 | BO192: 0 | BQ192: 0 | BR192: 0 | BT192: 0 | BU192: 0 | BW192: 0 | BX192: 0 | BZ192: 0 | CA192: 0
A193: 24 | B193: =CONCATENATE(A169,".",A193) -> 6.24 | C193: 0 | D193: 0 | F193: 0 | G193: 0 | I193: 0 | J193: 0 | L193: 0 | M193: 0 | O193: 0 | P193: 0 | R193: 0 | S193: 0 | U193: 0 | V193: 0 | X193: 0 | Y193: 0 | AA193: 0 | AB193: 0 | AD193: 0 | AE193: 0 | AG193: 0 | AH193: 0 | AJ193: 0 | AK193: 0 | AM193: 0 | AN193: 0 | AP193: 0 | AQ193: 0 | AS193: 0 | AT193: 0 | AV193: 0 | AW193: 0 | AY193: 0 | AZ193: 0 | BB193: 0 | BC193: 0 | BE193: 0 | BF193: 0 | BH193: 0 | BI193: 0 | BK193: 0 | BL193: 0 | BN193: 0 | BO193: 0 | BQ193: 0 | BR193: 0 | BT193: 0 | BU193: 0 | BW193: 0 | BX193: 0 | BZ193: 0 | CA193: 0
A194: 25 | B194: =CONCATENATE(A169,".",A194) -> 6.25 | C194: 0 | D194: 0 | F194: 0 | G194: 0 | I194: 0 | J194: 0 | L194: 0 | M194: 0 | O194: 0 | P194: 0 | R194: 0 | S194: 0 | U194: 0 | V194: 0 | X194: 0 | Y194: 0 | AA194: 0 | AB194: 0 | AD194: 0 | AE194: 0 | AG194: 0 | AH194: 0 | AJ194: 0 | AK194: 0 | AM194: 0 | AN194: 0 | AP194: 0 | AQ194: 0 | AS194: 0 | AT194: 0 | AV194: 0 | AW194: 0 | AY194: 0 | AZ194: 0 | BB194: 0 | BC194: 0 | BE194: 0 | BF194: 0 | BH194: 0 | BI194: 0 | BK194: 0 | BL194: 0 | BN194: 0 | BO194: 0 | BQ194: 0 | BR194: 0 | BT194: 0 | BU194: 0 | BW194: 0 | BX194: 0 | BZ194: 0 | CA194: 0
A195: 26 | B195: =CONCATENATE(A169,".",A195) -> 6.26 | C195: 0 | D195: 0 | F195: 0 | G195: 0 | I195: 0 | J195: 0 | L195: 0 | M195: 0 | O195: 0 | P195: 0 | R195: 0 | S195: 0 | U195: 0 | V195: 0 | X195: 0 | Y195: 0 | AA195: 0 | AB195: 0 | AD195: 0 | AE195: 0 | AG195: 0 | AH195: 0 | AJ195: 0 | AK195: 0 | AM195: 0 | AN195: 0 | AP195: 0 | AQ195: 0 | AS195: 0 | AT195: 0 | AV195: 0 | AW195: 0 | AY195: 0 | AZ195: 0 | BB195: 0 | BC195: 0 | BE195: 0 | BF195: 0 | BH195: 0 | BI195: 0 | BK195: 0 | BL195: 0 | BN195: 0 | BO195: 0 | BQ195: 0 | BR195: 0 | BT195: 0 | BU195: 0 | BW195: 0 | BX195: 0 | BZ195: 0 | CA195: 0
A196: 27 | B196: =CONCATENATE(A169,".",A196) -> 6.27 | C196: 0 | D196: 0 | F196: 0 | G196: 0 | I196: 0 | J196: 0 | L196: 0 | M196: 0 | O196: 0 | P196: 0 | R196: 0 | S196: 0 | U196: 0 | V196: 0 | X196: 0 | Y196: 0 | AA196: 0 | AB196: 0 | AD196: 0 | AE196: 0 | AG196: 0 | AH196: 0 | AJ196: 0 | AK196: 0 | AM196: 0 | AN196: 0 | AP196: 0 | AQ196: 0 | AS196: 0 | AT196: 0 | AV196: 0 | AW196: 0 | AY196: 0 | AZ196: 0 | BB196: 0 | BC196: 0 | BE196: 0 | BF196: 0 | BH196: 0 | BI196: 0 | BK196: 0 | BL196: 0 | BN196: 0 | BO196: 0 | BQ196: 0 | BR196: 0 | BT196: 0 | BU196: 0 | BW196: 0 | BX196: 0 | BZ196: 0 | CA196: 0
A197: 28 | B197: =CONCATENATE(A169,".",A197) -> 6.28 | C197: 0 | D197: 0 | F197: 0 | G197: 0 | I197: 0 | J197: 0 | L197: 0 | M197: 0 | O197: 0 | P197: 0 | R197: 0 | S197: 0 | U197: 0 | V197: 0 | X197: 0 | Y197: 0 | AA197: 0 | AB197: 0 | AD197: 0 | AE197: 0 | AG197: 0 | AH197: 0 | AJ197: 0 | AK197: 0 | AM197: 0 | AN197: 0 | AP197: 0 | AQ197: 0 | AS197: 0 | AT197: 0 | AV197: 0 | AW197: 0 | AY197: 0 | AZ197: 0 | BB197: 0 | BC197: 0 | BE197: 0 | BF197: 0 | BH197: 0 | BI197: 0 | BK197: 0 | BL197: 0 | BN197: 0 | BO197: 0 | BQ197: 0 | BR197: 0 | BT197: 0 | BU197: 0 | BW197: 0 | BX197: 0 | BZ197: 0 | CA197: 0
A198: 29 | B198: =CONCATENATE(A169,".",A198) -> 6.29 | C198: 0 | D198: 0 | F198: 0 | G198: 0 | I198: 0 | J198: 0 | L198: 0 | M198: 0 | O198: 0 | P198: 0 | R198: 0 | S198: 0 | U198: 0 | V198: 0 | X198: 0 | Y198: 0 | AA198: 0 | AB198: 0 | AD198: 0 | AE198: 0 | AG198: 0 | AH198: 0 | AJ198: 0 | AK198: 0 | AM198: 0 | AN198: 0 | AP198: 0 | AQ198: 0 | AS198: 0 | AT198: 0 | AV198: 0 | AW198: 0 | AY198: 0 | AZ198: 0 | BB198: 0 | BC198: 0 | BE198: 0 | BF198: 0 | BH198: 0 | BI198: 0 | BK198: 0 | BL198: 0 | BN198: 0 | BO198: 0 | BQ198: 0 | BR198: 0 | BT198: 0 | BU198: 0 | BW198: 0 | BX198: 0 | BZ198: 0 | CA198: 0
A199: 30 | B199: =CONCATENATE(A169,".",A199) -> 6.30 | C199: 0 | D199: 0 | F199: 0 | G199: 0 | I199: 0 | J199: 0 | L199: 0 | M199: 0 | O199: 0 | P199: 0 | R199: 0 | S199: 0 | U199: 0 | V199: 0 | X199: 0 | Y199: 0 | AA199: 0 | AB199: 0 | AD199: 0 | AE199: 0 | AG199: 0 | AH199: 0 | AJ199: 0 | AK199: 0 | AM199: 0 | AN199: 0 | AP199: 0 | AQ199: 0 | AS199: 0 | AT199: 0 | AV199: 0 | AW199: 0 | AY199: 0 | AZ199: 0 | BB199: 0 | BC199: 0 | BE199: 0 | BF199: 0 | BH199: 0 | BI199: 0 | BK199: 0 | BL199: 0 | BN199: 0 | BO199: 0 | BQ199: 0 | BR199: 0 | BT199: 0 | BU199: 0 | BW199: 0 | BX199: 0 | BZ199: 0 | CA199: 0
A200: 7 | B200: =A200 -> 7 | C200: 0 | D200: 0 | F200: =IF(ISERROR(G200/$D200=TRUE),0,G200/$D200) -> 0 | G200: =SUM(G201:G230) -> 0 | I200: =IF(ISERROR(J200/$D200=TRUE),0,J200/$D200) -> 0 | J200: =SUM(J201:J230) -> 0 | L200: =IF(ISERROR(M200/$D200=TRUE),0,M200/$D200) -> 0 | M200: =SUM(M201:M230) -> 0 | O200: =IF(ISERROR(P200/$D200=TRUE),0,P200/$D200) -> 0 | P200: =SUM(P201:P230) -> 0 | R200: =IF(ISERROR(S200/$D200=TRUE),0,S200/$D200) -> 0 | S200: =SUM(S201:S230) -> 0 | U200: =IF(ISERROR(V200/$D200=TRUE),0,V200/$D200) -> 0 | V200: =SUM(V201:V230) -> 0 | X200: =IF(ISERROR(Y200/$D200=TRUE),0,Y200/$D200) -> 0 | Y200: =SUM(Y201:Y230) -> 0 | AA200: =IF(ISERROR(AB200/$D200=TRUE),0,AB200/$D200) -> 0 | AB200: =SUM(AB201:AB230) -> 0 | AD200: =IF(ISERROR(AE200/$D200=TRUE),0,AE200/$D200) -> 0 | AE200: =SUM(AE201:AE230) -> 0 | AG200: =IF(ISERROR(AH200/$D200=TRUE),0,AH200/$D200) -> 0 | AH200: =SUM(AH201:AH230) -> 0 | AJ200: =IF(ISERROR(AK200/$D200=TRUE),0,AK200/$D200) -> 0 | AK200: =SUM(AK201:AK230) -> 0 | AM200: =IF(ISERROR(AN200/$D200=TRUE),0,AN200/$D200) -> 0 | AN200: =SUM(AN201:AN230) -> 0 | AP200: =IF(ISERROR(AQ200/$D200=TRUE),0,AQ200/$D200) -> 0 | AQ200: =SUM(AQ201:AQ230) -> 0 | AS200: =IF(ISERROR(AT200/$D200=TRUE),0,AT200/$D200) -> 0 | AT200: =SUM(AT201:AT230) -> 0 | AV200: =IF(ISERROR(AW200/$D200=TRUE),0,AW200/$D200) -> 0 | AW200: =SUM(AW201:AW230) -> 0 | AY200: =IF(ISERROR(AZ200/$D200=TRUE),0,AZ200/$D200) -> 0 | AZ200: =SUM(AZ201:AZ230) -> 0 | BB200: =IF(ISERROR(BC200/$D200=TRUE),0,BC200/$D200) -> 0 | BC200: =SUM(BC201:BC230) -> 0 | BE200: =IF(ISERROR(BF200/$D200=TRUE),0,BF200/$D200) -> 0 | BF200: =SUM(BF201:BF230) -> 0 | BH200: =IF(ISERROR(BI200/$D200=TRUE),0,BI200/$D200) -> 0 | BI200: =SUM(BI201:BI230) -> 0 | BK200: =IF(ISERROR(BL200/$D200=TRUE),0,BL200/$D200) -> 0 | BL200: =SUM(BL201:BL230) -> 0 | BN200: =IF(ISERROR(BO200/$D200=TRUE),0,BO200/$D200) -> 0 | BO200: =SUM(BO201:BO230) -> 0 | BQ200: =IF(ISERROR(BR200/$D200=TRUE),0,BR200/$D200) -> 0 | BR200: =SUM(BR201:BR230) -> 0 | BT200: =IF(ISERROR(BU200/$D200=TRUE),0,BU200/$D200) -> 0 | BU200: =SUM(BU201:BU230) -> 0 | BW200: =IF(ISERROR(BX200/$D200=TRUE),0,BX200/$D200) -> 0 | BX200: =SUM(BX201:BX230) -> 0 | BZ200: =IF(ISERROR(CA200/$D200=TRUE),0,CA200/$D200) -> 0 | CA200: =SUM(CA201:CA230)+0.01 -> 0.01
A201: 1 | B201: =CONCATENATE(A200,".",A201) -> 7.1 | C201: 0 | D201: 0 | F201: 0 | G201: =F201*$D201 -> 0 | I201: 0 | J201: =I201*$D201 -> 0 | L201: 0 | M201: =L201*$D201 -> 0 | O201: 0 | P201: =O201*$D201 -> 0 | R201: 0 | S201: =R201*$D201 -> 0 | U201: 0 | V201: =U201*$D201 -> 0 | X201: 0 | Y201: =X201*$D201 -> 0 | AA201: 0 | AB201: =AA201*$D201 -> 0 | AD201: 0 | AE201: =AD201*$D201 -> 0 | AG201: 0 | AH201: =AG201*$D201 -> 0 | AJ201: 0 | AK201: =AJ201*$D201 -> 0 | AM201: 0 | AN201: =AM201*$D201 -> 0 | AP201: 0 | AQ201: =AP201*$D201 -> 0 | AS201: 0 | AT201: =AS201*$D201 -> 0 | AV201: 0 | AW201: =AV201*$D201 -> 0 | AY201: 0 | AZ201: =AY201*$D201 -> 0 | BB201: 0 | BC201: =BB201*$D201 -> 0 | BE201: 0 | BF201: =BE201*$D201 -> 0 | BH201: 0 | BI201: =BH201*$D201 -> 0 | BK201: 0 | BL201: =BK201*$D201 -> 0 | BN201: 0 | BO201: =BN201*$D201 -> 0 | BQ201: 0 | BR201: =BQ201*$D201 -> 0 | BT201: 0 | BU201: =BT201*$D201 -> 0 | BW201: 0 | BX201: =BW201*$D201 -> 0 | BZ201: =IF(ISERROR(CA201/$D201=TRUE),0,CA201/$D201) -> 0 | CA201: =BX201+BU201+BR201+BO201+BL201+BI201+BF201+BC201+AZ201+AW201+AT201+AQ201+AN201+AK201+AH201+AE201+AB201+Y201+V201+S201+P201+M201+J201+G201 -> 0
A202: 2 | B202: =CONCATENATE(A200,".",A202) -> 7.2 | C202: 0 | D202: 0 | F202: 0 | G202: =F202*$D202 -> 0 | I202: 0 | J202: =I202*$D202 -> 0 | L202: 0 | M202: =L202*$D202 -> 0 | O202: 0 | P202: =O202*$D202 -> 0 | R202: 0 | S202: =R202*$D202 -> 0 | U202: 0 | V202: =U202*$D202 -> 0 | X202: 0 | Y202: =X202*$D202 -> 0 | AA202: 0 | AB202: =AA202*$D202 -> 0 | AD202: 0 | AE202: =AD202*$D202 -> 0 | AG202: 0 | AH202: =AG202*$D202 -> 0 | AJ202: 0 | AK202: =AJ202*$D202 -> 0 | AM202: 0 | AN202: =AM202*$D202 -> 0 | AP202: 0 | AQ202: =AP202*$D202 -> 0 | AS202: 0 | AT202: =AS202*$D202 -> 0 | AV202: 0 | AW202: =AV202*$D202 -> 0 | AY202: 0 | AZ202: =AY202*$D202 -> 0 | BB202: 0 | BC202: =BB202*$D202 -> 0 | BE202: 0 | BF202: =BE202*$D202 -> 0 | BH202: 0 | BI202: =BH202*$D202 -> 0 | BK202: 0 | BL202: =BK202*$D202 -> 0 | BN202: 0 | BO202: =BN202*$D202 -> 0 | BQ202: 0 | BR202: =BQ202*$D202 -> 0 | BT202: 0 | BU202: =BT202*$D202 -> 0 | BW202: 0 | BX202: =BW202*$D202 -> 0 | BZ202: =IF(ISERROR(CA202/$D202=TRUE),0,CA202/$D202) -> 0 | CA202: =BX202+BU202+BR202+BO202+BL202+BI202+BF202+BC202+AZ202+AW202+AT202+AQ202+AN202+AK202+AH202+AE202+AB202+Y202+V202+S202+P202+M202+J202+G202 -> 0
A203: 3 | B203: =CONCATENATE(A200,".",A203) -> 7.3 | C203: 0 | D203: 0 | F203: 0 | G203: 0 | I203: 0 | J203: 0 | L203: 0 | M203: 0 | O203: 0 | P203: 0 | R203: 0 | S203: 0 | U203: 0 | V203: 0 | X203: 0 | Y203: 0 | AA203: 0 | AB203: 0 | AD203: 0 | AE203: 0 | AG203: 0 | AH203: 0 | AJ203: 0 | AK203: 0 | AM203: 0 | AN203: 0 | AP203: 0 | AQ203: 0 | AS203: 0 | AT203: 0 | AV203: 0 | AW203: 0 | AY203: 0 | AZ203: 0 | BB203: 0 | BC203: 0 | BE203: 0 | BF203: 0 | BH203: 0 | BI203: 0 | BK203: 0 | BL203: 0 | BN203: 0 | BO203: 0 | BQ203: 0 | BR203: 0 | BT203: 0 | BU203: 0 | BW203: 0 | BX203: 0 | BZ203: 0 | CA203: 0
A204: 4 | B204: =CONCATENATE(A200,".",A204) -> 7.4 | C204: 0 | D204: 0 | F204: 0 | G204: 0 | I204: 0 | J204: 0 | L204: 0 | M204: 0 | O204: 0 | P204: 0 | R204: 0 | S204: 0 | U204: 0 | V204: 0 | X204: 0 | Y204: 0 | AA204: 0 | AB204: 0 | AD204: 0 | AE204: 0 | AG204: 0 | AH204: 0 | AJ204: 0 | AK204: 0 | AM204: 0 | AN204: 0 | AP204: 0 | AQ204: 0 | AS204: 0 | AT204: 0 | AV204: 0 | AW204: 0 | AY204: 0 | AZ204: 0 | BB204: 0 | BC204: 0 | BE204: 0 | BF204: 0 | BH204: 0 | BI204: 0 | BK204: 0 | BL204: 0 | BN204: 0 | BO204: 0 | BQ204: 0 | BR204: 0 | BT204: 0 | BU204: 0 | BW204: 0 | BX204: 0 | BZ204: 0 | CA204: 0
A205: 5 | B205: =CONCATENATE(A200,".",A205) -> 7.5 | C205: 0 | D205: 0 | F205: 0 | G205: 0 | I205: 0 | J205: 0 | L205: 0 | M205: 0 | O205: 0 | P205: 0 | R205: 0 | S205: 0 | U205: 0 | V205: 0 | X205: 0 | Y205: 0 | AA205: 0 | AB205: 0 | AD205: 0 | AE205: 0 | AG205: 0 | AH205: 0 | AJ205: 0 | AK205: 0 | AM205: 0 | AN205: 0 | AP205: 0 | AQ205: 0 | AS205: 0 | AT205: 0 | AV205: 0 | AW205: 0 | AY205: 0 | AZ205: 0 | BB205: 0 | BC205: 0 | BE205: 0 | BF205: 0 | BH205: 0 | BI205: 0 | BK205: 0 | BL205: 0 | BN205: 0 | BO205: 0 | BQ205: 0 | BR205: 0 | BT205: 0 | BU205: 0 | BW205: 0 | BX205: 0 | BZ205: 0 | CA205: 0
A206: 6 | B206: =CONCATENATE(A200,".",A206) -> 7.6 | C206: 0 | D206: 0 | F206: 0 | G206: 0 | I206: 0 | J206: 0 | L206: 0 | M206: 0 | O206: 0 | P206: 0 | R206: 0 | S206: 0 | U206: 0 | V206: 0 | X206: 0 | Y206: 0 | AA206: 0 | AB206: 0 | AD206: 0 | AE206: 0 | AG206: 0 | AH206: 0 | AJ206: 0 | AK206: 0 | AM206: 0 | AN206: 0 | AP206: 0 | AQ206: 0 | AS206: 0 | AT206: 0 | AV206: 0 | AW206: 0 | AY206: 0 | AZ206: 0 | BB206: 0 | BC206: 0 | BE206: 0 | BF206: 0 | BH206: 0 | BI206: 0 | BK206: 0 | BL206: 0 | BN206: 0 | BO206: 0 | BQ206: 0 | BR206: 0 | BT206: 0 | BU206: 0 | BW206: 0 | BX206: 0 | BZ206: 0 | CA206: 0
A207: 7 | B207: =CONCATENATE(A200,".",A207) -> 7.7 | C207: 0 | D207: 0 | F207: 0 | G207: 0 | I207: 0 | J207: 0 | L207: 0 | M207: 0 | O207: 0 | P207: 0 | R207: 0 | S207: 0 | U207: 0 | V207: 0 | X207: 0 | Y207: 0 | AA207: 0 | AB207: 0 | AD207: 0 | AE207: 0 | AG207: 0 | AH207: 0 | AJ207: 0 | AK207: 0 | AM207: 0 | AN207: 0 | AP207: 0 | AQ207: 0 | AS207: 0 | AT207: 0 | AV207: 0 | AW207: 0 | AY207: 0 | AZ207: 0 | BB207: 0 | BC207: 0 | BE207: 0 | BF207: 0 | BH207: 0 | BI207: 0 | BK207: 0 | BL207: 0 | BN207: 0 | BO207: 0 | BQ207: 0 | BR207: 0 | BT207: 0 | BU207: 0 | BW207: 0 | BX207: 0 | BZ207: 0 | CA207: 0
A208: 8 | B208: =CONCATENATE(A200,".",A208) -> 7.8 | C208: 0 | D208: 0 | F208: 0 | G208: 0 | I208: 0 | J208: 0 | L208: 0 | M208: 0 | O208: 0 | P208: 0 | R208: 0 | S208: 0 | U208: 0 | V208: 0 | X208: 0 | Y208: 0 | AA208: 0 | AB208: 0 | AD208: 0 | AE208: 0 | AG208: 0 | AH208: 0 | AJ208: 0 | AK208: 0 | AM208: 0 | AN208: 0 | AP208: 0 | AQ208: 0 | AS208: 0 | AT208: 0 | AV208: 0 | AW208: 0 | AY208: 0 | AZ208: 0 | BB208: 0 | BC208: 0 | BE208: 0 | BF208: 0 | BH208: 0 | BI208: 0 | BK208: 0 | BL208: 0 | BN208: 0 | BO208: 0 | BQ208: 0 | BR208: 0 | BT208: 0 | BU208: 0 | BW208: 0 | BX208: 0 | BZ208: 0 | CA208: 0
A209: 9 | B209: =CONCATENATE(A200,".",A209) -> 7.9 | C209: 0 | D209: 0 | F209: 0 | G209: 0 | I209: 0 | J209: 0 | L209: 0 | M209: 0 | O209: 0 | P209: 0 | R209: 0 | S209: 0 | U209: 0 | V209: 0 | X209: 0 | Y209: 0 | AA209: 0 | AB209: 0 | AD209: 0 | AE209: 0 | AG209: 0 | AH209: 0 | AJ209: 0 | AK209: 0 | AM209: 0 | AN209: 0 | AP209: 0 | AQ209: 0 | AS209: 0 | AT209: 0 | AV209: 0 | AW209: 0 | AY209: 0 | AZ209: 0 | BB209: 0 | BC209: 0 | BE209: 0 | BF209: 0 | BH209: 0 | BI209: 0 | BK209: 0 | BL209: 0 | BN209: 0 | BO209: 0 | BQ209: 0 | BR209: 0 | BT209: 0 | BU209: 0 | BW209: 0 | BX209: 0 | BZ209: 0 | CA209: 0
A210: 10 | B210: =CONCATENATE(A200,".",A210) -> 7.10 | C210: 0 | D210: 0 | F210: 0 | G210: 0 | I210: 0 | J210: 0 | L210: 0 | M210: 0 | O210: 0 | P210: 0 | R210: 0 | S210: 0 | U210: 0 | V210: 0 | X210: 0 | Y210: 0 | AA210: 0 | AB210: 0 | AD210: 0 | AE210: 0 | AG210: 0 | AH210: 0 | AJ210: 0 | AK210: 0 | AM210: 0 | AN210: 0 | AP210: 0 | AQ210: 0 | AS210: 0 | AT210: 0 | AV210: 0 | AW210: 0 | AY210: 0 | AZ210: 0 | BB210: 0 | BC210: 0 | BE210: 0 | BF210: 0 | BH210: 0 | BI210: 0 | BK210: 0 | BL210: 0 | BN210: 0 | BO210: 0 | BQ210: 0 | BR210: 0 | BT210: 0 | BU210: 0 | BW210: 0 | BX210: 0 | BZ210: 0 | CA210: 0
A211: 11 | B211: =CONCATENATE(A200,".",A211) -> 7.11 | C211: 0 | D211: 0 | F211: 0 | G211: 0 | I211: 0 | J211: 0 | L211: 0 | M211: 0 | O211: 0 | P211: 0 | R211: 0 | S211: 0 | U211: 0 | V211: 0 | X211: 0 | Y211: 0 | AA211: 0 | AB211: 0 | AD211: 0 | AE211: 0 | AG211: 0 | AH211: 0 | AJ211: 0 | AK211: 0 | AM211: 0 | AN211: 0 | AP211: 0 | AQ211: 0 | AS211: 0 | AT211: 0 | AV211: 0 | AW211: 0 | AY211: 0 | AZ211: 0 | BB211: 0 | BC211: 0 | BE211: 0 | BF211: 0 | BH211: 0 | BI211: 0 | BK211: 0 | BL211: 0 | BN211: 0 | BO211: 0 | BQ211: 0 | BR211: 0 | BT211: 0 | BU211: 0 | BW211: 0 | BX211: 0 | BZ211: 0 | CA211: 0
... 733 more rows
